Workbook

Sheet Start!
A8: Community Solar Business Case Tool
A9: v1.21 July 2017
A45: Contact developers with questions:
A46: Emily McGavisk, West Monroe Partners: | E46: emcgavisk@westmonroepartners.com
A47: Vito Greco, Elevate Energy: | D47: Vito.Greco@ElevateEnergy.org
A49: This decision support tool (“Tool") was developed by the Cook County Community Solar project team ("Cook County"), lead by West Monroe Partners, LLC ("West Monroe") and Elevate Energy for the purpose of considering community solar initiatives from the perspective of a subscriber or system owner in Cook County. It is not intended, and should be used, as the basis for investment decision making. The Tool is provided on an “as-is” basis and “with all faults”, and no representations or warranty of any kind, whether expressed or implied either in fact or by operation of law, statutory or otherwise, including without limitation warranties of merchantability, or fitness for a particular purpose is given by West Monroe, Cook County, Elevate Energy or any other person as to the accuracy of the Tool or any output therefrom. Any user of the Tool agrees to assume full responsibility for use of the Tool and use of any output therefrom.
A57: This report was prepared as an account of work sponsored by an agency of the United States Government. Neither the United States Government nor any agency thereof, nor any of their employees, makes any warranty, express or implied, or assumes any legal liability or responsibility for the accuracy, completeness, or usefulness of any information, apparatus, product, or process disclosed, or represents that its use would not infringe privately owned rights. Reference herein to any specific commercial product, process, or service by trade name, trademark, manufacturer, or otherwise does not necessarily constitute or imply its endorsement, recommendation, or favoring by the United States Government or any agency thereof. The views and opinions of authors expressed herein do not necessarily state or reflect those of the United States Government or any agency thereof.

Sheet Version_History
A8: Version History
A9: v1.22 July 2017

Sheet Key_Assumptions_&_Inputs
A1: Key Assumptions & Inputs: The purpose of this tab is for the user to enter inputs and assumptions related to the community solar project. Cells with blue font may be modified, and red cells represent drop downs that should be selected. Descriptions of inputs, value ranges and assumptions can been found for each input by hovering the cursor over default values.
C7: Critical System Inputs
C10: System Owner Financials | G10: Output Snapshot*
C11: Business Model: | E11: Panel Leasing | G11: Panel Purchase Price: | H11: =Dashboard!C10 -> N/A
C12: =IF(E11="Panel Purchasing","Panel Purchase Price:",IF(E11="Panel Leasing","Monthly Panel Lease Price:")) -> Monthly Panel Lease Price: | E12: 3.611723876 | G12: Monthly Panel Lease Price: | H12: =Dashboard!C11 -> 3.611723876
G13: Subscriber NPV: | H13: =Dashboard!E17 -> 1398.8382
C14: Project Information | G14: System Owner NPV: | H14: =Dashboard!D17 -> 674351.8804
C15: City: | E15: Chicago | G15: System Owner MIRR: | H15: =Community_Solar_Business_Case!E69 -> 0.0992447733
C16: State: | E16: IL | G16: System Owner ROI: | H16: =Community_Solar_Business_Case!E70 -> 0.6382405622
C17: System Size - DC (Gross kW): | E17: 1000 | G17: *See Dashboard for full output analysis
C18: Panel Size (W): | E18: 300
C19: Installation Type: | E19: Ground Mount
C20: Ownership Entity: | E20: Non Tax-Exempt Entity
C21: Panels per Subscriber: | E21: 15
C22: Years to Full Subscription: | E22: 1 | G22: =IF(E11="Panel Leasing","Note: If panel lease is selected, monthly panel lease price must be be below the cost of electricity generated by a panel for the subscriber to break even","Note: If panel purchase is selected, upfront panel price must be be below the cost of electricity generated over the lifetime of the panel for the subscriber to break even") -> Note: If panel lease is selected, monthly panel lease price must be be below the cost of electricity generated by a panel for the subscriber to break even
G24: =IF(E11="Panel Leasing","Monthly cost of electricity per panel in Year 1:","Lifetime cost of electricity per panel") -> Monthly cost of electricity per panel in Year 1: | H24: =IF(E11="Panel Leasing",D49*Generation_Rates!D38/E34/12,(Generation_Rates!E54+NPV(E64,Generation_Rates!F54:AC54))/E34) -> 3.611362704
C26: Photovoltaic System Technical Assumptions | G26: Photovoltaic System Cost Assumptions
C28: Community Shared Solar System | G28: Construction Costs | I28: Input Unit | J28: Input Value (2016 USD) | K28: Total Cost ($) | L28: $/Watt
C29: Capacity Factor: | E29: 0.1313265781 | G29: PV Modules: | I29: $/W | J29: 0.64 | K29: =J29*$E$17*1000 -> 640000 | L29: =J29 -> 0.64
C30: System Losses (%): | E30: 14 | G30: Inverters: | I30: $/W | J30: 0.13 | K30: 130000 | L30: =J30 -> 0.13
C31: Inverter Efficiency (%): | E31: 97 | G31: Racking: | I31: $/W | J31: =IF(E19="Canopy",0.96,0.21) -> 0.21 | K31: 210000 | L31: 0.21
C32: Annual Power Production (kWh per kW): | E32: =E49 -> 1150.420824 | G32: Balance of System: | I32: $/W | J32: 0.18 | K32: 180000 | L32: 0.18
C33: Annual Derate (%): | E33: 0.005 | G33: Engineering and Design: | I33: $/W | J33: 0.06 | K33: 60000 | L33: 0.06
C34: Number of Panels: | E34: =E17*1000/E18 -> 3333.333333 | G34: Permitting and Interconnection: | I34: $/W | J34: 0.09 | K34: 90000 | L34: 0.09
G35: Installation Labor: | I35: $/W | J35: 0.5 | K35: 500000 | L35: 0.5
C36: Month | D36: Applicable Subscriber Credit Rate (2015 $/kWh) | E36: Generation Output (kWh/kW) | G36: Equipment Rental and Freight: | I36: $/W | J36: 0.03 | K36: 30000 | L36: 0.03
C37: January | D37: 0.1151 | E37: 47.00471484 | G37: Development Overhead: | I37: $/W | J37: 0.41 | K37: 410000 | L37: 0.41
C38: February | D38: 0.1169 | E38: 63.38920703 | G38: Total Installed Cost of PV System (Ground Mount) | I38: $/W | J38: =SUM(J29:J37) -> 2.25 | K38: 2250000 | L38: 2.25
C39: March | D39: 0.1196 | E39: 95.52375781
C40: April | D40: 0.134 | E40: 119.8707266 | G40: Site Costs | I40: Input Unit | J40: Input Value (2016 USD) | K40: Total Cost ($) | L40: $/Watt
C41: May | D41: 0.1339 | E41: 146.6410625 | G41: Purchase Cost of Site: | I41: $ | J41: 0 | K41: =J41 -> 0 | L41: =K41/($E$17*1000) -> 0
C42: June | D42: 0.1259 | E42: 147.1732969 | G42: Site/Land Preparation Costs: | I42: $/W | J42: 0.06 | K42: =J42*E17*1000 -> 60000 | L42: =K42/($E$17*1000) -> 0.06
C43: July | D43: 0.1258 | E43: 150.5401562 | G43: Annual Lease Payments for Site: | I43: $/year | J43: 7500 | K43: =J43*E57 -> 187500 | L43: =K43/($E$17*1000) -> 0.1875
C44: August | D44: 0.1241 | E44: 123.5745313 | G44: Removal Cost: | I44: $ | J44: 0 | K44: =J44 -> 0 | L44: =K44/($E$17*1000) -> 0
C45: September | D45: 0.1268 | E45: 98.14284375
C46: October | D46: 0.1347 | E46: 75.93289844 | G46: O&M Costs | I46: Input Unit | J46: Input Value (2016 USD) | K46: Total Cost ($) | L46: $/Watt
C47: November | D47: 0.1319 | E47: 45.35371484 | G47: Annual System Operations & Maintenance: | I47: $/kW/year | J47: 15 | K47: =J47*E17*E57 -> 375000 | L47: =K47/(E17*1000) -> 0.375
C48: December | D48: 0.1181 | E48: 37.27391406
C49: Annual | D49: =AVERAGE(D37:D48) -> 0.1255666667 | E49: =SUM(E37:E48) -> 1150.420824
C51: Unsubscribed Electricity
C52: Credit Rate ($/kWh): | E52: 0.03
C54: Community Solar Program Assumptions | G54: Incentive Assumptions
C56: Community Shared Solar Program | G56: Incentive | I56: Input Unit | J56: Input Value | K56: Total Cost ($) | L56: $/Watt
C57: System Life (years): | E57: 25 | G57: Federal Investment Tax Credit (ITC): | I57: % of qualified costs | J57: 0.3 | K57: =Community_Solar_Business_Case!E39 -> 675000 | L57: =K57/($E$17*1000) -> 0.675
C58: % of System Subscribed by Anchor Subscriber: | E58: 0.4 | G58: State/Local Generation Incentives, if Applicable: | I58: $/kWh | J58: 0 | K58: =Community_Solar_Business_Case!F42:AD42 -> 0 | L58: 0
C59: Annual Subscriber Retirement/Acquisition Rate (%): | E59: 0.015 | G59: State/Local Capacity Subsidy, if Applicable: | I59: $/Watt | J59: 0 | K59: =J59*1000*E17 -> 0 | L59: 0
C60: Panel Price/Lease Escalator (%): | E60: 0 | G60: State/Local Lump Sum Incentive, if Applicable: | I60: $ | J60: 0 | K60: =J60 -> 0 | L60: 0
G61: SREC Value: | I61: $/SREC (MWh) | J61: 45 | K61: =SUM(Community_Solar_Business_Case!F52:J52) -> 768768.7158 | L61: 0.7687687158
C62: Solar Project Financial Metrics | G62: SREC Lifetime: | I62: years | J62: 15 | K62: N/A | L62: N/A
C63: Annual Energy & Demand Cost Increase: | E63: 0.0278 | G63: SREC Payout Schedule: | I63: years | J63: 5 | K63: N/A | L63: N/A
C64: Subscriber NPV Disount Rate: | E64: 0.1 | G64: Tax Rate for MACRs Depreciation: | I64: % | J64: 0.35 | K64: =SUM(Community_Solar_Business_Case!E40:AD40) -> 669375 | L64: =K64/($E$17*1000) -> 0.669375
C65: Deverloper NPV Discount Rate: | E65: 0.08 | G65: Salvage Value: | I65: % of system cost | J65: 0 | K65: =J38*J65*1000*E17 -> 0 | L65: =K65/($E$17*1000) -> 0
C67: Finanacing Assumptions | G67: Administrative and Transactional Cost Assumptions
C69: Solar Project Financing Options | G69: Subscriber Acquisition Assumptions | I69: Input Unit | J69: Input Value
D70: Developer | E70: Subscriber | G70: Subscriber Acquisition Difficulty: | I70: N/A | J70: Moderate | K70: Total Cost ($) | L70: $/Watt
C71: Percent of Costs Financed: | D71: 0.2 | E71: 0.5 | G71: Labor rate for Acquisition Activities: | I71: $ | J71: 50 | K71: N/A | L71: N/A
C72: Interest Rate: | D72: 0.06 | E72: 0.08 | G72: Labor Rate Escalator: | I72: % | J72: 0.03 | K72: N/A | L72: N/A
C73: Financing Term (years): | D73: 5 | E73: 5 | G73: Upfront Billing Software Costs: | I73: $ | J73: 0 | K73: N/A | L73: N/A
G74: Ongoing Billing Software Licensing Costs: | I74: $/year | J74: 0 | K74: =J73 -> 0 | L74: =J73/($E$17*1000) -> 0
K75: =J74*25 -> 0 | L75: =K75/($E$17*1000) -> 0

Sheet Admin_&_Transaction_Costs
A1: Administrative and Transactional Costs: The purpose of this tab is to represent the administrative and transactional costs for the community solar program. Cells in blue font may be overridden.
B7: Assumptions (from Key_Assumptions_&_Inputs Tab)
B8: System Size: | D8: ='Key_Assumptions_&_Inputs'!E17 -> 1000 | E8: kW
B9: Number of Panels: | D9: ='Key_Assumptions_&_Inputs'!E34 -> 3333.333333
B10: Panels per Subscriber: | D10: ='Key_Assumptions_&_Inputs'!E21 -> 15
B11: Number of Subscribers at Full Subscription (after Anchors) | D11: =(D9/D10)*D12 -> 133.3333333
B12: Full Subscription Rate (after Anchors) | D12: =1-'Key_Assumptions_&_Inputs'!E58 -> 0.6
B13: Labor Rate | D13: ='Key_Assumptions_&_Inputs'!J71 -> 50 | E13: /hour
B14: Labor Rate Escalator | D14: ='Key_Assumptions_&_Inputs'!J72 -> 0.03
B15: Subscriber Acquisition Difficulty | D15: ='Key_Assumptions_&_Inputs'!J70 -> Moderate
B18: Total Upfront Administrative Costs | D18: Total ($) | E18: $/W | G18: $/Subscriber
B19: Marketing & Communications | D19: =I42 -> 22066.66667 | E19: =(D19/$D$8)/1000 -> 0.02206666667 | G19: =D19/$D$11 -> 165.5
B20: Customer Acquisition Setup | D20: =I54 -> 9900 | E20: =(D20/$D$8)/1000 -> 0.0099 | G20: =D20/$D$11 -> 74.25
B21: Outreach Setup | D21: =I60 -> 2400 | E21: =(D21/$D$8)/1000 -> 0.0024 | G21: 18
B22: Admin Setup | D22: =I65 -> 1400 | E22: =(D22/$D$8)/1000 -> 0.0014 | G22: 10.5
B23: Year 1 Subscriber Management Costs | D23: =E79 -> 38019 | E23: =(D23/$D$8)/1000 -> 0.038019 | G23: 285.1425
B24: TOTAL UPFRONT COSTS | D24: =SUM(D19:D23) -> 73785.66667 | E24: =SUM(E19:E23) -> 0.07378566667 | G24: =D24/$D$11 -> 553.3925
B26: Total Lifetime Subsciber Management Costs (year 2-25) | D26: Total ($) | E26: $/W | G26: $/Subscriber
B27: Outreach | D27: =AD74-E95 -> 7576.202301 | E27: =(D27/$D$8)/1000 -> 0.007576202301 | G27: =D27/$D$11 -> 56.82151726
B28: Sales | D28: =AD75-E101 -> 662.7003835 | E28: =(D28/$D$8)/1000 -> 0.0006627003835 | G28: =D28/$D$11 -> 4.970252876
B29: Sign-up Transaction | D29: =AD76-E107 -> 473.3574168 | E29: =(D29/$D$8)/1000 -> 0.0004733574168 | G29: 3.550180626
B30: Customer Service | D30: =AD77-E115 -> 4514.08803 | E30: =(D30/$D$8)/1000 -> 0.00451408803 | G30: 33.85566023
B31: Billing Admin | D31: =AD78-E121 -> 272790.199 | E31: =(D31/$D$8)/1000 -> 0.272790199 | G31: 2045.926492
B32: TOTAL ONGOING-TRANSACTIONAL COSTS | D32: =SUM(D27:D31) -> 286016.5471 | E32: =SUM(E27:E31) -> 0.2860165471 | G32: 2145.124103
B35: UPFRONT COSTS
B37: Marketing & Communications | D37: $/W | E37: Labor Hours | F37: Labor Rate | G37: Labor Cost | H37: OOP Cost | I37: TOTAL Cost
B38: Messaging | D38: =I38/($D$8*1000) -> 0.001 | E38: 20 | F38: =$D$13 -> 50 | G38: =E38*F38 -> 1000 | H38: 0 | I38: =G38+H38 -> 1000
B39: Marketing Materials | D39: =I39/($D$8*1000) -> 0.007666666667 | E39: 20 | F39: =$D$13 -> 50 | G39: =E39*F39 -> 1000 | H39: =D11*J39 -> 6666.666667 | I39: =G39+H39 -> 7666.666667 | J39: 50 | K39: Marketing Materials Rate per Subscriber
B40: Media Buy | D40: =I40/($D$8*1000) -> 0.011 | E40: 20 | F40: =$D$13 -> 50 | G40: =E40*F40 -> 1000 | H40: =D11*J40 -> 10000 | I40: 11000 | J40: 75 | K40: Media Buy Rate per Subscriber
B41: Website | D41: =I41/($D$8*1000) -> 0.0024 | E41: 28 | F41: =$D$13 -> 50 | G41: 1400 | H41: 1000 | I41: 2400
G42: =SUM(G38:G41) -> 4400 | H42: =SUM(H38:H41) -> 17666.66667 | I42: =SUM(I38:I41) -> 22066.66667
B44: Customer Acquisition-Call Center Setup | D44: $/W | E44: Labor Hours | F44: Labor Rate | G44: Labor Cost | H44: OOP Cost | I44: TOTAL Cost
B45: Email setup | D45: =I45/($D$8*1000) -> 0.00045 | E45: 4 | F45: =$D$13 -> 50 | G45: =E45*F45 -> 200 | H45: 250 | I45: =G45+H45 -> 450
B46: Templates and SOPs | D46: =I46/($D$8*1000) -> 0.0008 | E46: 16 | F46: 50 | G46: =E46*F46 -> 800 | H46: 0 | I46: =G46+H46 -> 800
B47: Live chat setup | D47: =I47/($D$8*1000) -> 0.0008 | E47: 16 | F47: 50 | G47: 800 | H47: 0 | I47: 800
B48: CIS integration | D48: 0.0037 | E48: 24 | F48: 50 | G48: 1200 | H48: 2500 | I48: 3700
B49: E-pay solution integration | D49: 0.0019 | E49: 18 | F49: 50 | G49: 900 | H49: 1000 | I49: 1900
B50: Phone # | D50: 0.00035 | E50: 2 | F50: 50 | G50: 100 | H50: 250 | I50: 350
B51: Training prep | D51: 0.0006 | E51: 12 | F51: 50 | G51: 600 | H51: 0 | I51: 600
B52: Training execution | D52: 0.001 | E52: 20 | F52: 50 | G52: 1000 | H52: 0 | I52: 1000
B53: IVR Setup | D53: 0.0003 | E53: 6 | F53: =$D$13 -> 50 | G53: =E53*F53 -> 300 | H53: 0 | I53: =G53+H53 -> 300
G54: =SUM(G45:G53) -> 5900 | H54: =SUM(H45:H53) -> 4000 | I54: =SUM(I45:I53) -> 9900
B56: Outreach Setup | D56: $/W | E56: Labor Hours | F56: Labor Rate | G56: Labor Cost | H56: OOP Cost | I56: TOTAL Cost
B57: Training prep | D57: =I57/($D$8*1000) -> 0.0008 | E57: 16 | F57: =$D$13 -> 50 | G57: =E57*F57 -> 800 | H57: 0 | I57: =G57+H57 -> 800
B58: Training execution | D58: =I58/($D$8*1000) -> 0.001 | E58: 20 | F58: =$D$13 -> 50 | G58: =E58*F58 -> 1000 | H58: 0 | I58: =G58+H58 -> 1000
B59: SOPs | D59: 0.0006 | E59: 12 | F59: =$D$13 -> 50 | G59: =E59*F59 -> 600 | H59: 0 | I59: =G59+H59 -> 600
G60: =SUM(G57:G59) -> 2400 | H60: =SUM(H57:H59) -> 0 | I60: 2400
B62: Admin | D62: $/W | E62: Labor Hours | F62: Labor Rate | G62: Labor Cost | H62: OOP Cost | I62: TOTAL Cost
B63: Billing templates and setup | D63: =IF('Key_Assumptions_&_Inputs'!$E$11="Power Purchase Agreement","N/A",I63/($D$8*1000)) -> 0.001 | E63: 20 | F63: =$D$13 -> 50 | G63: =E63*F63 -> 1000 | H63: 0 | I63: =G63+H63 -> 1000
B64: SOPs | D64: =IF('Key_Assumptions_&_Inputs'!$E$11="Power Purchase Agreement","N/A",I64/($D$8*1000)) -> 0.0004 | E64: 8 | F64: =$D$13 -> 50 | G64: =E64*F64 -> 400 | H64: 0 | I64: =G64+H64 -> 400
G65: =SUM(G63:G64) -> 1400 | H65: =SUM(H63:H64) -> 0 | I65: 1400
B67: TOTAL UPFRONT COSTS | D67: $/W | E67: Labor Hours | F67: Labor Rate | G67: Labor Cost | H67: OOP Cost | I67: TOTAL Cost
D68: =I68/($D$8*1000) -> 0.03576666667 | E68: N/A | F68: N/A | G68: =G42+G54+G65+G60 -> 14100 | H68: =H42+H54+H65+H60 -> 21666.66667 | I68: =I42+I54+I65+I60 -> 35766.66667
B71: SUBSCRIBER MANAGEMENT COSTS
B73: Customer Acquisition | D73: $/W | E73: 1 | F73: =E73+1 -> 2 | G73: =F73+1 -> 3 | H73: 4 | I73: =H73+1 -> 5 | J73: 6 | K73: 7 | L73: =K73+1 -> 8 | M73: 9 | N73: 10 | O73: 11 | P73: =O73+1 -> 12 | Q73: 13 | R73: 14 | S73: 15 | T73: 16 | U73: 17 | V73: 18 | W73: 19 | X73: 20 | Y73: 21 | Z73: 22 | AA73: 23 | AB73: 24 | AC73: 25 | AD73: TOTAL
B74: Outreach | D74: =AD74/($D$8*1000) -> 0.0292537023 | E74: =E95 -> 21677.5 | F74: =F95 -> 285.1875 | G74: 268.3566563 | H74: 271.9073559 | I74: 275.5645766 | J74: 279.3315139 | K74: 283.2114593 | L74: 287.2078031 | M74: 291.3240372 | N74: 295.5637583 | O74: 299.9306711 | P74: 304.4285912 | Q74: 309.0614489 | R74: 313.8332924 | S74: 318.7482912 | T74: 323.8107399 | U74: 329.0250621 | V74: 334.395814 | W74: 339.9276884 | X74: 345.625519 | Y74: 351.4942846 | Z74: 357.5391132 | AA74: 363.7652866 | AB74: 370.1782451 | AC74: 376.7835925 | AD74: =SUM(E74:AC74) -> 29253.7023
B75: Sales | D75: =AD75/($D$8*1000) -> 0.00260811705 | E75: =E101 -> 1945.416667 | F75: =F101 -> 22.53125 | G75: 19.72610938 | H75: 20.31789266 | I75: 20.92742944 | J75: 21.55525232 | K75: 22.20190989 | L75: 22.86796719 | M75: 23.5540062 | N75: 24.26062639 | O75: 24.98844518 | P75: 25.73809853 | Q75: 26.51024149 | R75: 27.30554873 | S75: 28.1247152 | T75: 28.96845665 | U75: 29.83751035 | V75: 30.73263566 | W75: 31.65461473 | X75: 32.60425317 | Y75: 33.58238077 | Z75: 34.58985219 | AA75: 35.62754776 | AB75: 36.69637419 | AC75: 37.79726542 | AD75: =SUM(E75:AC75) -> 2608.11705
B76: Sign-up transaction | D76: 0.00186294075 | E76: =E107 -> 1389.583333 | F76: =F107 -> 16.09375 | G76: 14.09007812 | H76: 14.51278047 | I76: 14.94816388 | J76: 15.3966088 | K76: 15.85850706 | L76: 16.33426228 | M76: 16.82429014 | N76: 17.32901885 | O76: 17.84888941 | P76: 18.3843561 | Q76: 18.93588678 | R76: 19.50396338 | S76: 20.08908228 | T76: 20.69175475 | U76: 21.31250739 | V76: 21.95188262 | W76: 22.61043909 | X76: 23.28875227 | Y76: 23.98741484 | Z76: 24.70703728 | AA76: 25.4482484 | AB76: 26.21169585 | AC76: 26.99804673 | AD76: 1862.94075
B77: Customer service | D77: 0.00551458803 | E77: =E115 -> 1000.5 | F77: =F115 -> 579.6646875 | G77: 431.3719688 | H77: 222.1565639 | I77: 114.4106304 | J77: 117.8429493 | K77: 121.3782378 | L77: 125.019585 | M77: 128.7701725 | N77: 132.6332777 | O77: 136.612276 | P77: 140.7106443 | Q77: 144.9319636 | R77: 149.2799225 | S77: 153.7583202 | T77: 158.3710698 | U77: 163.1222019 | V77: 168.015868 | W77: 173.056344 | X77: 178.2480343 | Y77: 183.5954754 | Z77: 189.1033396 | AA77: 194.7764398 | AB77: 200.619733 | AC77: 206.638325 | AD77: 5514.58803
B78: Billing admin | D78: 0.284796199 | E78: =E121 -> 12006 | F78: =F121 -> 9274.635 | G78: 8119.942942 | H78: 8363.541231 | I78: 8614.447468 | J78: 8872.880892 | K78: 9139.067318 | L78: 9413.239338 | M78: 9695.636518 | N78: 9986.505614 | O78: 10286.10078 | P78: 10594.68381 | Q78: 10912.52432 | R78: 11239.90005 | S78: 11577.09705 | T78: 11924.40996 | U78: 12282.14226 | V78: 12650.60653 | W78: 13030.12472 | X78: 13421.02847 | Y78: 13823.65932 | Z78: 14238.3691 | AA78: 14665.52017 | AB78: 15105.48578 | AC78: 15558.65035 | AD78: 284796.199
B79: TOTAL ONGOING COSTS | D79: =AD79/($D$8*1000) -> 0.3240355471 | E79: =SUM(E74:E78) -> 38019 | F79: =SUM(F74:F78) -> 10178.11219 | G79: 8853.487755 | H79: 8892.435824 | I79: 9040.298268 | J79: 9307.007216 | K79: 9581.717433 | L79: 9864.668956 | M79: 10156.10902 | N79: 10456.29229 | O79: 10765.48106 | P79: 11083.9455 | Q79: 11411.96386 | R79: 11749.82278 | S79: 12097.81746 | T79: 12456.25198 | U79: 12825.43954 | V79: 13205.70273 | W79: 13597.37381 | X79: 14000.79503 | Y79: 14416.31888 | Z79: 14844.30844 | AA79: =SUM(AA74:AA78) -> 15285.1377 | AB79: 15739.19183 | AC79: =SUM(AC74:AC78) -> 16206.86758 | AD79: =SUM(E79:AC79) -> 324035.5471
B82: Subscriber Assumptions | E82: 1 | F82: =E82+1 -> 2 | G82: =F82+1 -> 3 | H82: 4 | I82: =H82+1 -> 5 | J82: 6 | K82: 7 | L82: =K82+1 -> 8 | M82: 9 | N82: 10 | O82: 11 | P82: =O82+1 -> 12 | Q82: 13 | R82: 14 | S82: 15 | T82: 16 | U82: 17 | V82: 18 | W82: 19 | X82: 20 | Y82: 21 | Z82: 22 | AA82: 23 | AB82: 24 | AC82: 25
B83: Annual Cumulative Subscription Rate | E83: =Community_Solar_Business_Case!E15/((1-'Key_Assumptions_&_Inputs'!$E$58)*'Key_Assumptions_&_Inputs'!$E$34/'Key_Assumptions_&_Inputs'!$E$21) -> 1 | F83: =Community_Solar_Business_Case!F15/((1-'Key_Assumptions_&_Inputs'!$E$58)*'Key_Assumptions_&_Inputs'!$E$34/'Key_Assumptions_&_Inputs'!$E$21) -> 1 | G83: =Community_Solar_Business_Case!G15/((1-'Key_Assumptions_&_Inputs'!$E$58)*'Key_Assumptions_&_Inputs'!$E$34/'Key_Assumptions_&_Inputs'!$E$21) -> 1 | H83: =Community_Solar_Business_Case!H15/((1-'Key_Assumptions_&_Inputs'!$E$58)*'Key_Assumptions_&_Inputs'!$E$34/'Key_Assumptions_&_Inputs'!$E$21) -> 1 | I83: =Community_Solar_Business_Case!I15/((1-'Key_Assumptions_&_Inputs'!$E$58)*'Key_Assumptions_&_Inputs'!$E$34/'Key_Assumptions_&_Inputs'!$E$21) -> 1 | J83: =Community_Solar_Business_Case!J15/((1-'Key_Assumptions_&_Inputs'!$E$58)*'Key_Assumptions_&_Inputs'!$E$34/'Key_Assumptions_&_Inputs'!$E$21) -> 1 | K83: =Community_Solar_Business_Case!K15/((1-'Key_Assumptions_&_Inputs'!$E$58)*'Key_Assumptions_&_Inputs'!$E$34/'Key_Assumptions_&_Inputs'!$E$21) -> 1 | L83: =Community_Solar_Business_Case!L15/((1-'Key_Assumptions_&_Inputs'!$E$58)*'Key_Assumptions_&_Inputs'!$E$34/'Key_Assumptions_&_Inputs'!$E$21) -> 1 | M83: =Community_Solar_Business_Case!M15/((1-'Key_Assumptions_&_Inputs'!$E$58)*'Key_Assumptions_&_Inputs'!$E$34/'Key_Assumptions_&_Inputs'!$E$21) -> 1 | N83: =Community_Solar_Business_Case!N15/((1-'Key_Assumptions_&_Inputs'!$E$58)*'Key_Assumptions_&_Inputs'!$E$34/'Key_Assumptions_&_Inputs'!$E$21) -> 1 | O83: =Community_Solar_Business_Case!O15/((1-'Key_Assumptions_&_Inputs'!$E$58)*'Key_Assumptions_&_Inputs'!$E$34/'Key_Assumptions_&_Inputs'!$E$21) -> 1 | P83: =Community_Solar_Business_Case!P15/((1-'Key_Assumptions_&_Inputs'!$E$58)*'Key_Assumptions_&_Inputs'!$E$34/'Key_Assumptions_&_Inputs'!$E$21) -> 1 | Q83: =Community_Solar_Business_Case!Q15/((1-'Key_Assumptions_&_Inputs'!$E$58)*'Key_Assumptions_&_Inputs'!$E$34/'Key_Assumptions_&_Inputs'!$E$21) -> 1 | R83: =Community_Solar_Business_Case!R15/((1-'Key_Assumptions_&_Inputs'!$E$58)*'Key_Assumptions_&_Inputs'!$E$34/'Key_Assumptions_&_Inputs'!$E$21) -> 1 | S83: =Community_Solar_Business_Case!S15/((1-'Key_Assumptions_&_Inputs'!$E$58)*'Key_Assumptions_&_Inputs'!$E$34/'Key_Assumptions_&_Inputs'!$E$21) -> 1 | T83: =Community_Solar_Business_Case!T15/((1-'Key_Assumptions_&_Inputs'!$E$58)*'Key_Assumptions_&_Inputs'!$E$34/'Key_Assumptions_&_Inputs'!$E$21) -> 1 | U83: =Community_Solar_Business_Case!U15/((1-'Key_Assumptions_&_Inputs'!$E$58)*'Key_Assumptions_&_Inputs'!$E$34/'Key_Assumptions_&_Inputs'!$E$21) -> 1 | V83: =Community_Solar_Business_Case!V15/((1-'Key_Assumptions_&_Inputs'!$E$58)*'Key_Assumptions_&_Inputs'!$E$34/'Key_Assumptions_&_Inputs'!$E$21) -> 1 | W83: =Community_Solar_Business_Case!W15/((1-'Key_Assumptions_&_Inputs'!$E$58)*'Key_Assumptions_&_Inputs'!$E$34/'Key_Assumptions_&_Inputs'!$E$21) -> 1 | X83: =Community_Solar_Business_Case!X15/((1-'Key_Assumptions_&_Inputs'!$E$58)*'Key_Assumptions_&_Inputs'!$E$34/'Key_Assumptions_&_Inputs'!$E$21) -> 1 | Y83: =Community_Solar_Business_Case!Y15/((1-'Key_Assumptions_&_Inputs'!$E$58)*'Key_Assumptions_&_Inputs'!$E$34/'Key_Assumptions_&_Inputs'!$E$21) -> 1 | Z83: =Community_Solar_Business_Case!Z15/((1-'Key_Assumptions_&_Inputs'!$E$58)*'Key_Assumptions_&_Inputs'!$E$34/'Key_Assumptions_&_Inputs'!$E$21) -> 1 | AA83: =Community_Solar_Business_Case!AA15/((1-'Key_Assumptions_&_Inputs'!$E$58)*'Key_Assumptions_&_Inputs'!$E$34/'Key_Assumptions_&_Inputs'!$E$21) -> 1 | AB83: =Community_Solar_Business_Case!AB15/((1-'Key_Assumptions_&_Inputs'!$E$58)*'Key_Assumptions_&_Inputs'!$E$34/'Key_Assumptions_&_Inputs'!$E$21) -> 1 | AC83: =Community_Solar_Business_Case!AC15/((1-'Key_Assumptions_&_Inputs'!$E$58)*'Key_Assumptions_&_Inputs'!$E$34/'Key_Assumptions_&_Inputs'!$E$21) -> 1
B84: Total # Subscribers (after Anchor) | E84: =ROUNDUP(Community_Solar_Business_Case!E15,1) -> 133.4 | F84: =ROUNDUP(Community_Solar_Business_Case!F15,1) -> 133.4 | G84: =ROUNDUP(Community_Solar_Business_Case!G15,1) -> 133.4 | H84: =ROUNDUP(Community_Solar_Business_Case!H15,1) -> 133.4 | I84: =ROUNDUP(Community_Solar_Business_Case!I15,1) -> 133.4 | J84: =ROUNDUP(Community_Solar_Business_Case!J15,1) -> 133.4 | K84: =ROUNDUP(Community_Solar_Business_Case!K15,1) -> 133.4 | L84: =ROUNDUP(Community_Solar_Business_Case!L15,1) -> 133.4 | M84: =ROUNDUP(Community_Solar_Business_Case!M15,1) -> 133.4 | N84: =ROUNDUP(Community_Solar_Business_Case!N15,1) -> 133.4 | O84: =ROUNDUP(Community_Solar_Business_Case!O15,1) -> 133.4 | P84: =ROUNDUP(Community_Solar_Business_Case!P15,1) -> 133.4 | Q84: =ROUNDUP(Community_Solar_Business_Case!Q15,1) -> 133.4 | R84: =ROUNDUP(Community_Solar_Business_Case!R15,1) -> 133.4 | S84: =ROUNDUP(Community_Solar_Business_Case!S15,1) -> 133.4 | T84: =ROUNDUP(Community_Solar_Business_Case!T15,1) -> 133.4 | U84: =ROUNDUP(Community_Solar_Business_Case!U15,1) -> 133.4 | V84: =ROUNDUP(Community_Solar_Business_Case!V15,1) -> 133.4 | W84: =ROUNDUP(Community_Solar_Business_Case!W15,1) -> 133.4 | X84: =ROUNDUP(Community_Solar_Business_Case!X15,1) -> 133.4 | Y84: =ROUNDUP(Community_Solar_Business_Case!Y15,1) -> 133.4 | Z84: =ROUNDUP(Community_Solar_Business_Case!Z15,1) -> 133.4 | AA84: =ROUNDUP(Community_Solar_Business_Case!AA15,1) -> 133.4 | AB84: =ROUNDUP(Community_Solar_Business_Case!AB15,1) -> 133.4 | AC84: =ROUNDUP(Community_Solar_Business_Case!AC15,1) -> 133.4
B85: Annual Subscriber Loss | E85: =ROUNDUP(Community_Solar_Business_Case!E14,1) -> 0 | F85: =ROUNDUP(Community_Solar_Business_Case!F14,1) -> 2 | G85: =ROUNDUP(Community_Solar_Business_Case!G14,1) -> 2 | H85: =ROUNDUP(Community_Solar_Business_Case!H14,1) -> 2 | I85: =ROUNDUP(Community_Solar_Business_Case!I14,1) -> 2 | J85: =ROUNDUP(Community_Solar_Business_Case!J14,1) -> 2 | K85: =ROUNDUP(Community_Solar_Business_Case!K14,1) -> 2 | L85: =ROUNDUP(Community_Solar_Business_Case!L14,1) -> 2 | M85: =ROUNDUP(Community_Solar_Business_Case!M14,1) -> 2 | N85: =ROUNDUP(Community_Solar_Business_Case!N14,1) -> 2 | O85: =ROUNDUP(Community_Solar_Business_Case!O14,1) -> 2 | P85: =ROUNDUP(Community_Solar_Business_Case!P14,1) -> 2 | Q85: =ROUNDUP(Community_Solar_Business_Case!Q14,1) -> 2 | R85: =ROUNDUP(Community_Solar_Business_Case!R14,1) -> 2 | S85: =ROUNDUP(Community_Solar_Business_Case!S14,1) -> 2 | T85: =ROUNDUP(Community_Solar_Business_Case!T14,1) -> 2 | U85: =ROUNDUP(Community_Solar_Business_Case!U14,1) -> 2 | V85: =ROUNDUP(Community_Solar_Business_Case!V14,1) -> 2 | W85: =ROUNDUP(Community_Solar_Business_Case!W14,1) -> 2 | X85: =ROUNDUP(Community_Solar_Business_Case!X14,1) -> 2 | Y85: =ROUNDUP(Community_Solar_Business_Case!Y14,1) -> 2 | Z85: =ROUNDUP(Community_Solar_Business_Case!Z14,1) -> 2 | AA85: =ROUNDUP(Community_Solar_Business_Case!AA14,1) -> 2 | AB85: =ROUNDUP(Community_Solar_Business_Case!AB14,1) -> 2 | AC85: =ROUNDUP(Community_Solar_Business_Case!AC14,1) -> 2 | AE85: Efficiency of tasks over previous year
B86: Annual Subscriber Gain | E86: =ROUNDUP(Community_Solar_Business_Case!E13,1) -> 133.4 | F86: =ROUNDUP(Community_Solar_Business_Case!F13,1) -> 2 | G86: =ROUNDUP(Community_Solar_Business_Case!G13,1) -> 2 | H86: =ROUNDUP(Community_Solar_Business_Case!H13,1) -> 2 | I86: =ROUNDUP(Community_Solar_Business_Case!I13,1) -> 2 | J86: =ROUNDUP(Community_Solar_Business_Case!J13,1) -> 2 | K86: =ROUNDUP(Community_Solar_Business_Case!K13,1) -> 2 | L86: =ROUNDUP(Community_Solar_Business_Case!L13,1) -> 2 | M86: =ROUNDUP(Community_Solar_Business_Case!M13,1) -> 2 | N86: =ROUNDUP(Community_Solar_Business_Case!N13,1) -> 2 | O86: =ROUNDUP(Community_Solar_Business_Case!O13,1) -> 2 | P86: =ROUNDUP(Community_Solar_Business_Case!P13,1) -> 2 | Q86: =ROUNDUP(Community_Solar_Business_Case!Q13,1) -> 2 | R86: =ROUNDUP(Community_Solar_Business_Case!R13,1) -> 2 | S86: =ROUNDUP(Community_Solar_Business_Case!S13,1) -> 2 | T86: =ROUNDUP(Community_Solar_Business_Case!T13,1) -> 2 | U86: =ROUNDUP(Community_Solar_Business_Case!U13,1) -> 2 | V86: =ROUNDUP(Community_Solar_Business_Case!V13,1) -> 2 | W86: =ROUNDUP(Community_Solar_Business_Case!W13,1) -> 2 | X86: =ROUNDUP(Community_Solar_Business_Case!X13,1) -> 2 | Y86: =ROUNDUP(Community_Solar_Business_Case!Y13,1) -> 2 | Z86: =ROUNDUP(Community_Solar_Business_Case!Z13,1) -> 2 | AA86: =ROUNDUP(Community_Solar_Business_Case!AA13,1) -> 2 | AB86: =ROUNDUP(Community_Solar_Business_Case!AB13,1) -> 2 | AC86: =ROUNDUP(Community_Solar_Business_Case!AC13,1) -> 2 | AE86: Year 1 | AF86: Year 2 | AG86: Year 3
AE87: NA | AF87: 0.25 | AG87: 0.15
B89: Outreach | E89: 1 | F89: =E89+1 -> 2 | G89: 3 | H89: 4 | I89: 5 | J89: 6 | K89: 7 | L89: 8 | M89: 9 | N89: 10 | O89: 11 | P89: 12 | Q89: 13 | R89: 14 | S89: 15 | T89: 16 | U89: 17 | V89: 18 | W89: 19 | X89: 20 | Y89: 21 | Z89: 22 | AA89: 23 | AB89: 24 | AC89: 25 | AE89: Outreach hours per subscriber
B90: Media Buy | E90: =E86*$J$40 -> 10005 | F90: =F86*$J$40 -> 150 | G90: 150 | H90: 150 | I90: 150 | J90: 150 | K90: 150 | L90: 150 | M90: 150 | N90: 150 | O90: 150 | P90: 150 | Q90: 150 | R90: 150 | S90: 150 | T90: 150 | U90: 150 | V90: 150 | W90: 150 | X90: 150 | Y90: 150 | Z90: 150 | AA90: 150 | AB90: 150 | AC90: 150 | AE90: Year 1 | AF90: Year 2 | AG90: Year 3+
B91: Media Buy Rate / Subscriber | E91: =J40 -> 75 | F91: =E91*1.03 -> 77.25 | G91: =F91*1.03 -> 79.5675 | H91: 81.954525 | I91: 84.41316075 | J91: 86.94555557 | K91: 89.55392224 | L91: 92.24053991 | M91: 95.0077561 | N91: 97.85798879 | O91: 100.7937285 | P91: 103.8175403 | Q91: 106.9320665 | R91: 110.1400285 | S91: 113.4442294 | T91: 116.8475562 | U91: 120.3529829 | V91: 123.9635724 | W91: 127.6824796 | X91: 131.512954 | Y91: 135.4583426 | Z91: 139.5220929 | AA91: 143.7077557 | AB91: 148.0189883 | AC91: 152.459558 | AE91: Hours | AF91: Hours | AG91: Hours
B92: Outreach hours per subscriber | E92: =IF('Key_Assumptions_&_Inputs'!$J$70="Easy",$AE$92,IF('Key_Assumptions_&_Inputs'!$J$70="Moderate",$AE$93,IF('Key_Assumptions_&_Inputs'!$J$70="Difficult",$AE$94))) -> 1.75 | F92: =IF('Key_Assumptions_&_Inputs'!$J$70="Easy",$AF$92,IF('Key_Assumptions_&_Inputs'!$J$70="Moderate",$AF$93,IF('Key_Assumptions_&_Inputs'!$J$70="Difficult",$AF$94))) -> 1.3125 | G92: =IF('Key_Assumptions_&_Inputs'!$J$70="Easy",$AG$92,IF('Key_Assumptions_&_Inputs'!$J$70="Moderate",$AG$93,IF('Key_Assumptions_&_Inputs'!$J$70="Difficult",$AG$94))) -> 1.115625 | H92: =IF('Key_Assumptions_&_Inputs'!$J$70="Easy",$AG$92,IF('Key_Assumptions_&_Inputs'!$J$70="Moderate",$AG$93,IF('Key_Assumptions_&_Inputs'!$J$70="Difficult",$AG$94))) -> 1.115625 | I92: =IF('Key_Assumptions_&_Inputs'!$J$70="Easy",$AG$92,IF('Key_Assumptions_&_Inputs'!$J$70="Moderate",$AG$93,IF('Key_Assumptions_&_Inputs'!$J$70="Difficult",$AG$94))) -> 1.115625 | J92: =IF('Key_Assumptions_&_Inputs'!$J$70="Easy",$AG$92,IF('Key_Assumptions_&_Inputs'!$J$70="Moderate",$AG$93,IF('Key_Assumptions_&_Inputs'!$J$70="Difficult",$AG$94))) -> 1.115625 | K92: =IF('Key_Assumptions_&_Inputs'!$J$70="Easy",$AG$92,IF('Key_Assumptions_&_Inputs'!$J$70="Moderate",$AG$93,IF('Key_Assumptions_&_Inputs'!$J$70="Difficult",$AG$94))) -> 1.115625 | L92: =IF('Key_Assumptions_&_Inputs'!$J$70="Easy",$AG$92,IF('Key_Assumptions_&_Inputs'!$J$70="Moderate",$AG$93,IF('Key_Assumptions_&_Inputs'!$J$70="Difficult",$AG$94))) -> 1.115625 | M92: =IF('Key_Assumptions_&_Inputs'!$J$70="Easy",$AG$92,IF('Key_Assumptions_&_Inputs'!$J$70="Moderate",$AG$93,IF('Key_Assumptions_&_Inputs'!$J$70="Difficult",$AG$94))) -> 1.115625 | N92: =IF('Key_Assumptions_&_Inputs'!$J$70="Easy",$AG$92,IF('Key_Assumptions_&_Inputs'!$J$70="Moderate",$AG$93,IF('Key_Assumptions_&_Inputs'!$J$70="Difficult",$AG$94))) -> 1.115625 | O92: =IF('Key_Assumptions_&_Inputs'!$J$70="Easy",$AG$92,IF('Key_Assumptions_&_Inputs'!$J$70="Moderate",$AG$93,IF('Key_Assumptions_&_Inputs'!$J$70="Difficult",$AG$94))) -> 1.115625 | P92: =IF('Key_Assumptions_&_Inputs'!$J$70="Easy",$AG$92,IF('Key_Assumptions_&_Inputs'!$J$70="Moderate",$AG$93,IF('Key_Assumptions_&_Inputs'!$J$70="Difficult",$AG$94))) -> 1.115625 | Q92: =IF('Key_Assumptions_&_Inputs'!$J$70="Easy",$AG$92,IF('Key_Assumptions_&_Inputs'!$J$70="Moderate",$AG$93,IF('Key_Assumptions_&_Inputs'!$J$70="Difficult",$AG$94))) -> 1.115625 | R92: =IF('Key_Assumptions_&_Inputs'!$J$70="Easy",$AG$92,IF('Key_Assumptions_&_Inputs'!$J$70="Moderate",$AG$93,IF('Key_Assumptions_&_Inputs'!$J$70="Difficult",$AG$94))) -> 1.115625 | S92: =IF('Key_Assumptions_&_Inputs'!$J$70="Easy",$AG$92,IF('Key_Assumptions_&_Inputs'!$J$70="Moderate",$AG$93,IF('Key_Assumptions_&_Inputs'!$J$70="Difficult",$AG$94))) -> 1.115625 | T92: =IF('Key_Assumptions_&_Inputs'!$J$70="Easy",$AG$92,IF('Key_Assumptions_&_Inputs'!$J$70="Moderate",$AG$93,IF('Key_Assumptions_&_Inputs'!$J$70="Difficult",$AG$94))) -> 1.115625 | U92: =IF('Key_Assumptions_&_Inputs'!$J$70="Easy",$AG$92,IF('Key_Assumptions_&_Inputs'!$J$70="Moderate",$AG$93,IF('Key_Assumptions_&_Inputs'!$J$70="Difficult",$AG$94))) -> 1.115625 | V92: =IF('Key_Assumptions_&_Inputs'!$J$70="Easy",$AG$92,IF('Key_Assumptions_&_Inputs'!$J$70="Moderate",$AG$93,IF('Key_Assumptions_&_Inputs'!$J$70="Difficult",$AG$94))) -> 1.115625 | W92: =IF('Key_Assumptions_&_Inputs'!$J$70="Easy",$AG$92,IF('Key_Assumptions_&_Inputs'!$J$70="Moderate",$AG$93,IF('Key_Assumptions_&_Inputs'!$J$70="Difficult",$AG$94))) -> 1.115625 | X92: =IF('Key_Assumptions_&_Inputs'!$J$70="Easy",$AG$92,IF('Key_Assumptions_&_Inputs'!$J$70="Moderate",$AG$93,IF('Key_Assumptions_&_Inputs'!$J$70="Difficult",$AG$94))) -> 1.115625 | Y92: =IF('Key_Assumptions_&_Inputs'!$J$70="Easy",$AG$92,IF('Key_Assumptions_&_Inputs'!$J$70="Moderate",$AG$93,IF('Key_Assumptions_&_Inputs'!$J$70="Difficult",$AG$94))) -> 1.115625 | Z92: =IF('Key_Assumptions_&_Inputs'!$J$70="Easy",$AG$92,IF('Key_Assumptions_&_Inputs'!$J$70="Moderate",$AG$93,IF('Key_Assumptions_&_Inputs'!$J$70="Difficult",$AG$94))) -> 1.115625 | AA92: =IF('Key_Assumptions_&_Inputs'!$J$70="Easy",$AG$92,IF('Key_Assumptions_&_Inputs'!$J$70="Moderate",$AG$93,IF('Key_Assumptions_&_Inputs'!$J$70="Difficult",$AG$94))) -> 1.115625 | AB92: =IF('Key_Assumptions_&_Inputs'!$J$70="Easy",$AG$92,IF('Key_Assumptions_&_Inputs'!$J$70="Moderate",$AG$93,IF('Key_Assumptions_&_Inputs'!$J$70="Difficult",$AG$94))) -> 1.115625 | AC92: =IF('Key_Assumptions_&_Inputs'!$J$70="Easy",$AG$92,IF('Key_Assumptions_&_Inputs'!$J$70="Moderate",$AG$93,IF('Key_Assumptions_&_Inputs'!$J$70="Difficult",$AG$94))) -> 1.115625 | AD92: Easy | AE92: 1.5 | AF92: =AE92*(1-AF$87) -> 1.125 | AG92: 0.95625
B93: Labor rate | E93: =$D$13 -> 50 | F93: =E93*(1+$D$14) -> 51.5 | G93: =F93*(1+$D$14) -> 53.045 | H93: 54.63635 | I93: 56.2754405 | J93: 57.96370372 | K93: 59.70261483 | L93: 61.49369327 | M93: 63.33850407 | N93: 65.23865919 | O93: 67.19581897 | P93: 69.21169354 | Q93: 71.28804434 | R93: 73.42668567 | S93: 75.62948624 | T93: 77.89837083 | U93: 80.23532195 | V93: 82.64238161 | W93: 85.12165306 | X93: 87.67530265 | Y93: 90.30556173 | Z93: 93.01472859 | AA93: 95.80517044 | AB93: 98.67932556 | AC93: 101.6397053 | AD93: Moderate | AE93: 1.75 | AF93: 1.3125 | AG93: 1.115625
B94: Outreach cost per subscriber | E94: =E92*E93 -> 87.5 | F94: =F92*F93 -> 67.59375 | G94: =G92*G93 -> 59.17832812 | H94: =H92*H93 -> 60.95367797 | I94: 62.78228831 | J94: 64.66575696 | K94: 66.60572967 | L94: 68.60390156 | M94: 70.6620186 | N94: 72.78187916 | O94: 74.96533554 | P94: 77.2142956 | Q94: 79.53072447 | R94: 81.9166462 | S94: 84.37414559 | T94: 86.90536996 | U94: 89.51253106 | V94: 92.19790699 | W94: 94.9638442 | X94: 97.81275952 | Y94: 100.7471423 | Z94: 103.7695566 | AA94: 106.8826433 | AB94: 110.0891226 | AC94: 113.3917963 | AD94: Difficult | AE94: 2 | AF94: 1.5 | AG94: 1.275
B95: Annual costs | E95: =(E86*E94)+E90 -> 21677.5 | F95: =(F86*F94)+F90 -> 285.1875 | G95: 268.3566563 | H95: 271.9073559 | I95: 275.5645766 | J95: 279.3315139 | K95: 283.2114593 | L95: 287.2078031 | M95: 291.3240372 | N95: 295.5637583 | O95: 299.9306711 | P95: 304.4285912 | Q95: 309.0614489 | R95: 313.8332924 | S95: 318.7482912 | T95: 323.8107399 | U95: 329.0250621 | V95: 334.395814 | W95: 339.9276884 | X95: 345.625519 | Y95: 351.4942846 | Z95: 357.5391132 | AA95: 363.7652866 | AB95: 370.1782451 | AC95: 376.7835925
AE96: Sales time per Subcriber
B97: Sales | E97: 1 | F97: =E97+1 -> 2 | G97: 3 | H97: 4 | I97: 5 | J97: 6 | K97: 7 | L97: 8 | M97: 9 | N97: 10 | O97: 11 | P97: 12 | Q97: 13 | R97: 14 | S97: 15 | T97: 16 | U97: 17 | V97: 18 | W97: 19 | X97: 20 | Y97: 21 | Z97: 22 | AA97: 23 | AB97: 24 | AC97: 25 | AE97: Year 1 | AG97: Year 2 | AI97: Year 3+
B98: Sales hours per subscriber | E98: =IF('Key_Assumptions_&_Inputs'!$J$70="Easy",$AF$99,IF('Key_Assumptions_&_Inputs'!$J$70="Moderate",$AF$100,IF('Key_Assumptions_&_Inputs'!$J$70="Difficult",$AF$101))) -> 0.2916666667 | F98: =IF('Key_Assumptions_&_Inputs'!$J$70="Easy",$AH$99,IF('Key_Assumptions_&_Inputs'!$J$70="Moderate",$AH$100,IF('Key_Assumptions_&_Inputs'!$J$70="Difficult",$AH$101))) -> 0.21875 | G98: =IF('Key_Assumptions_&_Inputs'!$J$70="Easy",$AJ$99,IF('Key_Assumptions_&_Inputs'!$J$70="Moderate",$AJ$100,IF('Key_Assumptions_&_Inputs'!$J$70="Difficult",$AJ$101))) -> 0.1859375 | H98: =IF('Key_Assumptions_&_Inputs'!$J$70="Easy",$AJ$99,IF('Key_Assumptions_&_Inputs'!$J$70="Moderate",$AJ$100,IF('Key_Assumptions_&_Inputs'!$J$70="Difficult",$AJ$101))) -> 0.1859375 | I98: =IF('Key_Assumptions_&_Inputs'!$J$70="Easy",$AJ$99,IF('Key_Assumptions_&_Inputs'!$J$70="Moderate",$AJ$100,IF('Key_Assumptions_&_Inputs'!$J$70="Difficult",$AJ$101))) -> 0.1859375 | J98: =IF('Key_Assumptions_&_Inputs'!$J$70="Easy",$AJ$99,IF('Key_Assumptions_&_Inputs'!$J$70="Moderate",$AJ$100,IF('Key_Assumptions_&_Inputs'!$J$70="Difficult",$AJ$101))) -> 0.1859375 | K98: =IF('Key_Assumptions_&_Inputs'!$J$70="Easy",$AJ$99,IF('Key_Assumptions_&_Inputs'!$J$70="Moderate",$AJ$100,IF('Key_Assumptions_&_Inputs'!$J$70="Difficult",$AJ$101))) -> 0.1859375 | L98: =IF('Key_Assumptions_&_Inputs'!$J$70="Easy",$AJ$99,IF('Key_Assumptions_&_Inputs'!$J$70="Moderate",$AJ$100,IF('Key_Assumptions_&_Inputs'!$J$70="Difficult",$AJ$101))) -> 0.1859375 | M98: =IF('Key_Assumptions_&_Inputs'!$J$70="Easy",$AJ$99,IF('Key_Assumptions_&_Inputs'!$J$70="Moderate",$AJ$100,IF('Key_Assumptions_&_Inputs'!$J$70="Difficult",$AJ$101))) -> 0.1859375 | N98: =IF('Key_Assumptions_&_Inputs'!$J$70="Easy",$AJ$99,IF('Key_Assumptions_&_Inputs'!$J$70="Moderate",$AJ$100,IF('Key_Assumptions_&_Inputs'!$J$70="Difficult",$AJ$101))) -> 0.1859375 | O98: =IF('Key_Assumptions_&_Inputs'!$J$70="Easy",$AJ$99,IF('Key_Assumptions_&_Inputs'!$J$70="Moderate",$AJ$100,IF('Key_Assumptions_&_Inputs'!$J$70="Difficult",$AJ$101))) -> 0.1859375 | P98: =IF('Key_Assumptions_&_Inputs'!$J$70="Easy",$AJ$99,IF('Key_Assumptions_&_Inputs'!$J$70="Moderate",$AJ$100,IF('Key_Assumptions_&_Inputs'!$J$70="Difficult",$AJ$101))) -> 0.1859375 | Q98: =IF('Key_Assumptions_&_Inputs'!$J$70="Easy",$AJ$99,IF('Key_Assumptions_&_Inputs'!$J$70="Moderate",$AJ$100,IF('Key_Assumptions_&_Inputs'!$J$70="Difficult",$AJ$101))) -> 0.1859375 | R98: =IF('Key_Assumptions_&_Inputs'!$J$70="Easy",$AJ$99,IF('Key_Assumptions_&_Inputs'!$J$70="Moderate",$AJ$100,IF('Key_Assumptions_&_Inputs'!$J$70="Difficult",$AJ$101))) -> 0.1859375 | S98: =IF('Key_Assumptions_&_Inputs'!$J$70="Easy",$AJ$99,IF('Key_Assumptions_&_Inputs'!$J$70="Moderate",$AJ$100,IF('Key_Assumptions_&_Inputs'!$J$70="Difficult",$AJ$101))) -> 0.1859375 | T98: =IF('Key_Assumptions_&_Inputs'!$J$70="Easy",$AJ$99,IF('Key_Assumptions_&_Inputs'!$J$70="Moderate",$AJ$100,IF('Key_Assumptions_&_Inputs'!$J$70="Difficult",$AJ$101))) -> 0.1859375 | U98: =IF('Key_Assumptions_&_Inputs'!$J$70="Easy",$AJ$99,IF('Key_Assumptions_&_Inputs'!$J$70="Moderate",$AJ$100,IF('Key_Assumptions_&_Inputs'!$J$70="Difficult",$AJ$101))) -> 0.1859375 | V98: =IF('Key_Assumptions_&_Inputs'!$J$70="Easy",$AJ$99,IF('Key_Assumptions_&_Inputs'!$J$70="Moderate",$AJ$100,IF('Key_Assumptions_&_Inputs'!$J$70="Difficult",$AJ$101))) -> 0.1859375 | W98: =IF('Key_Assumptions_&_Inputs'!$J$70="Easy",$AJ$99,IF('Key_Assumptions_&_Inputs'!$J$70="Moderate",$AJ$100,IF('Key_Assumptions_&_Inputs'!$J$70="Difficult",$AJ$101))) -> 0.1859375 | X98: =IF('Key_Assumptions_&_Inputs'!$J$70="Easy",$AJ$99,IF('Key_Assumptions_&_Inputs'!$J$70="Moderate",$AJ$100,IF('Key_Assumptions_&_Inputs'!$J$70="Difficult",$AJ$101))) -> 0.1859375 | Y98: =IF('Key_Assumptions_&_Inputs'!$J$70="Easy",$AJ$99,IF('Key_Assumptions_&_Inputs'!$J$70="Moderate",$AJ$100,IF('Key_Assumptions_&_Inputs'!$J$70="Difficult",$AJ$101))) -> 0.1859375 | Z98: =IF('Key_Assumptions_&_Inputs'!$J$70="Easy",$AJ$99,IF('Key_Assumptions_&_Inputs'!$J$70="Moderate",$AJ$100,IF('Key_Assumptions_&_Inputs'!$J$70="Difficult",$AJ$101))) -> 0.1859375 | AA98: =IF('Key_Assumptions_&_Inputs'!$J$70="Easy",$AJ$99,IF('Key_Assumptions_&_Inputs'!$J$70="Moderate",$AJ$100,IF('Key_Assumptions_&_Inputs'!$J$70="Difficult",$AJ$101))) -> 0.1859375 | AB98: =IF('Key_Assumptions_&_Inputs'!$J$70="Easy",$AJ$99,IF('Key_Assumptions_&_Inputs'!$J$70="Moderate",$AJ$100,IF('Key_Assumptions_&_Inputs'!$J$70="Difficult",$AJ$101))) -> 0.1859375 | AC98: =IF('Key_Assumptions_&_Inputs'!$J$70="Easy",$AJ$99,IF('Key_Assumptions_&_Inputs'!$J$70="Moderate",$AJ$100,IF('Key_Assumptions_&_Inputs'!$J$70="Difficult",$AJ$101))) -> 0.1859375 | AE98: Minutes | AF98: % of hour | AG98: Minutes | AH98: % of hour | AI98: Minutes | AJ98: % of hour
B99: Labor rate | E99: =$D$13 -> 50 | F99: =E99*(1+$D$14) -> 51.5 | G99: =F99*(1+$D$14) -> 53.045 | H99: 54.63635 | I99: 56.2754405 | J99: 57.96370372 | K99: 59.70261483 | L99: 61.49369327 | M99: 63.33850407 | N99: 65.23865919 | O99: 67.19581897 | P99: 69.21169354 | Q99: 71.28804434 | R99: 73.42668567 | S99: 75.62948624 | T99: 77.89837083 | U99: 80.23532195 | V99: 82.64238161 | W99: 85.12165306 | X99: 87.67530265 | Y99: 90.30556173 | Z99: 93.01472859 | AA99: 95.80517044 | AB99: 98.67932556 | AC99: 101.6397053 | AD99: Easy | AE99: 15 | AF99: =AE99/60 -> 0.25 | AG99: =AE99*(1-$AF$87) -> 11.25 | AH99: =AG99/60 -> 0.1875 | AI99: =AG99*(1-$AG$87) -> 9.5625 | AJ99: =AI99/60 -> 0.159375
B100: Sales cost per subscriber | E100: =E98*E99 -> 14.58333333 | F100: =F98*F99 -> 11.265625 | G100: 9.863054688 | H100: 10.15894633 | I100: 10.46371472 | J100: 10.77762616 | K100: 11.10095494 | L100: 11.43398359 | M100: 11.7770031 | N100: 12.13031319 | O100: 12.49422259 | P100: 12.86904927 | Q100: 13.25512074 | R100: 13.65277437 | S100: 14.0623576 | T100: 14.48422833 | U100: 14.91875518 | V100: 15.36631783 | W100: 15.82730737 | X100: 16.30212659 | Y100: 16.79119038 | Z100: 17.2949261 | AA100: 17.81377388 | AB100: 18.3481871 | AC100: 18.89863271 | AD100: Moderate | AE100: 17.5 | AF100: =AE100/60 -> 0.2916666667 | AG100: =AE100*(1-$AF$87) -> 13.125 | AH100: =AG100/60 -> 0.21875 | AI100: =AG100*(1-$AG$87) -> 11.15625 | AJ100: =AI100/60 -> 0.1859375
B101: Annual costs | E101: =E86*E100 -> 1945.416667 | F101: =F86*F100 -> 22.53125 | G101: 19.72610938 | H101: 20.31789266 | I101: 20.92742944 | J101: 21.55525232 | K101: 22.20190989 | L101: 22.86796719 | M101: 23.5540062 | N101: 24.26062639 | O101: 24.98844518 | P101: 25.73809853 | Q101: 26.51024149 | R101: 27.30554873 | S101: 28.1247152 | T101: 28.96845665 | U101: 29.83751035 | V101: 30.73263566 | W101: 31.65461473 | X101: 32.60425317 | Y101: 33.58238077 | Z101: 34.58985219 | AA101: 35.62754776 | AB101: 36.69637419 | AC101: 37.79726542 | AD101: Difficult | AE101: 20 | AF101: =AE101/60 -> 0.3333333333 | AG101: =AE101*(1-$AF$87) -> 15 | AH101: =AG101/60 -> 0.25 | AI101: =AG101*(1-$AG$87) -> 12.75 | AJ101: =AI101/60 -> 0.2125
AE102: Transaction time per Subscriber
B103: Sign-up Transaction | E103: 1 | F103: =E103+1 -> 2 | G103: 3 | H103: 4 | I103: 5 | J103: 6 | K103: 7 | L103: 8 | M103: 9 | N103: 10 | O103: 11 | P103: 12 | Q103: 13 | R103: 14 | S103: 15 | T103: 16 | U103: 17 | V103: 18 | W103: 19 | X103: 20 | Y103: 21 | Z103: 22 | AA103: 23 | AB103: 24 | AC103: 25 | AE103: Year 1 | AG103: Year 2 | AI103: Year 3+
B104: Sign-up hours per subscriber | E104: =IF('Key_Assumptions_&_Inputs'!$J$70="Easy",$AF$105,IF('Key_Assumptions_&_Inputs'!$J$70="Moderate",$AF$106,IF('Key_Assumptions_&_Inputs'!$J$70="Difficult",$AF$107))) -> 0.2083333333 | F104: =IF('Key_Assumptions_&_Inputs'!$J$70="Easy",$AH$105,IF('Key_Assumptions_&_Inputs'!$J$70="Moderate",$AH$106,IF('Key_Assumptions_&_Inputs'!$J$70="Difficult",$AH$107))) -> 0.15625 | G104: =IF('Key_Assumptions_&_Inputs'!$J$70="Easy",$AJ$105,IF('Key_Assumptions_&_Inputs'!$J$70="Moderate",$AJ$106,IF('Key_Assumptions_&_Inputs'!$J$70="Difficult",$AJ$107))) -> 0.1328125 | H104: =IF('Key_Assumptions_&_Inputs'!$J$70="Easy",$AJ$105,IF('Key_Assumptions_&_Inputs'!$J$70="Moderate",$AJ$106,IF('Key_Assumptions_&_Inputs'!$J$70="Difficult",$AJ$107))) -> 0.1328125 | I104: =IF('Key_Assumptions_&_Inputs'!$J$70="Easy",$AJ$105,IF('Key_Assumptions_&_Inputs'!$J$70="Moderate",$AJ$106,IF('Key_Assumptions_&_Inputs'!$J$70="Difficult",$AJ$107))) -> 0.1328125 | J104: =IF('Key_Assumptions_&_Inputs'!$J$70="Easy",$AJ$105,IF('Key_Assumptions_&_Inputs'!$J$70="Moderate",$AJ$106,IF('Key_Assumptions_&_Inputs'!$J$70="Difficult",$AJ$107))) -> 0.1328125 | K104: =IF('Key_Assumptions_&_Inputs'!$J$70="Easy",$AJ$105,IF('Key_Assumptions_&_Inputs'!$J$70="Moderate",$AJ$106,IF('Key_Assumptions_&_Inputs'!$J$70="Difficult",$AJ$107))) -> 0.1328125 | L104: =IF('Key_Assumptions_&_Inputs'!$J$70="Easy",$AJ$105,IF('Key_Assumptions_&_Inputs'!$J$70="Moderate",$AJ$106,IF('Key_Assumptions_&_Inputs'!$J$70="Difficult",$AJ$107))) -> 0.1328125 | M104: =IF('Key_Assumptions_&_Inputs'!$J$70="Easy",$AJ$105,IF('Key_Assumptions_&_Inputs'!$J$70="Moderate",$AJ$106,IF('Key_Assumptions_&_Inputs'!$J$70="Difficult",$AJ$107))) -> 0.1328125 | N104: =IF('Key_Assumptions_&_Inputs'!$J$70="Easy",$AJ$105,IF('Key_Assumptions_&_Inputs'!$J$70="Moderate",$AJ$106,IF('Key_Assumptions_&_Inputs'!$J$70="Difficult",$AJ$107))) -> 0.1328125 | O104: =IF('Key_Assumptions_&_Inputs'!$J$70="Easy",$AJ$105,IF('Key_Assumptions_&_Inputs'!$J$70="Moderate",$AJ$106,IF('Key_Assumptions_&_Inputs'!$J$70="Difficult",$AJ$107))) -> 0.1328125 | P104: =IF('Key_Assumptions_&_Inputs'!$J$70="Easy",$AJ$105,IF('Key_Assumptions_&_Inputs'!$J$70="Moderate",$AJ$106,IF('Key_Assumptions_&_Inputs'!$J$70="Difficult",$AJ$107))) -> 0.1328125 | Q104: =IF('Key_Assumptions_&_Inputs'!$J$70="Easy",$AJ$105,IF('Key_Assumptions_&_Inputs'!$J$70="Moderate",$AJ$106,IF('Key_Assumptions_&_Inputs'!$J$70="Difficult",$AJ$107))) -> 0.1328125 | R104: =IF('Key_Assumptions_&_Inputs'!$J$70="Easy",$AJ$105,IF('Key_Assumptions_&_Inputs'!$J$70="Moderate",$AJ$106,IF('Key_Assumptions_&_Inputs'!$J$70="Difficult",$AJ$107))) -> 0.1328125 | S104: =IF('Key_Assumptions_&_Inputs'!$J$70="Easy",$AJ$105,IF('Key_Assumptions_&_Inputs'!$J$70="Moderate",$AJ$106,IF('Key_Assumptions_&_Inputs'!$J$70="Difficult",$AJ$107))) -> 0.1328125 | T104: =IF('Key_Assumptions_&_Inputs'!$J$70="Easy",$AJ$105,IF('Key_Assumptions_&_Inputs'!$J$70="Moderate",$AJ$106,IF('Key_Assumptions_&_Inputs'!$J$70="Difficult",$AJ$107))) -> 0.1328125 | U104: =IF('Key_Assumptions_&_Inputs'!$J$70="Easy",$AJ$105,IF('Key_Assumptions_&_Inputs'!$J$70="Moderate",$AJ$106,IF('Key_Assumptions_&_Inputs'!$J$70="Difficult",$AJ$107))) -> 0.1328125 | V104: =IF('Key_Assumptions_&_Inputs'!$J$70="Easy",$AJ$105,IF('Key_Assumptions_&_Inputs'!$J$70="Moderate",$AJ$106,IF('Key_Assumptions_&_Inputs'!$J$70="Difficult",$AJ$107))) -> 0.1328125 | W104: =IF('Key_Assumptions_&_Inputs'!$J$70="Easy",$AJ$105,IF('Key_Assumptions_&_Inputs'!$J$70="Moderate",$AJ$106,IF('Key_Assumptions_&_Inputs'!$J$70="Difficult",$AJ$107))) -> 0.1328125 | X104: =IF('Key_Assumptions_&_Inputs'!$J$70="Easy",$AJ$105,IF('Key_Assumptions_&_Inputs'!$J$70="Moderate",$AJ$106,IF('Key_Assumptions_&_Inputs'!$J$70="Difficult",$AJ$107))) -> 0.1328125 | Y104: =IF('Key_Assumptions_&_Inputs'!$J$70="Easy",$AJ$105,IF('Key_Assumptions_&_Inputs'!$J$70="Moderate",$AJ$106,IF('Key_Assumptions_&_Inputs'!$J$70="Difficult",$AJ$107))) -> 0.1328125 | Z104: =IF('Key_Assumptions_&_Inputs'!$J$70="Easy",$AJ$105,IF('Key_Assumptions_&_Inputs'!$J$70="Moderate",$AJ$106,IF('Key_Assumptions_&_Inputs'!$J$70="Difficult",$AJ$107))) -> 0.1328125 | AA104: =IF('Key_Assumptions_&_Inputs'!$J$70="Easy",$AJ$105,IF('Key_Assumptions_&_Inputs'!$J$70="Moderate",$AJ$106,IF('Key_Assumptions_&_Inputs'!$J$70="Difficult",$AJ$107))) -> 0.1328125 | AB104: =IF('Key_Assumptions_&_Inputs'!$J$70="Easy",$AJ$105,IF('Key_Assumptions_&_Inputs'!$J$70="Moderate",$AJ$106,IF('Key_Assumptions_&_Inputs'!$J$70="Difficult",$AJ$107))) -> 0.1328125 | AC104: =IF('Key_Assumptions_&_Inputs'!$J$70="Easy",$AJ$105,IF('Key_Assumptions_&_Inputs'!$J$70="Moderate",$AJ$106,IF('Key_Assumptions_&_Inputs'!$J$70="Difficult",$AJ$107))) -> 0.1328125 | AE104: Minutes | AF104: % of hour | AG104: Minutes | AH104: % of hour | AI104: Minutes | AJ104: % of hour
B105: Labor rate | E105: =$D$13 -> 50 | F105: =E105*(1+$D$14) -> 51.5 | G105: =F105*(1+$D$14) -> 53.045 | H105: 54.63635 | I105: 56.2754405 | J105: 57.96370372 | K105: 59.70261483 | L105: 61.49369327 | M105: 63.33850407 | N105: 65.23865919 | O105: 67.19581897 | P105: 69.21169354 | Q105: 71.28804434 | R105: 73.42668567 | S105: 75.62948624 | T105: 77.89837083 | U105: 80.23532195 | V105: 82.64238161 | W105: 85.12165306 | X105: 87.67530265 | Y105: 90.30556173 | Z105: 93.01472859 | AA105: 95.80517044 | AB105: 98.67932556 | AC105: 101.6397053 | AD105: Easy | AE105: 10 | AF105: =AE105/60 -> 0.1666666667 | AG105: =AE105*(1-$AF$87) -> 7.5 | AH105: =AG105/60 -> 0.125 | AI105: =AG105*(1-$AG$87) -> 6.375 | AJ105: =AI105/60 -> 0.10625
B106: Sign-up cost per subscriber | E106: =E104*E105 -> 10.41666667 | F106: =F104*F105 -> 8.046875 | G106: 7.045039062 | H106: 7.256390234 | I106: 7.474081941 | J106: 7.6983044 | K106: 7.929253532 | L106: 8.167131138 | M106: 8.412145072 | N106: 8.664509424 | O106: 8.924444707 | P106: 9.192178048 | Q106: 9.467943389 | R106: 9.751981691 | S106: 10.04454114 | T106: 10.34587738 | U106: 10.6562537 | V106: 10.97594131 | W106: 11.30521955 | X106: 11.64437613 | Y106: 11.99370742 | Z106: 12.35351864 | AA106: 12.7241242 | AB106: 13.10584793 | AC106: 13.49902336 | AD106: Moderate | AE106: 12.5 | AF106: =AE106/60 -> 0.2083333333 | AG106: =AE106*(1-$AF$87) -> 9.375 | AH106: =AG106/60 -> 0.15625 | AI106: =AG106*(1-$AG$87) -> 7.96875 | AJ106: =AI106/60 -> 0.1328125
B107: Annual costs | E107: =E86*E106 -> 1389.583333 | F107: =F86*F106 -> 16.09375 | G107: 14.09007812 | H107: 14.51278047 | I107: 14.94816388 | J107: 15.3966088 | K107: 15.85850706 | L107: 16.33426228 | M107: 16.82429014 | N107: 17.32901885 | O107: 17.84888941 | P107: 18.3843561 | Q107: 18.93588678 | R107: 19.50396338 | S107: 20.08908228 | T107: 20.69175475 | U107: 21.31250739 | V107: 21.95188262 | W107: 22.61043909 | X107: 23.28875227 | Y107: 23.98741484 | Z107: 24.70703728 | AA107: 25.4482484 | AB107: 26.21169585 | AC107: 26.99804673 | AD107: Difficult | AE107: 15 | AF107: =AE107/60 -> 0.25 | AG107: =AE107*(1-$AF$87) -> 11.25 | AH107: =AG107/60 -> 0.1875 | AI107: =AG107*(1-$AG$87) -> 9.5625 | AJ107: =AI107/60 -> 0.159375
B109: Customer Service | E109: 1 | F109: =E109+1 -> 2 | G109: 3 | H109: 4 | I109: 5 | J109: 6 | K109: 7 | L109: 8 | M109: 9 | N109: 10 | O109: 11 | P109: 12 | Q109: 13 | R109: 14 | S109: 15 | T109: 16 | U109: 17 | V109: 18 | W109: 19 | X109: 20 | Y109: 21 | Z109: 22 | AA109: 23 | AB109: 24 | AC109: 25 | AE109: Customer Service time per Subscriber | AM109: % of Total Subscribers requiring service monthly
B110: % of subscribers calling per month | E110: =IF('Key_Assumptions_&_Inputs'!$J$70="Easy",AM112,IF('Key_Assumptions_&_Inputs'!$J$70="Moderate",AM113,IF('Key_Assumptions_&_Inputs'!$J$70="Difficult",AM114))) -> 0.1 | F110: =IF('Key_Assumptions_&_Inputs'!$J$70="Easy",AN112,IF('Key_Assumptions_&_Inputs'!$J$70="Moderate",AN113,IF('Key_Assumptions_&_Inputs'!$J$70="Difficult",AN114))) -> 0.075 | G110: =IF('Key_Assumptions_&_Inputs'!$J$70="Easy",$AO$112,IF('Key_Assumptions_&_Inputs'!$J$70="Moderate",$AO$113,IF('Key_Assumptions_&_Inputs'!$J$70="Difficult",$AO$114))) -> 0.06375 | H110: =G110*0.5 -> 0.031875 | I110: =H110*0.5 -> 0.0159375 | J110: =I110 -> 0.0159375 | K110: =J110 -> 0.0159375 | L110: 0.0159375 | M110: 0.0159375 | N110: 0.0159375 | O110: 0.0159375 | P110: 0.0159375 | Q110: 0.0159375 | R110: 0.0159375 | S110: 0.0159375 | T110: 0.0159375 | U110: 0.0159375 | V110: 0.0159375 | W110: 0.0159375 | X110: 0.0159375 | Y110: 0.0159375 | Z110: 0.0159375 | AA110: 0.0159375 | AB110: 0.0159375 | AC110: 0.0159375 | AE110: Year 1 | AG110: Year 2 | AI110: Year 3+ | AM110: Year 1 | AN110: Year 2 | AO110: Year 3+
B111: Hours per call | E111: =IF('Key_Assumptions_&_Inputs'!$J$70="Easy",$AF$112,IF('Key_Assumptions_&_Inputs'!$J$70="Moderate",$AF$113,IF('Key_Assumptions_&_Inputs'!$J$70="Difficult",$AF$114))) -> 0.125 | F111: =IF('Key_Assumptions_&_Inputs'!$J$70="Easy",$AH$112,IF('Key_Assumptions_&_Inputs'!$J$70="Moderate",$AH$113,IF('Key_Assumptions_&_Inputs'!$J$70="Difficult",$AH$114))) -> 0.09375 | G111: =IF('Key_Assumptions_&_Inputs'!$J$70="Easy",$AJ$112,IF('Key_Assumptions_&_Inputs'!$J$70="Moderate",$AJ$113,IF('Key_Assumptions_&_Inputs'!$J$70="Difficult",$AJ$114))) -> 0.0796875 | H111: =IF('Key_Assumptions_&_Inputs'!$J$70="Easy",$AJ$112,IF('Key_Assumptions_&_Inputs'!$J$70="Moderate",$AJ$113,IF('Key_Assumptions_&_Inputs'!$J$70="Difficult",$AJ$114))) -> 0.0796875 | I111: =IF('Key_Assumptions_&_Inputs'!$J$70="Easy",$AJ$112,IF('Key_Assumptions_&_Inputs'!$J$70="Moderate",$AJ$113,IF('Key_Assumptions_&_Inputs'!$J$70="Difficult",$AJ$114))) -> 0.0796875 | J111: =IF('Key_Assumptions_&_Inputs'!$J$70="Easy",$AJ$112,IF('Key_Assumptions_&_Inputs'!$J$70="Moderate",$AJ$113,IF('Key_Assumptions_&_Inputs'!$J$70="Difficult",$AJ$114))) -> 0.0796875 | K111: =IF('Key_Assumptions_&_Inputs'!$J$70="Easy",$AJ$112,IF('Key_Assumptions_&_Inputs'!$J$70="Moderate",$AJ$113,IF('Key_Assumptions_&_Inputs'!$J$70="Difficult",$AJ$114))) -> 0.0796875 | L111: =IF('Key_Assumptions_&_Inputs'!$J$70="Easy",$AJ$112,IF('Key_Assumptions_&_Inputs'!$J$70="Moderate",$AJ$113,IF('Key_Assumptions_&_Inputs'!$J$70="Difficult",$AJ$114))) -> 0.0796875 | M111: =IF('Key_Assumptions_&_Inputs'!$J$70="Easy",$AJ$112,IF('Key_Assumptions_&_Inputs'!$J$70="Moderate",$AJ$113,IF('Key_Assumptions_&_Inputs'!$J$70="Difficult",$AJ$114))) -> 0.0796875 | N111: =IF('Key_Assumptions_&_Inputs'!$J$70="Easy",$AJ$112,IF('Key_Assumptions_&_Inputs'!$J$70="Moderate",$AJ$113,IF('Key_Assumptions_&_Inputs'!$J$70="Difficult",$AJ$114))) -> 0.0796875 | O111: =IF('Key_Assumptions_&_Inputs'!$J$70="Easy",$AJ$112,IF('Key_Assumptions_&_Inputs'!$J$70="Moderate",$AJ$113,IF('Key_Assumptions_&_Inputs'!$J$70="Difficult",$AJ$114))) -> 0.0796875 | P111: =IF('Key_Assumptions_&_Inputs'!$J$70="Easy",$AJ$112,IF('Key_Assumptions_&_Inputs'!$J$70="Moderate",$AJ$113,IF('Key_Assumptions_&_Inputs'!$J$70="Difficult",$AJ$114))) -> 0.0796875 | Q111: =IF('Key_Assumptions_&_Inputs'!$J$70="Easy",$AJ$112,IF('Key_Assumptions_&_Inputs'!$J$70="Moderate",$AJ$113,IF('Key_Assumptions_&_Inputs'!$J$70="Difficult",$AJ$114))) -> 0.0796875 | R111: =IF('Key_Assumptions_&_Inputs'!$J$70="Easy",$AJ$112,IF('Key_Assumptions_&_Inputs'!$J$70="Moderate",$AJ$113,IF('Key_Assumptions_&_Inputs'!$J$70="Difficult",$AJ$114))) -> 0.0796875 | S111: =IF('Key_Assumptions_&_Inputs'!$J$70="Easy",$AJ$112,IF('Key_Assumptions_&_Inputs'!$J$70="Moderate",$AJ$113,IF('Key_Assumptions_&_Inputs'!$J$70="Difficult",$AJ$114))) -> 0.0796875 | T111: =IF('Key_Assumptions_&_Inputs'!$J$70="Easy",$AJ$112,IF('Key_Assumptions_&_Inputs'!$J$70="Moderate",$AJ$113,IF('Key_Assumptions_&_Inputs'!$J$70="Difficult",$AJ$114))) -> 0.0796875 | U111: =IF('Key_Assumptions_&_Inputs'!$J$70="Easy",$AJ$112,IF('Key_Assumptions_&_Inputs'!$J$70="Moderate",$AJ$113,IF('Key_Assumptions_&_Inputs'!$J$70="Difficult",$AJ$114))) -> 0.0796875 | V111: =IF('Key_Assumptions_&_Inputs'!$J$70="Easy",$AJ$112,IF('Key_Assumptions_&_Inputs'!$J$70="Moderate",$AJ$113,IF('Key_Assumptions_&_Inputs'!$J$70="Difficult",$AJ$114))) -> 0.0796875 | W111: =IF('Key_Assumptions_&_Inputs'!$J$70="Easy",$AJ$112,IF('Key_Assumptions_&_Inputs'!$J$70="Moderate",$AJ$113,IF('Key_Assumptions_&_Inputs'!$J$70="Difficult",$AJ$114))) -> 0.0796875 | X111: =IF('Key_Assumptions_&_Inputs'!$J$70="Easy",$AJ$112,IF('Key_Assumptions_&_Inputs'!$J$70="Moderate",$AJ$113,IF('Key_Assumptions_&_Inputs'!$J$70="Difficult",$AJ$114))) -> 0.0796875 | Y111: =IF('Key_Assumptions_&_Inputs'!$J$70="Easy",$AJ$112,IF('Key_Assumptions_&_Inputs'!$J$70="Moderate",$AJ$113,IF('Key_Assumptions_&_Inputs'!$J$70="Difficult",$AJ$114))) -> 0.0796875 | Z111: =IF('Key_Assumptions_&_Inputs'!$J$70="Easy",$AJ$112,IF('Key_Assumptions_&_Inputs'!$J$70="Moderate",$AJ$113,IF('Key_Assumptions_&_Inputs'!$J$70="Difficult",$AJ$114))) -> 0.0796875 | AA111: =IF('Key_Assumptions_&_Inputs'!$J$70="Easy",$AJ$112,IF('Key_Assumptions_&_Inputs'!$J$70="Moderate",$AJ$113,IF('Key_Assumptions_&_Inputs'!$J$70="Difficult",$AJ$114))) -> 0.0796875 | AB111: =IF('Key_Assumptions_&_Inputs'!$J$70="Easy",$AJ$112,IF('Key_Assumptions_&_Inputs'!$J$70="Moderate",$AJ$113,IF('Key_Assumptions_&_Inputs'!$J$70="Difficult",$AJ$114))) -> 0.0796875 | AC111: =IF('Key_Assumptions_&_Inputs'!$J$70="Easy",$AJ$112,IF('Key_Assumptions_&_Inputs'!$J$70="Moderate",$AJ$113,IF('Key_Assumptions_&_Inputs'!$J$70="Difficult",$AJ$114))) -> 0.0796875 | AE111: Minutes | AF111: % of hour | AG111: Minutes | AH111: % of hour | AI111: Minutes | AJ111: % of hour | AM111: Hours | AN111: Hours | AO111: Hours
B112: Total monthly calls | E112: =E84*E110 -> 13.34 | F112: 10.005 | G112: 8.50425 | H112: 4.252125 | I112: 2.1260625 | J112: 2.1260625 | K112: 2.1260625 | L112: 2.1260625 | M112: 2.1260625 | N112: 2.1260625 | O112: 2.1260625 | P112: 2.1260625 | Q112: 2.1260625 | R112: 2.1260625 | S112: 2.1260625 | T112: 2.1260625 | U112: 2.1260625 | V112: 2.1260625 | W112: 2.1260625 | X112: 2.1260625 | Y112: 2.1260625 | Z112: 2.1260625 | AA112: 2.1260625 | AB112: 2.1260625 | AC112: 2.1260625 | AD112: Easy | AE112: 5 | AF112: =AE112/60 -> 0.08333333333 | AG112: =AE112*(1-$AF$87) -> 3.75 | AH112: =AG112/60 -> 0.0625 | AI112: =AG112*(1-$AG$87) -> 3.1875 | AJ112: =AI112/60 -> 0.053125 | AM112: 0.08 | AN112: =AM112*(1-$AF$87) -> 0.06 | AO112: =AN112*(1-$AG$87) -> 0.051
B113: Total call hours | E113: =(E111*E112) -> 1.6675 | F113: =(F111*F112) -> 0.93796875 | G113: 0.6776824219 | H113: 0.3388412109 | I113: 0.1694206055 | J113: 0.1694206055 | K113: 0.1694206055 | L113: 0.1694206055 | M113: 0.1694206055 | N113: 0.1694206055 | O113: 0.1694206055 | P113: 0.1694206055 | Q113: 0.1694206055 | R113: 0.1694206055 | S113: 0.1694206055 | T113: 0.1694206055 | U113: 0.1694206055 | V113: 0.1694206055 | W113: 0.1694206055 | X113: 0.1694206055 | Y113: 0.1694206055 | Z113: 0.1694206055 | AA113: 0.1694206055 | AB113: 0.1694206055 | AC113: 0.1694206055 | AD113: Moderate | AE113: 7.5 | AF113: =AE113/60 -> 0.125 | AG113: =AE113*(1-$AF$87) -> 5.625 | AH113: =AG113/60 -> 0.09375 | AI113: =AG113*(1-$AG$87) -> 4.78125 | AJ113: =AI113/60 -> 0.0796875 | AM113: 0.1 | AN113: =AM113*(1-$AF$87) -> 0.075 | AO113: =AN113*(1-$AG$87) -> 0.06375
B114: Labor rate | E114: =$D$13 -> 50 | F114: =E114*(1+$D$14) -> 51.5 | G114: =F114*(1+$D$14) -> 53.045 | H114: 54.63635 | I114: 56.2754405 | J114: 57.96370372 | K114: 59.70261483 | L114: 61.49369327 | M114: 63.33850407 | N114: 65.23865919 | O114: 67.19581897 | P114: 69.21169354 | Q114: 71.28804434 | R114: 73.42668567 | S114: 75.62948624 | T114: 77.89837083 | U114: 80.23532195 | V114: 82.64238161 | W114: 85.12165306 | X114: 87.67530265 | Y114: 90.30556173 | Z114: 93.01472859 | AA114: 95.80517044 | AB114: 98.67932556 | AC114: 101.6397053 | AD114: Difficult | AE114: 10 | AF114: =AE114/60 -> 0.1666666667 | AG114: =AE114*(1-$AF$87) -> 7.5 | AH114: =AG114/60 -> 0.125 | AI114: =AG114*(1-$AG$87) -> 6.375 | AJ114: =AI114/60 -> 0.10625 | AM114: 0.12 | AN114: =AM114*(1-$AF$87) -> 0.09 | AO114: =AN114*(1-$AG$87) -> 0.0765
B115: Annual costs | E115: =E113*E114*12 -> 1000.5 | F115: =F113*F114*12 -> 579.6646875 | G115: 431.3719688 | H115: 222.1565639 | I115: 114.4106304 | J115: 117.8429493 | K115: 121.3782378 | L115: 125.019585 | M115: 128.7701725 | N115: 132.6332777 | O115: 136.612276 | P115: 140.7106443 | Q115: 144.9319636 | R115: 149.2799225 | S115: 153.7583202 | T115: 158.3710698 | U115: 163.1222019 | V115: 168.015868 | W115: 173.056344 | X115: 178.2480343 | Y115: 183.5954754 | Z115: 189.1033396 | AA115: 194.7764398 | AB115: 200.619733 | AC115: 206.638325
AE116: Minutes for admin setup per Subscriber | AM116: Minutes individual billing per Subscriber
B117: Billing Admin | AE117: Year 1 | AG117: Year 2 | AI117: Year 3+ | AM117: Year 1 | AO117: Year 2 | AQ117: Year 3+
B118: Billing setup hours per month | E118: =IF('Key_Assumptions_&_Inputs'!$J$70="Easy",(E84*AF119),IF('Key_Assumptions_&_Inputs'!$J$70="Moderate",(E84*AF120),IF('Key_Assumptions_&_Inputs'!$J$70="Difficult",E84*AF121))) -> 8.893333333 | F118: =IF('Key_Assumptions_&_Inputs'!$J$70="Easy",(F84*AH119),IF('Key_Assumptions_&_Inputs'!$J$70="Moderate",(F84*AH120),IF('Key_Assumptions_&_Inputs'!$J$70="Difficult",F84*AH121))) -> 6.67 | G118: =IF('Key_Assumptions_&_Inputs'!$J$70="Easy",(G84*$AJ$119),IF('Key_Assumptions_&_Inputs'!$J$70="Moderate",(G84*$AJ$120),IF('Key_Assumptions_&_Inputs'!$J$70="Difficult",G84*$AJ$121))) -> 5.6695 | H118: =IF('Key_Assumptions_&_Inputs'!$J$70="Easy",(H84*$AJ$119),IF('Key_Assumptions_&_Inputs'!$J$70="Moderate",(H84*$AJ$120),IF('Key_Assumptions_&_Inputs'!$J$70="Difficult",H84*$AJ$121))) -> 5.6695 | I118: =IF('Key_Assumptions_&_Inputs'!$J$70="Easy",(I84*$AJ$119),IF('Key_Assumptions_&_Inputs'!$J$70="Moderate",(I84*$AJ$120),IF('Key_Assumptions_&_Inputs'!$J$70="Difficult",I84*$AJ$121))) -> 5.6695 | J118: =IF('Key_Assumptions_&_Inputs'!$J$70="Easy",(J84*$AJ$119),IF('Key_Assumptions_&_Inputs'!$J$70="Moderate",(J84*$AJ$120),IF('Key_Assumptions_&_Inputs'!$J$70="Difficult",J84*$AJ$121))) -> 5.6695 | K118: =IF('Key_Assumptions_&_Inputs'!$J$70="Easy",(K84*$AJ$119),IF('Key_Assumptions_&_Inputs'!$J$70="Moderate",(K84*$AJ$120),IF('Key_Assumptions_&_Inputs'!$J$70="Difficult",K84*$AJ$121))) -> 5.6695 | L118: =IF('Key_Assumptions_&_Inputs'!$J$70="Easy",(L84*$AJ$119),IF('Key_Assumptions_&_Inputs'!$J$70="Moderate",(L84*$AJ$120),IF('Key_Assumptions_&_Inputs'!$J$70="Difficult",L84*$AJ$121))) -> 5.6695 | M118: =IF('Key_Assumptions_&_Inputs'!$J$70="Easy",(M84*$AJ$119),IF('Key_Assumptions_&_Inputs'!$J$70="Moderate",(M84*$AJ$120),IF('Key_Assumptions_&_Inputs'!$J$70="Difficult",M84*$AJ$121))) -> 5.6695 | N118: =IF('Key_Assumptions_&_Inputs'!$J$70="Easy",(N84*$AJ$119),IF('Key_Assumptions_&_Inputs'!$J$70="Moderate",(N84*$AJ$120),IF('Key_Assumptions_&_Inputs'!$J$70="Difficult",N84*$AJ$121))) -> 5.6695 | O118: =IF('Key_Assumptions_&_Inputs'!$J$70="Easy",(O84*$AJ$119),IF('Key_Assumptions_&_Inputs'!$J$70="Moderate",(O84*$AJ$120),IF('Key_Assumptions_&_Inputs'!$J$70="Difficult",O84*$AJ$121))) -> 5.6695 | P118: =IF('Key_Assumptions_&_Inputs'!$J$70="Easy",(P84*$AJ$119),IF('Key_Assumptions_&_Inputs'!$J$70="Moderate",(P84*$AJ$120),IF('Key_Assumptions_&_Inputs'!$J$70="Difficult",P84*$AJ$121))) -> 5.6695 | Q118: =IF('Key_Assumptions_&_Inputs'!$J$70="Easy",(Q84*$AJ$119),IF('Key_Assumptions_&_Inputs'!$J$70="Moderate",(Q84*$AJ$120),IF('Key_Assumptions_&_Inputs'!$J$70="Difficult",Q84*$AJ$121))) -> 5.6695 | R118: =IF('Key_Assumptions_&_Inputs'!$J$70="Easy",(R84*$AJ$119),IF('Key_Assumptions_&_Inputs'!$J$70="Moderate",(R84*$AJ$120),IF('Key_Assumptions_&_Inputs'!$J$70="Difficult",R84*$AJ$121))) -> 5.6695 | S118: =IF('Key_Assumptions_&_Inputs'!$J$70="Easy",(S84*$AJ$119),IF('Key_Assumptions_&_Inputs'!$J$70="Moderate",(S84*$AJ$120),IF('Key_Assumptions_&_Inputs'!$J$70="Difficult",S84*$AJ$121))) -> 5.6695 | T118: =IF('Key_Assumptions_&_Inputs'!$J$70="Easy",(T84*$AJ$119),IF('Key_Assumptions_&_Inputs'!$J$70="Moderate",(T84*$AJ$120),IF('Key_Assumptions_&_Inputs'!$J$70="Difficult",T84*$AJ$121))) -> 5.6695 | U118: =IF('Key_Assumptions_&_Inputs'!$J$70="Easy",(U84*$AJ$119),IF('Key_Assumptions_&_Inputs'!$J$70="Moderate",(U84*$AJ$120),IF('Key_Assumptions_&_Inputs'!$J$70="Difficult",U84*$AJ$121))) -> 5.6695 | V118: =IF('Key_Assumptions_&_Inputs'!$J$70="Easy",(V84*$AJ$119),IF('Key_Assumptions_&_Inputs'!$J$70="Moderate",(V84*$AJ$120),IF('Key_Assumptions_&_Inputs'!$J$70="Difficult",V84*$AJ$121))) -> 5.6695 | W118: =IF('Key_Assumptions_&_Inputs'!$J$70="Easy",(W84*$AJ$119),IF('Key_Assumptions_&_Inputs'!$J$70="Moderate",(W84*$AJ$120),IF('Key_Assumptions_&_Inputs'!$J$70="Difficult",W84*$AJ$121))) -> 5.6695 | X118: =IF('Key_Assumptions_&_Inputs'!$J$70="Easy",(X84*$AJ$119),IF('Key_Assumptions_&_Inputs'!$J$70="Moderate",(X84*$AJ$120),IF('Key_Assumptions_&_Inputs'!$J$70="Difficult",X84*$AJ$121))) -> 5.6695 | Y118: =IF('Key_Assumptions_&_Inputs'!$J$70="Easy",(Y84*$AJ$119),IF('Key_Assumptions_&_Inputs'!$J$70="Moderate",(Y84*$AJ$120),IF('Key_Assumptions_&_Inputs'!$J$70="Difficult",Y84*$AJ$121))) -> 5.6695 | Z118: =IF('Key_Assumptions_&_Inputs'!$J$70="Easy",(Z84*$AJ$119),IF('Key_Assumptions_&_Inputs'!$J$70="Moderate",(Z84*$AJ$120),IF('Key_Assumptions_&_Inputs'!$J$70="Difficult",Z84*$AJ$121))) -> 5.6695 | AA118: =IF('Key_Assumptions_&_Inputs'!$J$70="Easy",(AA84*$AJ$119),IF('Key_Assumptions_&_Inputs'!$J$70="Moderate",(AA84*$AJ$120),IF('Key_Assumptions_&_Inputs'!$J$70="Difficult",AA84*$AJ$121))) -> 5.6695 | AB118: =IF('Key_Assumptions_&_Inputs'!$J$70="Easy",(AB84*$AJ$119),IF('Key_Assumptions_&_Inputs'!$J$70="Moderate",(AB84*$AJ$120),IF('Key_Assumptions_&_Inputs'!$J$70="Difficult",AB84*$AJ$121))) -> 5.6695 | AC118: =IF('Key_Assumptions_&_Inputs'!$J$70="Easy",(AC84*$AJ$119),IF('Key_Assumptions_&_Inputs'!$J$70="Moderate",(AC84*$AJ$120),IF('Key_Assumptions_&_Inputs'!$J$70="Difficult",AC84*$AJ$121))) -> 5.6695 | AE118: Minutes | AF118: % of hour | AG118: Minutes | AH118: % of hour | AI118: Minutes | AJ118: % of hour | AM118: Minutes | AN118: % of hour | AO118: Minutes | AP118: % of hour | AQ118: Minutes | AR118: % of hour
B119: Individual subscriber billing hours | E119: =IF('Key_Assumptions_&_Inputs'!$J$70="Easy",(E84*AN119),IF('Key_Assumptions_&_Inputs'!$J$70="Moderate",(E84*AN120),IF('Key_Assumptions_&_Inputs'!$J$70="Difficult",E84*AN121))) -> 11.11666667 | F119: =IF('Key_Assumptions_&_Inputs'!$J$70="Easy",(F84*AP119),IF('Key_Assumptions_&_Inputs'!$J$70="Moderate",(F84*AP120),IF('Key_Assumptions_&_Inputs'!$J$70="Difficult",F84*AP121))) -> 8.3375 | G119: =IF('Key_Assumptions_&_Inputs'!$J$70="Easy",(G84*$AR$119),IF('Key_Assumptions_&_Inputs'!$J$70="Moderate",(G84*$AR$120),IF('Key_Assumptions_&_Inputs'!$J$70="Difficult",G84*$AR$121))) -> 7.086875 | H119: =IF('Key_Assumptions_&_Inputs'!$J$70="Easy",(H84*$AR$119),IF('Key_Assumptions_&_Inputs'!$J$70="Moderate",(H84*$AR$120),IF('Key_Assumptions_&_Inputs'!$J$70="Difficult",H84*$AR$121))) -> 7.086875 | I119: =IF('Key_Assumptions_&_Inputs'!$J$70="Easy",(I84*$AR$119),IF('Key_Assumptions_&_Inputs'!$J$70="Moderate",(I84*$AR$120),IF('Key_Assumptions_&_Inputs'!$J$70="Difficult",I84*$AR$121))) -> 7.086875 | J119: =IF('Key_Assumptions_&_Inputs'!$J$70="Easy",(J84*$AR$119),IF('Key_Assumptions_&_Inputs'!$J$70="Moderate",(J84*$AR$120),IF('Key_Assumptions_&_Inputs'!$J$70="Difficult",J84*$AR$121))) -> 7.086875 | K119: =IF('Key_Assumptions_&_Inputs'!$J$70="Easy",(K84*$AR$119),IF('Key_Assumptions_&_Inputs'!$J$70="Moderate",(K84*$AR$120),IF('Key_Assumptions_&_Inputs'!$J$70="Difficult",K84*$AR$121))) -> 7.086875 | L119: =IF('Key_Assumptions_&_Inputs'!$J$70="Easy",(L84*$AR$119),IF('Key_Assumptions_&_Inputs'!$J$70="Moderate",(L84*$AR$120),IF('Key_Assumptions_&_Inputs'!$J$70="Difficult",L84*$AR$121))) -> 7.086875 | M119: =IF('Key_Assumptions_&_Inputs'!$J$70="Easy",(M84*$AR$119),IF('Key_Assumptions_&_Inputs'!$J$70="Moderate",(M84*$AR$120),IF('Key_Assumptions_&_Inputs'!$J$70="Difficult",M84*$AR$121))) -> 7.086875 | N119: =IF('Key_Assumptions_&_Inputs'!$J$70="Easy",(N84*$AR$119),IF('Key_Assumptions_&_Inputs'!$J$70="Moderate",(N84*$AR$120),IF('Key_Assumptions_&_Inputs'!$J$70="Difficult",N84*$AR$121))) -> 7.086875 | O119: =IF('Key_Assumptions_&_Inputs'!$J$70="Easy",(O84*$AR$119),IF('Key_Assumptions_&_Inputs'!$J$70="Moderate",(O84*$AR$120),IF('Key_Assumptions_&_Inputs'!$J$70="Difficult",O84*$AR$121))) -> 7.086875 | P119: =IF('Key_Assumptions_&_Inputs'!$J$70="Easy",(P84*$AR$119),IF('Key_Assumptions_&_Inputs'!$J$70="Moderate",(P84*$AR$120),IF('Key_Assumptions_&_Inputs'!$J$70="Difficult",P84*$AR$121))) -> 7.086875 | Q119: =IF('Key_Assumptions_&_Inputs'!$J$70="Easy",(Q84*$AR$119),IF('Key_Assumptions_&_Inputs'!$J$70="Moderate",(Q84*$AR$120),IF('Key_Assumptions_&_Inputs'!$J$70="Difficult",Q84*$AR$121))) -> 7.086875 | R119: =IF('Key_Assumptions_&_Inputs'!$J$70="Easy",(R84*$AR$119),IF('Key_Assumptions_&_Inputs'!$J$70="Moderate",(R84*$AR$120),IF('Key_Assumptions_&_Inputs'!$J$70="Difficult",R84*$AR$121))) -> 7.086875 | S119: =IF('Key_Assumptions_&_Inputs'!$J$70="Easy",(S84*$AR$119),IF('Key_Assumptions_&_Inputs'!$J$70="Moderate",(S84*$AR$120),IF('Key_Assumptions_&_Inputs'!$J$70="Difficult",S84*$AR$121))) -> 7.086875 | T119: =IF('Key_Assumptions_&_Inputs'!$J$70="Easy",(T84*$AR$119),IF('Key_Assumptions_&_Inputs'!$J$70="Moderate",(T84*$AR$120),IF('Key_Assumptions_&_Inputs'!$J$70="Difficult",T84*$AR$121))) -> 7.086875 | U119: =IF('Key_Assumptions_&_Inputs'!$J$70="Easy",(U84*$AR$119),IF('Key_Assumptions_&_Inputs'!$J$70="Moderate",(U84*$AR$120),IF('Key_Assumptions_&_Inputs'!$J$70="Difficult",U84*$AR$121))) -> 7.086875 | V119: =IF('Key_Assumptions_&_Inputs'!$J$70="Easy",(V84*$AR$119),IF('Key_Assumptions_&_Inputs'!$J$70="Moderate",(V84*$AR$120),IF('Key_Assumptions_&_Inputs'!$J$70="Difficult",V84*$AR$121))) -> 7.086875 | W119: =IF('Key_Assumptions_&_Inputs'!$J$70="Easy",(W84*$AR$119),IF('Key_Assumptions_&_Inputs'!$J$70="Moderate",(W84*$AR$120),IF('Key_Assumptions_&_Inputs'!$J$70="Difficult",W84*$AR$121))) -> 7.086875 | X119: =IF('Key_Assumptions_&_Inputs'!$J$70="Easy",(X84*$AR$119),IF('Key_Assumptions_&_Inputs'!$J$70="Moderate",(X84*$AR$120),IF('Key_Assumptions_&_Inputs'!$J$70="Difficult",X84*$AR$121))) -> 7.086875 | Y119: =IF('Key_Assumptions_&_Inputs'!$J$70="Easy",(Y84*$AR$119),IF('Key_Assumptions_&_Inputs'!$J$70="Moderate",(Y84*$AR$120),IF('Key_Assumptions_&_Inputs'!$J$70="Difficult",Y84*$AR$121))) -> 7.086875 | Z119: =IF('Key_Assumptions_&_Inputs'!$J$70="Easy",(Z84*$AR$119),IF('Key_Assumptions_&_Inputs'!$J$70="Moderate",(Z84*$AR$120),IF('Key_Assumptions_&_Inputs'!$J$70="Difficult",Z84*$AR$121))) -> 7.086875 | AA119: =IF('Key_Assumptions_&_Inputs'!$J$70="Easy",(AA84*$AR$119),IF('Key_Assumptions_&_Inputs'!$J$70="Moderate",(AA84*$AR$120),IF('Key_Assumptions_&_Inputs'!$J$70="Difficult",AA84*$AR$121))) -> 7.086875 | AB119: =IF('Key_Assumptions_&_Inputs'!$J$70="Easy",(AB84*$AR$119),IF('Key_Assumptions_&_Inputs'!$J$70="Moderate",(AB84*$AR$120),IF('Key_Assumptions_&_Inputs'!$J$70="Difficult",AB84*$AR$121))) -> 7.086875 | AC119: =IF('Key_Assumptions_&_Inputs'!$J$70="Easy",(AC84*$AR$119),IF('Key_Assumptions_&_Inputs'!$J$70="Moderate",(AC84*$AR$120),IF('Key_Assumptions_&_Inputs'!$J$70="Difficult",AC84*$AR$121))) -> 7.086875 | AD119: Easy | AE119: 3 | AF119: =AE119/60 -> 0.05 | AG119: =AE119*(1-$AF$87) -> 2.25 | AH119: =AG119/60 -> 0.0375 | AI119: =AG119*(1-$AG$87) -> 1.9125 | AJ119: =AI119/60 -> 0.031875 | AL119: Easy | AM119: 3 | AN119: =AM119/60 -> 0.05 | AO119: =AM119*(1-$AF$87) -> 2.25 | AP119: =AO119/60 -> 0.0375 | AQ119: =AO119*(1-$AG$87) -> 1.9125 | AR119: =AQ119/60 -> 0.031875
B120: Labor rate | E120: =$D$13 -> 50 | F120: =E120*(1+$D$14) -> 51.5 | G120: =F120*(1+$D$14) -> 53.045 | H120: 54.63635 | I120: 56.2754405 | J120: 57.96370372 | K120: 59.70261483 | L120: 61.49369327 | M120: 63.33850407 | N120: 65.23865919 | O120: 67.19581897 | P120: 69.21169354 | Q120: 71.28804434 | R120: 73.42668567 | S120: 75.62948624 | T120: 77.89837083 | U120: 80.23532195 | V120: 82.64238161 | W120: 85.12165306 | X120: 87.67530265 | Y120: 90.30556173 | Z120: 93.01472859 | AA120: 95.80517044 | AB120: 98.67932556 | AC120: 101.6397053 | AD120: Moderate | AE120: 4 | AF120: =AE120/60 -> 0.06666666667 | AG120: =AE120*(1-$AF$87) -> 3 | AH120: =AG120/60 -> 0.05 | AI120: =AG120*(1-$AG$87) -> 2.55 | AJ120: =AI120/60 -> 0.0425 | AL120: Moderate | AM120: 5 | AN120: =AM120/60 -> 0.08333333333 | AO120: =AM120*(1-$AF$87) -> 3.75 | AP120: =AO120/60 -> 0.0625 | AQ120: =AO120*(1-$AG$87) -> 3.1875 | AR120: =AQ120/60 -> 0.053125
B121: Annual costs | E121: =((E118+E119)*E120)*12 -> 12006 | F121: =((F118+F119)*F120)*12 -> 9274.635 | G121: 8119.942942 | H121: 8363.541231 | I121: 8614.447468 | J121: 8872.880892 | K121: 9139.067318 | L121: 9413.239338 | M121: 9695.636518 | N121: 9986.505614 | O121: 10286.10078 | P121: 10594.68381 | Q121: 10912.52432 | R121: 11239.90005 | S121: 11577.09705 | T121: 11924.40996 | U121: 12282.14226 | V121: 12650.60653 | W121: 13030.12472 | X121: 13421.02847 | Y121: 13823.65932 | Z121: 14238.3691 | AA121: 14665.52017 | AB121: 15105.48578 | AC121: 15558.65035 | AD121: Difficult | AE121: 5 | AF121: =AE121/60 -> 0.08333333333 | AG121: =AE121*(1-$AF$87) -> 3.75 | AH121: =AG121/60 -> 0.0625 | AI121: =AG121*(1-$AG$87) -> 3.1875 | AJ121: =AI121/60 -> 0.053125 | AL121: Difficult | AM121: 7 | AN121: =AM121/60 -> 0.1166666667 | AO121: =AM121*(1-$AF$87) -> 5.25 | AP121: =AO121/60 -> 0.0875 | AQ121: =AO121*(1-$AG$87) -> 4.4625 | AR121: =AQ121/60 -> 0.074375

Sheet Generation_Rates
A1: Generation Rates: The purpose of this tab is to show the production of the system over time, as well as the rates that will paid to the subscriber and system owner by the utility.
C7: Year | E7: 1 | F7: 2 | G7: 3 | H7: 4 | I7: 5 | J7: 6 | K7: 7 | L7: 8 | M7: 9 | N7: 10 | O7: 11 | P7: 12 | Q7: 13 | R7: 14 | S7: 15 | T7: 16 | U7: 17 | V7: 18 | W7: 19 | X7: 20 | Y7: 21 | Z7: 22 | AA7: 23 | AB7: 24 | AC7: 25
C9: Rate Schedule Estimate: Price
C10: Month | D10: Rate ($/kWh) | E10: 2016 | F10: 2017 | G10: 2018 | H10: 2019 | I10: 2020 | J10: 2021 | K10: 2022 | L10: 2023 | M10: 2024 | N10: 2025 | O10: 2026 | P10: 2027 | Q10: 2028 | R10: 2029 | S10: 2030 | T10: 2031 | U10: 2032 | V10: 2033 | W10: 2034 | X10: 2035 | Y10: 2036 | Z10: 2037 | AA10: 2038 | AB10: 2039 | AC10: 2040
C11: January | D11: ='Key_Assumptions_&_Inputs'!D37 -> 0.1151 | E11: =D11*(1+'Key_Assumptions_&_Inputs'!$E$63) -> 0.11829978 | F11: =E11*(1+'Key_Assumptions_&_Inputs'!$E$63) -> 0.1215885139 | G11: =F11*(1+'Key_Assumptions_&_Inputs'!$E$63) -> 0.1249686746 | H11: =G11*(1+'Key_Assumptions_&_Inputs'!$E$63) -> 0.1284428037 | I11: =H11*(1+'Key_Assumptions_&_Inputs'!$E$63) -> 0.1320135137 | J11: =I11*(1+'Key_Assumptions_&_Inputs'!$E$63) -> 0.1356834893 | K11: =J11*(1+'Key_Assumptions_&_Inputs'!$E$63) -> 0.1394554904 | L11: =K11*(1+'Key_Assumptions_&_Inputs'!$E$63) -> 0.143332353 | M11: =L11*(1+'Key_Assumptions_&_Inputs'!$E$63) -> 0.1473169924 | N11: =M11*(1+'Key_Assumptions_&_Inputs'!$E$63) -> 0.1514124048 | O11: =N11*(1+'Key_Assumptions_&_Inputs'!$E$63) -> 0.1556216696 | P11: =O11*(1+'Key_Assumptions_&_Inputs'!$E$63) -> 0.1599479521 | Q11: =P11*(1+'Key_Assumptions_&_Inputs'!$E$63) -> 0.1643945051 | R11: =Q11*(1+'Key_Assumptions_&_Inputs'!$E$63) -> 0.1689646724 | S11: =R11*(1+'Key_Assumptions_&_Inputs'!$E$63) -> 0.1736618903 | T11: =S11*(1+'Key_Assumptions_&_Inputs'!$E$63) -> 0.1784896908 | U11: =T11*(1+'Key_Assumptions_&_Inputs'!$E$63) -> 0.1834517042 | V11: =U11*(1+'Key_Assumptions_&_Inputs'!$E$63) -> 0.1885516616 | W11: =V11*(1+'Key_Assumptions_&_Inputs'!$E$63) -> 0.1937933978 | X11: =W11*(1+'Key_Assumptions_&_Inputs'!$E$63) -> 0.1991808542 | Y11: =X11*(1+'Key_Assumptions_&_Inputs'!$E$63) -> 0.204718082 | Z11: =Y11*(1+'Key_Assumptions_&_Inputs'!$E$63) -> 0.2104092447 | AA11: =Z11*(1+'Key_Assumptions_&_Inputs'!$E$63) -> 0.2162586217 | AB11: =AA11*(1+'Key_Assumptions_&_Inputs'!$E$63) -> 0.2222706113 | AC11: =AB11*(1+'Key_Assumptions_&_Inputs'!$E$63) -> 0.2284497343
C12: February | D12: ='Key_Assumptions_&_Inputs'!D38 -> 0.1169 | E12: =D12*(1+'Key_Assumptions_&_Inputs'!$E$63) -> 0.12014982 | F12: =E12*(1+'Key_Assumptions_&_Inputs'!$E$63) -> 0.123489985 | G12: =F12*(1+'Key_Assumptions_&_Inputs'!$E$63) -> 0.1269230066 | H12: =G12*(1+'Key_Assumptions_&_Inputs'!$E$63) -> 0.1304514662 | I12: =H12*(1+'Key_Assumptions_&_Inputs'!$E$63) -> 0.1340780169 | J12: =I12*(1+'Key_Assumptions_&_Inputs'!$E$63) -> 0.1378053858 | K12: =J12*(1+'Key_Assumptions_&_Inputs'!$E$63) -> 0.1416363755 | L12: =K12*(1+'Key_Assumptions_&_Inputs'!$E$63) -> 0.1455738668 | M12: =L12*(1+'Key_Assumptions_&_Inputs'!$E$63) -> 0.1496208203 | N12: =M12*(1+'Key_Assumptions_&_Inputs'!$E$63) -> 0.1537802791 | O12: =N12*(1+'Key_Assumptions_&_Inputs'!$E$63) -> 0.1580553708 | P12: =O12*(1+'Key_Assumptions_&_Inputs'!$E$63) -> 0.1624493101 | Q12: =P12*(1+'Key_Assumptions_&_Inputs'!$E$63) -> 0.1669654009 | R12: =Q12*(1+'Key_Assumptions_&_Inputs'!$E$63) -> 0.1716070391 | S12: =R12*(1+'Key_Assumptions_&_Inputs'!$E$63) -> 0.1763777148 | T12: =S12*(1+'Key_Assumptions_&_Inputs'!$E$63) -> 0.1812810152 | U12: =T12*(1+'Key_Assumptions_&_Inputs'!$E$63) -> 0.1863206275 | V12: =U12*(1+'Key_Assumptions_&_Inputs'!$E$63) -> 0.1915003409 | W12: =V12*(1+'Key_Assumptions_&_Inputs'!$E$63) -> 0.1968240504 | X12: =W12*(1+'Key_Assumptions_&_Inputs'!$E$63) -> 0.202295759 | Y12: =X12*(1+'Key_Assumptions_&_Inputs'!$E$63) -> 0.2079195811 | Z12: =Y12*(1+'Key_Assumptions_&_Inputs'!$E$63) -> 0.2136997454 | AA12: =Z12*(1+'Key_Assumptions_&_Inputs'!$E$63) -> 0.2196405984 | AB12: =AA12*(1+'Key_Assumptions_&_Inputs'!$E$63) -> 0.225746607 | AC12: =AB12*(1+'Key_Assumptions_&_Inputs'!$E$63) -> 0.2320223627
C13: March | D13: ='Key_Assumptions_&_Inputs'!D39 -> 0.1196 | E13: =D13*(1+'Key_Assumptions_&_Inputs'!$E$63) -> 0.12292488 | F13: =E13*(1+'Key_Assumptions_&_Inputs'!$E$63) -> 0.1263421917 | G13: =F13*(1+'Key_Assumptions_&_Inputs'!$E$63) -> 0.1298545046 | H13: =G13*(1+'Key_Assumptions_&_Inputs'!$E$63) -> 0.1334644598 | I13: =H13*(1+'Key_Assumptions_&_Inputs'!$E$63) -> 0.1371747718 | J13: =I13*(1+'Key_Assumptions_&_Inputs'!$E$63) -> 0.1409882305 | K13: =J13*(1+'Key_Assumptions_&_Inputs'!$E$63) -> 0.1449077033 | L13: =K13*(1+'Key_Assumptions_&_Inputs'!$E$63) -> 0.1489361374 | M13: =L13*(1+'Key_Assumptions_&_Inputs'!$E$63) -> 0.153076562 | N13: =M13*(1+'Key_Assumptions_&_Inputs'!$E$63) -> 0.1573320905 | O13: =N13*(1+'Key_Assumptions_&_Inputs'!$E$63) -> 0.1617059226 | P13: =O13*(1+'Key_Assumptions_&_Inputs'!$E$63) -> 0.1662013472 | Q13: =P13*(1+'Key_Assumptions_&_Inputs'!$E$63) -> 0.1708217447 | R13: =Q13*(1+'Key_Assumptions_&_Inputs'!$E$63) -> 0.1755705892 | S13: =R13*(1+'Key_Assumptions_&_Inputs'!$E$63) -> 0.1804514516 | T13: =S13*(1+'Key_Assumptions_&_Inputs'!$E$63) -> 0.1854680019 | U13: =T13*(1+'Key_Assumptions_&_Inputs'!$E$63) -> 0.1906240124 | V13: =U13*(1+'Key_Assumptions_&_Inputs'!$E$63) -> 0.1959233599 | W13: =V13*(1+'Key_Assumptions_&_Inputs'!$E$63) -> 0.2013700293 | X13: =W13*(1+'Key_Assumptions_&_Inputs'!$E$63) -> 0.2069681161 | Y13: =X13*(1+'Key_Assumptions_&_Inputs'!$E$63) -> 0.2127218298 | Z13: =Y13*(1+'Key_Assumptions_&_Inputs'!$E$63) -> 0.2186354966 | AA13: =Z13*(1+'Key_Assumptions_&_Inputs'!$E$63) -> 0.2247135634 | AB13: =AA13*(1+'Key_Assumptions_&_Inputs'!$E$63) -> 0.2309606005 | AC13: =AB13*(1+'Key_Assumptions_&_Inputs'!$E$63) -> 0.2373813052
C14: April | D14: ='Key_Assumptions_&_Inputs'!D40 -> 0.134 | E14: =D14*(1+'Key_Assumptions_&_Inputs'!$E$63) -> 0.1377252 | F14: =E14*(1+'Key_Assumptions_&_Inputs'!$E$63) -> 0.1415539606 | G14: =F14*(1+'Key_Assumptions_&_Inputs'!$E$63) -> 0.1454891607 | H14: =G14*(1+'Key_Assumptions_&_Inputs'!$E$63) -> 0.1495337593 | I14: =H14*(1+'Key_Assumptions_&_Inputs'!$E$63) -> 0.1536907978 | J14: =I14*(1+'Key_Assumptions_&_Inputs'!$E$63) -> 0.157963402 | K14: =J14*(1+'Key_Assumptions_&_Inputs'!$E$63) -> 0.1623547846 | L14: =K14*(1+'Key_Assumptions_&_Inputs'!$E$63) -> 0.1668682476 | M14: =L14*(1+'Key_Assumptions_&_Inputs'!$E$63) -> 0.1715071849 | N14: =M14*(1+'Key_Assumptions_&_Inputs'!$E$63) -> 0.1762750846 | O14: =N14*(1+'Key_Assumptions_&_Inputs'!$E$63) -> 0.181175532 | P14: =O14*(1+'Key_Assumptions_&_Inputs'!$E$63) -> 0.1862122118 | Q14: =P14*(1+'Key_Assumptions_&_Inputs'!$E$63) -> 0.1913889113 | R14: =Q14*(1+'Key_Assumptions_&_Inputs'!$E$63) -> 0.196709523 | S14: =R14*(1+'Key_Assumptions_&_Inputs'!$E$63) -> 0.2021780477 | T14: =S14*(1+'Key_Assumptions_&_Inputs'!$E$63) -> 0.2077985975 | U14: =T14*(1+'Key_Assumptions_&_Inputs'!$E$63) -> 0.2135753985 | V14: =U14*(1+'Key_Assumptions_&_Inputs'!$E$63) -> 0.2195127945 | W14: =V14*(1+'Key_Assumptions_&_Inputs'!$E$63) -> 0.2256152502 | X14: =W14*(1+'Key_Assumptions_&_Inputs'!$E$63) -> 0.2318873542 | Y14: =X14*(1+'Key_Assumptions_&_Inputs'!$E$63) -> 0.2383338226 | Z14: =Y14*(1+'Key_Assumptions_&_Inputs'!$E$63) -> 0.2449595029 | AA14: =Z14*(1+'Key_Assumptions_&_Inputs'!$E$63) -> 0.2517693771 | AB14: =AA14*(1+'Key_Assumptions_&_Inputs'!$E$63) -> 0.2587685658 | AC14: =AB14*(1+'Key_Assumptions_&_Inputs'!$E$63) -> 0.2659623319
C15: May | D15: ='Key_Assumptions_&_Inputs'!D41 -> 0.1339 | E15: =D15*(1+'Key_Assumptions_&_Inputs'!$E$63) -> 0.13762242 | F15: =E15*(1+'Key_Assumptions_&_Inputs'!$E$63) -> 0.1414483233 | G15: =F15*(1+'Key_Assumptions_&_Inputs'!$E$63) -> 0.1453805867 | H15: =G15*(1+'Key_Assumptions_&_Inputs'!$E$63) -> 0.149422167 | I15: =H15*(1+'Key_Assumptions_&_Inputs'!$E$63) -> 0.1535761032 | J15: =I15*(1+'Key_Assumptions_&_Inputs'!$E$63) -> 0.1578455189 | K15: =J15*(1+'Key_Assumptions_&_Inputs'!$E$63) -> 0.1622336243 | L15: =K15*(1+'Key_Assumptions_&_Inputs'!$E$63) -> 0.1667437191 | M15: =L15*(1+'Key_Assumptions_&_Inputs'!$E$63) -> 0.1713791945 | N15: =M15*(1+'Key_Assumptions_&_Inputs'!$E$63) -> 0.1761435361 | O15: =N15*(1+'Key_Assumptions_&_Inputs'!$E$63) -> 0.1810403264 | P15: =O15*(1+'Key_Assumptions_&_Inputs'!$E$63) -> 0.1860732474 | Q15: =P15*(1+'Key_Assumptions_&_Inputs'!$E$63) -> 0.1912460837 | R15: =Q15*(1+'Key_Assumptions_&_Inputs'!$E$63) -> 0.1965627248 | S15: =R15*(1+'Key_Assumptions_&_Inputs'!$E$63) -> 0.2020271686 | T15: =S15*(1+'Key_Assumptions_&_Inputs'!$E$63) -> 0.2076435239 | U15: =T15*(1+'Key_Assumptions_&_Inputs'!$E$63) -> 0.2134160138 | V15: =U15*(1+'Key_Assumptions_&_Inputs'!$E$63) -> 0.219348979 | W15: =V15*(1+'Key_Assumptions_&_Inputs'!$E$63) -> 0.2254468806 | X15: =W15*(1+'Key_Assumptions_&_Inputs'!$E$63) -> 0.2317143039 | Y15: =X15*(1+'Key_Assumptions_&_Inputs'!$E$63) -> 0.2381559616 | Z15: =Y15*(1+'Key_Assumptions_&_Inputs'!$E$63) -> 0.2447766973 | AA15: =Z15*(1+'Key_Assumptions_&_Inputs'!$E$63) -> 0.2515814895 | AB15: =AA15*(1+'Key_Assumptions_&_Inputs'!$E$63) -> 0.2585754549 | AC15: =AB15*(1+'Key_Assumptions_&_Inputs'!$E$63) -> 0.2657638525
C16: June | D16: ='Key_Assumptions_&_Inputs'!D42 -> 0.1259 | E16: =D16*(1+'Key_Assumptions_&_Inputs'!$E$63) -> 0.12940002 | F16: =E16*(1+'Key_Assumptions_&_Inputs'!$E$63) -> 0.1329973406 | G16: =F16*(1+'Key_Assumptions_&_Inputs'!$E$63) -> 0.1366946666 | H16: =G16*(1+'Key_Assumptions_&_Inputs'!$E$63) -> 0.1404947784 | I16: =H16*(1+'Key_Assumptions_&_Inputs'!$E$63) -> 0.1444005332 | J16: =I16*(1+'Key_Assumptions_&_Inputs'!$E$63) -> 0.148414868 | K16: =J16*(1+'Key_Assumptions_&_Inputs'!$E$63) -> 0.1525408013 | L16: =K16*(1+'Key_Assumptions_&_Inputs'!$E$63) -> 0.1567814356 | M16: =L16*(1+'Key_Assumptions_&_Inputs'!$E$63) -> 0.1611399595 | N16: =M16*(1+'Key_Assumptions_&_Inputs'!$E$63) -> 0.1656196504 | O16: =N16*(1+'Key_Assumptions_&_Inputs'!$E$63) -> 0.1702238767 | P16: =O16*(1+'Key_Assumptions_&_Inputs'!$E$63) -> 0.1749561005 | Q16: =P16*(1+'Key_Assumptions_&_Inputs'!$E$63) -> 0.1798198801 | R16: =Q16*(1+'Key_Assumptions_&_Inputs'!$E$63) -> 0.1848188727 | S16: =R16*(1+'Key_Assumptions_&_Inputs'!$E$63) -> 0.1899568374 | T16: =S16*(1+'Key_Assumptions_&_Inputs'!$E$63) -> 0.1952376375 | U16: =T16*(1+'Key_Assumptions_&_Inputs'!$E$63) -> 0.2006652438 | V16: =U16*(1+'Key_Assumptions_&_Inputs'!$E$63) -> 0.2062437376 | W16: =V16*(1+'Key_Assumptions_&_Inputs'!$E$63) -> 0.2119773135 | X16: =W16*(1+'Key_Assumptions_&_Inputs'!$E$63) -> 0.2178702828 | Y16: =X16*(1+'Key_Assumptions_&_Inputs'!$E$63) -> 0.2239270766 | Z16: =Y16*(1+'Key_Assumptions_&_Inputs'!$E$63) -> 0.2301522494 | AA16: =Z16*(1+'Key_Assumptions_&_Inputs'!$E$63) -> 0.2365504819 | AB16: =AA16*(1+'Key_Assumptions_&_Inputs'!$E$63) -> 0.2431265853 | AC16: =AB16*(1+'Key_Assumptions_&_Inputs'!$E$63) -> 0.2498855044
C17: July | D17: ='Key_Assumptions_&_Inputs'!D43 -> 0.1258 | E17: =D17*(1+'Key_Assumptions_&_Inputs'!$E$63) -> 0.12929724 | F17: =E17*(1+'Key_Assumptions_&_Inputs'!$E$63) -> 0.1328917033 | G17: =F17*(1+'Key_Assumptions_&_Inputs'!$E$63) -> 0.1365860926 | H17: =G17*(1+'Key_Assumptions_&_Inputs'!$E$63) -> 0.140383186 | I17: =H17*(1+'Key_Assumptions_&_Inputs'!$E$63) -> 0.1442858386 | J17: =I17*(1+'Key_Assumptions_&_Inputs'!$E$63) -> 0.1482969849 | K17: =J17*(1+'Key_Assumptions_&_Inputs'!$E$63) -> 0.1524196411 | L17: =K17*(1+'Key_Assumptions_&_Inputs'!$E$63) -> 0.1566569071 | M17: =L17*(1+'Key_Assumptions_&_Inputs'!$E$63) -> 0.1610119691 | N17: =M17*(1+'Key_Assumptions_&_Inputs'!$E$63) -> 0.1654881018 | O17: =N17*(1+'Key_Assumptions_&_Inputs'!$E$63) -> 0.1700886711 | P17: =O17*(1+'Key_Assumptions_&_Inputs'!$E$63) -> 0.1748171361 | Q17: =P17*(1+'Key_Assumptions_&_Inputs'!$E$63) -> 0.1796770525 | R17: =Q17*(1+'Key_Assumptions_&_Inputs'!$E$63) -> 0.1846720746 | S17: =R17*(1+'Key_Assumptions_&_Inputs'!$E$63) -> 0.1898059582 | T17: =S17*(1+'Key_Assumptions_&_Inputs'!$E$63) -> 0.1950825639 | U17: =T17*(1+'Key_Assumptions_&_Inputs'!$E$63) -> 0.2005058592 | V17: =U17*(1+'Key_Assumptions_&_Inputs'!$E$63) -> 0.206079922 | W17: =V17*(1+'Key_Assumptions_&_Inputs'!$E$63) -> 0.2118089439 | X17: =W17*(1+'Key_Assumptions_&_Inputs'!$E$63) -> 0.2176972325 | Y17: =X17*(1+'Key_Assumptions_&_Inputs'!$E$63) -> 0.2237492156 | Z17: =Y17*(1+'Key_Assumptions_&_Inputs'!$E$63) -> 0.2299694438 | AA17: =Z17*(1+'Key_Assumptions_&_Inputs'!$E$63) -> 0.2363625943 | AB17: =AA17*(1+'Key_Assumptions_&_Inputs'!$E$63) -> 0.2429334744 | AC17: =AB17*(1+'Key_Assumptions_&_Inputs'!$E$63) -> 0.249687025
C18: August | D18: ='Key_Assumptions_&_Inputs'!D44 -> 0.1241 | E18: =D18*(1+'Key_Assumptions_&_Inputs'!$E$63) -> 0.12754998 | F18: =E18*(1+'Key_Assumptions_&_Inputs'!$E$63) -> 0.1310958694 | G18: =F18*(1+'Key_Assumptions_&_Inputs'!$E$63) -> 0.1347403346 | H18: =G18*(1+'Key_Assumptions_&_Inputs'!$E$63) -> 0.1384861159 | I18: =H18*(1+'Key_Assumptions_&_Inputs'!$E$63) -> 0.1423360299 | J18: =I18*(1+'Key_Assumptions_&_Inputs'!$E$63) -> 0.1462929716 | K18: =J18*(1+'Key_Assumptions_&_Inputs'!$E$63) -> 0.1503599162 | L18: =K18*(1+'Key_Assumptions_&_Inputs'!$E$63) -> 0.1545399219 | M18: =L18*(1+'Key_Assumptions_&_Inputs'!$E$63) -> 0.1588361317 | N18: =M18*(1+'Key_Assumptions_&_Inputs'!$E$63) -> 0.1632517761 | O18: =N18*(1+'Key_Assumptions_&_Inputs'!$E$63) -> 0.1677901755 | P18: =O18*(1+'Key_Assumptions_&_Inputs'!$E$63) -> 0.1724547424 | Q18: =P18*(1+'Key_Assumptions_&_Inputs'!$E$63) -> 0.1772489842 | R18: =Q18*(1+'Key_Assumptions_&_Inputs'!$E$63) -> 0.182176506 | S18: =R18*(1+'Key_Assumptions_&_Inputs'!$E$63) -> 0.1872410129 | T18: =S18*(1+'Key_Assumptions_&_Inputs'!$E$63) -> 0.192446313 | U18: =T18*(1+'Key_Assumptions_&_Inputs'!$E$63) -> 0.1977963205 | V18: =U18*(1+'Key_Assumptions_&_Inputs'!$E$63) -> 0.2032950582 | W18: =V18*(1+'Key_Assumptions_&_Inputs'!$E$63) -> 0.2089466609 | X18: =W18*(1+'Key_Assumptions_&_Inputs'!$E$63) -> 0.214755378 | Y18: =X18*(1+'Key_Assumptions_&_Inputs'!$E$63) -> 0.2207255775 | Z18: =Y18*(1+'Key_Assumptions_&_Inputs'!$E$63) -> 0.2268617486 | AA18: =Z18*(1+'Key_Assumptions_&_Inputs'!$E$63) -> 0.2331685052 | AB18: =AA18*(1+'Key_Assumptions_&_Inputs'!$E$63) -> 0.2396505896 | AC18: =AB18*(1+'Key_Assumptions_&_Inputs'!$E$63) -> 0.246312876
C19: September | D19: ='Key_Assumptions_&_Inputs'!D45 -> 0.1268 | E19: =D19*(1+'Key_Assumptions_&_Inputs'!$E$63) -> 0.13032504 | F19: =E19*(1+'Key_Assumptions_&_Inputs'!$E$63) -> 0.1339480761 | G19: =F19*(1+'Key_Assumptions_&_Inputs'!$E$63) -> 0.1376718326 | H19: =G19*(1+'Key_Assumptions_&_Inputs'!$E$63) -> 0.1414991096 | I19: =H19*(1+'Key_Assumptions_&_Inputs'!$E$63) -> 0.1454327848 | J19: =I19*(1+'Key_Assumptions_&_Inputs'!$E$63) -> 0.1494758162 | K19: =J19*(1+'Key_Assumptions_&_Inputs'!$E$63) -> 0.1536312439 | L19: =K19*(1+'Key_Assumptions_&_Inputs'!$E$63) -> 0.1579021925 | M19: =L19*(1+'Key_Assumptions_&_Inputs'!$E$63) -> 0.1622918735 | N19: =M19*(1+'Key_Assumptions_&_Inputs'!$E$63) -> 0.1668035875 | O19: =N19*(1+'Key_Assumptions_&_Inputs'!$E$63) -> 0.1714407273 | P19: =O19*(1+'Key_Assumptions_&_Inputs'!$E$63) -> 0.1762067795 | Q19: =P19*(1+'Key_Assumptions_&_Inputs'!$E$63) -> 0.181105328 | R19: =Q19*(1+'Key_Assumptions_&_Inputs'!$E$63) -> 0.1861400561 | S19: =R19*(1+'Key_Assumptions_&_Inputs'!$E$63) -> 0.1913147496 | T19: =S19*(1+'Key_Assumptions_&_Inputs'!$E$63) -> 0.1966332997 | U19: =T19*(1+'Key_Assumptions_&_Inputs'!$E$63) -> 0.2020997054 | V19: =U19*(1+'Key_Assumptions_&_Inputs'!$E$63) -> 0.2077180772 | W19: =V19*(1+'Key_Assumptions_&_Inputs'!$E$63) -> 0.2134926398 | X19: =W19*(1+'Key_Assumptions_&_Inputs'!$E$63) -> 0.2194277352 | Y19: =X19*(1+'Key_Assumptions_&_Inputs'!$E$63) -> 0.2255278262 | Z19: =Y19*(1+'Key_Assumptions_&_Inputs'!$E$63) -> 0.2317974998 | AA19: =Z19*(1+'Key_Assumptions_&_Inputs'!$E$63) -> 0.2382414703 | AB19: =AA19*(1+'Key_Assumptions_&_Inputs'!$E$63) -> 0.2448645831 | AC19: =AB19*(1+'Key_Assumptions_&_Inputs'!$E$63) -> 0.2516718185
C20: October | D20: ='Key_Assumptions_&_Inputs'!D46 -> 0.1347 | E20: =D20*(1+'Key_Assumptions_&_Inputs'!$E$63) -> 0.13844466 | F20: =E20*(1+'Key_Assumptions_&_Inputs'!$E$63) -> 0.1422934215 | G20: =F20*(1+'Key_Assumptions_&_Inputs'!$E$63) -> 0.1462491787 | H20: =G20*(1+'Key_Assumptions_&_Inputs'!$E$63) -> 0.1503149058 | I20: =H20*(1+'Key_Assumptions_&_Inputs'!$E$63) -> 0.1544936602 | J20: =I20*(1+'Key_Assumptions_&_Inputs'!$E$63) -> 0.158788584 | K20: =J20*(1+'Key_Assumptions_&_Inputs'!$E$63) -> 0.1632029066 | L20: =K20*(1+'Key_Assumptions_&_Inputs'!$E$63) -> 0.1677399474 | M20: =L20*(1+'Key_Assumptions_&_Inputs'!$E$63) -> 0.1724031179 | N20: =M20*(1+'Key_Assumptions_&_Inputs'!$E$63) -> 0.1771959246 | O20: =N20*(1+'Key_Assumptions_&_Inputs'!$E$63) -> 0.1821219713 | P20: =O20*(1+'Key_Assumptions_&_Inputs'!$E$63) -> 0.1871849621 | Q20: =P20*(1+'Key_Assumptions_&_Inputs'!$E$63) -> 0.1923887041 | R20: =Q20*(1+'Key_Assumptions_&_Inputs'!$E$63) -> 0.1977371101 | S20: =R20*(1+'Key_Assumptions_&_Inputs'!$E$63) -> 0.2032342017 | T20: =S20*(1+'Key_Assumptions_&_Inputs'!$E$63) -> 0.2088841125 | U20: =T20*(1+'Key_Assumptions_&_Inputs'!$E$63) -> 0.2146910908 | V20: =U20*(1+'Key_Assumptions_&_Inputs'!$E$63) -> 0.2206595032 | W20: =V20*(1+'Key_Assumptions_&_Inputs'!$E$63) -> 0.2267938374 | X20: =W20*(1+'Key_Assumptions_&_Inputs'!$E$63) -> 0.233098706 | Y20: =X20*(1+'Key_Assumptions_&_Inputs'!$E$63) -> 0.2395788501 | Z20: =Y20*(1+'Key_Assumptions_&_Inputs'!$E$63) -> 0.2462391421 | AA20: =Z20*(1+'Key_Assumptions_&_Inputs'!$E$63) -> 0.2530845903 | AB20: =AA20*(1+'Key_Assumptions_&_Inputs'!$E$63) -> 0.2601203419 | AC20: =AB20*(1+'Key_Assumptions_&_Inputs'!$E$63) -> 0.2673516874
C21: November | D21: ='Key_Assumptions_&_Inputs'!D47 -> 0.1319 | E21: =D21*(1+'Key_Assumptions_&_Inputs'!$E$63) -> 0.13556682 | F21: =E21*(1+'Key_Assumptions_&_Inputs'!$E$63) -> 0.1393355776 | G21: =F21*(1+'Key_Assumptions_&_Inputs'!$E$63) -> 0.1432091067 | H21: =G21*(1+'Key_Assumptions_&_Inputs'!$E$63) -> 0.1471903198 | I21: =H21*(1+'Key_Assumptions_&_Inputs'!$E$63) -> 0.1512822107 | J21: =I21*(1+'Key_Assumptions_&_Inputs'!$E$63) -> 0.1554878562 | K21: =J21*(1+'Key_Assumptions_&_Inputs'!$E$63) -> 0.1598104186 | L21: =K21*(1+'Key_Assumptions_&_Inputs'!$E$63) -> 0.1642531482 | M21: =L21*(1+'Key_Assumptions_&_Inputs'!$E$63) -> 0.1688193857 | N21: =M21*(1+'Key_Assumptions_&_Inputs'!$E$63) -> 0.1735125646 | O21: =N21*(1+'Key_Assumptions_&_Inputs'!$E$63) -> 0.1783362139 | P21: =O21*(1+'Key_Assumptions_&_Inputs'!$E$63) -> 0.1832939607 | Q21: =P21*(1+'Key_Assumptions_&_Inputs'!$E$63) -> 0.1883895328 | R21: =Q21*(1+'Key_Assumptions_&_Inputs'!$E$63) -> 0.1936267618 | S21: =R21*(1+'Key_Assumptions_&_Inputs'!$E$63) -> 0.1990095858 | T21: =S21*(1+'Key_Assumptions_&_Inputs'!$E$63) -> 0.2045420523 | U21: =T21*(1+'Key_Assumptions_&_Inputs'!$E$63) -> 0.2102283213 | V21: =U21*(1+'Key_Assumptions_&_Inputs'!$E$63) -> 0.2160726687 | W21: =V21*(1+'Key_Assumptions_&_Inputs'!$E$63) -> 0.2220794888 | X21: =W21*(1+'Key_Assumptions_&_Inputs'!$E$63) -> 0.2282532986 | Y21: =X21*(1+'Key_Assumptions_&_Inputs'!$E$63) -> 0.2345987403 | Z21: =Y21*(1+'Key_Assumptions_&_Inputs'!$E$63) -> 0.2411205853 | AA21: =Z21*(1+'Key_Assumptions_&_Inputs'!$E$63) -> 0.2478237376 | AB21: =AA21*(1+'Key_Assumptions_&_Inputs'!$E$63) -> 0.2547132375 | AC21: =AB21*(1+'Key_Assumptions_&_Inputs'!$E$63) -> 0.2617942655
C22: December | D22: ='Key_Assumptions_&_Inputs'!D48 -> 0.1181 | E22: =D22*(1+'Key_Assumptions_&_Inputs'!$E$63) -> 0.12138318 | F22: =E22*(1+'Key_Assumptions_&_Inputs'!$E$63) -> 0.1247576324 | G22: =F22*(1+'Key_Assumptions_&_Inputs'!$E$63) -> 0.1282258946 | H22: =G22*(1+'Key_Assumptions_&_Inputs'!$E$63) -> 0.1317905745 | I22: =H22*(1+'Key_Assumptions_&_Inputs'!$E$63) -> 0.1354543524 | J22: =I22*(1+'Key_Assumptions_&_Inputs'!$E$63) -> 0.1392199834 | K22: =J22*(1+'Key_Assumptions_&_Inputs'!$E$63) -> 0.143090299 | L22: =K22*(1+'Key_Assumptions_&_Inputs'!$E$63) -> 0.1470682093 | M22: =L22*(1+'Key_Assumptions_&_Inputs'!$E$63) -> 0.1511567055 | N22: =M22*(1+'Key_Assumptions_&_Inputs'!$E$63) -> 0.1553588619 | O22: =N22*(1+'Key_Assumptions_&_Inputs'!$E$63) -> 0.1596778383 | P22: =O22*(1+'Key_Assumptions_&_Inputs'!$E$63) -> 0.1641168822 | Q22: =P22*(1+'Key_Assumptions_&_Inputs'!$E$63) -> 0.1686793315 | R22: =Q22*(1+'Key_Assumptions_&_Inputs'!$E$63) -> 0.1733686169 | S22: =R22*(1+'Key_Assumptions_&_Inputs'!$E$63) -> 0.1781882645 | T22: =S22*(1+'Key_Assumptions_&_Inputs'!$E$63) -> 0.1831418982 | U22: =T22*(1+'Key_Assumptions_&_Inputs'!$E$63) -> 0.188233243 | V22: =U22*(1+'Key_Assumptions_&_Inputs'!$E$63) -> 0.1934661271 | W22: =V22*(1+'Key_Assumptions_&_Inputs'!$E$63) -> 0.1988444855 | X22: =W22*(1+'Key_Assumptions_&_Inputs'!$E$63) -> 0.2043723622 | Y22: =X22*(1+'Key_Assumptions_&_Inputs'!$E$63) -> 0.2100539138 | Z22: =Y22*(1+'Key_Assumptions_&_Inputs'!$E$63) -> 0.2158934126 | AA22: =Z22*(1+'Key_Assumptions_&_Inputs'!$E$63) -> 0.2218952495 | AB22: =AA22*(1+'Key_Assumptions_&_Inputs'!$E$63) -> 0.2280639374 | AC22: =AB22*(1+'Key_Assumptions_&_Inputs'!$E$63) -> 0.2344041149
C24: Generation Estimate
C25: Month | D25: Year 1 Generation (kWh) | E25: 2016 | F25: 2017 | G25: 2018 | H25: 2019 | I25: 2020 | J25: 2021 | K25: 2022 | L25: 2023 | M25: 2024 | N25: 2025 | O25: 2026 | P25: 2027 | Q25: 2028 | R25: 2029 | S25: 2030 | T25: 2031 | U25: 2032 | V25: 2033 | W25: 2034 | X25: 2035 | Y25: 2036 | Z25: 2037 | AA25: 2038 | AB25: 2039 | AC25: 2040
C26: January | D26: ='Key_Assumptions_&_Inputs'!E37*'Key_Assumptions_&_Inputs'!$E$17 -> 47004.71484 | E26: =($D26)*(1-((E$7-1)*('Key_Assumptions_&_Inputs'!$E$33))) -> 47004.71484 | F26: =($D26)*(1-((F$7-1)*('Key_Assumptions_&_Inputs'!$E$33))) -> 46769.69127 | G26: =($D26)*(1-((G$7-1)*('Key_Assumptions_&_Inputs'!$E$33))) -> 46534.6677 | H26: =($D26)*(1-((H$7-1)*('Key_Assumptions_&_Inputs'!$E$33))) -> 46299.64412 | I26: =($D26)*(1-((I$7-1)*('Key_Assumptions_&_Inputs'!$E$33))) -> 46064.62055 | J26: =($D26)*(1-((J$7-1)*('Key_Assumptions_&_Inputs'!$E$33))) -> 45829.59697 | K26: =($D26)*(1-((K$7-1)*('Key_Assumptions_&_Inputs'!$E$33))) -> 45594.5734 | L26: =($D26)*(1-((L$7-1)*('Key_Assumptions_&_Inputs'!$E$33))) -> 45359.54982 | M26: =($D26)*(1-((M$7-1)*('Key_Assumptions_&_Inputs'!$E$33))) -> 45124.52625 | N26: =($D26)*(1-((N$7-1)*('Key_Assumptions_&_Inputs'!$E$33))) -> 44889.50268 | O26: =($D26)*(1-((O$7-1)*('Key_Assumptions_&_Inputs'!$E$33))) -> 44654.4791 | P26: =($D26)*(1-((P$7-1)*('Key_Assumptions_&_Inputs'!$E$33))) -> 44419.45553 | Q26: =($D26)*(1-((Q$7-1)*('Key_Assumptions_&_Inputs'!$E$33))) -> 44184.43195 | R26: =($D26)*(1-((R$7-1)*('Key_Assumptions_&_Inputs'!$E$33))) -> 43949.40838 | S26: =($D26)*(1-((S$7-1)*('Key_Assumptions_&_Inputs'!$E$33))) -> 43714.3848 | T26: =($D26)*(1-((T$7-1)*('Key_Assumptions_&_Inputs'!$E$33))) -> 43479.36123 | U26: =($D26)*(1-((U$7-1)*('Key_Assumptions_&_Inputs'!$E$33))) -> 43244.33766 | V26: =($D26)*(1-((V$7-1)*('Key_Assumptions_&_Inputs'!$E$33))) -> 43009.31408 | W26: =($D26)*(1-((W$7-1)*('Key_Assumptions_&_Inputs'!$E$33))) -> 42774.29051 | X26: =($D26)*(1-((X$7-1)*('Key_Assumptions_&_Inputs'!$E$33))) -> 42539.26693 | Y26: =($D26)*(1-((Y$7-1)*('Key_Assumptions_&_Inputs'!$E$33))) -> 42304.24336 | Z26: =($D26)*(1-((Z$7-1)*('Key_Assumptions_&_Inputs'!$E$33))) -> 42069.21979 | AA26: =($D26)*(1-((AA$7-1)*('Key_Assumptions_&_Inputs'!$E$33))) -> 41834.19621 | AB26: =($D26)*(1-((AB$7-1)*('Key_Assumptions_&_Inputs'!$E$33))) -> 41599.17264 | AC26: =($D26)*(1-((AC$7-1)*('Key_Assumptions_&_Inputs'!$E$33))) -> 41364.14906
C27: February | D27: ='Key_Assumptions_&_Inputs'!E38*'Key_Assumptions_&_Inputs'!$E$17 -> 63389.20703 | E27: =($D27)*(1-((E$7-1)*('Key_Assumptions_&_Inputs'!$E$33))) -> 63389.20703 | F27: =($D27)*(1-((F$7-1)*('Key_Assumptions_&_Inputs'!$E$33))) -> 63072.261 | G27: =($D27)*(1-((G$7-1)*('Key_Assumptions_&_Inputs'!$E$33))) -> 62755.31496 | H27: =($D27)*(1-((H$7-1)*('Key_Assumptions_&_Inputs'!$E$33))) -> 62438.36893 | I27: =($D27)*(1-((I$7-1)*('Key_Assumptions_&_Inputs'!$E$33))) -> 62121.42289 | J27: =($D27)*(1-((J$7-1)*('Key_Assumptions_&_Inputs'!$E$33))) -> 61804.47686 | K27: =($D27)*(1-((K$7-1)*('Key_Assumptions_&_Inputs'!$E$33))) -> 61487.53082 | L27: =($D27)*(1-((L$7-1)*('Key_Assumptions_&_Inputs'!$E$33))) -> 61170.58479 | M27: =($D27)*(1-((M$7-1)*('Key_Assumptions_&_Inputs'!$E$33))) -> 60853.63875 | N27: =($D27)*(1-((N$7-1)*('Key_Assumptions_&_Inputs'!$E$33))) -> 60536.69271 | O27: =($D27)*(1-((O$7-1)*('Key_Assumptions_&_Inputs'!$E$33))) -> 60219.74668 | P27: =($D27)*(1-((P$7-1)*('Key_Assumptions_&_Inputs'!$E$33))) -> 59902.80064 | Q27: =($D27)*(1-((Q$7-1)*('Key_Assumptions_&_Inputs'!$E$33))) -> 59585.85461 | R27: =($D27)*(1-((R$7-1)*('Key_Assumptions_&_Inputs'!$E$33))) -> 59268.90857 | S27: =($D27)*(1-((S$7-1)*('Key_Assumptions_&_Inputs'!$E$33))) -> 58951.96254 | T27: =($D27)*(1-((T$7-1)*('Key_Assumptions_&_Inputs'!$E$33))) -> 58635.0165 | U27: =($D27)*(1-((U$7-1)*('Key_Assumptions_&_Inputs'!$E$33))) -> 58318.07047 | V27: =($D27)*(1-((V$7-1)*('Key_Assumptions_&_Inputs'!$E$33))) -> 58001.12443 | W27: =($D27)*(1-((W$7-1)*('Key_Assumptions_&_Inputs'!$E$33))) -> 57684.1784 | X27: =($D27)*(1-((X$7-1)*('Key_Assumptions_&_Inputs'!$E$33))) -> 57367.23236 | Y27: =($D27)*(1-((Y$7-1)*('Key_Assumptions_&_Inputs'!$E$33))) -> 57050.28633 | Z27: =($D27)*(1-((Z$7-1)*('Key_Assumptions_&_Inputs'!$E$33))) -> 56733.34029 | AA27: =($D27)*(1-((AA$7-1)*('Key_Assumptions_&_Inputs'!$E$33))) -> 56416.39426 | AB27: =($D27)*(1-((AB$7-1)*('Key_Assumptions_&_Inputs'!$E$33))) -> 56099.44822 | AC27: =($D27)*(1-((AC$7-1)*('Key_Assumptions_&_Inputs'!$E$33))) -> 55782.50219
C28: March | D28: ='Key_Assumptions_&_Inputs'!E39*'Key_Assumptions_&_Inputs'!$E$17 -> 95523.75781 | E28: =($D28)*(1-((E$7-1)*('Key_Assumptions_&_Inputs'!$E$33))) -> 95523.75781 | F28: =($D28)*(1-((F$7-1)*('Key_Assumptions_&_Inputs'!$E$33))) -> 95046.13902 | G28: =($D28)*(1-((G$7-1)*('Key_Assumptions_&_Inputs'!$E$33))) -> 94568.52023 | H28: =($D28)*(1-((H$7-1)*('Key_Assumptions_&_Inputs'!$E$33))) -> 94090.90145 | I28: =($D28)*(1-((I$7-1)*('Key_Assumptions_&_Inputs'!$E$33))) -> 93613.28266 | J28: =($D28)*(1-((J$7-1)*('Key_Assumptions_&_Inputs'!$E$33))) -> 93135.66387 | K28: =($D28)*(1-((K$7-1)*('Key_Assumptions_&_Inputs'!$E$33))) -> 92658.04508 | L28: =($D28)*(1-((L$7-1)*('Key_Assumptions_&_Inputs'!$E$33))) -> 92180.42629 | M28: =($D28)*(1-((M$7-1)*('Key_Assumptions_&_Inputs'!$E$33))) -> 91702.8075 | N28: =($D28)*(1-((N$7-1)*('Key_Assumptions_&_Inputs'!$E$33))) -> 91225.18871 | O28: =($D28)*(1-((O$7-1)*('Key_Assumptions_&_Inputs'!$E$33))) -> 90747.56992 | P28: =($D28)*(1-((P$7-1)*('Key_Assumptions_&_Inputs'!$E$33))) -> 90269.95113 | Q28: =($D28)*(1-((Q$7-1)*('Key_Assumptions_&_Inputs'!$E$33))) -> 89792.33234 | R28: =($D28)*(1-((R$7-1)*('Key_Assumptions_&_Inputs'!$E$33))) -> 89314.71355 | S28: =($D28)*(1-((S$7-1)*('Key_Assumptions_&_Inputs'!$E$33))) -> 88837.09477 | T28: =($D28)*(1-((T$7-1)*('Key_Assumptions_&_Inputs'!$E$33))) -> 88359.47598 | U28: =($D28)*(1-((U$7-1)*('Key_Assumptions_&_Inputs'!$E$33))) -> 87881.85719 | V28: =($D28)*(1-((V$7-1)*('Key_Assumptions_&_Inputs'!$E$33))) -> 87404.2384 | W28: =($D28)*(1-((W$7-1)*('Key_Assumptions_&_Inputs'!$E$33))) -> 86926.61961 | X28: =($D28)*(1-((X$7-1)*('Key_Assumptions_&_Inputs'!$E$33))) -> 86449.00082 | Y28: =($D28)*(1-((Y$7-1)*('Key_Assumptions_&_Inputs'!$E$33))) -> 85971.38203 | Z28: =($D28)*(1-((Z$7-1)*('Key_Assumptions_&_Inputs'!$E$33))) -> 85493.76324 | AA28: =($D28)*(1-((AA$7-1)*('Key_Assumptions_&_Inputs'!$E$33))) -> 85016.14445 | AB28: =($D28)*(1-((AB$7-1)*('Key_Assumptions_&_Inputs'!$E$33))) -> 84538.52566 | AC28: =($D28)*(1-((AC$7-1)*('Key_Assumptions_&_Inputs'!$E$33))) -> 84060.90688
C29: April | D29: ='Key_Assumptions_&_Inputs'!E40*'Key_Assumptions_&_Inputs'!$E$17 -> 119870.7266 | E29: =($D29)*(1-((E$7-1)*('Key_Assumptions_&_Inputs'!$E$33))) -> 119870.7266 | F29: =($D29)*(1-((F$7-1)*('Key_Assumptions_&_Inputs'!$E$33))) -> 119271.3729 | G29: =($D29)*(1-((G$7-1)*('Key_Assumptions_&_Inputs'!$E$33))) -> 118672.0193 | H29: =($D29)*(1-((H$7-1)*('Key_Assumptions_&_Inputs'!$E$33))) -> 118072.6657 | I29: =($D29)*(1-((I$7-1)*('Key_Assumptions_&_Inputs'!$E$33))) -> 117473.312 | J29: =($D29)*(1-((J$7-1)*('Key_Assumptions_&_Inputs'!$E$33))) -> 116873.9584 | K29: =($D29)*(1-((K$7-1)*('Key_Assumptions_&_Inputs'!$E$33))) -> 116274.6048 | L29: =($D29)*(1-((L$7-1)*('Key_Assumptions_&_Inputs'!$E$33))) -> 115675.2511 | M29: =($D29)*(1-((M$7-1)*('Key_Assumptions_&_Inputs'!$E$33))) -> 115075.8975 | N29: =($D29)*(1-((N$7-1)*('Key_Assumptions_&_Inputs'!$E$33))) -> 114476.5439 | O29: =($D29)*(1-((O$7-1)*('Key_Assumptions_&_Inputs'!$E$33))) -> 113877.1902 | P29: =($D29)*(1-((P$7-1)*('Key_Assumptions_&_Inputs'!$E$33))) -> 113277.8366 | Q29: =($D29)*(1-((Q$7-1)*('Key_Assumptions_&_Inputs'!$E$33))) -> 112678.483 | R29: =($D29)*(1-((R$7-1)*('Key_Assumptions_&_Inputs'!$E$33))) -> 112079.1293 | S29: =($D29)*(1-((S$7-1)*('Key_Assumptions_&_Inputs'!$E$33))) -> 111479.7757 | T29: =($D29)*(1-((T$7-1)*('Key_Assumptions_&_Inputs'!$E$33))) -> 110880.4221 | U29: =($D29)*(1-((U$7-1)*('Key_Assumptions_&_Inputs'!$E$33))) -> 110281.0684 | V29: =($D29)*(1-((V$7-1)*('Key_Assumptions_&_Inputs'!$E$33))) -> 109681.7148 | W29: =($D29)*(1-((W$7-1)*('Key_Assumptions_&_Inputs'!$E$33))) -> 109082.3612 | X29: =($D29)*(1-((X$7-1)*('Key_Assumptions_&_Inputs'!$E$33))) -> 108483.0075 | Y29: =($D29)*(1-((Y$7-1)*('Key_Assumptions_&_Inputs'!$E$33))) -> 107883.6539 | Z29: =($D29)*(1-((Z$7-1)*('Key_Assumptions_&_Inputs'!$E$33))) -> 107284.3003 | AA29: =($D29)*(1-((AA$7-1)*('Key_Assumptions_&_Inputs'!$E$33))) -> 106684.9466 | AB29: =($D29)*(1-((AB$7-1)*('Key_Assumptions_&_Inputs'!$E$33))) -> 106085.593 | AC29: =($D29)*(1-((AC$7-1)*('Key_Assumptions_&_Inputs'!$E$33))) -> 105486.2394
C30: May | D30: ='Key_Assumptions_&_Inputs'!E41*'Key_Assumptions_&_Inputs'!$E$17 -> 146641.0625 | E30: =($D30)*(1-((E$7-1)*('Key_Assumptions_&_Inputs'!$E$33))) -> 146641.0625 | F30: =($D30)*(1-((F$7-1)*('Key_Assumptions_&_Inputs'!$E$33))) -> 145907.8572 | G30: =($D30)*(1-((G$7-1)*('Key_Assumptions_&_Inputs'!$E$33))) -> 145174.6519 | H30: =($D30)*(1-((H$7-1)*('Key_Assumptions_&_Inputs'!$E$33))) -> 144441.4466 | I30: =($D30)*(1-((I$7-1)*('Key_Assumptions_&_Inputs'!$E$33))) -> 143708.2412 | J30: =($D30)*(1-((J$7-1)*('Key_Assumptions_&_Inputs'!$E$33))) -> 142975.0359 | K30: =($D30)*(1-((K$7-1)*('Key_Assumptions_&_Inputs'!$E$33))) -> 142241.8306 | L30: =($D30)*(1-((L$7-1)*('Key_Assumptions_&_Inputs'!$E$33))) -> 141508.6253 | M30: =($D30)*(1-((M$7-1)*('Key_Assumptions_&_Inputs'!$E$33))) -> 140775.42 | N30: =($D30)*(1-((N$7-1)*('Key_Assumptions_&_Inputs'!$E$33))) -> 140042.2147 | O30: =($D30)*(1-((O$7-1)*('Key_Assumptions_&_Inputs'!$E$33))) -> 139309.0094 | P30: =($D30)*(1-((P$7-1)*('Key_Assumptions_&_Inputs'!$E$33))) -> 138575.8041 | Q30: =($D30)*(1-((Q$7-1)*('Key_Assumptions_&_Inputs'!$E$33))) -> 137842.5988 | R30: =($D30)*(1-((R$7-1)*('Key_Assumptions_&_Inputs'!$E$33))) -> 137109.3934 | S30: =($D30)*(1-((S$7-1)*('Key_Assumptions_&_Inputs'!$E$33))) -> 136376.1881 | T30: =($D30)*(1-((T$7-1)*('Key_Assumptions_&_Inputs'!$E$33))) -> 135642.9828 | U30: =($D30)*(1-((U$7-1)*('Key_Assumptions_&_Inputs'!$E$33))) -> 134909.7775 | V30: =($D30)*(1-((V$7-1)*('Key_Assumptions_&_Inputs'!$E$33))) -> 134176.5722 | W30: =($D30)*(1-((W$7-1)*('Key_Assumptions_&_Inputs'!$E$33))) -> 133443.3669 | X30: =($D30)*(1-((X$7-1)*('Key_Assumptions_&_Inputs'!$E$33))) -> 132710.1616 | Y30: =($D30)*(1-((Y$7-1)*('Key_Assumptions_&_Inputs'!$E$33))) -> 131976.9563 | Z30: =($D30)*(1-((Z$7-1)*('Key_Assumptions_&_Inputs'!$E$33))) -> 131243.7509 | AA30: =($D30)*(1-((AA$7-1)*('Key_Assumptions_&_Inputs'!$E$33))) -> 130510.5456 | AB30: =($D30)*(1-((AB$7-1)*('Key_Assumptions_&_Inputs'!$E$33))) -> 129777.3403 | AC30: =($D30)*(1-((AC$7-1)*('Key_Assumptions_&_Inputs'!$E$33))) -> 129044.135
C31: June | D31: ='Key_Assumptions_&_Inputs'!E42*'Key_Assumptions_&_Inputs'!$E$17 -> 147173.2969 | E31: =($D31)*(1-((E$7-1)*('Key_Assumptions_&_Inputs'!$E$33))) -> 147173.2969 | F31: =($D31)*(1-((F$7-1)*('Key_Assumptions_&_Inputs'!$E$33))) -> 146437.4304 | G31: =($D31)*(1-((G$7-1)*('Key_Assumptions_&_Inputs'!$E$33))) -> 145701.5639 | H31: =($D31)*(1-((H$7-1)*('Key_Assumptions_&_Inputs'!$E$33))) -> 144965.6974 | I31: =($D31)*(1-((I$7-1)*('Key_Assumptions_&_Inputs'!$E$33))) -> 144229.8309 | J31: =($D31)*(1-((J$7-1)*('Key_Assumptions_&_Inputs'!$E$33))) -> 143493.9645 | K31: =($D31)*(1-((K$7-1)*('Key_Assumptions_&_Inputs'!$E$33))) -> 142758.098 | L31: =($D31)*(1-((L$7-1)*('Key_Assumptions_&_Inputs'!$E$33))) -> 142022.2315 | M31: =($D31)*(1-((M$7-1)*('Key_Assumptions_&_Inputs'!$E$33))) -> 141286.365 | N31: =($D31)*(1-((N$7-1)*('Key_Assumptions_&_Inputs'!$E$33))) -> 140550.4985 | O31: =($D31)*(1-((O$7-1)*('Key_Assumptions_&_Inputs'!$E$33))) -> 139814.632 | P31: =($D31)*(1-((P$7-1)*('Key_Assumptions_&_Inputs'!$E$33))) -> 139078.7655 | Q31: =($D31)*(1-((Q$7-1)*('Key_Assumptions_&_Inputs'!$E$33))) -> 138342.8991 | R31: =($D31)*(1-((R$7-1)*('Key_Assumptions_&_Inputs'!$E$33))) -> 137607.0326 | S31: =($D31)*(1-((S$7-1)*('Key_Assumptions_&_Inputs'!$E$33))) -> 136871.1661 | T31: =($D31)*(1-((T$7-1)*('Key_Assumptions_&_Inputs'!$E$33))) -> 136135.2996 | U31: =($D31)*(1-((U$7-1)*('Key_Assumptions_&_Inputs'!$E$33))) -> 135399.4331 | V31: =($D31)*(1-((V$7-1)*('Key_Assumptions_&_Inputs'!$E$33))) -> 134663.5666 | W31: =($D31)*(1-((W$7-1)*('Key_Assumptions_&_Inputs'!$E$33))) -> 133927.7002 | X31: =($D31)*(1-((X$7-1)*('Key_Assumptions_&_Inputs'!$E$33))) -> 133191.8337 | Y31: =($D31)*(1-((Y$7-1)*('Key_Assumptions_&_Inputs'!$E$33))) -> 132455.9672 | Z31: =($D31)*(1-((Z$7-1)*('Key_Assumptions_&_Inputs'!$E$33))) -> 131720.1007 | AA31: =($D31)*(1-((AA$7-1)*('Key_Assumptions_&_Inputs'!$E$33))) -> 130984.2342 | AB31: =($D31)*(1-((AB$7-1)*('Key_Assumptions_&_Inputs'!$E$33))) -> 130248.3677 | AC31: =($D31)*(1-((AC$7-1)*('Key_Assumptions_&_Inputs'!$E$33))) -> 129512.5013
C32: July | D32: ='Key_Assumptions_&_Inputs'!E43*'Key_Assumptions_&_Inputs'!$E$17 -> 150540.1562 | E32: =($D32)*(1-((E$7-1)*('Key_Assumptions_&_Inputs'!$E$33))) -> 150540.1562 | F32: =($D32)*(1-((F$7-1)*('Key_Assumptions_&_Inputs'!$E$33))) -> 149787.4555 | G32: =($D32)*(1-((G$7-1)*('Key_Assumptions_&_Inputs'!$E$33))) -> 149034.7547 | H32: =($D32)*(1-((H$7-1)*('Key_Assumptions_&_Inputs'!$E$33))) -> 148282.0539 | I32: =($D32)*(1-((I$7-1)*('Key_Assumptions_&_Inputs'!$E$33))) -> 147529.3531 | J32: =($D32)*(1-((J$7-1)*('Key_Assumptions_&_Inputs'!$E$33))) -> 146776.6523 | K32: =($D32)*(1-((K$7-1)*('Key_Assumptions_&_Inputs'!$E$33))) -> 146023.9516 | L32: =($D32)*(1-((L$7-1)*('Key_Assumptions_&_Inputs'!$E$33))) -> 145271.2508 | M32: =($D32)*(1-((M$7-1)*('Key_Assumptions_&_Inputs'!$E$33))) -> 144518.55 | N32: =($D32)*(1-((N$7-1)*('Key_Assumptions_&_Inputs'!$E$33))) -> 143765.8492 | O32: =($D32)*(1-((O$7-1)*('Key_Assumptions_&_Inputs'!$E$33))) -> 143013.1484 | P32: =($D32)*(1-((P$7-1)*('Key_Assumptions_&_Inputs'!$E$33))) -> 142260.4477 | Q32: =($D32)*(1-((Q$7-1)*('Key_Assumptions_&_Inputs'!$E$33))) -> 141507.7469 | R32: =($D32)*(1-((R$7-1)*('Key_Assumptions_&_Inputs'!$E$33))) -> 140755.0461 | S32: =($D32)*(1-((S$7-1)*('Key_Assumptions_&_Inputs'!$E$33))) -> 140002.3453 | T32: =($D32)*(1-((T$7-1)*('Key_Assumptions_&_Inputs'!$E$33))) -> 139249.6445 | U32: =($D32)*(1-((U$7-1)*('Key_Assumptions_&_Inputs'!$E$33))) -> 138496.9438 | V32: =($D32)*(1-((V$7-1)*('Key_Assumptions_&_Inputs'!$E$33))) -> 137744.243 | W32: =($D32)*(1-((W$7-1)*('Key_Assumptions_&_Inputs'!$E$33))) -> 136991.5422 | X32: =($D32)*(1-((X$7-1)*('Key_Assumptions_&_Inputs'!$E$33))) -> 136238.8414 | Y32: =($D32)*(1-((Y$7-1)*('Key_Assumptions_&_Inputs'!$E$33))) -> 135486.1406 | Z32: =($D32)*(1-((Z$7-1)*('Key_Assumptions_&_Inputs'!$E$33))) -> 134733.4398 | AA32: =($D32)*(1-((AA$7-1)*('Key_Assumptions_&_Inputs'!$E$33))) -> 133980.7391 | AB32: =($D32)*(1-((AB$7-1)*('Key_Assumptions_&_Inputs'!$E$33))) -> 133228.0383 | AC32: =($D32)*(1-((AC$7-1)*('Key_Assumptions_&_Inputs'!$E$33))) -> 132475.3375
C33: August | D33: ='Key_Assumptions_&_Inputs'!E44*'Key_Assumptions_&_Inputs'!$E$17 -> 123574.5312 | E33: =($D33)*(1-((E$7-1)*('Key_Assumptions_&_Inputs'!$E$33))) -> 123574.5312 | F33: =($D33)*(1-((F$7-1)*('Key_Assumptions_&_Inputs'!$E$33))) -> 122956.6586 | G33: =($D33)*(1-((G$7-1)*('Key_Assumptions_&_Inputs'!$E$33))) -> 122338.7859 | H33: =($D33)*(1-((H$7-1)*('Key_Assumptions_&_Inputs'!$E$33))) -> 121720.9133 | I33: =($D33)*(1-((I$7-1)*('Key_Assumptions_&_Inputs'!$E$33))) -> 121103.0406 | J33: =($D33)*(1-((J$7-1)*('Key_Assumptions_&_Inputs'!$E$33))) -> 120485.168 | K33: =($D33)*(1-((K$7-1)*('Key_Assumptions_&_Inputs'!$E$33))) -> 119867.2953 | L33: =($D33)*(1-((L$7-1)*('Key_Assumptions_&_Inputs'!$E$33))) -> 119249.4227 | M33: =($D33)*(1-((M$7-1)*('Key_Assumptions_&_Inputs'!$E$33))) -> 118631.55 | N33: =($D33)*(1-((N$7-1)*('Key_Assumptions_&_Inputs'!$E$33))) -> 118013.6773 | O33: =($D33)*(1-((O$7-1)*('Key_Assumptions_&_Inputs'!$E$33))) -> 117395.8047 | P33: =($D33)*(1-((P$7-1)*('Key_Assumptions_&_Inputs'!$E$33))) -> 116777.932 | Q33: =($D33)*(1-((Q$7-1)*('Key_Assumptions_&_Inputs'!$E$33))) -> 116160.0594 | R33: =($D33)*(1-((R$7-1)*('Key_Assumptions_&_Inputs'!$E$33))) -> 115542.1867 | S33: =($D33)*(1-((S$7-1)*('Key_Assumptions_&_Inputs'!$E$33))) -> 114924.3141 | T33: =($D33)*(1-((T$7-1)*('Key_Assumptions_&_Inputs'!$E$33))) -> 114306.4414 | U33: =($D33)*(1-((U$7-1)*('Key_Assumptions_&_Inputs'!$E$33))) -> 113688.5688 | V33: =($D33)*(1-((V$7-1)*('Key_Assumptions_&_Inputs'!$E$33))) -> 113070.6961 | W33: =($D33)*(1-((W$7-1)*('Key_Assumptions_&_Inputs'!$E$33))) -> 112452.8234 | X33: =($D33)*(1-((X$7-1)*('Key_Assumptions_&_Inputs'!$E$33))) -> 111834.9508 | Y33: =($D33)*(1-((Y$7-1)*('Key_Assumptions_&_Inputs'!$E$33))) -> 111217.0781 | Z33: =($D33)*(1-((Z$7-1)*('Key_Assumptions_&_Inputs'!$E$33))) -> 110599.2055 | AA33: =($D33)*(1-((AA$7-1)*('Key_Assumptions_&_Inputs'!$E$33))) -> 109981.3328 | AB33: =($D33)*(1-((AB$7-1)*('Key_Assumptions_&_Inputs'!$E$33))) -> 109363.4602 | AC33: =($D33)*(1-((AC$7-1)*('Key_Assumptions_&_Inputs'!$E$33))) -> 108745.5875
C34: September | D34: ='Key_Assumptions_&_Inputs'!E45*'Key_Assumptions_&_Inputs'!$E$17 -> 98142.84375 | E34: =($D34)*(1-((E$7-1)*('Key_Assumptions_&_Inputs'!$E$33))) -> 98142.84375 | F34: =($D34)*(1-((F$7-1)*('Key_Assumptions_&_Inputs'!$E$33))) -> 97652.12953 | G34: =($D34)*(1-((G$7-1)*('Key_Assumptions_&_Inputs'!$E$33))) -> 97161.41531 | H34: =($D34)*(1-((H$7-1)*('Key_Assumptions_&_Inputs'!$E$33))) -> 96670.70109 | I34: =($D34)*(1-((I$7-1)*('Key_Assumptions_&_Inputs'!$E$33))) -> 96179.98688 | J34: =($D34)*(1-((J$7-1)*('Key_Assumptions_&_Inputs'!$E$33))) -> 95689.27266 | K34: =($D34)*(1-((K$7-1)*('Key_Assumptions_&_Inputs'!$E$33))) -> 95198.55844 | L34: =($D34)*(1-((L$7-1)*('Key_Assumptions_&_Inputs'!$E$33))) -> 94707.84422 | M34: =($D34)*(1-((M$7-1)*('Key_Assumptions_&_Inputs'!$E$33))) -> 94217.13 | N34: =($D34)*(1-((N$7-1)*('Key_Assumptions_&_Inputs'!$E$33))) -> 93726.41578 | O34: =($D34)*(1-((O$7-1)*('Key_Assumptions_&_Inputs'!$E$33))) -> 93235.70156 | P34: =($D34)*(1-((P$7-1)*('Key_Assumptions_&_Inputs'!$E$33))) -> 92744.98734 | Q34: =($D34)*(1-((Q$7-1)*('Key_Assumptions_&_Inputs'!$E$33))) -> 92254.27312 | R34: =($D34)*(1-((R$7-1)*('Key_Assumptions_&_Inputs'!$E$33))) -> 91763.55891 | S34: =($D34)*(1-((S$7-1)*('Key_Assumptions_&_Inputs'!$E$33))) -> 91272.84469 | T34: =($D34)*(1-((T$7-1)*('Key_Assumptions_&_Inputs'!$E$33))) -> 90782.13047 | U34: =($D34)*(1-((U$7-1)*('Key_Assumptions_&_Inputs'!$E$33))) -> 90291.41625 | V34: =($D34)*(1-((V$7-1)*('Key_Assumptions_&_Inputs'!$E$33))) -> 89800.70203 | W34: =($D34)*(1-((W$7-1)*('Key_Assumptions_&_Inputs'!$E$33))) -> 89309.98781 | X34: =($D34)*(1-((X$7-1)*('Key_Assumptions_&_Inputs'!$E$33))) -> 88819.27359 | Y34: =($D34)*(1-((Y$7-1)*('Key_Assumptions_&_Inputs'!$E$33))) -> 88328.55937 | Z34: =($D34)*(1-((Z$7-1)*('Key_Assumptions_&_Inputs'!$E$33))) -> 87837.84516 | AA34: =($D34)*(1-((AA$7-1)*('Key_Assumptions_&_Inputs'!$E$33))) -> 87347.13094 | AB34: =($D34)*(1-((AB$7-1)*('Key_Assumptions_&_Inputs'!$E$33))) -> 86856.41672 | AC34: =($D34)*(1-((AC$7-1)*('Key_Assumptions_&_Inputs'!$E$33))) -> 86365.7025
C35: October | D35: ='Key_Assumptions_&_Inputs'!E46*'Key_Assumptions_&_Inputs'!$E$17 -> 75932.89844 | E35: =($D35)*(1-((E$7-1)*('Key_Assumptions_&_Inputs'!$E$33))) -> 75932.89844 | F35: =($D35)*(1-((F$7-1)*('Key_Assumptions_&_Inputs'!$E$33))) -> 75553.23395 | G35: =($D35)*(1-((G$7-1)*('Key_Assumptions_&_Inputs'!$E$33))) -> 75173.56945 | H35: =($D35)*(1-((H$7-1)*('Key_Assumptions_&_Inputs'!$E$33))) -> 74793.90496 | I35: =($D35)*(1-((I$7-1)*('Key_Assumptions_&_Inputs'!$E$33))) -> 74414.24047 | J35: =($D35)*(1-((J$7-1)*('Key_Assumptions_&_Inputs'!$E$33))) -> 74034.57598 | K35: =($D35)*(1-((K$7-1)*('Key_Assumptions_&_Inputs'!$E$33))) -> 73654.91148 | L35: =($D35)*(1-((L$7-1)*('Key_Assumptions_&_Inputs'!$E$33))) -> 73275.24699 | M35: =($D35)*(1-((M$7-1)*('Key_Assumptions_&_Inputs'!$E$33))) -> 72895.5825 | N35: =($D35)*(1-((N$7-1)*('Key_Assumptions_&_Inputs'!$E$33))) -> 72515.91801 | O35: =($D35)*(1-((O$7-1)*('Key_Assumptions_&_Inputs'!$E$33))) -> 72136.25352 | P35: =($D35)*(1-((P$7-1)*('Key_Assumptions_&_Inputs'!$E$33))) -> 71756.58902 | Q35: =($D35)*(1-((Q$7-1)*('Key_Assumptions_&_Inputs'!$E$33))) -> 71376.92453 | R35: =($D35)*(1-((R$7-1)*('Key_Assumptions_&_Inputs'!$E$33))) -> 70997.26004 | S35: =($D35)*(1-((S$7-1)*('Key_Assumptions_&_Inputs'!$E$33))) -> 70617.59555 | T35: =($D35)*(1-((T$7-1)*('Key_Assumptions_&_Inputs'!$E$33))) -> 70237.93105 | U35: =($D35)*(1-((U$7-1)*('Key_Assumptions_&_Inputs'!$E$33))) -> 69858.26656 | V35: =($D35)*(1-((V$7-1)*('Key_Assumptions_&_Inputs'!$E$33))) -> 69478.60207 | W35: =($D35)*(1-((W$7-1)*('Key_Assumptions_&_Inputs'!$E$33))) -> 69098.93758 | X35: =($D35)*(1-((X$7-1)*('Key_Assumptions_&_Inputs'!$E$33))) -> 68719.27309 | Y35: =($D35)*(1-((Y$7-1)*('Key_Assumptions_&_Inputs'!$E$33))) -> 68339.60859 | Z35: =($D35)*(1-((Z$7-1)*('Key_Assumptions_&_Inputs'!$E$33))) -> 67959.9441 | AA35: =($D35)*(1-((AA$7-1)*('Key_Assumptions_&_Inputs'!$E$33))) -> 67580.27961 | AB35: =($D35)*(1-((AB$7-1)*('Key_Assumptions_&_Inputs'!$E$33))) -> 67200.61512 | AC35: =($D35)*(1-((AC$7-1)*('Key_Assumptions_&_Inputs'!$E$33))) -> 66820.95062
C36: November | D36: ='Key_Assumptions_&_Inputs'!E47*'Key_Assumptions_&_Inputs'!$E$17 -> 45353.71484 | E36: =($D36)*(1-((E$7-1)*('Key_Assumptions_&_Inputs'!$E$33))) -> 45353.71484 | F36: =($D36)*(1-((F$7-1)*('Key_Assumptions_&_Inputs'!$E$33))) -> 45126.94627 | G36: =($D36)*(1-((G$7-1)*('Key_Assumptions_&_Inputs'!$E$33))) -> 44900.1777 | H36: =($D36)*(1-((H$7-1)*('Key_Assumptions_&_Inputs'!$E$33))) -> 44673.40912 | I36: =($D36)*(1-((I$7-1)*('Key_Assumptions_&_Inputs'!$E$33))) -> 44446.64055 | J36: =($D36)*(1-((J$7-1)*('Key_Assumptions_&_Inputs'!$E$33))) -> 44219.87197 | K36: =($D36)*(1-((K$7-1)*('Key_Assumptions_&_Inputs'!$E$33))) -> 43993.1034 | L36: =($D36)*(1-((L$7-1)*('Key_Assumptions_&_Inputs'!$E$33))) -> 43766.33482 | M36: =($D36)*(1-((M$7-1)*('Key_Assumptions_&_Inputs'!$E$33))) -> 43539.56625 | N36: =($D36)*(1-((N$7-1)*('Key_Assumptions_&_Inputs'!$E$33))) -> 43312.79768 | O36: =($D36)*(1-((O$7-1)*('Key_Assumptions_&_Inputs'!$E$33))) -> 43086.0291 | P36: =($D36)*(1-((P$7-1)*('Key_Assumptions_&_Inputs'!$E$33))) -> 42859.26053 | Q36: =($D36)*(1-((Q$7-1)*('Key_Assumptions_&_Inputs'!$E$33))) -> 42632.49195 | R36: =($D36)*(1-((R$7-1)*('Key_Assumptions_&_Inputs'!$E$33))) -> 42405.72338 | S36: =($D36)*(1-((S$7-1)*('Key_Assumptions_&_Inputs'!$E$33))) -> 42178.9548 | T36: =($D36)*(1-((T$7-1)*('Key_Assumptions_&_Inputs'!$E$33))) -> 41952.18623 | U36: =($D36)*(1-((U$7-1)*('Key_Assumptions_&_Inputs'!$E$33))) -> 41725.41766 | V36: =($D36)*(1-((V$7-1)*('Key_Assumptions_&_Inputs'!$E$33))) -> 41498.64908 | W36: =($D36)*(1-((W$7-1)*('Key_Assumptions_&_Inputs'!$E$33))) -> 41271.88051 | X36: =($D36)*(1-((X$7-1)*('Key_Assumptions_&_Inputs'!$E$33))) -> 41045.11193 | Y36: =($D36)*(1-((Y$7-1)*('Key_Assumptions_&_Inputs'!$E$33))) -> 40818.34336 | Z36: =($D36)*(1-((Z$7-1)*('Key_Assumptions_&_Inputs'!$E$33))) -> 40591.57479 | AA36: =($D36)*(1-((AA$7-1)*('Key_Assumptions_&_Inputs'!$E$33))) -> 40364.80621 | AB36: =($D36)*(1-((AB$7-1)*('Key_Assumptions_&_Inputs'!$E$33))) -> 40138.03764 | AC36: =($D36)*(1-((AC$7-1)*('Key_Assumptions_&_Inputs'!$E$33))) -> 39911.26906
C37: December | D37: ='Key_Assumptions_&_Inputs'!E48*'Key_Assumptions_&_Inputs'!$E$17 -> 37273.91406 | E37: =($D37)*(1-((E$7-1)*('Key_Assumptions_&_Inputs'!$E$33))) -> 37273.91406 | F37: =($D37)*(1-((F$7-1)*('Key_Assumptions_&_Inputs'!$E$33))) -> 37087.54449 | G37: =($D37)*(1-((G$7-1)*('Key_Assumptions_&_Inputs'!$E$33))) -> 36901.17492 | H37: =($D37)*(1-((H$7-1)*('Key_Assumptions_&_Inputs'!$E$33))) -> 36714.80535 | I37: =($D37)*(1-((I$7-1)*('Key_Assumptions_&_Inputs'!$E$33))) -> 36528.43578 | J37: =($D37)*(1-((J$7-1)*('Key_Assumptions_&_Inputs'!$E$33))) -> 36342.06621 | K37: =($D37)*(1-((K$7-1)*('Key_Assumptions_&_Inputs'!$E$33))) -> 36155.69664 | L37: =($D37)*(1-((L$7-1)*('Key_Assumptions_&_Inputs'!$E$33))) -> 35969.32707 | M37: =($D37)*(1-((M$7-1)*('Key_Assumptions_&_Inputs'!$E$33))) -> 35782.9575 | N37: =($D37)*(1-((N$7-1)*('Key_Assumptions_&_Inputs'!$E$33))) -> 35596.58793 | O37: =($D37)*(1-((O$7-1)*('Key_Assumptions_&_Inputs'!$E$33))) -> 35410.21836 | P37: =($D37)*(1-((P$7-1)*('Key_Assumptions_&_Inputs'!$E$33))) -> 35223.84879 | Q37: =($D37)*(1-((Q$7-1)*('Key_Assumptions_&_Inputs'!$E$33))) -> 35037.47922 | R37: =($D37)*(1-((R$7-1)*('Key_Assumptions_&_Inputs'!$E$33))) -> 34851.10965 | S37: =($D37)*(1-((S$7-1)*('Key_Assumptions_&_Inputs'!$E$33))) -> 34664.74008 | T37: =($D37)*(1-((T$7-1)*('Key_Assumptions_&_Inputs'!$E$33))) -> 34478.37051 | U37: =($D37)*(1-((U$7-1)*('Key_Assumptions_&_Inputs'!$E$33))) -> 34292.00094 | V37: =($D37)*(1-((V$7-1)*('Key_Assumptions_&_Inputs'!$E$33))) -> 34105.63137 | W37: =($D37)*(1-((W$7-1)*('Key_Assumptions_&_Inputs'!$E$33))) -> 33919.2618 | X37: =($D37)*(1-((X$7-1)*('Key_Assumptions_&_Inputs'!$E$33))) -> 33732.89223 | Y37: =($D37)*(1-((Y$7-1)*('Key_Assumptions_&_Inputs'!$E$33))) -> 33546.52266 | Z37: =($D37)*(1-((Z$7-1)*('Key_Assumptions_&_Inputs'!$E$33))) -> 33360.15309 | AA37: =($D37)*(1-((AA$7-1)*('Key_Assumptions_&_Inputs'!$E$33))) -> 33173.78352 | AB37: =($D37)*(1-((AB$7-1)*('Key_Assumptions_&_Inputs'!$E$33))) -> 32987.41395 | AC37: =($D37)*(1-((AC$7-1)*('Key_Assumptions_&_Inputs'!$E$33))) -> 32801.04437
C38: Annual | D38: =SUM(D26:D37) -> 1150420.824 | E38: =SUM(E26:E37) -> 1150420.824 | F38: =SUM(F26:F37) -> 1144668.72 | G38: 1138916.616 | H38: 1133164.512 | I38: 1127412.408 | J38: 1121660.304 | K38: 1115908.199 | L38: 1110156.095 | M38: 1104403.991 | N38: 1098651.887 | O38: 1092899.783 | P38: 1087147.679 | Q38: 1081395.575 | R38: 1075643.471 | S38: 1069891.367 | T38: 1064139.262 | U38: 1058387.158 | V38: 1052635.054 | W38: 1046882.95 | X38: 1041130.846 | Y38: 1035378.742 | Z38: 1029626.638 | AA38: 1023874.534 | AB38: 1018122.429 | AC38: =SUM(AC26:AC37) -> 1012370.325
C40: Revenue Estimate
C41: Month | D41: Generation (kWh) | E41: 2016 | F41: 2017 | G41: 2018 | H41: 2019 | I41: 2020 | J41: 2021 | K41: 2022 | L41: 2023 | M41: 2024 | N41: 2025 | O41: 2026 | P41: 2027 | Q41: 2028 | R41: 2029 | S41: 2030 | T41: 2031 | U41: 2032 | V41: 2033 | W41: 2034 | X41: 2035 | Y41: 2036 | Z41: 2037 | AA41: 2038 | AB41: 2039 | AC41: 2040
C42: January | D42: =D26 -> 47004.71484 | E42: =(E11)*E26 -> 5560.647425 | F42: =(F11)*F26 -> 5686.657256 | G42: =(G11)*G26 -> 5815.375743 | H42: 5946.856102 | I42: 6081.152414 | J42: 6218.319633 | K42: 6358.413591 | L42: 6501.491007 | M42: 6647.60949 | N42: 6796.82755 | O42: 6949.204595 | P42: 7104.800943 | Q42: 7263.677825 | R42: 7425.897387 | S42: 7591.522696 | T42: 7760.617742 | U42: 7933.24744 | V42: 8109.477634 | W42: 8289.375095 | X42: 8473.007526 | Y42: 8660.44356 | Z42: 8851.752758 | AA42: 9047.005611 | AB42: 9246.273533 | AC42: 9449.628865
C43: February | D43: =D27 -> 63389.20703 | E43: =(E12)*E27 -> 7616.201815 | F43: 7788.792564 | G43: 7965.093254 | H43: 8145.176771 | I43: 8329.117189 | J43: 8516.989777 | K43: 8708.871005 | L43: 8904.838559 | M43: 9104.971345 | N43: 9309.349499 | O43: 9518.054392 | P43: 9731.168639 | Q43: 9948.776105 | R43: 10170.96191 | S43: 10397.81243 | T43: 10629.41532 | U43: 10865.85948 | V43: 11107.2351 | W43: 11353.63364 | X43: 11605.14781 | Y43: 11861.87163 | Z43: 12123.90038 | AA43: 12391.33059 | AB43: 12664.26009 | AC43: 12942.78795
C44: March | D44: 95523.75781 | E44: =(E13)*E28 -> 11742.24647 | F44: 12008.33751 | G44: 12280.14835 | H44: 12557.79134 | I44: 12841.38069 | J44: 13131.03244 | K44: 13426.8645 | L44: 13728.99664 | M44: 14037.5505 | N44: 14352.64964 | O44: 14674.41952 | P44: 15002.98749 | Q44: 15338.48287 | R44: 15681.03688 | S44: 16030.7827 | T44: 16387.85546 | U44: 16752.39223 | V44: 17124.53206 | W44: 17504.41594 | X44: 17892.18684 | Y44: 18287.98969 | Z44: 18691.97138 | AA44: 19104.28077 | AB44: 19525.06865 | AC44: 19954.48779
C45: April | D45: 119870.7266 | E45: =(E14)*E29 -> 16509.21979 | F45: 16883.33522 | G45: 17265.49248 | H45: 17655.84957 | I45: 18054.56705 | J45: 18461.80808 | K45: 18877.73841 | L45: 19302.52645 | M45: 19736.34323 | N45: 20179.36246 | O45: 20631.76052 | P45: 21093.7165 | Q45: 21565.41218 | R45: 22047.03207 | S45: 22538.76341 | T45: 23040.79619 | U45: 23553.32314 | V45: 24076.53973 | W45: 24610.64421 | X45: 25155.83759 | Y45: 25712.32364 | Z45: 26280.30886 | AA45: 26860.00256 | AB45: 27451.61675 | AC45: 28055.36621
C46: May | D46: 146641.0625 | E46: =(E15)*E30 -> 20181.09789 | F46: 20638.42175 | G46: 21105.57606 | H46: 21582.75395 | I46: 22070.15169 | J46: 22567.96873 | K46: 23076.40771 | L46: 23595.67446 | M46: 24125.97808 | N46: 24667.53089 | O46: 25220.54852 | P46: 25785.24988 | Q46: 26361.85718 | R46: 26950.59598 | S46: 27551.69515 | T46: 28165.38694 | U46: 28791.90694 | V46: 29431.49412 | W46: 30084.3908 | X46: 30750.84271 | Y46: 31431.09892 | Z46: 32125.4119 | AA46: 32834.03746 | AB46: 33557.23481 | AC46: 34295.26647
C47: June | D47: 147173.2969 | E47: =(E16)*E31 -> 19044.22756 | F47: 19475.7888 | G47: 19916.6267 | H47: 20366.92353 | I47: 20826.86449 | J47: 21296.6378 | K47: 21776.43466 | L47: 22266.44934 | M47: 22766.87914 | N47: 23277.92443 | O47: 23799.78868 | P47: 24332.67848 | Q47: 24876.80352 | R47: 25432.37664 | S47: 25999.61384 | T47: 26578.73427 | U47: 27169.96026 | V47: 27773.5173 | W47: 28389.63408 | X47: 29018.54247 | Y47: 29660.47752 | Z47: 30315.67746 | AA47: 30984.38373 | AB47: 31666.84089 | AC47: 32363.2967
C48: July | D48: 150540.1562 | E48: =(E17)*E32 -> 19464.42671 | F48: 19905.51009 | G48: 20356.07481 | H48: 20816.30715 | I48: 21286.39643 | J48: 21766.53499 | K48: 22256.91828 | L48: 22757.74484 | M48: 23269.21631 | N48: 23791.5375 | O48: 24324.91636 | P48: 24869.56404 | Q48: 25425.69487 | R48: 25993.52637 | S48: 26573.27931 | T48: 27165.17767 | U48: 27769.4487 | V48: 28386.32285 | W48: 29016.03387 | X48: 29658.81874 | Y48: 30314.91769 | Z48: 30984.57422 | AA48: 31668.03507 | AB48: 32365.55023 | AC48: 33077.37291
C49: August | D49: 123574.5312 | E49: =(E18)*E33 -> 15761.92899 | F49: 16119.11006 | G49: 16483.96895 | H49: 16856.65651 | I49: 17237.32602 | J49: 17626.13325 | K49: 18023.23648 | L49: 18428.79646 | M49: 18842.9765 | N49: 19265.94244 | O49: 19697.86267 | P49: 20138.90819 | Q49: 20589.25253 | R49: 21049.07187 | S49: 21518.54497 | T49: 21997.8532 | U49: 22487.18058 | V49: 22986.71375 | W49: 23496.64196 | X49: 24017.15713 | Y49: 24548.4538 | Z49: 25090.72915 | AA49: 25644.18297 | AB49: 26209.01771 | AC49: 26785.43841
C50: September | D50: 98142.84375 | E50: =(E19)*E34 -> 12790.47004 | F50: 13080.31488 | G50: 13376.39011 | H50: 13678.81813 | I50: 13987.72334 | J50: 14303.23214 | K50: 14625.47295 | L50: 14954.57625 | M50: 15290.67454 | N50: 15633.9024 | O50: 15984.39648 | P50: 16342.29553 | Q50: 16707.74039 | R50: 17080.874 | S50: 17461.84143 | T50: 17850.78987 | U50: 18247.86863 | V50: 18653.22916 | W50: 19067.02506 | X50: 19489.41204 | Y50: 19920.54799 | Z50: 20360.59289 | AA50: 20809.7089 | AB50: 21268.06027 | AC50: 21735.81341
C51: October | D51: 75932.89844 | E51: =(E20)*E35 -> 10512.50431 | F51: 10750.72817 | G51: 10994.07279 | H51: 11242.63878 | I51: 11496.52838 | J51: 11755.84548 | K51: 12020.69564 | L51: 12291.18608 | M51: 12567.42571 | N51: 12849.52514 | O51: 13137.59669 | P51: 13431.7544 | Q51: 13732.11401 | R51: 14038.79302 | S51: 14351.91066 | T51: 14671.58789 | U51: 14997.94745 | V51: 15331.11381 | W51: 15671.21321 | X51: 16018.37364 | Y51: 16372.72484 | Z51: 16734.39833 | AA51: 17103.52737 | AB51: 17480.24698 | AC51: 17864.6939
C52: November | D52: 45353.71484 | E52: =(E21)*E36 -> 6148.458897 | F52: 6287.789124 | G52: 6430.114336 | H52: 6575.493376 | I52: 6723.986041 | J52: 6875.653093 | K52: 7030.556268 | L52: 7188.75828 | M52: 7350.322829 | N52: 7515.314607 | O52: 7683.799304 | P52: 7855.843614 | Q52: 8031.515241 | R52: 8210.8829 | S52: 8394.016325 | T52: 8580.986269 | U52: 8771.864511 | V52: 8966.723853 | W52: 9165.638127 | X52: 9368.682192 | Y52: 9575.931935 | Z52: 9787.464271 | AA52: 10003.35714 | AB52: 10223.68951 | AC52: 10448.54137
C53: December | D53: 37273.91406 | E53: =(E22)*E37 -> 4524.42622 | F53: 4626.954243 | G53: 4731.686166 | H53: 4838.665288 | I53: 4947.935614 | J53: 5059.541855 | K53: 5173.529441 | L53: 5289.944521 | M53: 5408.833968 | N53: 5530.245388 | O53: 5654.22712 | P53: 5780.828241 | Q53: 5910.098572 | R53: 6042.088677 | S53: 6176.849872 | T53: 6314.434222 | U53: 6454.894545 | V53: 6598.284414 | W53: 6744.658159 | X53: 6894.070867 | Y53: 7046.578379 | Z53: 7202.237296 | AA53: 7361.10497 | AB53: 7523.23951 | AC53: 7688.699775
C54: Annual | D54: =SUM(D42:D53) -> 1150420.824 | E54: =SUM(E42:E53) -> 149855.8561 | F54: =SUM(F42:F53) -> 153251.7397 | G54: 156720.6197 | H54: 160263.9305 | I54: 163883.1293 | J54: 167579.6973 | K54: 171355.1389 | L54: 175210.9829 | M54: 179148.7816 | N54: 183170.1119 | O54: 187276.5749 | P54: 191469.7959 | Q54: 195751.4253 | R54: 200123.1377 | S54: 204586.6328 | T54: 209143.6351 | U54: 213795.8939 | V54: 218545.1838 | W54: 223393.3041 | X54: 228342.0796 | Y54: 233393.3596 | Z54: 238549.0189 | AA54: 243810.9572 | AB54: 249181.0989 | AC54: 254661.3938

Sheet Community_Solar_Business_Case
A1: Community Solar Business Case: This tab pulls inputs and assumptions to summarize costs and benefits to the system owner and subscribers over time.
B6: Subscription Model: | C6: ='Key_Assumptions_&_Inputs'!E11 -> Panel Leasing
B7: ='Key_Assumptions_&_Inputs'!C12 -> Monthly Panel Lease Price: | C7: ='Key_Assumptions_&_Inputs'!E12 -> 3.611723876
C8: 0.1384596231
F9: 0.1 | G9: 0
B10: Community Shared Solar Customer Acquisition Schedule
B11: Project Year | D11: 0 | E11: 1 | F11: 2 | G11: 3 | H11: 4 | I11: 5 | J11: 6 | K11: 7 | L11: 8 | M11: 9 | N11: 10 | O11: 11 | P11: 12 | Q11: 13 | R11: 14 | S11: 15 | T11: 16 | U11: 17 | V11: 18 | W11: 19 | X11: 20 | Y11: 21 | Z11: 22 | AA11: 23 | AB11: 24 | AC11: 25
B12: Calendar Year | D12: 2015 | E12: 2016 | F12: 2017 | G12: 2018 | H12: 2019 | I12: 2020 | J12: 2020 | K12: 2020 | L12: 2023 | M12: 2024 | N12: 2025 | O12: 2026 | P12: 2027 | Q12: 2028 | R12: 2029 | S12: 2030 | T12: 2031 | U12: 2032 | V12: 2033 | W12: 2034 | X12: 2035 | Y12: 2036 | Z12: 2037 | AA12: 2038 | AB12: 2039 | AC12: 2040
B13: New Subscribers | D13: 0 | E13: =IF(E11<='Key_Assumptions_&_Inputs'!$E$22,((1-'Key_Assumptions_&_Inputs'!$E$58)*'Key_Assumptions_&_Inputs'!$E$34/'Key_Assumptions_&_Inputs'!$E$21)/'Key_Assumptions_&_Inputs'!$E$22,0) -> 133.3333333 | F13: =IF(F11<='Key_Assumptions_&_Inputs'!$E$22,((1-'Key_Assumptions_&_Inputs'!$E$58)*'Key_Assumptions_&_Inputs'!$E$34/'Key_Assumptions_&_Inputs'!$E$21)/'Key_Assumptions_&_Inputs'!$E$22,0)+'Key_Assumptions_&_Inputs'!$E$59*((1-'Key_Assumptions_&_Inputs'!$E$58)*'Key_Assumptions_&_Inputs'!$E$34/'Key_Assumptions_&_Inputs'!$E$21) -> 2 | G13: =IF(G11<='Key_Assumptions_&_Inputs'!$E$22,((1-'Key_Assumptions_&_Inputs'!$E$58)*'Key_Assumptions_&_Inputs'!$E$34/'Key_Assumptions_&_Inputs'!$E$21)/'Key_Assumptions_&_Inputs'!$E$22,0)+'Key_Assumptions_&_Inputs'!$E$59*((1-'Key_Assumptions_&_Inputs'!$E$58)*'Key_Assumptions_&_Inputs'!$E$34/'Key_Assumptions_&_Inputs'!$E$21) -> 2 | H13: =IF(H11<='Key_Assumptions_&_Inputs'!$E$22,((1-'Key_Assumptions_&_Inputs'!$E$58)*'Key_Assumptions_&_Inputs'!$E$34/'Key_Assumptions_&_Inputs'!$E$21)/'Key_Assumptions_&_Inputs'!$E$22,0)+'Key_Assumptions_&_Inputs'!$E$59*((1-'Key_Assumptions_&_Inputs'!$E$58)*'Key_Assumptions_&_Inputs'!$E$34/'Key_Assumptions_&_Inputs'!$E$21) -> 2 | I13: =IF(I11<='Key_Assumptions_&_Inputs'!$E$22,((1-'Key_Assumptions_&_Inputs'!$E$58)*'Key_Assumptions_&_Inputs'!$E$34/'Key_Assumptions_&_Inputs'!$E$21)/'Key_Assumptions_&_Inputs'!$E$22,0)+'Key_Assumptions_&_Inputs'!$E$59*((1-'Key_Assumptions_&_Inputs'!$E$58)*'Key_Assumptions_&_Inputs'!$E$34/'Key_Assumptions_&_Inputs'!$E$21) -> 2 | J13: =IF(J11<='Key_Assumptions_&_Inputs'!$E$22,((1-'Key_Assumptions_&_Inputs'!$E$58)*'Key_Assumptions_&_Inputs'!$E$34/'Key_Assumptions_&_Inputs'!$E$21)/'Key_Assumptions_&_Inputs'!$E$22,0)+'Key_Assumptions_&_Inputs'!$E$59*((1-'Key_Assumptions_&_Inputs'!$E$58)*'Key_Assumptions_&_Inputs'!$E$34/'Key_Assumptions_&_Inputs'!$E$21) -> 2 | K13: =IF(K11<='Key_Assumptions_&_Inputs'!$E$22,((1-'Key_Assumptions_&_Inputs'!$E$58)*'Key_Assumptions_&_Inputs'!$E$34/'Key_Assumptions_&_Inputs'!$E$21)/'Key_Assumptions_&_Inputs'!$E$22,0)+'Key_Assumptions_&_Inputs'!$E$59*((1-'Key_Assumptions_&_Inputs'!$E$58)*'Key_Assumptions_&_Inputs'!$E$34/'Key_Assumptions_&_Inputs'!$E$21) -> 2 | L13: =IF(L11<='Key_Assumptions_&_Inputs'!$E$22,((1-'Key_Assumptions_&_Inputs'!$E$58)*'Key_Assumptions_&_Inputs'!$E$34/'Key_Assumptions_&_Inputs'!$E$21)/'Key_Assumptions_&_Inputs'!$E$22,0)+'Key_Assumptions_&_Inputs'!$E$59*((1-'Key_Assumptions_&_Inputs'!$E$58)*'Key_Assumptions_&_Inputs'!$E$34/'Key_Assumptions_&_Inputs'!$E$21) -> 2 | M13: =IF(M11<='Key_Assumptions_&_Inputs'!$E$22,((1-'Key_Assumptions_&_Inputs'!$E$58)*'Key_Assumptions_&_Inputs'!$E$34/'Key_Assumptions_&_Inputs'!$E$21)/'Key_Assumptions_&_Inputs'!$E$22,0)+'Key_Assumptions_&_Inputs'!$E$59*((1-'Key_Assumptions_&_Inputs'!$E$58)*'Key_Assumptions_&_Inputs'!$E$34/'Key_Assumptions_&_Inputs'!$E$21) -> 2 | N13: =IF(N11<='Key_Assumptions_&_Inputs'!$E$22,((1-'Key_Assumptions_&_Inputs'!$E$58)*'Key_Assumptions_&_Inputs'!$E$34/'Key_Assumptions_&_Inputs'!$E$21)/'Key_Assumptions_&_Inputs'!$E$22,0)+'Key_Assumptions_&_Inputs'!$E$59*((1-'Key_Assumptions_&_Inputs'!$E$58)*'Key_Assumptions_&_Inputs'!$E$34/'Key_Assumptions_&_Inputs'!$E$21) -> 2 | O13: =IF(O11<='Key_Assumptions_&_Inputs'!$E$22,((1-'Key_Assumptions_&_Inputs'!$E$58)*'Key_Assumptions_&_Inputs'!$E$34/'Key_Assumptions_&_Inputs'!$E$21)/'Key_Assumptions_&_Inputs'!$E$22,0)+'Key_Assumptions_&_Inputs'!$E$59*((1-'Key_Assumptions_&_Inputs'!$E$58)*'Key_Assumptions_&_Inputs'!$E$34/'Key_Assumptions_&_Inputs'!$E$21) -> 2 | P13: =IF(P11<='Key_Assumptions_&_Inputs'!$E$22,((1-'Key_Assumptions_&_Inputs'!$E$58)*'Key_Assumptions_&_Inputs'!$E$34/'Key_Assumptions_&_Inputs'!$E$21)/'Key_Assumptions_&_Inputs'!$E$22,0)+'Key_Assumptions_&_Inputs'!$E$59*((1-'Key_Assumptions_&_Inputs'!$E$58)*'Key_Assumptions_&_Inputs'!$E$34/'Key_Assumptions_&_Inputs'!$E$21) -> 2 | Q13: =IF(Q11<='Key_Assumptions_&_Inputs'!$E$22,((1-'Key_Assumptions_&_Inputs'!$E$58)*'Key_Assumptions_&_Inputs'!$E$34/'Key_Assumptions_&_Inputs'!$E$21)/'Key_Assumptions_&_Inputs'!$E$22,0)+'Key_Assumptions_&_Inputs'!$E$59*((1-'Key_Assumptions_&_Inputs'!$E$58)*'Key_Assumptions_&_Inputs'!$E$34/'Key_Assumptions_&_Inputs'!$E$21) -> 2 | R13: =IF(R11<='Key_Assumptions_&_Inputs'!$E$22,((1-'Key_Assumptions_&_Inputs'!$E$58)*'Key_Assumptions_&_Inputs'!$E$34/'Key_Assumptions_&_Inputs'!$E$21)/'Key_Assumptions_&_Inputs'!$E$22,0)+'Key_Assumptions_&_Inputs'!$E$59*((1-'Key_Assumptions_&_Inputs'!$E$58)*'Key_Assumptions_&_Inputs'!$E$34/'Key_Assumptions_&_Inputs'!$E$21) -> 2 | S13: =IF(S11<='Key_Assumptions_&_Inputs'!$E$22,((1-'Key_Assumptions_&_Inputs'!$E$58)*'Key_Assumptions_&_Inputs'!$E$34/'Key_Assumptions_&_Inputs'!$E$21)/'Key_Assumptions_&_Inputs'!$E$22,0)+'Key_Assumptions_&_Inputs'!$E$59*((1-'Key_Assumptions_&_Inputs'!$E$58)*'Key_Assumptions_&_Inputs'!$E$34/'Key_Assumptions_&_Inputs'!$E$21) -> 2 | T13: =IF(T11<='Key_Assumptions_&_Inputs'!$E$22,((1-'Key_Assumptions_&_Inputs'!$E$58)*'Key_Assumptions_&_Inputs'!$E$34/'Key_Assumptions_&_Inputs'!$E$21)/'Key_Assumptions_&_Inputs'!$E$22,0)+'Key_Assumptions_&_Inputs'!$E$59*((1-'Key_Assumptions_&_Inputs'!$E$58)*'Key_Assumptions_&_Inputs'!$E$34/'Key_Assumptions_&_Inputs'!$E$21) -> 2 | U13: =IF(U11<='Key_Assumptions_&_Inputs'!$E$22,((1-'Key_Assumptions_&_Inputs'!$E$58)*'Key_Assumptions_&_Inputs'!$E$34/'Key_Assumptions_&_Inputs'!$E$21)/'Key_Assumptions_&_Inputs'!$E$22,0)+'Key_Assumptions_&_Inputs'!$E$59*((1-'Key_Assumptions_&_Inputs'!$E$58)*'Key_Assumptions_&_Inputs'!$E$34/'Key_Assumptions_&_Inputs'!$E$21) -> 2 | V13: =IF(V11<='Key_Assumptions_&_Inputs'!$E$22,((1-'Key_Assumptions_&_Inputs'!$E$58)*'Key_Assumptions_&_Inputs'!$E$34/'Key_Assumptions_&_Inputs'!$E$21)/'Key_Assumptions_&_Inputs'!$E$22,0)+'Key_Assumptions_&_Inputs'!$E$59*((1-'Key_Assumptions_&_Inputs'!$E$58)*'Key_Assumptions_&_Inputs'!$E$34/'Key_Assumptions_&_Inputs'!$E$21) -> 2 | W13: =IF(W11<='Key_Assumptions_&_Inputs'!$E$22,((1-'Key_Assumptions_&_Inputs'!$E$58)*'Key_Assumptions_&_Inputs'!$E$34/'Key_Assumptions_&_Inputs'!$E$21)/'Key_Assumptions_&_Inputs'!$E$22,0)+'Key_Assumptions_&_Inputs'!$E$59*((1-'Key_Assumptions_&_Inputs'!$E$58)*'Key_Assumptions_&_Inputs'!$E$34/'Key_Assumptions_&_Inputs'!$E$21) -> 2 | X13: =IF(X11<='Key_Assumptions_&_Inputs'!$E$22,((1-'Key_Assumptions_&_Inputs'!$E$58)*'Key_Assumptions_&_Inputs'!$E$34/'Key_Assumptions_&_Inputs'!$E$21)/'Key_Assumptions_&_Inputs'!$E$22,0)+'Key_Assumptions_&_Inputs'!$E$59*((1-'Key_Assumptions_&_Inputs'!$E$58)*'Key_Assumptions_&_Inputs'!$E$34/'Key_Assumptions_&_Inputs'!$E$21) -> 2 | Y13: =IF(Y11<='Key_Assumptions_&_Inputs'!$E$22,((1-'Key_Assumptions_&_Inputs'!$E$58)*'Key_Assumptions_&_Inputs'!$E$34/'Key_Assumptions_&_Inputs'!$E$21)/'Key_Assumptions_&_Inputs'!$E$22,0)+'Key_Assumptions_&_Inputs'!$E$59*((1-'Key_Assumptions_&_Inputs'!$E$58)*'Key_Assumptions_&_Inputs'!$E$34/'Key_Assumptions_&_Inputs'!$E$21) -> 2 | Z13: =IF(Z11<='Key_Assumptions_&_Inputs'!$E$22,((1-'Key_Assumptions_&_Inputs'!$E$58)*'Key_Assumptions_&_Inputs'!$E$34/'Key_Assumptions_&_Inputs'!$E$21)/'Key_Assumptions_&_Inputs'!$E$22,0)+'Key_Assumptions_&_Inputs'!$E$59*((1-'Key_Assumptions_&_Inputs'!$E$58)*'Key_Assumptions_&_Inputs'!$E$34/'Key_Assumptions_&_Inputs'!$E$21) -> 2 | AA13: =IF(AA11<='Key_Assumptions_&_Inputs'!$E$22,((1-'Key_Assumptions_&_Inputs'!$E$58)*'Key_Assumptions_&_Inputs'!$E$34/'Key_Assumptions_&_Inputs'!$E$21)/'Key_Assumptions_&_Inputs'!$E$22,0)+'Key_Assumptions_&_Inputs'!$E$59*((1-'Key_Assumptions_&_Inputs'!$E$58)*'Key_Assumptions_&_Inputs'!$E$34/'Key_Assumptions_&_Inputs'!$E$21) -> 2 | AB13: =IF(AB11<='Key_Assumptions_&_Inputs'!$E$22,((1-'Key_Assumptions_&_Inputs'!$E$58)*'Key_Assumptions_&_Inputs'!$E$34/'Key_Assumptions_&_Inputs'!$E$21)/'Key_Assumptions_&_Inputs'!$E$22,0)+'Key_Assumptions_&_Inputs'!$E$59*((1-'Key_Assumptions_&_Inputs'!$E$58)*'Key_Assumptions_&_Inputs'!$E$34/'Key_Assumptions_&_Inputs'!$E$21) -> 2 | AC13: =IF(AC11<='Key_Assumptions_&_Inputs'!$E$22,((1-'Key_Assumptions_&_Inputs'!$E$58)*'Key_Assumptions_&_Inputs'!$E$34/'Key_Assumptions_&_Inputs'!$E$21)/'Key_Assumptions_&_Inputs'!$E$22,0)+'Key_Assumptions_&_Inputs'!$E$59*((1-'Key_Assumptions_&_Inputs'!$E$58)*'Key_Assumptions_&_Inputs'!$E$34/'Key_Assumptions_&_Inputs'!$E$21) -> 2
B14: Dropped Subscribers | D14: 0 | E14: 0 | F14: =('Key_Assumptions_&_Inputs'!$E$59*(1-'Key_Assumptions_&_Inputs'!$E$58)*('Key_Assumptions_&_Inputs'!$E$34/'Key_Assumptions_&_Inputs'!$E$21)) -> 2 | G14: =('Key_Assumptions_&_Inputs'!$E$59*(1-'Key_Assumptions_&_Inputs'!$E$58)*('Key_Assumptions_&_Inputs'!$E$34/'Key_Assumptions_&_Inputs'!$E$21)) -> 2 | H14: =('Key_Assumptions_&_Inputs'!$E$59*(1-'Key_Assumptions_&_Inputs'!$E$58)*('Key_Assumptions_&_Inputs'!$E$34/'Key_Assumptions_&_Inputs'!$E$21)) -> 2 | I14: =('Key_Assumptions_&_Inputs'!$E$59*(1-'Key_Assumptions_&_Inputs'!$E$58)*('Key_Assumptions_&_Inputs'!$E$34/'Key_Assumptions_&_Inputs'!$E$21)) -> 2 | J14: =('Key_Assumptions_&_Inputs'!$E$59*(1-'Key_Assumptions_&_Inputs'!$E$58)*('Key_Assumptions_&_Inputs'!$E$34/'Key_Assumptions_&_Inputs'!$E$21)) -> 2 | K14: =('Key_Assumptions_&_Inputs'!$E$59*(1-'Key_Assumptions_&_Inputs'!$E$58)*('Key_Assumptions_&_Inputs'!$E$34/'Key_Assumptions_&_Inputs'!$E$21)) -> 2 | L14: =('Key_Assumptions_&_Inputs'!$E$59*(1-'Key_Assumptions_&_Inputs'!$E$58)*('Key_Assumptions_&_Inputs'!$E$34/'Key_Assumptions_&_Inputs'!$E$21)) -> 2 | M14: =('Key_Assumptions_&_Inputs'!$E$59*(1-'Key_Assumptions_&_Inputs'!$E$58)*('Key_Assumptions_&_Inputs'!$E$34/'Key_Assumptions_&_Inputs'!$E$21)) -> 2 | N14: =('Key_Assumptions_&_Inputs'!$E$59*(1-'Key_Assumptions_&_Inputs'!$E$58)*('Key_Assumptions_&_Inputs'!$E$34/'Key_Assumptions_&_Inputs'!$E$21)) -> 2 | O14: =('Key_Assumptions_&_Inputs'!$E$59*(1-'Key_Assumptions_&_Inputs'!$E$58)*('Key_Assumptions_&_Inputs'!$E$34/'Key_Assumptions_&_Inputs'!$E$21)) -> 2 | P14: =('Key_Assumptions_&_Inputs'!$E$59*(1-'Key_Assumptions_&_Inputs'!$E$58)*('Key_Assumptions_&_Inputs'!$E$34/'Key_Assumptions_&_Inputs'!$E$21)) -> 2 | Q14: =('Key_Assumptions_&_Inputs'!$E$59*(1-'Key_Assumptions_&_Inputs'!$E$58)*('Key_Assumptions_&_Inputs'!$E$34/'Key_Assumptions_&_Inputs'!$E$21)) -> 2 | R14: =('Key_Assumptions_&_Inputs'!$E$59*(1-'Key_Assumptions_&_Inputs'!$E$58)*('Key_Assumptions_&_Inputs'!$E$34/'Key_Assumptions_&_Inputs'!$E$21)) -> 2 | S14: =('Key_Assumptions_&_Inputs'!$E$59*(1-'Key_Assumptions_&_Inputs'!$E$58)*('Key_Assumptions_&_Inputs'!$E$34/'Key_Assumptions_&_Inputs'!$E$21)) -> 2 | T14: =('Key_Assumptions_&_Inputs'!$E$59*(1-'Key_Assumptions_&_Inputs'!$E$58)*('Key_Assumptions_&_Inputs'!$E$34/'Key_Assumptions_&_Inputs'!$E$21)) -> 2 | U14: =('Key_Assumptions_&_Inputs'!$E$59*(1-'Key_Assumptions_&_Inputs'!$E$58)*('Key_Assumptions_&_Inputs'!$E$34/'Key_Assumptions_&_Inputs'!$E$21)) -> 2 | V14: =('Key_Assumptions_&_Inputs'!$E$59*(1-'Key_Assumptions_&_Inputs'!$E$58)*('Key_Assumptions_&_Inputs'!$E$34/'Key_Assumptions_&_Inputs'!$E$21)) -> 2 | W14: =('Key_Assumptions_&_Inputs'!$E$59*(1-'Key_Assumptions_&_Inputs'!$E$58)*('Key_Assumptions_&_Inputs'!$E$34/'Key_Assumptions_&_Inputs'!$E$21)) -> 2 | X14: =('Key_Assumptions_&_Inputs'!$E$59*(1-'Key_Assumptions_&_Inputs'!$E$58)*('Key_Assumptions_&_Inputs'!$E$34/'Key_Assumptions_&_Inputs'!$E$21)) -> 2 | Y14: =('Key_Assumptions_&_Inputs'!$E$59*(1-'Key_Assumptions_&_Inputs'!$E$58)*('Key_Assumptions_&_Inputs'!$E$34/'Key_Assumptions_&_Inputs'!$E$21)) -> 2 | Z14: =('Key_Assumptions_&_Inputs'!$E$59*(1-'Key_Assumptions_&_Inputs'!$E$58)*('Key_Assumptions_&_Inputs'!$E$34/'Key_Assumptions_&_Inputs'!$E$21)) -> 2 | AA14: =('Key_Assumptions_&_Inputs'!$E$59*(1-'Key_Assumptions_&_Inputs'!$E$58)*('Key_Assumptions_&_Inputs'!$E$34/'Key_Assumptions_&_Inputs'!$E$21)) -> 2 | AB14: =('Key_Assumptions_&_Inputs'!$E$59*(1-'Key_Assumptions_&_Inputs'!$E$58)*('Key_Assumptions_&_Inputs'!$E$34/'Key_Assumptions_&_Inputs'!$E$21)) -> 2 | AC14: =('Key_Assumptions_&_Inputs'!$E$59*(1-'Key_Assumptions_&_Inputs'!$E$58)*('Key_Assumptions_&_Inputs'!$E$34/'Key_Assumptions_&_Inputs'!$E$21)) -> 2
B15: Cumulative Subcribers | D15: 0 | E15: =E13-E14 -> 133.3333333 | F15: =E15+F13-F14 -> 133.3333333 | G15: 133.3333333 | H15: 133.3333333 | I15: 133.3333333 | J15: 133.3333333 | K15: 133.3333333 | L15: 133.3333333 | M15: 133.3333333 | N15: 133.3333333 | O15: 133.3333333 | P15: 133.3333333 | Q15: 133.3333333 | R15: 133.3333333 | S15: 133.3333333 | T15: 133.3333333 | U15: 133.3333333 | V15: 133.3333333 | W15: 133.3333333 | X15: 133.3333333 | Y15: 133.3333333 | Z15: 133.3333333 | AA15: 133.3333333 | AB15: 133.3333333 | AC15: 133.3333333
B18: Community Solar System Financials - System Owner
D19: Project Year: | E19: 0 | F19: 1 | G19: 2 | H19: 3 | I19: 4 | J19: 5 | K19: 6 | L19: 7 | M19: 8 | N19: 9 | O19: 10 | P19: 11 | Q19: 12 | R19: 13 | S19: 14 | T19: 15 | U19: 16 | V19: 17 | W19: 18 | X19: 19 | Y19: 20 | Z19: 21 | AA19: 22 | AB19: 23 | AC19: 24 | AD19: 25 | AE19: Totals
D20: Calendar Year: | E20: 2015 | F20: 2016 | G20: 2017 | H20: 2018 | I20: 2019 | J20: 2020 | K20: 2021 | L20: 2022 | M20: 2023 | N20: 2024 | O20: 2025 | P20: 2026 | Q20: 2027 | R20: 2028 | S20: 2029 | T20: 2030 | U20: 2031 | V20: 2032 | W20: 2033 | X20: 2034 | Y20: 2035 | Z20: 2035 | AA20: 2035 | AB20: 2035 | AC20: 2035 | AD20: 2035
B21: System Capital
B22: Cost of Land (upfront and/or lease) | D22: $ | E22: =IF(Community_Solar_Business_Case!E19=0,-'Key_Assumptions_&_Inputs'!$J$41-'Key_Assumptions_&_Inputs'!$J$42*1000*'Key_Assumptions_&_Inputs'!$E$17-'Key_Assumptions_&_Inputs'!$J$43,-'Key_Assumptions_&_Inputs'!$J$43) -> -67500 | F22: =IF(Community_Solar_Business_Case!F19=0,-'Key_Assumptions_&_Inputs'!$J$41-'Key_Assumptions_&_Inputs'!$J$42*1000*'Key_Assumptions_&_Inputs'!$E$17-'Key_Assumptions_&_Inputs'!$J$43,-'Key_Assumptions_&_Inputs'!$J$43) -> -7500 | G22: =IF(Community_Solar_Business_Case!G19=0,-'Key_Assumptions_&_Inputs'!$J$41-'Key_Assumptions_&_Inputs'!$J$42*1000*'Key_Assumptions_&_Inputs'!$E$17-'Key_Assumptions_&_Inputs'!$J$43,-'Key_Assumptions_&_Inputs'!$J$43) -> -7500 | H22: =IF(Community_Solar_Business_Case!H19=0,-'Key_Assumptions_&_Inputs'!$J$41-'Key_Assumptions_&_Inputs'!$J$42*1000*'Key_Assumptions_&_Inputs'!$E$17-'Key_Assumptions_&_Inputs'!$J$43,-'Key_Assumptions_&_Inputs'!$J$43) -> -7500 | I22: =IF(Community_Solar_Business_Case!I19=0,-'Key_Assumptions_&_Inputs'!$J$41-'Key_Assumptions_&_Inputs'!$J$42*1000*'Key_Assumptions_&_Inputs'!$E$17-'Key_Assumptions_&_Inputs'!$J$43,-'Key_Assumptions_&_Inputs'!$J$43) -> -7500 | J22: =IF(Community_Solar_Business_Case!J19=0,-'Key_Assumptions_&_Inputs'!$J$41-'Key_Assumptions_&_Inputs'!$J$42*1000*'Key_Assumptions_&_Inputs'!$E$17-'Key_Assumptions_&_Inputs'!$J$43,-'Key_Assumptions_&_Inputs'!$J$43) -> -7500 | K22: =IF(Community_Solar_Business_Case!K19=0,-'Key_Assumptions_&_Inputs'!$J$41-'Key_Assumptions_&_Inputs'!$J$42*1000*'Key_Assumptions_&_Inputs'!$E$17-'Key_Assumptions_&_Inputs'!$J$43,-'Key_Assumptions_&_Inputs'!$J$43) -> -7500 | L22: =IF(Community_Solar_Business_Case!L19=0,-'Key_Assumptions_&_Inputs'!$J$41-'Key_Assumptions_&_Inputs'!$J$42*1000*'Key_Assumptions_&_Inputs'!$E$17-'Key_Assumptions_&_Inputs'!$J$43,-'Key_Assumptions_&_Inputs'!$J$43) -> -7500 | M22: =IF(Community_Solar_Business_Case!M19=0,-'Key_Assumptions_&_Inputs'!$J$41-'Key_Assumptions_&_Inputs'!$J$42*1000*'Key_Assumptions_&_Inputs'!$E$17-'Key_Assumptions_&_Inputs'!$J$43,-'Key_Assumptions_&_Inputs'!$J$43) -> -7500 | N22: =IF(Community_Solar_Business_Case!N19=0,-'Key_Assumptions_&_Inputs'!$J$41-'Key_Assumptions_&_Inputs'!$J$42*1000*'Key_Assumptions_&_Inputs'!$E$17-'Key_Assumptions_&_Inputs'!$J$43,-'Key_Assumptions_&_Inputs'!$J$43) -> -7500 | O22: =IF(Community_Solar_Business_Case!O19=0,-'Key_Assumptions_&_Inputs'!$J$41-'Key_Assumptions_&_Inputs'!$J$42*1000*'Key_Assumptions_&_Inputs'!$E$17-'Key_Assumptions_&_Inputs'!$J$43,-'Key_Assumptions_&_Inputs'!$J$43) -> -7500 | P22: =IF(Community_Solar_Business_Case!P19=0,-'Key_Assumptions_&_Inputs'!$J$41-'Key_Assumptions_&_Inputs'!$J$42*1000*'Key_Assumptions_&_Inputs'!$E$17-'Key_Assumptions_&_Inputs'!$J$43,-'Key_Assumptions_&_Inputs'!$J$43) -> -7500 | Q22: =IF(Community_Solar_Business_Case!Q19=0,-'Key_Assumptions_&_Inputs'!$J$41-'Key_Assumptions_&_Inputs'!$J$42*1000*'Key_Assumptions_&_Inputs'!$E$17-'Key_Assumptions_&_Inputs'!$J$43,-'Key_Assumptions_&_Inputs'!$J$43) -> -7500 | R22: =IF(Community_Solar_Business_Case!R19=0,-'Key_Assumptions_&_Inputs'!$J$41-'Key_Assumptions_&_Inputs'!$J$42*1000*'Key_Assumptions_&_Inputs'!$E$17-'Key_Assumptions_&_Inputs'!$J$43,-'Key_Assumptions_&_Inputs'!$J$43) -> -7500 | S22: =IF(Community_Solar_Business_Case!S19=0,-'Key_Assumptions_&_Inputs'!$J$41-'Key_Assumptions_&_Inputs'!$J$42*1000*'Key_Assumptions_&_Inputs'!$E$17-'Key_Assumptions_&_Inputs'!$J$43,-'Key_Assumptions_&_Inputs'!$J$43) -> -7500 | T22: =IF(Community_Solar_Business_Case!T19=0,-'Key_Assumptions_&_Inputs'!$J$41-'Key_Assumptions_&_Inputs'!$J$42*1000*'Key_Assumptions_&_Inputs'!$E$17-'Key_Assumptions_&_Inputs'!$J$43,-'Key_Assumptions_&_Inputs'!$J$43) -> -7500 | U22: =IF(Community_Solar_Business_Case!U19=0,-'Key_Assumptions_&_Inputs'!$J$41-'Key_Assumptions_&_Inputs'!$J$42*1000*'Key_Assumptions_&_Inputs'!$E$17-'Key_Assumptions_&_Inputs'!$J$43,-'Key_Assumptions_&_Inputs'!$J$43) -> -7500 | V22: =IF(Community_Solar_Business_Case!V19=0,-'Key_Assumptions_&_Inputs'!$J$41-'Key_Assumptions_&_Inputs'!$J$42*1000*'Key_Assumptions_&_Inputs'!$E$17-'Key_Assumptions_&_Inputs'!$J$43,-'Key_Assumptions_&_Inputs'!$J$43) -> -7500 | W22: =IF(Community_Solar_Business_Case!W19=0,-'Key_Assumptions_&_Inputs'!$J$41-'Key_Assumptions_&_Inputs'!$J$42*1000*'Key_Assumptions_&_Inputs'!$E$17-'Key_Assumptions_&_Inputs'!$J$43,-'Key_Assumptions_&_Inputs'!$J$43) -> -7500 | X22: =IF(Community_Solar_Business_Case!X19=0,-'Key_Assumptions_&_Inputs'!$J$41-'Key_Assumptions_&_Inputs'!$J$42*1000*'Key_Assumptions_&_Inputs'!$E$17-'Key_Assumptions_&_Inputs'!$J$43,-'Key_Assumptions_&_Inputs'!$J$43) -> -7500 | Y22: =IF(Community_Solar_Business_Case!Y19=0,-'Key_Assumptions_&_Inputs'!$J$41-'Key_Assumptions_&_Inputs'!$J$42*1000*'Key_Assumptions_&_Inputs'!$E$17-'Key_Assumptions_&_Inputs'!$J$43,-'Key_Assumptions_&_Inputs'!$J$43) -> -7500 | Z22: =IF(Community_Solar_Business_Case!Z19=0,-'Key_Assumptions_&_Inputs'!$J$41-'Key_Assumptions_&_Inputs'!$J$42*1000*'Key_Assumptions_&_Inputs'!$E$17-'Key_Assumptions_&_Inputs'!$J$43,-'Key_Assumptions_&_Inputs'!$J$43) -> -7500 | AA22: =IF(Community_Solar_Business_Case!AA19=0,-'Key_Assumptions_&_Inputs'!$J$41-'Key_Assumptions_&_Inputs'!$J$42*1000*'Key_Assumptions_&_Inputs'!$E$17-'Key_Assumptions_&_Inputs'!$J$43,-'Key_Assumptions_&_Inputs'!$J$43) -> -7500 | AB22: =IF(Community_Solar_Business_Case!AB19=0,-'Key_Assumptions_&_Inputs'!$J$41-'Key_Assumptions_&_Inputs'!$J$42*1000*'Key_Assumptions_&_Inputs'!$E$17-'Key_Assumptions_&_Inputs'!$J$43,-'Key_Assumptions_&_Inputs'!$J$43) -> -7500 | AC22: =IF(Community_Solar_Business_Case!AC19=0,-'Key_Assumptions_&_Inputs'!$J$41-'Key_Assumptions_&_Inputs'!$J$42*1000*'Key_Assumptions_&_Inputs'!$E$17-'Key_Assumptions_&_Inputs'!$J$43,-'Key_Assumptions_&_Inputs'!$J$43) -> -7500 | AD22: =IF(Community_Solar_Business_Case!AD19=0,-'Key_Assumptions_&_Inputs'!$J$41-'Key_Assumptions_&_Inputs'!$J$42*1000*'Key_Assumptions_&_Inputs'!$E$17-'Key_Assumptions_&_Inputs'!$J$43,-'Key_Assumptions_&_Inputs'!$J$43) -> -7500 | AE22: =SUM(E22:AD22) -> -255000
B23: Equipment and Labor | D23: $ | E23: =IF(E19=0,-'Key_Assumptions_&_Inputs'!$J$38*1000*'Key_Assumptions_&_Inputs'!$E$17,0) -> -2250000 | F23: =IF(F19=0,-'Key_Assumptions_&_Inputs'!$J$38*1000*'Key_Assumptions_&_Inputs'!$E$17,0) -> 0 | G23: =IF(G19=0,-'Key_Assumptions_&_Inputs'!$J$38*1000*'Key_Assumptions_&_Inputs'!$E$17,0) -> 0 | H23: =IF(H19=0,-'Key_Assumptions_&_Inputs'!$J$38*1000*'Key_Assumptions_&_Inputs'!$E$17,0) -> 0 | I23: =IF(I19=0,-'Key_Assumptions_&_Inputs'!$J$38*1000*'Key_Assumptions_&_Inputs'!$E$17,0) -> 0 | J23: =IF(J19=0,-'Key_Assumptions_&_Inputs'!$J$38*1000*'Key_Assumptions_&_Inputs'!$E$17,0) -> 0 | K23: =IF(K19=0,-'Key_Assumptions_&_Inputs'!$J$38*1000*'Key_Assumptions_&_Inputs'!$E$17,0) -> 0 | L23: =IF(L19=0,-'Key_Assumptions_&_Inputs'!$J$38*1000*'Key_Assumptions_&_Inputs'!$E$17,0) -> 0 | M23: =IF(M19=0,-'Key_Assumptions_&_Inputs'!$J$38*1000*'Key_Assumptions_&_Inputs'!$E$17,0) -> 0 | N23: =IF(N19=0,-'Key_Assumptions_&_Inputs'!$J$38*1000*'Key_Assumptions_&_Inputs'!$E$17,0) -> 0 | O23: =IF(O19=0,-'Key_Assumptions_&_Inputs'!$J$38*1000*'Key_Assumptions_&_Inputs'!$E$17,0) -> 0 | P23: =IF(P19=0,-'Key_Assumptions_&_Inputs'!$J$38*1000*'Key_Assumptions_&_Inputs'!$E$17,0) -> 0 | Q23: =IF(Q19=0,-'Key_Assumptions_&_Inputs'!$J$38*1000*'Key_Assumptions_&_Inputs'!$E$17,0) -> 0 | R23: =IF(R19=0,-'Key_Assumptions_&_Inputs'!$J$38*1000*'Key_Assumptions_&_Inputs'!$E$17,0) -> 0 | S23: =IF(S19=0,-'Key_Assumptions_&_Inputs'!$J$38*1000*'Key_Assumptions_&_Inputs'!$E$17,0) -> 0 | T23: =IF(T19=0,-'Key_Assumptions_&_Inputs'!$J$38*1000*'Key_Assumptions_&_Inputs'!$E$17,0) -> 0 | U23: =IF(U19=0,-'Key_Assumptions_&_Inputs'!$J$38*1000*'Key_Assumptions_&_Inputs'!$E$17,0) -> 0 | V23: =IF(V19=0,-'Key_Assumptions_&_Inputs'!$J$38*1000*'Key_Assumptions_&_Inputs'!$E$17,0) -> 0 | W23: =IF(W19=0,-'Key_Assumptions_&_Inputs'!$J$38*1000*'Key_Assumptions_&_Inputs'!$E$17,0) -> 0 | X23: =IF(X19=0,-'Key_Assumptions_&_Inputs'!$J$38*1000*'Key_Assumptions_&_Inputs'!$E$17,0) -> 0 | Y23: =IF(Y19=0,-'Key_Assumptions_&_Inputs'!$J$38*1000*'Key_Assumptions_&_Inputs'!$E$17,0) -> 0 | Z23: =IF(Z19=0,-'Key_Assumptions_&_Inputs'!$J$38*1000*'Key_Assumptions_&_Inputs'!$E$17,0) -> 0 | AA23: =IF(AA19=0,-'Key_Assumptions_&_Inputs'!$J$38*1000*'Key_Assumptions_&_Inputs'!$E$17,0) -> 0 | AB23: =IF(AB19=0,-'Key_Assumptions_&_Inputs'!$J$38*1000*'Key_Assumptions_&_Inputs'!$E$17,0) -> 0 | AC23: =IF(AC19=0,-'Key_Assumptions_&_Inputs'!$J$38*1000*'Key_Assumptions_&_Inputs'!$E$17,0) -> 0 | AD23: =IF(AD19=0,-'Key_Assumptions_&_Inputs'!$J$38*1000*'Key_Assumptions_&_Inputs'!$E$17,0) -> 0 | AE23: =SUM(E23:AD23) -> -2250000
B24: Total System Capital Costs (gross) | D24: $ | E24: =SUM(E22:E23) -> -2317500 | F24: -7500 | G24: -7500 | H24: -7500 | I24: -7500 | J24: -7500 | K24: -7500 | L24: -7500 | M24: -7500 | N24: -7500 | O24: -7500 | P24: -7500 | Q24: -7500 | R24: -7500 | S24: -7500 | T24: -7500 | U24: -7500 | V24: -7500 | W24: -7500 | X24: -7500 | Y24: -7500 | Z24: -7500 | AA24: -7500 | AB24: -7500 | AC24: -7500 | AD24: -7500 | AE24: =SUM(E24:AD24) -> -2505000
B26: Project Financing
B27: Loan Amount | E27: =IF(E19=0,-'Key_Assumptions_&_Inputs'!$D$71*SUM(Community_Solar_Business_Case!$E$22:$E$23),0) -> 463500 | F27: =IF(F19=0,-'Key_Assumptions_&_Inputs'!$D$71*SUM(Community_Solar_Business_Case!$E$22:$E$23),0) -> 0 | G27: =IF(G19=0,-'Key_Assumptions_&_Inputs'!$D$71*SUM(Community_Solar_Business_Case!$E$22:$E$23),0) -> 0 | H27: =IF(H19=0,-'Key_Assumptions_&_Inputs'!$D$71*SUM(Community_Solar_Business_Case!$E$22:$E$23),0) -> 0 | I27: =IF(I19=0,-'Key_Assumptions_&_Inputs'!$D$71*SUM(Community_Solar_Business_Case!$E$22:$E$23),0) -> 0 | J27: =IF(J19=0,-'Key_Assumptions_&_Inputs'!$D$71*SUM(Community_Solar_Business_Case!$E$22:$E$23),0) -> 0 | K27: =IF(K19=0,-'Key_Assumptions_&_Inputs'!$D$71*SUM(Community_Solar_Business_Case!$E$22:$E$23),0) -> 0 | L27: =IF(L19=0,-'Key_Assumptions_&_Inputs'!$D$71*SUM(Community_Solar_Business_Case!$E$22:$E$23),0) -> 0 | M27: =IF(M19=0,-'Key_Assumptions_&_Inputs'!$D$71*SUM(Community_Solar_Business_Case!$E$22:$E$23),0) -> 0 | N27: =IF(N19=0,-'Key_Assumptions_&_Inputs'!$D$71*SUM(Community_Solar_Business_Case!$E$22:$E$23),0) -> 0 | O27: =IF(O19=0,-'Key_Assumptions_&_Inputs'!$D$71*SUM(Community_Solar_Business_Case!$E$22:$E$23),0) -> 0 | P27: =IF(P19=0,-'Key_Assumptions_&_Inputs'!$D$71*SUM(Community_Solar_Business_Case!$E$22:$E$23),0) -> 0 | Q27: =IF(Q19=0,-'Key_Assumptions_&_Inputs'!$D$71*SUM(Community_Solar_Business_Case!$E$22:$E$23),0) -> 0 | R27: =IF(R19=0,-'Key_Assumptions_&_Inputs'!$D$71*SUM(Community_Solar_Business_Case!$E$22:$E$23),0) -> 0 | S27: =IF(S19=0,-'Key_Assumptions_&_Inputs'!$D$71*SUM(Community_Solar_Business_Case!$E$22:$E$23),0) -> 0 | T27: =IF(T19=0,-'Key_Assumptions_&_Inputs'!$D$71*SUM(Community_Solar_Business_Case!$E$22:$E$23),0) -> 0 | U27: =IF(U19=0,-'Key_Assumptions_&_Inputs'!$D$71*SUM(Community_Solar_Business_Case!$E$22:$E$23),0) -> 0 | V27: =IF(V19=0,-'Key_Assumptions_&_Inputs'!$D$71*SUM(Community_Solar_Business_Case!$E$22:$E$23),0) -> 0 | W27: =IF(W19=0,-'Key_Assumptions_&_Inputs'!$D$71*SUM(Community_Solar_Business_Case!$E$22:$E$23),0) -> 0 | X27: =IF(X19=0,-'Key_Assumptions_&_Inputs'!$D$71*SUM(Community_Solar_Business_Case!$E$22:$E$23),0) -> 0 | Y27: =IF(Y19=0,-'Key_Assumptions_&_Inputs'!$D$71*SUM(Community_Solar_Business_Case!$E$22:$E$23),0) -> 0 | Z27: =IF(Z19=0,-'Key_Assumptions_&_Inputs'!$D$71*SUM(Community_Solar_Business_Case!$E$22:$E$23),0) -> 0 | AA27: =IF(AA19=0,-'Key_Assumptions_&_Inputs'!$D$71*SUM(Community_Solar_Business_Case!$E$22:$E$23),0) -> 0 | AB27: =IF(AB19=0,-'Key_Assumptions_&_Inputs'!$D$71*SUM(Community_Solar_Business_Case!$E$22:$E$23),0) -> 0 | AC27: =IF(AC19=0,-'Key_Assumptions_&_Inputs'!$D$71*SUM(Community_Solar_Business_Case!$E$22:$E$23),0) -> 0 | AD27: =IF(AD19=0,-'Key_Assumptions_&_Inputs'!$D$71*SUM(Community_Solar_Business_Case!$E$22:$E$23),0) -> 0
B28: Annual Payments | D28: $ | E28: =IF(E19=0,0,IF(E19<='Key_Assumptions_&_Inputs'!$D$73,-PMT('Key_Assumptions_&_Inputs'!$D$72/12,'Key_Assumptions_&_Inputs'!$D$73*12,'Key_Assumptions_&_Inputs'!$D$71*(Community_Solar_Business_Case!$E$22+Community_Solar_Business_Case!$E$23))*12,0)) -> 0 | F28: =IF(F19=0,0,IF(F19<='Key_Assumptions_&_Inputs'!$D$73,-PMT('Key_Assumptions_&_Inputs'!$D$72/12,'Key_Assumptions_&_Inputs'!$D$73*12,'Key_Assumptions_&_Inputs'!$D$71*(Community_Solar_Business_Case!$E$22+Community_Solar_Business_Case!$E$23))*12,0)) -> -107529.0421 | G28: =IF(G19=0,0,IF(G19<='Key_Assumptions_&_Inputs'!$D$73,-PMT('Key_Assumptions_&_Inputs'!$D$72/12,'Key_Assumptions_&_Inputs'!$D$73*12,'Key_Assumptions_&_Inputs'!$D$71*(Community_Solar_Business_Case!$E$22+Community_Solar_Business_Case!$E$23))*12,0)) -> -107529.0421 | H28: =IF(H19=0,0,IF(H19<='Key_Assumptions_&_Inputs'!$D$73,-PMT('Key_Assumptions_&_Inputs'!$D$72/12,'Key_Assumptions_&_Inputs'!$D$73*12,'Key_Assumptions_&_Inputs'!$D$71*(Community_Solar_Business_Case!$E$22+Community_Solar_Business_Case!$E$23))*12,0)) -> -107529.0421 | I28: =IF(I19=0,0,IF(I19<='Key_Assumptions_&_Inputs'!$D$73,-PMT('Key_Assumptions_&_Inputs'!$D$72/12,'Key_Assumptions_&_Inputs'!$D$73*12,'Key_Assumptions_&_Inputs'!$D$71*(Community_Solar_Business_Case!$E$22+Community_Solar_Business_Case!$E$23))*12,0)) -> -107529.0421 | J28: =IF(J19=0,0,IF(J19<='Key_Assumptions_&_Inputs'!$D$73,-PMT('Key_Assumptions_&_Inputs'!$D$72/12,'Key_Assumptions_&_Inputs'!$D$73*12,'Key_Assumptions_&_Inputs'!$D$71*(Community_Solar_Business_Case!$E$22+Community_Solar_Business_Case!$E$23))*12,0)) -> -107529.0421 | K28: =IF(K19=0,0,IF(K19<='Key_Assumptions_&_Inputs'!$D$73,-PMT('Key_Assumptions_&_Inputs'!$D$72/12,'Key_Assumptions_&_Inputs'!$D$73*12,'Key_Assumptions_&_Inputs'!$D$71*(Community_Solar_Business_Case!$E$22+Community_Solar_Business_Case!$E$23))*12,0)) -> 0 | L28: =IF(L19=0,0,IF(L19<='Key_Assumptions_&_Inputs'!$D$73,-PMT('Key_Assumptions_&_Inputs'!$D$72/12,'Key_Assumptions_&_Inputs'!$D$73*12,'Key_Assumptions_&_Inputs'!$D$71*(Community_Solar_Business_Case!$E$22+Community_Solar_Business_Case!$E$23))*12,0)) -> 0 | M28: =IF(M19=0,0,IF(M19<='Key_Assumptions_&_Inputs'!$D$73,-PMT('Key_Assumptions_&_Inputs'!$D$72/12,'Key_Assumptions_&_Inputs'!$D$73*12,'Key_Assumptions_&_Inputs'!$D$71*(Community_Solar_Business_Case!$E$22+Community_Solar_Business_Case!$E$23))*12,0)) -> 0 | N28: =IF(N19=0,0,IF(N19<='Key_Assumptions_&_Inputs'!$D$73,-PMT('Key_Assumptions_&_Inputs'!$D$72/12,'Key_Assumptions_&_Inputs'!$D$73*12,'Key_Assumptions_&_Inputs'!$D$71*(Community_Solar_Business_Case!$E$22+Community_Solar_Business_Case!$E$23))*12,0)) -> 0 | O28: =IF(O19=0,0,IF(O19<='Key_Assumptions_&_Inputs'!$D$73,-PMT('Key_Assumptions_&_Inputs'!$D$72/12,'Key_Assumptions_&_Inputs'!$D$73*12,'Key_Assumptions_&_Inputs'!$D$71*(Community_Solar_Business_Case!$E$22+Community_Solar_Business_Case!$E$23))*12,0)) -> 0 | P28: =IF(P19=0,0,IF(P19<='Key_Assumptions_&_Inputs'!$D$73,-PMT('Key_Assumptions_&_Inputs'!$D$72/12,'Key_Assumptions_&_Inputs'!$D$73*12,'Key_Assumptions_&_Inputs'!$D$71*(Community_Solar_Business_Case!$E$22+Community_Solar_Business_Case!$E$23))*12,0)) -> 0 | Q28: =IF(Q19=0,0,IF(Q19<='Key_Assumptions_&_Inputs'!$D$73,-PMT('Key_Assumptions_&_Inputs'!$D$72/12,'Key_Assumptions_&_Inputs'!$D$73*12,'Key_Assumptions_&_Inputs'!$D$71*(Community_Solar_Business_Case!$E$22+Community_Solar_Business_Case!$E$23))*12,0)) -> 0 | R28: =IF(R19=0,0,IF(R19<='Key_Assumptions_&_Inputs'!$D$73,-PMT('Key_Assumptions_&_Inputs'!$D$72/12,'Key_Assumptions_&_Inputs'!$D$73*12,'Key_Assumptions_&_Inputs'!$D$71*(Community_Solar_Business_Case!$E$22+Community_Solar_Business_Case!$E$23))*12,0)) -> 0 | S28: =IF(S19=0,0,IF(S19<='Key_Assumptions_&_Inputs'!$D$73,-PMT('Key_Assumptions_&_Inputs'!$D$72/12,'Key_Assumptions_&_Inputs'!$D$73*12,'Key_Assumptions_&_Inputs'!$D$71*(Community_Solar_Business_Case!$E$22+Community_Solar_Business_Case!$E$23))*12,0)) -> 0 | T28: =IF(T19=0,0,IF(T19<='Key_Assumptions_&_Inputs'!$D$73,-PMT('Key_Assumptions_&_Inputs'!$D$72/12,'Key_Assumptions_&_Inputs'!$D$73*12,'Key_Assumptions_&_Inputs'!$D$71*(Community_Solar_Business_Case!$E$22+Community_Solar_Business_Case!$E$23))*12,0)) -> 0 | U28: =IF(U19=0,0,IF(U19<='Key_Assumptions_&_Inputs'!$D$73,-PMT('Key_Assumptions_&_Inputs'!$D$72/12,'Key_Assumptions_&_Inputs'!$D$73*12,'Key_Assumptions_&_Inputs'!$D$71*(Community_Solar_Business_Case!$E$22+Community_Solar_Business_Case!$E$23))*12,0)) -> 0 | V28: =IF(V19=0,0,IF(V19<='Key_Assumptions_&_Inputs'!$D$73,-PMT('Key_Assumptions_&_Inputs'!$D$72/12,'Key_Assumptions_&_Inputs'!$D$73*12,'Key_Assumptions_&_Inputs'!$D$71*(Community_Solar_Business_Case!$E$22+Community_Solar_Business_Case!$E$23))*12,0)) -> 0 | W28: =IF(W19=0,0,IF(W19<='Key_Assumptions_&_Inputs'!$D$73,-PMT('Key_Assumptions_&_Inputs'!$D$72/12,'Key_Assumptions_&_Inputs'!$D$73*12,'Key_Assumptions_&_Inputs'!$D$71*(Community_Solar_Business_Case!$E$22+Community_Solar_Business_Case!$E$23))*12,0)) -> 0 | X28: =IF(X19=0,0,IF(X19<='Key_Assumptions_&_Inputs'!$D$73,-PMT('Key_Assumptions_&_Inputs'!$D$72/12,'Key_Assumptions_&_Inputs'!$D$73*12,'Key_Assumptions_&_Inputs'!$D$71*(Community_Solar_Business_Case!$E$22+Community_Solar_Business_Case!$E$23))*12,0)) -> 0 | Y28: =IF(Y19=0,0,IF(Y19<='Key_Assumptions_&_Inputs'!$D$73,-PMT('Key_Assumptions_&_Inputs'!$D$72/12,'Key_Assumptions_&_Inputs'!$D$73*12,'Key_Assumptions_&_Inputs'!$D$71*(Community_Solar_Business_Case!$E$22+Community_Solar_Business_Case!$E$23))*12,0)) -> 0 | Z28: =IF(Z19=0,0,IF(Z19<='Key_Assumptions_&_Inputs'!$D$73,-PMT('Key_Assumptions_&_Inputs'!$D$72/12,'Key_Assumptions_&_Inputs'!$D$73*12,'Key_Assumptions_&_Inputs'!$D$71*(Community_Solar_Business_Case!$E$22+Community_Solar_Business_Case!$E$23))*12,0)) -> 0 | AA28: =IF(AA19=0,0,IF(AA19<='Key_Assumptions_&_Inputs'!$D$73,-PMT('Key_Assumptions_&_Inputs'!$D$72/12,'Key_Assumptions_&_Inputs'!$D$73*12,'Key_Assumptions_&_Inputs'!$D$71*(Community_Solar_Business_Case!$E$22+Community_Solar_Business_Case!$E$23))*12,0)) -> 0 | AB28: =IF(AB19=0,0,IF(AB19<='Key_Assumptions_&_Inputs'!$D$73,-PMT('Key_Assumptions_&_Inputs'!$D$72/12,'Key_Assumptions_&_Inputs'!$D$73*12,'Key_Assumptions_&_Inputs'!$D$71*(Community_Solar_Business_Case!$E$22+Community_Solar_Business_Case!$E$23))*12,0)) -> 0 | AC28: =IF(AC19=0,0,IF(AC19<='Key_Assumptions_&_Inputs'!$D$73,-PMT('Key_Assumptions_&_Inputs'!$D$72/12,'Key_Assumptions_&_Inputs'!$D$73*12,'Key_Assumptions_&_Inputs'!$D$71*(Community_Solar_Business_Case!$E$22+Community_Solar_Business_Case!$E$23))*12,0)) -> 0 | AD28: =IF(AD19=0,0,IF(AD19<='Key_Assumptions_&_Inputs'!$D$73,-PMT('Key_Assumptions_&_Inputs'!$D$72/12,'Key_Assumptions_&_Inputs'!$D$73*12,'Key_Assumptions_&_Inputs'!$D$71*(Community_Solar_Business_Case!$E$22+Community_Solar_Business_Case!$E$23))*12,0)) -> 0
B29: Financing Costs | D29: $ | E29: =SUM(E27:E28) -> 463500 | F29: =SUM(F27:F28) -> -107529.0421 | G29: -107529.0421 | H29: -107529.0421 | I29: -107529.0421 | J29: -107529.0421 | K29: 0 | L29: 0 | M29: 0 | N29: 0 | O29: 0 | P29: 0 | Q29: 0 | R29: 0 | S29: 0 | T29: 0 | U29: 0 | V29: 0 | W29: 0 | X29: 0 | Y29: 0 | Z29: 0 | AA29: 0 | AB29: 0 | AC29: 0 | AD29: 0
B31: Operating Expenditures
B32: Upfront Administriative and Billing Costs | D32: $ | E32: =-IF(E19=0,'Admin_&_Transaction_Costs'!$D$24-'Admin_&_Transaction_Costs'!$D$23+'Key_Assumptions_&_Inputs'!$J$73,0) -> -35766.66667 | F32: =-IF(F19=0,'Admin_&_Transaction_Costs'!$D$24-'Admin_&_Transaction_Costs'!$D$23+'Key_Assumptions_&_Inputs'!$J$73,0) -> 0 | G32: =-IF(G19=0,'Admin_&_Transaction_Costs'!$D$24-'Admin_&_Transaction_Costs'!$D$23+'Key_Assumptions_&_Inputs'!$J$73,0) -> 0 | H32: =-IF(H19=0,'Admin_&_Transaction_Costs'!$D$24-'Admin_&_Transaction_Costs'!$D$23+'Key_Assumptions_&_Inputs'!$J$73,0) -> 0 | I32: =-IF(I19=0,'Admin_&_Transaction_Costs'!$D$24-'Admin_&_Transaction_Costs'!$D$23+'Key_Assumptions_&_Inputs'!$J$73,0) -> 0 | J32: =-IF(J19=0,'Admin_&_Transaction_Costs'!$D$24-'Admin_&_Transaction_Costs'!$D$23+'Key_Assumptions_&_Inputs'!$J$73,0) -> 0 | K32: =-IF(K19=0,'Admin_&_Transaction_Costs'!$D$24-'Admin_&_Transaction_Costs'!$D$23+'Key_Assumptions_&_Inputs'!$J$73,0) -> 0 | L32: =-IF(L19=0,'Admin_&_Transaction_Costs'!$D$24-'Admin_&_Transaction_Costs'!$D$23+'Key_Assumptions_&_Inputs'!$J$73,0) -> 0 | M32: =-IF(M19=0,'Admin_&_Transaction_Costs'!$D$24-'Admin_&_Transaction_Costs'!$D$23+'Key_Assumptions_&_Inputs'!$J$73,0) -> 0 | N32: =-IF(N19=0,'Admin_&_Transaction_Costs'!$D$24-'Admin_&_Transaction_Costs'!$D$23+'Key_Assumptions_&_Inputs'!$J$73,0) -> 0 | O32: =-IF(O19=0,'Admin_&_Transaction_Costs'!$D$24-'Admin_&_Transaction_Costs'!$D$23+'Key_Assumptions_&_Inputs'!$J$73,0) -> 0 | P32: =-IF(P19=0,'Admin_&_Transaction_Costs'!$D$24-'Admin_&_Transaction_Costs'!$D$23+'Key_Assumptions_&_Inputs'!$J$73,0) -> 0 | Q32: =-IF(Q19=0,'Admin_&_Transaction_Costs'!$D$24-'Admin_&_Transaction_Costs'!$D$23+'Key_Assumptions_&_Inputs'!$J$73,0) -> 0 | R32: =-IF(R19=0,'Admin_&_Transaction_Costs'!$D$24-'Admin_&_Transaction_Costs'!$D$23+'Key_Assumptions_&_Inputs'!$J$73,0) -> 0 | S32: =-IF(S19=0,'Admin_&_Transaction_Costs'!$D$24-'Admin_&_Transaction_Costs'!$D$23+'Key_Assumptions_&_Inputs'!$J$73,0) -> 0 | T32: =-IF(T19=0,'Admin_&_Transaction_Costs'!$D$24-'Admin_&_Transaction_Costs'!$D$23+'Key_Assumptions_&_Inputs'!$J$73,0) -> 0 | U32: =-IF(U19=0,'Admin_&_Transaction_Costs'!$D$24-'Admin_&_Transaction_Costs'!$D$23+'Key_Assumptions_&_Inputs'!$J$73,0) -> 0 | V32: =-IF(V19=0,'Admin_&_Transaction_Costs'!$D$24-'Admin_&_Transaction_Costs'!$D$23+'Key_Assumptions_&_Inputs'!$J$73,0) -> 0 | W32: =-IF(W19=0,'Admin_&_Transaction_Costs'!$D$24-'Admin_&_Transaction_Costs'!$D$23+'Key_Assumptions_&_Inputs'!$J$73,0) -> 0 | X32: =-IF(X19=0,'Admin_&_Transaction_Costs'!$D$24-'Admin_&_Transaction_Costs'!$D$23+'Key_Assumptions_&_Inputs'!$J$73,0) -> 0 | Y32: =-IF(Y19=0,'Admin_&_Transaction_Costs'!$D$24-'Admin_&_Transaction_Costs'!$D$23+'Key_Assumptions_&_Inputs'!$J$73,0) -> 0 | Z32: =-IF(Z19=0,'Admin_&_Transaction_Costs'!$D$24-'Admin_&_Transaction_Costs'!$D$23+'Key_Assumptions_&_Inputs'!$J$73,0) -> 0 | AA32: =-IF(AA19=0,'Admin_&_Transaction_Costs'!$D$24-'Admin_&_Transaction_Costs'!$D$23+'Key_Assumptions_&_Inputs'!$J$73,0) -> 0 | AB32: =-IF(AB19=0,'Admin_&_Transaction_Costs'!$D$24-'Admin_&_Transaction_Costs'!$D$23+'Key_Assumptions_&_Inputs'!$J$73,0) -> 0 | AC32: =-IF(AC19=0,'Admin_&_Transaction_Costs'!$D$24-'Admin_&_Transaction_Costs'!$D$23+'Key_Assumptions_&_Inputs'!$J$73,0) -> 0 | AD32: =-IF(AD19=0,'Admin_&_Transaction_Costs'!$D$24-'Admin_&_Transaction_Costs'!$D$23+'Key_Assumptions_&_Inputs'!$J$73,0) -> 0 | AE32: =SUM(E32:AD32) -> -35766.66667
B33: Ongoing Transactional and Billing Costs | D33: $ | E33: =IF(E19=0,0,-'Admin_&_Transaction_Costs'!D79-'Key_Assumptions_&_Inputs'!$J$74) -> 0 | F33: =IF(F19=0,0,-'Admin_&_Transaction_Costs'!E79-'Key_Assumptions_&_Inputs'!$J$74) -> -38019 | G33: =IF(G19=0,0,-'Admin_&_Transaction_Costs'!F79-'Key_Assumptions_&_Inputs'!$J$74) -> -10178.11219 | H33: =IF(H19=0,0,-'Admin_&_Transaction_Costs'!G79-'Key_Assumptions_&_Inputs'!$J$74) -> -8853.487755 | I33: =IF(I19=0,0,-'Admin_&_Transaction_Costs'!H79-'Key_Assumptions_&_Inputs'!$J$74) -> -8892.435824 | J33: =IF(J19=0,0,-'Admin_&_Transaction_Costs'!I79-'Key_Assumptions_&_Inputs'!$J$74) -> -9040.298268 | K33: =IF(K19=0,0,-'Admin_&_Transaction_Costs'!J79-'Key_Assumptions_&_Inputs'!$J$74) -> -9307.007216 | L33: =IF(L19=0,0,-'Admin_&_Transaction_Costs'!K79-'Key_Assumptions_&_Inputs'!$J$74) -> -9581.717433 | M33: =IF(M19=0,0,-'Admin_&_Transaction_Costs'!L79-'Key_Assumptions_&_Inputs'!$J$74) -> -9864.668956 | N33: =IF(N19=0,0,-'Admin_&_Transaction_Costs'!M79-'Key_Assumptions_&_Inputs'!$J$74) -> -10156.10902 | O33: =IF(O19=0,0,-'Admin_&_Transaction_Costs'!N79-'Key_Assumptions_&_Inputs'!$J$74) -> -10456.29229 | P33: =IF(P19=0,0,-'Admin_&_Transaction_Costs'!O79-'Key_Assumptions_&_Inputs'!$J$74) -> -10765.48106 | Q33: =IF(Q19=0,0,-'Admin_&_Transaction_Costs'!P79-'Key_Assumptions_&_Inputs'!$J$74) -> -11083.9455 | R33: =IF(R19=0,0,-'Admin_&_Transaction_Costs'!Q79-'Key_Assumptions_&_Inputs'!$J$74) -> -11411.96386 | S33: =IF(S19=0,0,-'Admin_&_Transaction_Costs'!R79-'Key_Assumptions_&_Inputs'!$J$74) -> -11749.82278 | T33: =IF(T19=0,0,-'Admin_&_Transaction_Costs'!S79-'Key_Assumptions_&_Inputs'!$J$74) -> -12097.81746 | U33: =IF(U19=0,0,-'Admin_&_Transaction_Costs'!T79-'Key_Assumptions_&_Inputs'!$J$74) -> -12456.25198 | V33: =IF(V19=0,0,-'Admin_&_Transaction_Costs'!U79-'Key_Assumptions_&_Inputs'!$J$74) -> -12825.43954 | W33: =IF(W19=0,0,-'Admin_&_Transaction_Costs'!V79-'Key_Assumptions_&_Inputs'!$J$74) -> -13205.70273 | X33: =IF(X19=0,0,-'Admin_&_Transaction_Costs'!W79-'Key_Assumptions_&_Inputs'!$J$74) -> -13597.37381 | Y33: =IF(Y19=0,0,-'Admin_&_Transaction_Costs'!X79-'Key_Assumptions_&_Inputs'!$J$74) -> -14000.79503 | Z33: =IF(Z19=0,0,-'Admin_&_Transaction_Costs'!Y79-'Key_Assumptions_&_Inputs'!$J$74) -> -14416.31888 | AA33: =IF(AA19=0,0,-'Admin_&_Transaction_Costs'!Z79-'Key_Assumptions_&_Inputs'!$J$74) -> -14844.30844 | AB33: =IF(AB19=0,0,-'Admin_&_Transaction_Costs'!AA79-'Key_Assumptions_&_Inputs'!$J$74) -> -15285.1377 | AC33: =IF(AC19=0,0,-'Admin_&_Transaction_Costs'!AB79-'Key_Assumptions_&_Inputs'!$J$74) -> -15739.19183 | AD33: =IF(AD19=0,0,-'Admin_&_Transaction_Costs'!AC79-'Key_Assumptions_&_Inputs'!$J$74) -> -16206.86758 | AE33: -324035.5471
B34: Operations & Maintenance | D34: $ | E34: =IF(E19=0,0,-'Key_Assumptions_&_Inputs'!$J$47*'Key_Assumptions_&_Inputs'!$E$17) -> 0 | F34: =IF(F19=0,0,-'Key_Assumptions_&_Inputs'!$J$47*'Key_Assumptions_&_Inputs'!$E$17) -> -15000 | G34: =IF(G19=0,0,-'Key_Assumptions_&_Inputs'!$J$47*'Key_Assumptions_&_Inputs'!$E$17) -> -15000 | H34: =IF(H19=0,0,-'Key_Assumptions_&_Inputs'!$J$47*'Key_Assumptions_&_Inputs'!$E$17) -> -15000 | I34: =IF(I19=0,0,-'Key_Assumptions_&_Inputs'!$J$47*'Key_Assumptions_&_Inputs'!$E$17) -> -15000 | J34: =IF(J19=0,0,-'Key_Assumptions_&_Inputs'!$J$47*'Key_Assumptions_&_Inputs'!$E$17) -> -15000 | K34: =IF(K19=0,0,-'Key_Assumptions_&_Inputs'!$J$47*'Key_Assumptions_&_Inputs'!$E$17) -> -15000 | L34: =IF(L19=0,0,-'Key_Assumptions_&_Inputs'!$J$47*'Key_Assumptions_&_Inputs'!$E$17) -> -15000 | M34: =IF(M19=0,0,-'Key_Assumptions_&_Inputs'!$J$47*'Key_Assumptions_&_Inputs'!$E$17) -> -15000 | N34: =IF(N19=0,0,-'Key_Assumptions_&_Inputs'!$J$47*'Key_Assumptions_&_Inputs'!$E$17) -> -15000 | O34: =IF(O19=0,0,-'Key_Assumptions_&_Inputs'!$J$47*'Key_Assumptions_&_Inputs'!$E$17) -> -15000 | P34: =IF(P19=0,0,-'Key_Assumptions_&_Inputs'!$J$47*'Key_Assumptions_&_Inputs'!$E$17) -> -15000 | Q34: =IF(Q19=0,0,-'Key_Assumptions_&_Inputs'!$J$47*'Key_Assumptions_&_Inputs'!$E$17) -> -15000 | R34: =IF(R19=0,0,-'Key_Assumptions_&_Inputs'!$J$47*'Key_Assumptions_&_Inputs'!$E$17) -> -15000 | S34: =IF(S19=0,0,-'Key_Assumptions_&_Inputs'!$J$47*'Key_Assumptions_&_Inputs'!$E$17) -> -15000 | T34: =IF(T19=0,0,-'Key_Assumptions_&_Inputs'!$J$47*'Key_Assumptions_&_Inputs'!$E$17) -> -15000 | U34: =IF(U19=0,0,-'Key_Assumptions_&_Inputs'!$J$47*'Key_Assumptions_&_Inputs'!$E$17) -> -15000 | V34: =IF(V19=0,0,-'Key_Assumptions_&_Inputs'!$J$47*'Key_Assumptions_&_Inputs'!$E$17) -> -15000 | W34: =IF(W19=0,0,-'Key_Assumptions_&_Inputs'!$J$47*'Key_Assumptions_&_Inputs'!$E$17) -> -15000 | X34: =IF(X19=0,0,-'Key_Assumptions_&_Inputs'!$J$47*'Key_Assumptions_&_Inputs'!$E$17) -> -15000 | Y34: =IF(Y19=0,0,-'Key_Assumptions_&_Inputs'!$J$47*'Key_Assumptions_&_Inputs'!$E$17) -> -15000 | Z34: =IF(Z19=0,0,-'Key_Assumptions_&_Inputs'!$J$47*'Key_Assumptions_&_Inputs'!$E$17) -> -15000 | AA34: =IF(AA19=0,0,-'Key_Assumptions_&_Inputs'!$J$47*'Key_Assumptions_&_Inputs'!$E$17) -> -15000 | AB34: =IF(AB19=0,0,-'Key_Assumptions_&_Inputs'!$J$47*'Key_Assumptions_&_Inputs'!$E$17) -> -15000 | AC34: =IF(AC19=0,0,-'Key_Assumptions_&_Inputs'!$J$47*'Key_Assumptions_&_Inputs'!$E$17) -> -15000 | AD34: =IF(AD19=0,0,-'Key_Assumptions_&_Inputs'!$J$47*'Key_Assumptions_&_Inputs'!$E$17) -> -15000 | AE34: -375000
B35: System Removal Costs | D35: $ | E35: =IF(E19=25,-'Key_Assumptions_&_Inputs'!$J$44,0) -> 0 | F35: =IF(F19=25,-'Key_Assumptions_&_Inputs'!$J$44,0) -> 0 | G35: =IF(G19=25,-'Key_Assumptions_&_Inputs'!$J$44,0) -> 0 | H35: =IF(H19=25,-'Key_Assumptions_&_Inputs'!$J$44,0) -> 0 | I35: =IF(I19=25,-'Key_Assumptions_&_Inputs'!$J$44,0) -> 0 | J35: =IF(J19=25,-'Key_Assumptions_&_Inputs'!$J$44,0) -> 0 | K35: =IF(K19=25,-'Key_Assumptions_&_Inputs'!$J$44,0) -> 0 | L35: =IF(L19=25,-'Key_Assumptions_&_Inputs'!$J$44,0) -> 0 | M35: =IF(M19=25,-'Key_Assumptions_&_Inputs'!$J$44,0) -> 0 | N35: =IF(N19=25,-'Key_Assumptions_&_Inputs'!$J$44,0) -> 0 | O35: =IF(O19=25,-'Key_Assumptions_&_Inputs'!$J$44,0) -> 0 | P35: =IF(P19=25,-'Key_Assumptions_&_Inputs'!$J$44,0) -> 0 | Q35: =IF(Q19=25,-'Key_Assumptions_&_Inputs'!$J$44,0) -> 0 | R35: =IF(R19=25,-'Key_Assumptions_&_Inputs'!$J$44,0) -> 0 | S35: =IF(S19=25,-'Key_Assumptions_&_Inputs'!$J$44,0) -> 0 | T35: =IF(T19=25,-'Key_Assumptions_&_Inputs'!$J$44,0) -> 0 | U35: =IF(U19=25,-'Key_Assumptions_&_Inputs'!$J$44,0) -> 0 | V35: =IF(V19=25,-'Key_Assumptions_&_Inputs'!$J$44,0) -> 0 | W35: =IF(W19=25,-'Key_Assumptions_&_Inputs'!$J$44,0) -> 0 | X35: =IF(X19=25,-'Key_Assumptions_&_Inputs'!$J$44,0) -> 0 | Y35: =IF(Y19=25,-'Key_Assumptions_&_Inputs'!$J$44,0) -> 0 | Z35: =IF(Z19=25,-'Key_Assumptions_&_Inputs'!$J$44,0) -> 0 | AA35: =IF(AA19=25,-'Key_Assumptions_&_Inputs'!$J$44,0) -> 0 | AB35: =IF(AB19=25,-'Key_Assumptions_&_Inputs'!$J$44,0) -> 0 | AC35: =IF(AC19=25,-'Key_Assumptions_&_Inputs'!$J$44,0) -> 0 | AD35: =IF(AD19=25,-'Key_Assumptions_&_Inputs'!$J$44,0) -> 0 | AE35: 0
B36: Total Operating Costs | D36: $ | E36: =SUM(E32:E35) -> -35766.66667 | F36: =SUM(F32:F35) -> -53019 | G36: -25178.11219 | H36: -23853.48776 | I36: -23892.43582 | J36: -24040.29827 | K36: -24307.00722 | L36: -24581.71743 | M36: -24864.66896 | N36: -25156.10902 | O36: -25456.29229 | P36: -25765.48106 | Q36: -26083.9455 | R36: -26411.96386 | S36: -26749.82278 | T36: -27097.81746 | U36: -27456.25198 | V36: -27825.43954 | W36: -28205.70273 | X36: -28597.37381 | Y36: -29000.79503 | Z36: -29416.31888 | AA36: -29844.30844 | AB36: -30285.1377 | AC36: -30739.19183 | AD36: -31206.86758 | AE36: -734802.2138
B38: Incentive Payments
B39: Federal ITC Cash Equivalent | D39: $ | E39: =IF(AND(E19=0,'Key_Assumptions_&_Inputs'!$E$20="Non Tax-Exempt Entity"),'Key_Assumptions_&_Inputs'!$J$57*-E23,0) -> 675000 | F39: =IF(AND(F19=0,'Key_Assumptions_&_Inputs'!$E$20="Non Tax-Exempt Entity"),'Key_Assumptions_&_Inputs'!$J$57*-F23,0) -> 0 | G39: =IF(AND(G19=0,'Key_Assumptions_&_Inputs'!$E$20="Non Tax-Exempt Entity"),'Key_Assumptions_&_Inputs'!$J$57*-G23,0) -> 0 | H39: =IF(AND(H19=0,'Key_Assumptions_&_Inputs'!$E$20="Non Tax-Exempt Entity"),'Key_Assumptions_&_Inputs'!$J$57*-H23,0) -> 0 | I39: =IF(AND(I19=0,'Key_Assumptions_&_Inputs'!$E$20="Non Tax-Exempt Entity"),'Key_Assumptions_&_Inputs'!$J$57*-I23,0) -> 0 | J39: =IF(AND(J19=0,'Key_Assumptions_&_Inputs'!$E$20="Non Tax-Exempt Entity"),'Key_Assumptions_&_Inputs'!$J$57*-J23,0) -> 0 | K39: =IF(AND(K19=0,'Key_Assumptions_&_Inputs'!$E$20="Non Tax-Exempt Entity"),'Key_Assumptions_&_Inputs'!$J$57*-K23,0) -> 0 | L39: =IF(AND(L19=0,'Key_Assumptions_&_Inputs'!$E$20="Non Tax-Exempt Entity"),'Key_Assumptions_&_Inputs'!$J$57*-L23,0) -> 0 | M39: =IF(AND(M19=0,'Key_Assumptions_&_Inputs'!$E$20="Non Tax-Exempt Entity"),'Key_Assumptions_&_Inputs'!$J$57*-M23,0) -> 0 | N39: =IF(AND(N19=0,'Key_Assumptions_&_Inputs'!$E$20="Non Tax-Exempt Entity"),'Key_Assumptions_&_Inputs'!$J$57*-N23,0) -> 0 | O39: =IF(AND(O19=0,'Key_Assumptions_&_Inputs'!$E$20="Non Tax-Exempt Entity"),'Key_Assumptions_&_Inputs'!$J$57*-O23,0) -> 0 | P39: =IF(AND(P19=0,'Key_Assumptions_&_Inputs'!$E$20="Non Tax-Exempt Entity"),'Key_Assumptions_&_Inputs'!$J$57*-P23,0) -> 0 | Q39: =IF(AND(Q19=0,'Key_Assumptions_&_Inputs'!$E$20="Non Tax-Exempt Entity"),'Key_Assumptions_&_Inputs'!$J$57*-Q23,0) -> 0 | R39: =IF(AND(R19=0,'Key_Assumptions_&_Inputs'!$E$20="Non Tax-Exempt Entity"),'Key_Assumptions_&_Inputs'!$J$57*-R23,0) -> 0 | S39: =IF(AND(S19=0,'Key_Assumptions_&_Inputs'!$E$20="Non Tax-Exempt Entity"),'Key_Assumptions_&_Inputs'!$J$57*-S23,0) -> 0 | T39: =IF(AND(T19=0,'Key_Assumptions_&_Inputs'!$E$20="Non Tax-Exempt Entity"),'Key_Assumptions_&_Inputs'!$J$57*-T23,0) -> 0 | U39: =IF(AND(U19=0,'Key_Assumptions_&_Inputs'!$E$20="Non Tax-Exempt Entity"),'Key_Assumptions_&_Inputs'!$J$57*-U23,0) -> 0 | V39: =IF(AND(V19=0,'Key_Assumptions_&_Inputs'!$E$20="Non Tax-Exempt Entity"),'Key_Assumptions_&_Inputs'!$J$57*-V23,0) -> 0 | W39: =IF(AND(W19=0,'Key_Assumptions_&_Inputs'!$E$20="Non Tax-Exempt Entity"),'Key_Assumptions_&_Inputs'!$J$57*-W23,0) -> 0 | X39: =IF(AND(X19=0,'Key_Assumptions_&_Inputs'!$E$20="Non Tax-Exempt Entity"),'Key_Assumptions_&_Inputs'!$J$57*-X23,0) -> 0 | Y39: =IF(AND(Y19=0,'Key_Assumptions_&_Inputs'!$E$20="Non Tax-Exempt Entity"),'Key_Assumptions_&_Inputs'!$J$57*-Y23,0) -> 0 | Z39: =IF(AND(Z19=0,'Key_Assumptions_&_Inputs'!$E$20="Non Tax-Exempt Entity"),'Key_Assumptions_&_Inputs'!$J$57*-Z23,0) -> 0 | AA39: =IF(AND(AA19=0,'Key_Assumptions_&_Inputs'!$E$20="Non Tax-Exempt Entity"),'Key_Assumptions_&_Inputs'!$J$57*-AA23,0) -> 0 | AB39: =IF(AND(AB19=0,'Key_Assumptions_&_Inputs'!$E$20="Non Tax-Exempt Entity"),'Key_Assumptions_&_Inputs'!$J$57*-AB23,0) -> 0 | AC39: =IF(AND(AC19=0,'Key_Assumptions_&_Inputs'!$E$20="Non Tax-Exempt Entity"),'Key_Assumptions_&_Inputs'!$J$57*-AC23,0) -> 0 | AD39: =IF(AND(AD19=0,'Key_Assumptions_&_Inputs'!$E$20="Non Tax-Exempt Entity"),'Key_Assumptions_&_Inputs'!$J$57*-AD23,0) -> 0 | AE39: =SUM(E39:AD39) -> 675000
B40: Federal MACRS Cash Equivalent | D40: $ | E40: =IF(AND('Key_Assumptions_&_Inputs'!$E$20="Non Tax-Exempt Entity",E19=1),(-Community_Solar_Business_Case!$E$23-(Community_Solar_Business_Case!$E$39/2))*0.2*'Key_Assumptions_&_Inputs'!$J$64,0) +IF(AND('Key_Assumptions_&_Inputs'!$E$20="Non Tax-Exempt Entity",E19=2),(-Community_Solar_Business_Case!$E$23-(Community_Solar_Business_Case!$E$39/2))*0.32*'Key_Assumptions_&_Inputs'!$J$64,0) +IF(AND('Key_Assumptions_&_Inputs'!$E$20="Non Tax-Exempt Entity",E19=3),(-Community_Solar_Business_Case!$E$23-(Community_Solar_Business_Case!$E$39/2))*0.192*'Key_Assumptions_&_Inputs'!$J$64,0) +IF(AND('Key_Assumptions_&_Inputs'!$E$20="Non Tax-Exempt Entity",E19=4),(-Community_Solar_Business_Case!$E$23-(Community_Solar_Business_Case!$E$39/2))*0.1152*'Key_Assumptions_&_Inputs'!$J$64,0) +IF(AND('Key_Assumptions_&_Inputs'!$E$20="Non Tax-Exempt Entity",E19=5),(-Community_Solar_Business_Case!$E$23-(Community_Solar_Business_Case!$E$39/2))*0.1152*'Key_Assumptions_&_Inputs'!$J$64,0) +IF(AND('Key_Assumptions_&_Inputs'!$E$20="Non Tax-Exempt Entity",E19=2),(-Community_Solar_Business_Case!$E$23-(Community_Solar_Business_Case!$E$39/2))*0.0576*'Key_Assumptions_&_Inputs'!$J$64,0) -> 0 | F40: =IF(AND('Key_Assumptions_&_Inputs'!$E$20="Non Tax-Exempt Entity",F19=1),(-Community_Solar_Business_Case!$E$23-(Community_Solar_Business_Case!$E$39/2))*0.2*'Key_Assumptions_&_Inputs'!$J$64,0) +IF(AND('Key_Assumptions_&_Inputs'!$E$20="Non Tax-Exempt Entity",F19=2),(-Community_Solar_Business_Case!$E$23-(Community_Solar_Business_Case!$E$39/2))*0.32*'Key_Assumptions_&_Inputs'!$J$64,0) +IF(AND('Key_Assumptions_&_Inputs'!$E$20="Non Tax-Exempt Entity",F19=3),(-Community_Solar_Business_Case!$E$23-(Community_Solar_Business_Case!$E$39/2))*0.192*'Key_Assumptions_&_Inputs'!$J$64,0) +IF(AND('Key_Assumptions_&_Inputs'!$E$20="Non Tax-Exempt Entity",F19=4),(-Community_Solar_Business_Case!$E$23-(Community_Solar_Business_Case!$E$39/2))*0.1152*'Key_Assumptions_&_Inputs'!$J$64,0) +IF(AND('Key_Assumptions_&_Inputs'!$E$20="Non Tax-Exempt Entity",F19=5),(-Community_Solar_Business_Case!$E$23-(Community_Solar_Business_Case!$E$39/2))*0.1152*'Key_Assumptions_&_Inputs'!$J$64,0) +IF(AND('Key_Assumptions_&_Inputs'!$E$20="Non Tax-Exempt Entity",F19=6),(-Community_Solar_Business_Case!$E$23-(Community_Solar_Business_Case!$E$39/2))*0.0576*'Key_Assumptions_&_Inputs'!$J$64,0) -> 133875 | G40: =IF(AND('Key_Assumptions_&_Inputs'!$E$20="Non Tax-Exempt Entity",G19=1),(-Community_Solar_Business_Case!$E$23-(Community_Solar_Business_Case!$E$39/2))*0.2*'Key_Assumptions_&_Inputs'!$J$64,0) +IF(AND('Key_Assumptions_&_Inputs'!$E$20="Non Tax-Exempt Entity",G19=2),(-Community_Solar_Business_Case!$E$23-(Community_Solar_Business_Case!$E$39/2))*0.32*'Key_Assumptions_&_Inputs'!$J$64,0) +IF(AND('Key_Assumptions_&_Inputs'!$E$20="Non Tax-Exempt Entity",G19=3),(-Community_Solar_Business_Case!$E$23-(Community_Solar_Business_Case!$E$39/2))*0.192*'Key_Assumptions_&_Inputs'!$J$64,0) +IF(AND('Key_Assumptions_&_Inputs'!$E$20="Non Tax-Exempt Entity",G19=4),(-Community_Solar_Business_Case!$E$23-(Community_Solar_Business_Case!$E$39/2))*0.1152*'Key_Assumptions_&_Inputs'!$J$64,0) +IF(AND('Key_Assumptions_&_Inputs'!$E$20="Non Tax-Exempt Entity",G19=5),(-Community_Solar_Business_Case!$E$23-(Community_Solar_Business_Case!$E$39/2))*0.1152*'Key_Assumptions_&_Inputs'!$J$64,0) +IF(AND('Key_Assumptions_&_Inputs'!$E$20="Non Tax-Exempt Entity",G19=6),(-Community_Solar_Business_Case!$E$23-(Community_Solar_Business_Case!$E$39/2))*0.0576*'Key_Assumptions_&_Inputs'!$J$64,0) -> 214200 | H40: =IF(AND('Key_Assumptions_&_Inputs'!$E$20="Non Tax-Exempt Entity",H19=1),(-Community_Solar_Business_Case!$E$23-(Community_Solar_Business_Case!$E$39/2))*0.2*'Key_Assumptions_&_Inputs'!$J$64,0) +IF(AND('Key_Assumptions_&_Inputs'!$E$20="Non Tax-Exempt Entity",H19=2),(-Community_Solar_Business_Case!$E$23-(Community_Solar_Business_Case!$E$39/2))*0.32*'Key_Assumptions_&_Inputs'!$J$64,0) +IF(AND('Key_Assumptions_&_Inputs'!$E$20="Non Tax-Exempt Entity",H19=3),(-Community_Solar_Business_Case!$E$23-(Community_Solar_Business_Case!$E$39/2))*0.192*'Key_Assumptions_&_Inputs'!$J$64,0) +IF(AND('Key_Assumptions_&_Inputs'!$E$20="Non Tax-Exempt Entity",H19=4),(-Community_Solar_Business_Case!$E$23-(Community_Solar_Business_Case!$E$39/2))*0.1152*'Key_Assumptions_&_Inputs'!$J$64,0) +IF(AND('Key_Assumptions_&_Inputs'!$E$20="Non Tax-Exempt Entity",H19=5),(-Community_Solar_Business_Case!$E$23-(Community_Solar_Business_Case!$E$39/2))*0.1152*'Key_Assumptions_&_Inputs'!$J$64,0) +IF(AND('Key_Assumptions_&_Inputs'!$E$20="Non Tax-Exempt Entity",H19=6),(-Community_Solar_Business_Case!$E$23-(Community_Solar_Business_Case!$E$39/2))*0.0576*'Key_Assumptions_&_Inputs'!$J$64,0) -> 128520 | I40: =IF(AND('Key_Assumptions_&_Inputs'!$E$20="Non Tax-Exempt Entity",I19=1),(-Community_Solar_Business_Case!$E$23-(Community_Solar_Business_Case!$E$39/2))*0.2*'Key_Assumptions_&_Inputs'!$J$64,0) +IF(AND('Key_Assumptions_&_Inputs'!$E$20="Non Tax-Exempt Entity",I19=2),(-Community_Solar_Business_Case!$E$23-(Community_Solar_Business_Case!$E$39/2))*0.32*'Key_Assumptions_&_Inputs'!$J$64,0) +IF(AND('Key_Assumptions_&_Inputs'!$E$20="Non Tax-Exempt Entity",I19=3),(-Community_Solar_Business_Case!$E$23-(Community_Solar_Business_Case!$E$39/2))*0.192*'Key_Assumptions_&_Inputs'!$J$64,0) +IF(AND('Key_Assumptions_&_Inputs'!$E$20="Non Tax-Exempt Entity",I19=4),(-Community_Solar_Business_Case!$E$23-(Community_Solar_Business_Case!$E$39/2))*0.1152*'Key_Assumptions_&_Inputs'!$J$64,0) +IF(AND('Key_Assumptions_&_Inputs'!$E$20="Non Tax-Exempt Entity",I19=5),(-Community_Solar_Business_Case!$E$23-(Community_Solar_Business_Case!$E$39/2))*0.1152*'Key_Assumptions_&_Inputs'!$J$64,0) +IF(AND('Key_Assumptions_&_Inputs'!$E$20="Non Tax-Exempt Entity",I19=6),(-Community_Solar_Business_Case!$E$23-(Community_Solar_Business_Case!$E$39/2))*0.0576*'Key_Assumptions_&_Inputs'!$J$64,0) -> 77112 | J40: =IF(AND('Key_Assumptions_&_Inputs'!$E$20="Non Tax-Exempt Entity",J19=1),(-Community_Solar_Business_Case!$E$23-(Community_Solar_Business_Case!$E$39/2))*0.2*'Key_Assumptions_&_Inputs'!$J$64,0) +IF(AND('Key_Assumptions_&_Inputs'!$E$20="Non Tax-Exempt Entity",J19=2),(-Community_Solar_Business_Case!$E$23-(Community_Solar_Business_Case!$E$39/2))*0.32*'Key_Assumptions_&_Inputs'!$J$64,0) +IF(AND('Key_Assumptions_&_Inputs'!$E$20="Non Tax-Exempt Entity",J19=3),(-Community_Solar_Business_Case!$E$23-(Community_Solar_Business_Case!$E$39/2))*0.192*'Key_Assumptions_&_Inputs'!$J$64,0) +IF(AND('Key_Assumptions_&_Inputs'!$E$20="Non Tax-Exempt Entity",J19=4),(-Community_Solar_Business_Case!$E$23-(Community_Solar_Business_Case!$E$39/2))*0.1152*'Key_Assumptions_&_Inputs'!$J$64,0) +IF(AND('Key_Assumptions_&_Inputs'!$E$20="Non Tax-Exempt Entity",J19=5),(-Community_Solar_Business_Case!$E$23-(Community_Solar_Business_Case!$E$39/2))*0.1152*'Key_Assumptions_&_Inputs'!$J$64,0) +IF(AND('Key_Assumptions_&_Inputs'!$E$20="Non Tax-Exempt Entity",J19=6),(-Community_Solar_Business_Case!$E$23-(Community_Solar_Business_Case!$E$39/2))*0.0576*'Key_Assumptions_&_Inputs'!$J$64,0) -> 77112 | K40: =IF(AND('Key_Assumptions_&_Inputs'!$E$20="Non Tax-Exempt Entity",K19=1),(-Community_Solar_Business_Case!$E$23-(Community_Solar_Business_Case!$E$39/2))*0.2*'Key_Assumptions_&_Inputs'!$J$64,0) +IF(AND('Key_Assumptions_&_Inputs'!$E$20="Non Tax-Exempt Entity",K19=2),(-Community_Solar_Business_Case!$E$23-(Community_Solar_Business_Case!$E$39/2))*0.32*'Key_Assumptions_&_Inputs'!$J$64,0) +IF(AND('Key_Assumptions_&_Inputs'!$E$20="Non Tax-Exempt Entity",K19=3),(-Community_Solar_Business_Case!$E$23-(Community_Solar_Business_Case!$E$39/2))*0.192*'Key_Assumptions_&_Inputs'!$J$64,0) +IF(AND('Key_Assumptions_&_Inputs'!$E$20="Non Tax-Exempt Entity",K19=4),(-Community_Solar_Business_Case!$E$23-(Community_Solar_Business_Case!$E$39/2))*0.1152*'Key_Assumptions_&_Inputs'!$J$64,0) +IF(AND('Key_Assumptions_&_Inputs'!$E$20="Non Tax-Exempt Entity",K19=5),(-Community_Solar_Business_Case!$E$23-(Community_Solar_Business_Case!$E$39/2))*0.1152*'Key_Assumptions_&_Inputs'!$J$64,0) +IF(AND('Key_Assumptions_&_Inputs'!$E$20="Non Tax-Exempt Entity",K19=6),(-Community_Solar_Business_Case!$E$23-(Community_Solar_Business_Case!$E$39/2))*0.0576*'Key_Assumptions_&_Inputs'!$J$64,0) -> 38556 | L40: =IF(AND('Key_Assumptions_&_Inputs'!$E$20="Non Tax-Exempt Entity",L19=1),(-Community_Solar_Business_Case!$E$23-(Community_Solar_Business_Case!$E$39/2))*0.2*'Key_Assumptions_&_Inputs'!$J$64,0) +IF(AND('Key_Assumptions_&_Inputs'!$E$20="Non Tax-Exempt Entity",L19=2),(-Community_Solar_Business_Case!$E$23-(Community_Solar_Business_Case!$E$39/2))*0.32*'Key_Assumptions_&_Inputs'!$J$64,0) +IF(AND('Key_Assumptions_&_Inputs'!$E$20="Non Tax-Exempt Entity",L19=3),(-Community_Solar_Business_Case!$E$23-(Community_Solar_Business_Case!$E$39/2))*0.192*'Key_Assumptions_&_Inputs'!$J$64,0) +IF(AND('Key_Assumptions_&_Inputs'!$E$20="Non Tax-Exempt Entity",L19=4),(-Community_Solar_Business_Case!$E$23-(Community_Solar_Business_Case!$E$39/2))*0.1152*'Key_Assumptions_&_Inputs'!$J$64,0) +IF(AND('Key_Assumptions_&_Inputs'!$E$20="Non Tax-Exempt Entity",L19=5),(-Community_Solar_Business_Case!$E$23-(Community_Solar_Business_Case!$E$39/2))*0.1152*'Key_Assumptions_&_Inputs'!$J$64,0) +IF(AND('Key_Assumptions_&_Inputs'!$E$20="Non Tax-Exempt Entity",L19=6),(-Community_Solar_Business_Case!$E$23-(Community_Solar_Business_Case!$E$39/2))*0.0576*'Key_Assumptions_&_Inputs'!$J$64,0) -> 0 | M40: =IF(AND('Key_Assumptions_&_Inputs'!$E$20="Non Tax-Exempt Entity",M19=1),(-Community_Solar_Business_Case!$E$23-(Community_Solar_Business_Case!$E$39/2))*0.2*'Key_Assumptions_&_Inputs'!$J$64,0) +IF(AND('Key_Assumptions_&_Inputs'!$E$20="Non Tax-Exempt Entity",M19=2),(-Community_Solar_Business_Case!$E$23-(Community_Solar_Business_Case!$E$39/2))*0.32*'Key_Assumptions_&_Inputs'!$J$64,0) +IF(AND('Key_Assumptions_&_Inputs'!$E$20="Non Tax-Exempt Entity",M19=3),(-Community_Solar_Business_Case!$E$23-(Community_Solar_Business_Case!$E$39/2))*0.192*'Key_Assumptions_&_Inputs'!$J$64,0) +IF(AND('Key_Assumptions_&_Inputs'!$E$20="Non Tax-Exempt Entity",M19=4),(-Community_Solar_Business_Case!$E$23-(Community_Solar_Business_Case!$E$39/2))*0.1152*'Key_Assumptions_&_Inputs'!$J$64,0) +IF(AND('Key_Assumptions_&_Inputs'!$E$20="Non Tax-Exempt Entity",M19=5),(-Community_Solar_Business_Case!$E$23-(Community_Solar_Business_Case!$E$39/2))*0.1152*'Key_Assumptions_&_Inputs'!$J$64,0) +IF(AND('Key_Assumptions_&_Inputs'!$E$20="Non Tax-Exempt Entity",M19=6),(-Community_Solar_Business_Case!$E$23-(Community_Solar_Business_Case!$E$39/2))*0.0576*'Key_Assumptions_&_Inputs'!$J$64,0) -> 0 | N40: =IF(AND('Key_Assumptions_&_Inputs'!$E$20="Non Tax-Exempt Entity",N19=1),(-Community_Solar_Business_Case!$E$23-(Community_Solar_Business_Case!$E$39/2))*0.2*'Key_Assumptions_&_Inputs'!$J$64,0) +IF(AND('Key_Assumptions_&_Inputs'!$E$20="Non Tax-Exempt Entity",N19=2),(-Community_Solar_Business_Case!$E$23-(Community_Solar_Business_Case!$E$39/2))*0.32*'Key_Assumptions_&_Inputs'!$J$64,0) +IF(AND('Key_Assumptions_&_Inputs'!$E$20="Non Tax-Exempt Entity",N19=3),(-Community_Solar_Business_Case!$E$23-(Community_Solar_Business_Case!$E$39/2))*0.192*'Key_Assumptions_&_Inputs'!$J$64,0) +IF(AND('Key_Assumptions_&_Inputs'!$E$20="Non Tax-Exempt Entity",N19=4),(-Community_Solar_Business_Case!$E$23-(Community_Solar_Business_Case!$E$39/2))*0.1152*'Key_Assumptions_&_Inputs'!$J$64,0) +IF(AND('Key_Assumptions_&_Inputs'!$E$20="Non Tax-Exempt Entity",N19=5),(-Community_Solar_Business_Case!$E$23-(Community_Solar_Business_Case!$E$39/2))*0.1152*'Key_Assumptions_&_Inputs'!$J$64,0) +IF(AND('Key_Assumptions_&_Inputs'!$E$20="Non Tax-Exempt Entity",N19=6),(-Community_Solar_Business_Case!$E$23-(Community_Solar_Business_Case!$E$39/2))*0.0576*'Key_Assumptions_&_Inputs'!$J$64,0) -> 0 | O40: =IF(AND('Key_Assumptions_&_Inputs'!$E$20="Non Tax-Exempt Entity",O19=1),(-Community_Solar_Business_Case!$E$23-(Community_Solar_Business_Case!$E$39/2))*0.2*'Key_Assumptions_&_Inputs'!$J$64,0) +IF(AND('Key_Assumptions_&_Inputs'!$E$20="Non Tax-Exempt Entity",O19=2),(-Community_Solar_Business_Case!$E$23-(Community_Solar_Business_Case!$E$39/2))*0.32*'Key_Assumptions_&_Inputs'!$J$64,0) +IF(AND('Key_Assumptions_&_Inputs'!$E$20="Non Tax-Exempt Entity",O19=3),(-Community_Solar_Business_Case!$E$23-(Community_Solar_Business_Case!$E$39/2))*0.192*'Key_Assumptions_&_Inputs'!$J$64,0) +IF(AND('Key_Assumptions_&_Inputs'!$E$20="Non Tax-Exempt Entity",O19=4),(-Community_Solar_Business_Case!$E$23-(Community_Solar_Business_Case!$E$39/2))*0.1152*'Key_Assumptions_&_Inputs'!$J$64,0) +IF(AND('Key_Assumptions_&_Inputs'!$E$20="Non Tax-Exempt Entity",O19=5),(-Community_Solar_Business_Case!$E$23-(Community_Solar_Business_Case!$E$39/2))*0.1152*'Key_Assumptions_&_Inputs'!$J$64,0) +IF(AND('Key_Assumptions_&_Inputs'!$E$20="Non Tax-Exempt Entity",O19=6),(-Community_Solar_Business_Case!$E$23-(Community_Solar_Business_Case!$E$39/2))*0.0576*'Key_Assumptions_&_Inputs'!$J$64,0) -> 0 | P40: =IF(AND('Key_Assumptions_&_Inputs'!$E$20="Non Tax-Exempt Entity",P19=1),(-Community_Solar_Business_Case!$E$23-(Community_Solar_Business_Case!$E$39/2))*0.2*'Key_Assumptions_&_Inputs'!$J$64,0) +IF(AND('Key_Assumptions_&_Inputs'!$E$20="Non Tax-Exempt Entity",P19=2),(-Community_Solar_Business_Case!$E$23-(Community_Solar_Business_Case!$E$39/2))*0.32*'Key_Assumptions_&_Inputs'!$J$64,0) +IF(AND('Key_Assumptions_&_Inputs'!$E$20="Non Tax-Exempt Entity",P19=3),(-Community_Solar_Business_Case!$E$23-(Community_Solar_Business_Case!$E$39/2))*0.192*'Key_Assumptions_&_Inputs'!$J$64,0) +IF(AND('Key_Assumptions_&_Inputs'!$E$20="Non Tax-Exempt Entity",P19=4),(-Community_Solar_Business_Case!$E$23-(Community_Solar_Business_Case!$E$39/2))*0.1152*'Key_Assumptions_&_Inputs'!$J$64,0) +IF(AND('Key_Assumptions_&_Inputs'!$E$20="Non Tax-Exempt Entity",P19=5),(-Community_Solar_Business_Case!$E$23-(Community_Solar_Business_Case!$E$39/2))*0.1152*'Key_Assumptions_&_Inputs'!$J$64,0) +IF(AND('Key_Assumptions_&_Inputs'!$E$20="Non Tax-Exempt Entity",P19=6),(-Community_Solar_Business_Case!$E$23-(Community_Solar_Business_Case!$E$39/2))*0.0576*'Key_Assumptions_&_Inputs'!$J$64,0) -> 0 | Q40: =IF(AND('Key_Assumptions_&_Inputs'!$E$20="Non Tax-Exempt Entity",Q19=1),(-Community_Solar_Business_Case!$E$23-(Community_Solar_Business_Case!$E$39/2))*0.2*'Key_Assumptions_&_Inputs'!$J$64,0) +IF(AND('Key_Assumptions_&_Inputs'!$E$20="Non Tax-Exempt Entity",Q19=2),(-Community_Solar_Business_Case!$E$23-(Community_Solar_Business_Case!$E$39/2))*0.32*'Key_Assumptions_&_Inputs'!$J$64,0) +IF(AND('Key_Assumptions_&_Inputs'!$E$20="Non Tax-Exempt Entity",Q19=3),(-Community_Solar_Business_Case!$E$23-(Community_Solar_Business_Case!$E$39/2))*0.192*'Key_Assumptions_&_Inputs'!$J$64,0) +IF(AND('Key_Assumptions_&_Inputs'!$E$20="Non Tax-Exempt Entity",Q19=4),(-Community_Solar_Business_Case!$E$23-(Community_Solar_Business_Case!$E$39/2))*0.1152*'Key_Assumptions_&_Inputs'!$J$64,0) +IF(AND('Key_Assumptions_&_Inputs'!$E$20="Non Tax-Exempt Entity",Q19=5),(-Community_Solar_Business_Case!$E$23-(Community_Solar_Business_Case!$E$39/2))*0.1152*'Key_Assumptions_&_Inputs'!$J$64,0) +IF(AND('Key_Assumptions_&_Inputs'!$E$20="Non Tax-Exempt Entity",Q19=6),(-Community_Solar_Business_Case!$E$23-(Community_Solar_Business_Case!$E$39/2))*0.0576*'Key_Assumptions_&_Inputs'!$J$64,0) -> 0 | R40: =IF(AND('Key_Assumptions_&_Inputs'!$E$20="Non Tax-Exempt Entity",R19=1),(-Community_Solar_Business_Case!$E$23-(Community_Solar_Business_Case!$E$39/2))*0.2*'Key_Assumptions_&_Inputs'!$J$64,0) +IF(AND('Key_Assumptions_&_Inputs'!$E$20="Non Tax-Exempt Entity",R19=2),(-Community_Solar_Business_Case!$E$23-(Community_Solar_Business_Case!$E$39/2))*0.32*'Key_Assumptions_&_Inputs'!$J$64,0) +IF(AND('Key_Assumptions_&_Inputs'!$E$20="Non Tax-Exempt Entity",R19=3),(-Community_Solar_Business_Case!$E$23-(Community_Solar_Business_Case!$E$39/2))*0.192*'Key_Assumptions_&_Inputs'!$J$64,0) +IF(AND('Key_Assumptions_&_Inputs'!$E$20="Non Tax-Exempt Entity",R19=4),(-Community_Solar_Business_Case!$E$23-(Community_Solar_Business_Case!$E$39/2))*0.1152*'Key_Assumptions_&_Inputs'!$J$64,0) +IF(AND('Key_Assumptions_&_Inputs'!$E$20="Non Tax-Exempt Entity",R19=5),(-Community_Solar_Business_Case!$E$23-(Community_Solar_Business_Case!$E$39/2))*0.1152*'Key_Assumptions_&_Inputs'!$J$64,0) +IF(AND('Key_Assumptions_&_Inputs'!$E$20="Non Tax-Exempt Entity",R19=6),(-Community_Solar_Business_Case!$E$23-(Community_Solar_Business_Case!$E$39/2))*0.0576*'Key_Assumptions_&_Inputs'!$J$64,0) -> 0 | S40: =IF(AND('Key_Assumptions_&_Inputs'!$E$20="Non Tax-Exempt Entity",S19=1),(-Community_Solar_Business_Case!$E$23-(Community_Solar_Business_Case!$E$39/2))*0.2*'Key_Assumptions_&_Inputs'!$J$64,0) +IF(AND('Key_Assumptions_&_Inputs'!$E$20="Non Tax-Exempt Entity",S19=2),(-Community_Solar_Business_Case!$E$23-(Community_Solar_Business_Case!$E$39/2))*0.32*'Key_Assumptions_&_Inputs'!$J$64,0) +IF(AND('Key_Assumptions_&_Inputs'!$E$20="Non Tax-Exempt Entity",S19=3),(-Community_Solar_Business_Case!$E$23-(Community_Solar_Business_Case!$E$39/2))*0.192*'Key_Assumptions_&_Inputs'!$J$64,0) +IF(AND('Key_Assumptions_&_Inputs'!$E$20="Non Tax-Exempt Entity",S19=4),(-Community_Solar_Business_Case!$E$23-(Community_Solar_Business_Case!$E$39/2))*0.1152*'Key_Assumptions_&_Inputs'!$J$64,0) +IF(AND('Key_Assumptions_&_Inputs'!$E$20="Non Tax-Exempt Entity",S19=5),(-Community_Solar_Business_Case!$E$23-(Community_Solar_Business_Case!$E$39/2))*0.1152*'Key_Assumptions_&_Inputs'!$J$64,0) +IF(AND('Key_Assumptions_&_Inputs'!$E$20="Non Tax-Exempt Entity",S19=6),(-Community_Solar_Business_Case!$E$23-(Community_Solar_Business_Case!$E$39/2))*0.0576*'Key_Assumptions_&_Inputs'!$J$64,0) -> 0 | T40: =IF(AND('Key_Assumptions_&_Inputs'!$E$20="Non Tax-Exempt Entity",T19=1),(-Community_Solar_Business_Case!$E$23-(Community_Solar_Business_Case!$E$39/2))*0.2*'Key_Assumptions_&_Inputs'!$J$64,0) +IF(AND('Key_Assumptions_&_Inputs'!$E$20="Non Tax-Exempt Entity",T19=2),(-Community_Solar_Business_Case!$E$23-(Community_Solar_Business_Case!$E$39/2))*0.32*'Key_Assumptions_&_Inputs'!$J$64,0) +IF(AND('Key_Assumptions_&_Inputs'!$E$20="Non Tax-Exempt Entity",T19=3),(-Community_Solar_Business_Case!$E$23-(Community_Solar_Business_Case!$E$39/2))*0.192*'Key_Assumptions_&_Inputs'!$J$64,0) +IF(AND('Key_Assumptions_&_Inputs'!$E$20="Non Tax-Exempt Entity",T19=4),(-Community_Solar_Business_Case!$E$23-(Community_Solar_Business_Case!$E$39/2))*0.1152*'Key_Assumptions_&_Inputs'!$J$64,0) +IF(AND('Key_Assumptions_&_Inputs'!$E$20="Non Tax-Exempt Entity",T19=5),(-Community_Solar_Business_Case!$E$23-(Community_Solar_Business_Case!$E$39/2))*0.1152*'Key_Assumptions_&_Inputs'!$J$64,0) +IF(AND('Key_Assumptions_&_Inputs'!$E$20="Non Tax-Exempt Entity",T19=6),(-Community_Solar_Business_Case!$E$23-(Community_Solar_Business_Case!$E$39/2))*0.0576*'Key_Assumptions_&_Inputs'!$J$64,0) -> 0 | U40: =IF(AND('Key_Assumptions_&_Inputs'!$E$20="Non Tax-Exempt Entity",U19=1),(-Community_Solar_Business_Case!$E$23-(Community_Solar_Business_Case!$E$39/2))*0.2*'Key_Assumptions_&_Inputs'!$J$64,0) +IF(AND('Key_Assumptions_&_Inputs'!$E$20="Non Tax-Exempt Entity",U19=2),(-Community_Solar_Business_Case!$E$23-(Community_Solar_Business_Case!$E$39/2))*0.32*'Key_Assumptions_&_Inputs'!$J$64,0) +IF(AND('Key_Assumptions_&_Inputs'!$E$20="Non Tax-Exempt Entity",U19=3),(-Community_Solar_Business_Case!$E$23-(Community_Solar_Business_Case!$E$39/2))*0.192*'Key_Assumptions_&_Inputs'!$J$64,0) +IF(AND('Key_Assumptions_&_Inputs'!$E$20="Non Tax-Exempt Entity",U19=4),(-Community_Solar_Business_Case!$E$23-(Community_Solar_Business_Case!$E$39/2))*0.1152*'Key_Assumptions_&_Inputs'!$J$64,0) +IF(AND('Key_Assumptions_&_Inputs'!$E$20="Non Tax-Exempt Entity",U19=5),(-Community_Solar_Business_Case!$E$23-(Community_Solar_Business_Case!$E$39/2))*0.1152*'Key_Assumptions_&_Inputs'!$J$64,0) +IF(AND('Key_Assumptions_&_Inputs'!$E$20="Non Tax-Exempt Entity",U19=6),(-Community_Solar_Business_Case!$E$23-(Community_Solar_Business_Case!$E$39/2))*0.0576*'Key_Assumptions_&_Inputs'!$J$64,0) -> 0 | V40: =IF(AND('Key_Assumptions_&_Inputs'!$E$20="Non Tax-Exempt Entity",V19=1),(-Community_Solar_Business_Case!$E$23-(Community_Solar_Business_Case!$E$39/2))*0.2*'Key_Assumptions_&_Inputs'!$J$64,0) +IF(AND('Key_Assumptions_&_Inputs'!$E$20="Non Tax-Exempt Entity",V19=2),(-Community_Solar_Business_Case!$E$23-(Community_Solar_Business_Case!$E$39/2))*0.32*'Key_Assumptions_&_Inputs'!$J$64,0) +IF(AND('Key_Assumptions_&_Inputs'!$E$20="Non Tax-Exempt Entity",V19=3),(-Community_Solar_Business_Case!$E$23-(Community_Solar_Business_Case!$E$39/2))*0.192*'Key_Assumptions_&_Inputs'!$J$64,0) +IF(AND('Key_Assumptions_&_Inputs'!$E$20="Non Tax-Exempt Entity",V19=4),(-Community_Solar_Business_Case!$E$23-(Community_Solar_Business_Case!$E$39/2))*0.1152*'Key_Assumptions_&_Inputs'!$J$64,0) +IF(AND('Key_Assumptions_&_Inputs'!$E$20="Non Tax-Exempt Entity",V19=5),(-Community_Solar_Business_Case!$E$23-(Community_Solar_Business_Case!$E$39/2))*0.1152*'Key_Assumptions_&_Inputs'!$J$64,0) +IF(AND('Key_Assumptions_&_Inputs'!$E$20="Non Tax-Exempt Entity",V19=6),(-Community_Solar_Business_Case!$E$23-(Community_Solar_Business_Case!$E$39/2))*0.0576*'Key_Assumptions_&_Inputs'!$J$64,0) -> 0 | W40: =IF(AND('Key_Assumptions_&_Inputs'!$E$20="Non Tax-Exempt Entity",W19=1),(-Community_Solar_Business_Case!$E$23-(Community_Solar_Business_Case!$E$39/2))*0.2*'Key_Assumptions_&_Inputs'!$J$64,0) +IF(AND('Key_Assumptions_&_Inputs'!$E$20="Non Tax-Exempt Entity",W19=2),(-Community_Solar_Business_Case!$E$23-(Community_Solar_Business_Case!$E$39/2))*0.32*'Key_Assumptions_&_Inputs'!$J$64,0) +IF(AND('Key_Assumptions_&_Inputs'!$E$20="Non Tax-Exempt Entity",W19=3),(-Community_Solar_Business_Case!$E$23-(Community_Solar_Business_Case!$E$39/2))*0.192*'Key_Assumptions_&_Inputs'!$J$64,0) +IF(AND('Key_Assumptions_&_Inputs'!$E$20="Non Tax-Exempt Entity",W19=4),(-Community_Solar_Business_Case!$E$23-(Community_Solar_Business_Case!$E$39/2))*0.1152*'Key_Assumptions_&_Inputs'!$J$64,0) +IF(AND('Key_Assumptions_&_Inputs'!$E$20="Non Tax-Exempt Entity",W19=5),(-Community_Solar_Business_Case!$E$23-(Community_Solar_Business_Case!$E$39/2))*0.1152*'Key_Assumptions_&_Inputs'!$J$64,0) +IF(AND('Key_Assumptions_&_Inputs'!$E$20="Non Tax-Exempt Entity",W19=6),(-Community_Solar_Business_Case!$E$23-(Community_Solar_Business_Case!$E$39/2))*0.0576*'Key_Assumptions_&_Inputs'!$J$64,0) -> 0 | X40: =IF(AND('Key_Assumptions_&_Inputs'!$E$20="Non Tax-Exempt Entity",X19=1),(-Community_Solar_Business_Case!$E$23-(Community_Solar_Business_Case!$E$39/2))*0.2*'Key_Assumptions_&_Inputs'!$J$64,0) +IF(AND('Key_Assumptions_&_Inputs'!$E$20="Non Tax-Exempt Entity",X19=2),(-Community_Solar_Business_Case!$E$23-(Community_Solar_Business_Case!$E$39/2))*0.32*'Key_Assumptions_&_Inputs'!$J$64,0) +IF(AND('Key_Assumptions_&_Inputs'!$E$20="Non Tax-Exempt Entity",X19=3),(-Community_Solar_Business_Case!$E$23-(Community_Solar_Business_Case!$E$39/2))*0.192*'Key_Assumptions_&_Inputs'!$J$64,0) +IF(AND('Key_Assumptions_&_Inputs'!$E$20="Non Tax-Exempt Entity",X19=4),(-Community_Solar_Business_Case!$E$23-(Community_Solar_Business_Case!$E$39/2))*0.1152*'Key_Assumptions_&_Inputs'!$J$64,0) +IF(AND('Key_Assumptions_&_Inputs'!$E$20="Non Tax-Exempt Entity",X19=5),(-Community_Solar_Business_Case!$E$23-(Community_Solar_Business_Case!$E$39/2))*0.1152*'Key_Assumptions_&_Inputs'!$J$64,0) +IF(AND('Key_Assumptions_&_Inputs'!$E$20="Non Tax-Exempt Entity",X19=6),(-Community_Solar_Business_Case!$E$23-(Community_Solar_Business_Case!$E$39/2))*0.0576*'Key_Assumptions_&_Inputs'!$J$64,0) -> 0 | Y40: =IF(AND('Key_Assumptions_&_Inputs'!$E$20="Non Tax-Exempt Entity",Y19=1),(-Community_Solar_Business_Case!$E$23-(Community_Solar_Business_Case!$E$39/2))*0.2*'Key_Assumptions_&_Inputs'!$J$64,0) +IF(AND('Key_Assumptions_&_Inputs'!$E$20="Non Tax-Exempt Entity",Y19=2),(-Community_Solar_Business_Case!$E$23-(Community_Solar_Business_Case!$E$39/2))*0.32*'Key_Assumptions_&_Inputs'!$J$64,0) +IF(AND('Key_Assumptions_&_Inputs'!$E$20="Non Tax-Exempt Entity",Y19=3),(-Community_Solar_Business_Case!$E$23-(Community_Solar_Business_Case!$E$39/2))*0.192*'Key_Assumptions_&_Inputs'!$J$64,0) +IF(AND('Key_Assumptions_&_Inputs'!$E$20="Non Tax-Exempt Entity",Y19=4),(-Community_Solar_Business_Case!$E$23-(Community_Solar_Business_Case!$E$39/2))*0.1152*'Key_Assumptions_&_Inputs'!$J$64,0) +IF(AND('Key_Assumptions_&_Inputs'!$E$20="Non Tax-Exempt Entity",Y19=5),(-Community_Solar_Business_Case!$E$23-(Community_Solar_Business_Case!$E$39/2))*0.1152*'Key_Assumptions_&_Inputs'!$J$64,0) +IF(AND('Key_Assumptions_&_Inputs'!$E$20="Non Tax-Exempt Entity",Y19=6),(-Community_Solar_Business_Case!$E$23-(Community_Solar_Business_Case!$E$39/2))*0.0576*'Key_Assumptions_&_Inputs'!$J$64,0) -> 0 | Z40: =IF(AND('Key_Assumptions_&_Inputs'!$E$20="Non Tax-Exempt Entity",Z19=1),(-Community_Solar_Business_Case!$E$23-(Community_Solar_Business_Case!$E$39/2))*0.2*'Key_Assumptions_&_Inputs'!$J$64,0) +IF(AND('Key_Assumptions_&_Inputs'!$E$20="Non Tax-Exempt Entity",Z19=2),(-Community_Solar_Business_Case!$E$23-(Community_Solar_Business_Case!$E$39/2))*0.32*'Key_Assumptions_&_Inputs'!$J$64,0) +IF(AND('Key_Assumptions_&_Inputs'!$E$20="Non Tax-Exempt Entity",Z19=3),(-Community_Solar_Business_Case!$E$23-(Community_Solar_Business_Case!$E$39/2))*0.192*'Key_Assumptions_&_Inputs'!$J$64,0) +IF(AND('Key_Assumptions_&_Inputs'!$E$20="Non Tax-Exempt Entity",Z19=4),(-Community_Solar_Business_Case!$E$23-(Community_Solar_Business_Case!$E$39/2))*0.1152*'Key_Assumptions_&_Inputs'!$J$64,0) +IF(AND('Key_Assumptions_&_Inputs'!$E$20="Non Tax-Exempt Entity",Z19=5),(-Community_Solar_Business_Case!$E$23-(Community_Solar_Business_Case!$E$39/2))*0.1152*'Key_Assumptions_&_Inputs'!$J$64,0) +IF(AND('Key_Assumptions_&_Inputs'!$E$20="Non Tax-Exempt Entity",Z19=6),(-Community_Solar_Business_Case!$E$23-(Community_Solar_Business_Case!$E$39/2))*0.0576*'Key_Assumptions_&_Inputs'!$J$64,0) -> 0 | AA40: =IF(AND('Key_Assumptions_&_Inputs'!$E$20="Non Tax-Exempt Entity",AA19=1),(-Community_Solar_Business_Case!$E$23-(Community_Solar_Business_Case!$E$39/2))*0.2*'Key_Assumptions_&_Inputs'!$J$64,0) +IF(AND('Key_Assumptions_&_Inputs'!$E$20="Non Tax-Exempt Entity",AA19=2),(-Community_Solar_Business_Case!$E$23-(Community_Solar_Business_Case!$E$39/2))*0.32*'Key_Assumptions_&_Inputs'!$J$64,0) +IF(AND('Key_Assumptions_&_Inputs'!$E$20="Non Tax-Exempt Entity",AA19=3),(-Community_Solar_Business_Case!$E$23-(Community_Solar_Business_Case!$E$39/2))*0.192*'Key_Assumptions_&_Inputs'!$J$64,0) +IF(AND('Key_Assumptions_&_Inputs'!$E$20="Non Tax-Exempt Entity",AA19=4),(-Community_Solar_Business_Case!$E$23-(Community_Solar_Business_Case!$E$39/2))*0.1152*'Key_Assumptions_&_Inputs'!$J$64,0) +IF(AND('Key_Assumptions_&_Inputs'!$E$20="Non Tax-Exempt Entity",AA19=5),(-Community_Solar_Business_Case!$E$23-(Community_Solar_Business_Case!$E$39/2))*0.1152*'Key_Assumptions_&_Inputs'!$J$64,0) +IF(AND('Key_Assumptions_&_Inputs'!$E$20="Non Tax-Exempt Entity",AA19=6),(-Community_Solar_Business_Case!$E$23-(Community_Solar_Business_Case!$E$39/2))*0.0576*'Key_Assumptions_&_Inputs'!$J$64,0) -> 0 | AB40: =IF(AND('Key_Assumptions_&_Inputs'!$E$20="Non Tax-Exempt Entity",AB19=1),(-Community_Solar_Business_Case!$E$23-(Community_Solar_Business_Case!$E$39/2))*0.2*'Key_Assumptions_&_Inputs'!$J$64,0) +IF(AND('Key_Assumptions_&_Inputs'!$E$20="Non Tax-Exempt Entity",AB19=2),(-Community_Solar_Business_Case!$E$23-(Community_Solar_Business_Case!$E$39/2))*0.32*'Key_Assumptions_&_Inputs'!$J$64,0) +IF(AND('Key_Assumptions_&_Inputs'!$E$20="Non Tax-Exempt Entity",AB19=3),(-Community_Solar_Business_Case!$E$23-(Community_Solar_Business_Case!$E$39/2))*0.192*'Key_Assumptions_&_Inputs'!$J$64,0) +IF(AND('Key_Assumptions_&_Inputs'!$E$20="Non Tax-Exempt Entity",AB19=4),(-Community_Solar_Business_Case!$E$23-(Community_Solar_Business_Case!$E$39/2))*0.1152*'Key_Assumptions_&_Inputs'!$J$64,0) +IF(AND('Key_Assumptions_&_Inputs'!$E$20="Non Tax-Exempt Entity",AB19=5),(-Community_Solar_Business_Case!$E$23-(Community_Solar_Business_Case!$E$39/2))*0.1152*'Key_Assumptions_&_Inputs'!$J$64,0) +IF(AND('Key_Assumptions_&_Inputs'!$E$20="Non Tax-Exempt Entity",AB19=6),(-Community_Solar_Business_Case!$E$23-(Community_Solar_Business_Case!$E$39/2))*0.0576*'Key_Assumptions_&_Inputs'!$J$64,0) -> 0 | AC40: =IF(AND('Key_Assumptions_&_Inputs'!$E$20="Non Tax-Exempt Entity",AC19=1),(-Community_Solar_Business_Case!$E$23-(Community_Solar_Business_Case!$E$39/2))*0.2*'Key_Assumptions_&_Inputs'!$J$64,0) +IF(AND('Key_Assumptions_&_Inputs'!$E$20="Non Tax-Exempt Entity",AC19=2),(-Community_Solar_Business_Case!$E$23-(Community_Solar_Business_Case!$E$39/2))*0.32*'Key_Assumptions_&_Inputs'!$J$64,0) +IF(AND('Key_Assumptions_&_Inputs'!$E$20="Non Tax-Exempt Entity",AC19=3),(-Community_Solar_Business_Case!$E$23-(Community_Solar_Business_Case!$E$39/2))*0.192*'Key_Assumptions_&_Inputs'!$J$64,0) +IF(AND('Key_Assumptions_&_Inputs'!$E$20="Non Tax-Exempt Entity",AC19=4),(-Community_Solar_Business_Case!$E$23-(Community_Solar_Business_Case!$E$39/2))*0.1152*'Key_Assumptions_&_Inputs'!$J$64,0) +IF(AND('Key_Assumptions_&_Inputs'!$E$20="Non Tax-Exempt Entity",AC19=5),(-Community_Solar_Business_Case!$E$23-(Community_Solar_Business_Case!$E$39/2))*0.1152*'Key_Assumptions_&_Inputs'!$J$64,0) +IF(AND('Key_Assumptions_&_Inputs'!$E$20="Non Tax-Exempt Entity",AC19=6),(-Community_Solar_Business_Case!$E$23-(Community_Solar_Business_Case!$E$39/2))*0.0576*'Key_Assumptions_&_Inputs'!$J$64,0) -> 0 | AD40: =IF(AND('Key_Assumptions_&_Inputs'!$E$20="Non Tax-Exempt Entity",AD19=1),(-Community_Solar_Business_Case!$E$23-(Community_Solar_Business_Case!$E$39/2))*0.2*'Key_Assumptions_&_Inputs'!$J$64,0) +IF(AND('Key_Assumptions_&_Inputs'!$E$20="Non Tax-Exempt Entity",AD19=2),(-Community_Solar_Business_Case!$E$23-(Community_Solar_Business_Case!$E$39/2))*0.32*'Key_Assumptions_&_Inputs'!$J$64,0) +IF(AND('Key_Assumptions_&_Inputs'!$E$20="Non Tax-Exempt Entity",AD19=3),(-Community_Solar_Business_Case!$E$23-(Community_Solar_Business_Case!$E$39/2))*0.192*'Key_Assumptions_&_Inputs'!$J$64,0) +IF(AND('Key_Assumptions_&_Inputs'!$E$20="Non Tax-Exempt Entity",AD19=4),(-Community_Solar_Business_Case!$E$23-(Community_Solar_Business_Case!$E$39/2))*0.1152*'Key_Assumptions_&_Inputs'!$J$64,0) +IF(AND('Key_Assumptions_&_Inputs'!$E$20="Non Tax-Exempt Entity",AD19=5),(-Community_Solar_Business_Case!$E$23-(Community_Solar_Business_Case!$E$39/2))*0.1152*'Key_Assumptions_&_Inputs'!$J$64,0) +IF(AND('Key_Assumptions_&_Inputs'!$E$20="Non Tax-Exempt Entity",AD19=6),(-Community_Solar_Business_Case!$E$23-(Community_Solar_Business_Case!$E$39/2))*0.0576*'Key_Assumptions_&_Inputs'!$J$64,0) -> 0 | AE40: =SUM(E40:AD40) -> 669375
B41: State/Local Capacity Incentive | D41: $ | E41: =IF(E19=0,'Key_Assumptions_&_Inputs'!$J$60+'Key_Assumptions_&_Inputs'!$J$59*'Key_Assumptions_&_Inputs'!$E$17*1000,0) -> 0 | F41: =IF(F19=0,'Key_Assumptions_&_Inputs'!$J$60+'Key_Assumptions_&_Inputs'!$J$59*'Key_Assumptions_&_Inputs'!$E$17*1000,0) -> 0 | G41: =IF(G19=0,'Key_Assumptions_&_Inputs'!$J$60+'Key_Assumptions_&_Inputs'!$J$59*'Key_Assumptions_&_Inputs'!$E$17*1000,0) -> 0 | H41: =IF(H19=0,'Key_Assumptions_&_Inputs'!$J$60+'Key_Assumptions_&_Inputs'!$J$59*'Key_Assumptions_&_Inputs'!$E$17*1000,0) -> 0 | I41: =IF(I19=0,'Key_Assumptions_&_Inputs'!$J$60+'Key_Assumptions_&_Inputs'!$J$59*'Key_Assumptions_&_Inputs'!$E$17*1000,0) -> 0 | J41: =IF(J19=0,'Key_Assumptions_&_Inputs'!$J$60+'Key_Assumptions_&_Inputs'!$J$59*'Key_Assumptions_&_Inputs'!$E$17*1000,0) -> 0 | K41: =IF(K19=0,'Key_Assumptions_&_Inputs'!$J$60+'Key_Assumptions_&_Inputs'!$J$59*'Key_Assumptions_&_Inputs'!$E$17*1000,0) -> 0 | L41: =IF(L19=0,'Key_Assumptions_&_Inputs'!$J$60+'Key_Assumptions_&_Inputs'!$J$59*'Key_Assumptions_&_Inputs'!$E$17*1000,0) -> 0 | M41: =IF(M19=0,'Key_Assumptions_&_Inputs'!$J$60+'Key_Assumptions_&_Inputs'!$J$59*'Key_Assumptions_&_Inputs'!$E$17*1000,0) -> 0 | N41: =IF(N19=0,'Key_Assumptions_&_Inputs'!$J$60+'Key_Assumptions_&_Inputs'!$J$59*'Key_Assumptions_&_Inputs'!$E$17*1000,0) -> 0 | O41: =IF(O19=0,'Key_Assumptions_&_Inputs'!$J$60+'Key_Assumptions_&_Inputs'!$J$59*'Key_Assumptions_&_Inputs'!$E$17*1000,0) -> 0 | P41: =IF(P19=0,'Key_Assumptions_&_Inputs'!$J$60+'Key_Assumptions_&_Inputs'!$J$59*'Key_Assumptions_&_Inputs'!$E$17*1000,0) -> 0 | Q41: =IF(Q19=0,'Key_Assumptions_&_Inputs'!$J$60+'Key_Assumptions_&_Inputs'!$J$59*'Key_Assumptions_&_Inputs'!$E$17*1000,0) -> 0 | R41: =IF(R19=0,'Key_Assumptions_&_Inputs'!$J$60+'Key_Assumptions_&_Inputs'!$J$59*'Key_Assumptions_&_Inputs'!$E$17*1000,0) -> 0 | S41: =IF(S19=0,'Key_Assumptions_&_Inputs'!$J$60+'Key_Assumptions_&_Inputs'!$J$59*'Key_Assumptions_&_Inputs'!$E$17*1000,0) -> 0 | T41: =IF(T19=0,'Key_Assumptions_&_Inputs'!$J$60+'Key_Assumptions_&_Inputs'!$J$59*'Key_Assumptions_&_Inputs'!$E$17*1000,0) -> 0 | U41: =IF(U19=0,'Key_Assumptions_&_Inputs'!$J$60+'Key_Assumptions_&_Inputs'!$J$59*'Key_Assumptions_&_Inputs'!$E$17*1000,0) -> 0 | V41: =IF(V19=0,'Key_Assumptions_&_Inputs'!$J$60+'Key_Assumptions_&_Inputs'!$J$59*'Key_Assumptions_&_Inputs'!$E$17*1000,0) -> 0 | W41: =IF(W19=0,'Key_Assumptions_&_Inputs'!$J$60+'Key_Assumptions_&_Inputs'!$J$59*'Key_Assumptions_&_Inputs'!$E$17*1000,0) -> 0 | X41: =IF(X19=0,'Key_Assumptions_&_Inputs'!$J$60+'Key_Assumptions_&_Inputs'!$J$59*'Key_Assumptions_&_Inputs'!$E$17*1000,0) -> 0 | Y41: =IF(Y19=0,'Key_Assumptions_&_Inputs'!$J$60+'Key_Assumptions_&_Inputs'!$J$59*'Key_Assumptions_&_Inputs'!$E$17*1000,0) -> 0 | Z41: =IF(Z19=0,'Key_Assumptions_&_Inputs'!$J$60+'Key_Assumptions_&_Inputs'!$J$59*'Key_Assumptions_&_Inputs'!$E$17*1000,0) -> 0 | AA41: =IF(AA19=0,'Key_Assumptions_&_Inputs'!$J$60+'Key_Assumptions_&_Inputs'!$J$59*'Key_Assumptions_&_Inputs'!$E$17*1000,0) -> 0 | AB41: =IF(AB19=0,'Key_Assumptions_&_Inputs'!$J$60+'Key_Assumptions_&_Inputs'!$J$59*'Key_Assumptions_&_Inputs'!$E$17*1000,0) -> 0 | AC41: =IF(AC19=0,'Key_Assumptions_&_Inputs'!$J$60+'Key_Assumptions_&_Inputs'!$J$59*'Key_Assumptions_&_Inputs'!$E$17*1000,0) -> 0 | AD41: =IF(AD19=0,'Key_Assumptions_&_Inputs'!$J$60+'Key_Assumptions_&_Inputs'!$J$59*'Key_Assumptions_&_Inputs'!$E$17*1000,0) -> 0 | AE41: =SUM(E41:AD41) -> 0
B42: State/Local Generation Incentives | D42: $ | E42: =IF(E19=0,0,'Key_Assumptions_&_Inputs'!$J$58*Generation_Rates!D38) -> 0 | F42: =Generation_Rates!$D$54*'Key_Assumptions_&_Inputs'!$J$58 -> 0 | G42: =IF(OR('Key_Assumptions_&_Inputs'!$E$20="Non Tax-Exempt Entity",'Key_Assumptions_&_Inputs'!$E$20="Tax-Exempt Entity"),Generation_Rates!$D$54*'Key_Assumptions_&_Inputs'!$J$58,0) -> 0 | H42: =IF(OR('Key_Assumptions_&_Inputs'!$E$20="Non Tax-Exempt Entity",'Key_Assumptions_&_Inputs'!$E$20="Tax-Exempt Entity"),Generation_Rates!$D$54*'Key_Assumptions_&_Inputs'!$J$58,0) -> 0 | I42: =IF(OR('Key_Assumptions_&_Inputs'!$E$20="Non Tax-Exempt Entity",'Key_Assumptions_&_Inputs'!$E$20="Tax-Exempt Entity"),Generation_Rates!$D$54*'Key_Assumptions_&_Inputs'!$J$58,0) -> 0 | J42: =IF(OR('Key_Assumptions_&_Inputs'!$E$20="Non Tax-Exempt Entity",'Key_Assumptions_&_Inputs'!$E$20="Tax-Exempt Entity"),Generation_Rates!$D$54*'Key_Assumptions_&_Inputs'!$J$58,0) -> 0 | K42: =IF(OR('Key_Assumptions_&_Inputs'!$E$20="Non Tax-Exempt Entity",'Key_Assumptions_&_Inputs'!$E$20="Tax-Exempt Entity"),Generation_Rates!$D$54*'Key_Assumptions_&_Inputs'!$J$58,0) -> 0 | L42: =IF(OR('Key_Assumptions_&_Inputs'!$E$20="Non Tax-Exempt Entity",'Key_Assumptions_&_Inputs'!$E$20="Tax-Exempt Entity"),Generation_Rates!$D$54*'Key_Assumptions_&_Inputs'!$J$58,0) -> 0 | M42: =IF(OR('Key_Assumptions_&_Inputs'!$E$20="Non Tax-Exempt Entity",'Key_Assumptions_&_Inputs'!$E$20="Tax-Exempt Entity"),Generation_Rates!$D$54*'Key_Assumptions_&_Inputs'!$J$58,0) -> 0 | N42: =IF(OR('Key_Assumptions_&_Inputs'!$E$20="Non Tax-Exempt Entity",'Key_Assumptions_&_Inputs'!$E$20="Tax-Exempt Entity"),Generation_Rates!$D$54*'Key_Assumptions_&_Inputs'!$J$58,0) -> 0 | O42: =IF(OR('Key_Assumptions_&_Inputs'!$E$20="Non Tax-Exempt Entity",'Key_Assumptions_&_Inputs'!$E$20="Tax-Exempt Entity"),Generation_Rates!$D$54*'Key_Assumptions_&_Inputs'!$J$58,0) -> 0 | P42: =IF(OR('Key_Assumptions_&_Inputs'!$E$20="Non Tax-Exempt Entity",'Key_Assumptions_&_Inputs'!$E$20="Tax-Exempt Entity"),Generation_Rates!$D$54*'Key_Assumptions_&_Inputs'!$J$58,0) -> 0 | Q42: =IF(OR('Key_Assumptions_&_Inputs'!$E$20="Non Tax-Exempt Entity",'Key_Assumptions_&_Inputs'!$E$20="Tax-Exempt Entity"),Generation_Rates!$D$54*'Key_Assumptions_&_Inputs'!$J$58,0) -> 0 | R42: =IF(OR('Key_Assumptions_&_Inputs'!$E$20="Non Tax-Exempt Entity",'Key_Assumptions_&_Inputs'!$E$20="Tax-Exempt Entity"),Generation_Rates!$D$54*'Key_Assumptions_&_Inputs'!$J$58,0) -> 0 | S42: =IF(OR('Key_Assumptions_&_Inputs'!$E$20="Non Tax-Exempt Entity",'Key_Assumptions_&_Inputs'!$E$20="Tax-Exempt Entity"),Generation_Rates!$D$54*'Key_Assumptions_&_Inputs'!$J$58,0) -> 0 | T42: =IF(OR('Key_Assumptions_&_Inputs'!$E$20="Non Tax-Exempt Entity",'Key_Assumptions_&_Inputs'!$E$20="Tax-Exempt Entity"),Generation_Rates!$D$54*'Key_Assumptions_&_Inputs'!$J$58,0) -> 0 | U42: =IF(OR('Key_Assumptions_&_Inputs'!$E$20="Non Tax-Exempt Entity",'Key_Assumptions_&_Inputs'!$E$20="Tax-Exempt Entity"),Generation_Rates!$D$54*'Key_Assumptions_&_Inputs'!$J$58,0) -> 0 | V42: =IF(OR('Key_Assumptions_&_Inputs'!$E$20="Non Tax-Exempt Entity",'Key_Assumptions_&_Inputs'!$E$20="Tax-Exempt Entity"),Generation_Rates!$D$54*'Key_Assumptions_&_Inputs'!$J$58,0) -> 0 | W42: =IF(OR('Key_Assumptions_&_Inputs'!$E$20="Non Tax-Exempt Entity",'Key_Assumptions_&_Inputs'!$E$20="Tax-Exempt Entity"),Generation_Rates!$D$54*'Key_Assumptions_&_Inputs'!$J$58,0) -> 0 | X42: =IF(OR('Key_Assumptions_&_Inputs'!$E$20="Non Tax-Exempt Entity",'Key_Assumptions_&_Inputs'!$E$20="Tax-Exempt Entity"),Generation_Rates!$D$54*'Key_Assumptions_&_Inputs'!$J$58,0) -> 0 | Y42: =IF(OR('Key_Assumptions_&_Inputs'!$E$20="Non Tax-Exempt Entity",'Key_Assumptions_&_Inputs'!$E$20="Tax-Exempt Entity"),Generation_Rates!$D$54*'Key_Assumptions_&_Inputs'!$J$58,0) -> 0 | Z42: =IF(OR('Key_Assumptions_&_Inputs'!$E$20="Non Tax-Exempt Entity",'Key_Assumptions_&_Inputs'!$E$20="Tax-Exempt Entity"),Generation_Rates!$D$54*'Key_Assumptions_&_Inputs'!$J$58,0) -> 0 | AA42: =IF(OR('Key_Assumptions_&_Inputs'!$E$20="Non Tax-Exempt Entity",'Key_Assumptions_&_Inputs'!$E$20="Tax-Exempt Entity"),Generation_Rates!$D$54*'Key_Assumptions_&_Inputs'!$J$58,0) -> 0 | AB42: =IF(OR('Key_Assumptions_&_Inputs'!$E$20="Non Tax-Exempt Entity",'Key_Assumptions_&_Inputs'!$E$20="Tax-Exempt Entity"),Generation_Rates!$D$54*'Key_Assumptions_&_Inputs'!$J$58,0) -> 0 | AC42: =IF(OR('Key_Assumptions_&_Inputs'!$E$20="Non Tax-Exempt Entity",'Key_Assumptions_&_Inputs'!$E$20="Tax-Exempt Entity"),Generation_Rates!$D$54*'Key_Assumptions_&_Inputs'!$J$58,0) -> 0 | AD42: =IF(OR('Key_Assumptions_&_Inputs'!$E$20="Non Tax-Exempt Entity",'Key_Assumptions_&_Inputs'!$E$20="Tax-Exempt Entity"),Generation_Rates!$D$54*'Key_Assumptions_&_Inputs'!$J$58,0) -> 0 | AE42: =SUM(E42:AD42) -> 0
B43: Total Incentive Payments | D43: $ | E43: =SUM(E39:E42) -> 675000 | F43: 133875 | G43: 214200 | H43: 128520 | I43: 77112 | J43: 77112 | K43: 38556 | L43: 0 | M43: 0 | N43: 0 | O43: 0 | P43: 0 | Q43: 0 | R43: 0 | S43: 0 | T43: 0 | U43: 0 | V43: 0 | W43: 0 | X43: 0 | Y43: 0 | Z43: 0 | AA43: 0 | AB43: 0 | AC43: 0 | AD43: 0 | AE43: =SUM(E43:AD43) -> 1344375
B45: Subscriber Payments
B46: Subscriber Payments: Panel Purchasing Upfront | D46: $ | E46: =IF(E19=0,0,IF('Key_Assumptions_&_Inputs'!$E$11="Panel Purchasing",Dashboard!$C$10*'Key_Assumptions_&_Inputs'!$E$21*(Community_Solar_Business_Case!D13-Community_Solar_Business_Case!D14),0))+IF(AND('Key_Assumptions_&_Inputs'!$E$11="Panel Purchasing",E19=1),'Key_Assumptions_&_Inputs'!$E$58*'Key_Assumptions_&_Inputs'!$E$34*Dashboard!$C$10,0) -> 0 | F46: =(IF(F19=0,0,IF('Key_Assumptions_&_Inputs'!$E$11="Panel Purchasing",Dashboard!$C$10*'Key_Assumptions_&_Inputs'!$E$21*(Community_Solar_Business_Case!E13-Community_Solar_Business_Case!E14),0))+IF(AND('Key_Assumptions_&_Inputs'!$E$11="Panel Purchasing",F19=1),'Key_Assumptions_&_Inputs'!$E$58*'Key_Assumptions_&_Inputs'!$E$34*Dashboard!$C$10,0))*(1+'Key_Assumptions_&_Inputs'!$E$60)^(Community_Solar_Business_Case!F19-Community_Solar_Business_Case!$F$19) -> 0 | G46: =(IF(G19=0,0,IF('Key_Assumptions_&_Inputs'!$E$11="Panel Purchasing",Dashboard!$C$10*'Key_Assumptions_&_Inputs'!$E$21*(Community_Solar_Business_Case!F13-Community_Solar_Business_Case!F14),0))+IF(AND('Key_Assumptions_&_Inputs'!$E$11="Panel Purchasing",G19=1),'Key_Assumptions_&_Inputs'!$E$58*'Key_Assumptions_&_Inputs'!$E$34*Dashboard!$C$10,0))*(1+'Key_Assumptions_&_Inputs'!$E$60)^(Community_Solar_Business_Case!G19-Community_Solar_Business_Case!$F$19) -> 0 | H46: =(IF(H19=0,0,IF('Key_Assumptions_&_Inputs'!$E$11="Panel Purchasing",Dashboard!$C$10*'Key_Assumptions_&_Inputs'!$E$21*(Community_Solar_Business_Case!G13-Community_Solar_Business_Case!G14),0))+IF(AND('Key_Assumptions_&_Inputs'!$E$11="Panel Purchasing",H19=1),'Key_Assumptions_&_Inputs'!$E$58*'Key_Assumptions_&_Inputs'!$E$34*Dashboard!$C$10,0))*(1+'Key_Assumptions_&_Inputs'!$E$60)^(Community_Solar_Business_Case!H19-Community_Solar_Business_Case!$F$19) -> 0 | I46: =(IF(I19=0,0,IF('Key_Assumptions_&_Inputs'!$E$11="Panel Purchasing",Dashboard!$C$10*'Key_Assumptions_&_Inputs'!$E$21*(Community_Solar_Business_Case!H13-Community_Solar_Business_Case!H14),0))+IF(AND('Key_Assumptions_&_Inputs'!$E$11="Panel Purchasing",I19=1),'Key_Assumptions_&_Inputs'!$E$58*'Key_Assumptions_&_Inputs'!$E$34*Dashboard!$C$10,0))*(1+'Key_Assumptions_&_Inputs'!$E$60)^(Community_Solar_Business_Case!I19-Community_Solar_Business_Case!$F$19) -> 0 | J46: =(IF(J19=0,0,IF('Key_Assumptions_&_Inputs'!$E$11="Panel Purchasing",Dashboard!$C$10*'Key_Assumptions_&_Inputs'!$E$21*(Community_Solar_Business_Case!I13-Community_Solar_Business_Case!I14),0))+IF(AND('Key_Assumptions_&_Inputs'!$E$11="Panel Purchasing",J19=1),'Key_Assumptions_&_Inputs'!$E$58*'Key_Assumptions_&_Inputs'!$E$34*Dashboard!$C$10,0))*(1+'Key_Assumptions_&_Inputs'!$E$60)^(Community_Solar_Business_Case!J19-Community_Solar_Business_Case!$F$19) -> 0 | K46: =(IF(K19=0,0,IF('Key_Assumptions_&_Inputs'!$E$11="Panel Purchasing",Dashboard!$C$10*'Key_Assumptions_&_Inputs'!$E$21*(Community_Solar_Business_Case!J13-Community_Solar_Business_Case!J14),0))+IF(AND('Key_Assumptions_&_Inputs'!$E$11="Panel Purchasing",K19=1),'Key_Assumptions_&_Inputs'!$E$58*'Key_Assumptions_&_Inputs'!$E$34*Dashboard!$C$10,0))*(1+'Key_Assumptions_&_Inputs'!$E$60)^(Community_Solar_Business_Case!K19-Community_Solar_Business_Case!$F$19) -> 0 | L46: =(IF(L19=0,0,IF('Key_Assumptions_&_Inputs'!$E$11="Panel Purchasing",Dashboard!$C$10*'Key_Assumptions_&_Inputs'!$E$21*(Community_Solar_Business_Case!K13-Community_Solar_Business_Case!K14),0))+IF(AND('Key_Assumptions_&_Inputs'!$E$11="Panel Purchasing",L19=1),'Key_Assumptions_&_Inputs'!$E$58*'Key_Assumptions_&_Inputs'!$E$34*Dashboard!$C$10,0))*(1+'Key_Assumptions_&_Inputs'!$E$60)^(Community_Solar_Business_Case!L19-Community_Solar_Business_Case!$F$19) -> 0 | M46: =(IF(M19=0,0,IF('Key_Assumptions_&_Inputs'!$E$11="Panel Purchasing",Dashboard!$C$10*'Key_Assumptions_&_Inputs'!$E$21*(Community_Solar_Business_Case!L13-Community_Solar_Business_Case!L14),0))+IF(AND('Key_Assumptions_&_Inputs'!$E$11="Panel Purchasing",M19=1),'Key_Assumptions_&_Inputs'!$E$58*'Key_Assumptions_&_Inputs'!$E$34*Dashboard!$C$10,0))*(1+'Key_Assumptions_&_Inputs'!$E$60)^(Community_Solar_Business_Case!M19-Community_Solar_Business_Case!$F$19) -> 0 | N46: =(IF(N19=0,0,IF('Key_Assumptions_&_Inputs'!$E$11="Panel Purchasing",Dashboard!$C$10*'Key_Assumptions_&_Inputs'!$E$21*(Community_Solar_Business_Case!M13-Community_Solar_Business_Case!M14),0))+IF(AND('Key_Assumptions_&_Inputs'!$E$11="Panel Purchasing",N19=1),'Key_Assumptions_&_Inputs'!$E$58*'Key_Assumptions_&_Inputs'!$E$34*Dashboard!$C$10,0))*(1+'Key_Assumptions_&_Inputs'!$E$60)^(Community_Solar_Business_Case!N19-Community_Solar_Business_Case!$F$19) -> 0 | O46: =(IF(O19=0,0,IF('Key_Assumptions_&_Inputs'!$E$11="Panel Purchasing",Dashboard!$C$10*'Key_Assumptions_&_Inputs'!$E$21*(Community_Solar_Business_Case!N13-Community_Solar_Business_Case!N14),0))+IF(AND('Key_Assumptions_&_Inputs'!$E$11="Panel Purchasing",O19=1),'Key_Assumptions_&_Inputs'!$E$58*'Key_Assumptions_&_Inputs'!$E$34*Dashboard!$C$10,0))*(1+'Key_Assumptions_&_Inputs'!$E$60)^(Community_Solar_Business_Case!O19-Community_Solar_Business_Case!$F$19) -> 0 | P46: =(IF(P19=0,0,IF('Key_Assumptions_&_Inputs'!$E$11="Panel Purchasing",Dashboard!$C$10*'Key_Assumptions_&_Inputs'!$E$21*(Community_Solar_Business_Case!O13-Community_Solar_Business_Case!O14),0))+IF(AND('Key_Assumptions_&_Inputs'!$E$11="Panel Purchasing",P19=1),'Key_Assumptions_&_Inputs'!$E$58*'Key_Assumptions_&_Inputs'!$E$34*Dashboard!$C$10,0))*(1+'Key_Assumptions_&_Inputs'!$E$60)^(Community_Solar_Business_Case!P19-Community_Solar_Business_Case!$F$19) -> 0 | Q46: =(IF(Q19=0,0,IF('Key_Assumptions_&_Inputs'!$E$11="Panel Purchasing",Dashboard!$C$10*'Key_Assumptions_&_Inputs'!$E$21*(Community_Solar_Business_Case!P13-Community_Solar_Business_Case!P14),0))+IF(AND('Key_Assumptions_&_Inputs'!$E$11="Panel Purchasing",Q19=1),'Key_Assumptions_&_Inputs'!$E$58*'Key_Assumptions_&_Inputs'!$E$34*Dashboard!$C$10,0))*(1+'Key_Assumptions_&_Inputs'!$E$60)^(Community_Solar_Business_Case!Q19-Community_Solar_Business_Case!$F$19) -> 0 | R46: =(IF(R19=0,0,IF('Key_Assumptions_&_Inputs'!$E$11="Panel Purchasing",Dashboard!$C$10*'Key_Assumptions_&_Inputs'!$E$21*(Community_Solar_Business_Case!Q13-Community_Solar_Business_Case!Q14),0))+IF(AND('Key_Assumptions_&_Inputs'!$E$11="Panel Purchasing",R19=1),'Key_Assumptions_&_Inputs'!$E$58*'Key_Assumptions_&_Inputs'!$E$34*Dashboard!$C$10,0))*(1+'Key_Assumptions_&_Inputs'!$E$60)^(Community_Solar_Business_Case!R19-Community_Solar_Business_Case!$F$19) -> 0 | S46: =(IF(S19=0,0,IF('Key_Assumptions_&_Inputs'!$E$11="Panel Purchasing",Dashboard!$C$10*'Key_Assumptions_&_Inputs'!$E$21*(Community_Solar_Business_Case!R13-Community_Solar_Business_Case!R14),0))+IF(AND('Key_Assumptions_&_Inputs'!$E$11="Panel Purchasing",S19=1),'Key_Assumptions_&_Inputs'!$E$58*'Key_Assumptions_&_Inputs'!$E$34*Dashboard!$C$10,0))*(1+'Key_Assumptions_&_Inputs'!$E$60)^(Community_Solar_Business_Case!S19-Community_Solar_Business_Case!$F$19) -> 0 | T46: =(IF(T19=0,0,IF('Key_Assumptions_&_Inputs'!$E$11="Panel Purchasing",Dashboard!$C$10*'Key_Assumptions_&_Inputs'!$E$21*(Community_Solar_Business_Case!S13-Community_Solar_Business_Case!S14),0))+IF(AND('Key_Assumptions_&_Inputs'!$E$11="Panel Purchasing",T19=1),'Key_Assumptions_&_Inputs'!$E$58*'Key_Assumptions_&_Inputs'!$E$34*Dashboard!$C$10,0))*(1+'Key_Assumptions_&_Inputs'!$E$60)^(Community_Solar_Business_Case!T19-Community_Solar_Business_Case!$F$19) -> 0 | U46: =(IF(U19=0,0,IF('Key_Assumptions_&_Inputs'!$E$11="Panel Purchasing",Dashboard!$C$10*'Key_Assumptions_&_Inputs'!$E$21*(Community_Solar_Business_Case!T13-Community_Solar_Business_Case!T14),0))+IF(AND('Key_Assumptions_&_Inputs'!$E$11="Panel Purchasing",U19=1),'Key_Assumptions_&_Inputs'!$E$58*'Key_Assumptions_&_Inputs'!$E$34*Dashboard!$C$10,0))*(1+'Key_Assumptions_&_Inputs'!$E$60)^(Community_Solar_Business_Case!U19-Community_Solar_Business_Case!$F$19) -> 0 | V46: =(IF(V19=0,0,IF('Key_Assumptions_&_Inputs'!$E$11="Panel Purchasing",Dashboard!$C$10*'Key_Assumptions_&_Inputs'!$E$21*(Community_Solar_Business_Case!U13-Community_Solar_Business_Case!U14),0))+IF(AND('Key_Assumptions_&_Inputs'!$E$11="Panel Purchasing",V19=1),'Key_Assumptions_&_Inputs'!$E$58*'Key_Assumptions_&_Inputs'!$E$34*Dashboard!$C$10,0))*(1+'Key_Assumptions_&_Inputs'!$E$60)^(Community_Solar_Business_Case!V19-Community_Solar_Business_Case!$F$19) -> 0 | W46: =(IF(W19=0,0,IF('Key_Assumptions_&_Inputs'!$E$11="Panel Purchasing",Dashboard!$C$10*'Key_Assumptions_&_Inputs'!$E$21*(Community_Solar_Business_Case!V13-Community_Solar_Business_Case!V14),0))+IF(AND('Key_Assumptions_&_Inputs'!$E$11="Panel Purchasing",W19=1),'Key_Assumptions_&_Inputs'!$E$58*'Key_Assumptions_&_Inputs'!$E$34*Dashboard!$C$10,0))*(1+'Key_Assumptions_&_Inputs'!$E$60)^(Community_Solar_Business_Case!W19-Community_Solar_Business_Case!$F$19) -> 0 | X46: =(IF(X19=0,0,IF('Key_Assumptions_&_Inputs'!$E$11="Panel Purchasing",Dashboard!$C$10*'Key_Assumptions_&_Inputs'!$E$21*(Community_Solar_Business_Case!W13-Community_Solar_Business_Case!W14),0))+IF(AND('Key_Assumptions_&_Inputs'!$E$11="Panel Purchasing",X19=1),'Key_Assumptions_&_Inputs'!$E$58*'Key_Assumptions_&_Inputs'!$E$34*Dashboard!$C$10,0))*(1+'Key_Assumptions_&_Inputs'!$E$60)^(Community_Solar_Business_Case!X19-Community_Solar_Business_Case!$F$19) -> 0 | Y46: =(IF(Y19=0,0,IF('Key_Assumptions_&_Inputs'!$E$11="Panel Purchasing",Dashboard!$C$10*'Key_Assumptions_&_Inputs'!$E$21*(Community_Solar_Business_Case!X13-Community_Solar_Business_Case!X14),0))+IF(AND('Key_Assumptions_&_Inputs'!$E$11="Panel Purchasing",Y19=1),'Key_Assumptions_&_Inputs'!$E$58*'Key_Assumptions_&_Inputs'!$E$34*Dashboard!$C$10,0))*(1+'Key_Assumptions_&_Inputs'!$E$60)^(Community_Solar_Business_Case!Y19-Community_Solar_Business_Case!$F$19) -> 0 | Z46: =(IF(Z19=0,0,IF('Key_Assumptions_&_Inputs'!$E$11="Panel Purchasing",Dashboard!$C$10*'Key_Assumptions_&_Inputs'!$E$21*(Community_Solar_Business_Case!Y13-Community_Solar_Business_Case!Y14),0))+IF(AND('Key_Assumptions_&_Inputs'!$E$11="Panel Purchasing",Z19=1),'Key_Assumptions_&_Inputs'!$E$58*'Key_Assumptions_&_Inputs'!$E$34*Dashboard!$C$10,0))*(1+'Key_Assumptions_&_Inputs'!$E$60)^(Community_Solar_Business_Case!Z19-Community_Solar_Business_Case!$F$19) -> 0 | AA46: =(IF(AA19=0,0,IF('Key_Assumptions_&_Inputs'!$E$11="Panel Purchasing",Dashboard!$C$10*'Key_Assumptions_&_Inputs'!$E$21*(Community_Solar_Business_Case!Z13-Community_Solar_Business_Case!Z14),0))+IF(AND('Key_Assumptions_&_Inputs'!$E$11="Panel Purchasing",AA19=1),'Key_Assumptions_&_Inputs'!$E$58*'Key_Assumptions_&_Inputs'!$E$34*Dashboard!$C$10,0))*(1+'Key_Assumptions_&_Inputs'!$E$60)^(Community_Solar_Business_Case!AA19-Community_Solar_Business_Case!$F$19) -> 0 | AB46: =(IF(AB19=0,0,IF('Key_Assumptions_&_Inputs'!$E$11="Panel Purchasing",Dashboard!$C$10*'Key_Assumptions_&_Inputs'!$E$21*(Community_Solar_Business_Case!AA13-Community_Solar_Business_Case!AA14),0))+IF(AND('Key_Assumptions_&_Inputs'!$E$11="Panel Purchasing",AB19=1),'Key_Assumptions_&_Inputs'!$E$58*'Key_Assumptions_&_Inputs'!$E$34*Dashboard!$C$10,0))*(1+'Key_Assumptions_&_Inputs'!$E$60)^(Community_Solar_Business_Case!AB19-Community_Solar_Business_Case!$F$19) -> 0 | AC46: =(IF(AC19=0,0,IF('Key_Assumptions_&_Inputs'!$E$11="Panel Purchasing",Dashboard!$C$10*'Key_Assumptions_&_Inputs'!$E$21*(Community_Solar_Business_Case!AB13-Community_Solar_Business_Case!AB14),0))+IF(AND('Key_Assumptions_&_Inputs'!$E$11="Panel Purchasing",AC19=1),'Key_Assumptions_&_Inputs'!$E$58*'Key_Assumptions_&_Inputs'!$E$34*Dashboard!$C$10,0))*(1+'Key_Assumptions_&_Inputs'!$E$60)^(Community_Solar_Business_Case!AC19-Community_Solar_Business_Case!$F$19) -> 0 | AD46: =(IF(AD19=0,0,IF('Key_Assumptions_&_Inputs'!$E$11="Panel Purchasing",Dashboard!$C$10*'Key_Assumptions_&_Inputs'!$E$21*(Community_Solar_Business_Case!AC13-Community_Solar_Business_Case!AC14),0))+IF(AND('Key_Assumptions_&_Inputs'!$E$11="Panel Purchasing",AD19=1),'Key_Assumptions_&_Inputs'!$E$58*'Key_Assumptions_&_Inputs'!$E$34*Dashboard!$C$10,0))*(1+'Key_Assumptions_&_Inputs'!$E$60)^(Community_Solar_Business_Case!AD19-Community_Solar_Business_Case!$F$19) -> 0 | AE46: =SUM(E46:AD46) -> 0
B47: Subscriber Payments: Panel Leasing Ongoing | D47: $ | E47: =IF('Key_Assumptions_&_Inputs'!$E$11="Power Purchasing",0,IF(E19=0,0,IF('Key_Assumptions_&_Inputs'!$E$11="Panel Leasing",(Community_Solar_Business_Case!D15*'Key_Assumptions_&_Inputs'!$E$21*'Key_Assumptions_&_Inputs'!$E$12*12+'Key_Assumptions_&_Inputs'!$E$58*'Key_Assumptions_&_Inputs'!$E$34*'Key_Assumptions_&_Inputs'!$E$12*12),0)*(1+'Key_Assumptions_&_Inputs'!$E$60)^(E19-1))) -> 0 | F47: =IF('Key_Assumptions_&_Inputs'!$E$11="Power Purchasing",0,IF(F19=0,0,IF('Key_Assumptions_&_Inputs'!$E$11="Panel Leasing",(Community_Solar_Business_Case!E15*'Key_Assumptions_&_Inputs'!$E$21*'Key_Assumptions_&_Inputs'!$E$12*12+'Key_Assumptions_&_Inputs'!$E$58*'Key_Assumptions_&_Inputs'!$E$34*'Key_Assumptions_&_Inputs'!$E$12*12),0)*(1+'Key_Assumptions_&_Inputs'!$E$60)^(F19-1))) -> 144468.9551 | G47: =IF('Key_Assumptions_&_Inputs'!$E$11="Power Purchasing",0,IF(G19=0,0,IF('Key_Assumptions_&_Inputs'!$E$11="Panel Leasing",(Community_Solar_Business_Case!F15*'Key_Assumptions_&_Inputs'!$E$21*'Key_Assumptions_&_Inputs'!$E$12*12+'Key_Assumptions_&_Inputs'!$E$58*'Key_Assumptions_&_Inputs'!$E$34*'Key_Assumptions_&_Inputs'!$E$12*12),0)*(1+'Key_Assumptions_&_Inputs'!$E$60)^(G19-1))) -> 144468.9551 | H47: =IF('Key_Assumptions_&_Inputs'!$E$11="Power Purchasing",0,IF(H19=0,0,IF('Key_Assumptions_&_Inputs'!$E$11="Panel Leasing",(Community_Solar_Business_Case!G15*'Key_Assumptions_&_Inputs'!$E$21*'Key_Assumptions_&_Inputs'!$E$12*12+'Key_Assumptions_&_Inputs'!$E$58*'Key_Assumptions_&_Inputs'!$E$34*'Key_Assumptions_&_Inputs'!$E$12*12),0)*(1+'Key_Assumptions_&_Inputs'!$E$60)^(H19-1))) -> 144468.9551 | I47: =IF('Key_Assumptions_&_Inputs'!$E$11="Power Purchasing",0,IF(I19=0,0,IF('Key_Assumptions_&_Inputs'!$E$11="Panel Leasing",(Community_Solar_Business_Case!H15*'Key_Assumptions_&_Inputs'!$E$21*'Key_Assumptions_&_Inputs'!$E$12*12+'Key_Assumptions_&_Inputs'!$E$58*'Key_Assumptions_&_Inputs'!$E$34*'Key_Assumptions_&_Inputs'!$E$12*12),0)*(1+'Key_Assumptions_&_Inputs'!$E$60)^(I19-1))) -> 144468.9551 | J47: =IF('Key_Assumptions_&_Inputs'!$E$11="Power Purchasing",0,IF(J19=0,0,IF('Key_Assumptions_&_Inputs'!$E$11="Panel Leasing",(Community_Solar_Business_Case!I15*'Key_Assumptions_&_Inputs'!$E$21*'Key_Assumptions_&_Inputs'!$E$12*12+'Key_Assumptions_&_Inputs'!$E$58*'Key_Assumptions_&_Inputs'!$E$34*'Key_Assumptions_&_Inputs'!$E$12*12),0)*(1+'Key_Assumptions_&_Inputs'!$E$60)^(J19-1))) -> 144468.9551 | K47: =IF('Key_Assumptions_&_Inputs'!$E$11="Power Purchasing",0,IF(K19=0,0,IF('Key_Assumptions_&_Inputs'!$E$11="Panel Leasing",(Community_Solar_Business_Case!J15*'Key_Assumptions_&_Inputs'!$E$21*'Key_Assumptions_&_Inputs'!$E$12*12+'Key_Assumptions_&_Inputs'!$E$58*'Key_Assumptions_&_Inputs'!$E$34*'Key_Assumptions_&_Inputs'!$E$12*12),0)*(1+'Key_Assumptions_&_Inputs'!$E$60)^(K19-1))) -> 144468.9551 | L47: =IF('Key_Assumptions_&_Inputs'!$E$11="Power Purchasing",0,IF(L19=0,0,IF('Key_Assumptions_&_Inputs'!$E$11="Panel Leasing",(Community_Solar_Business_Case!K15*'Key_Assumptions_&_Inputs'!$E$21*'Key_Assumptions_&_Inputs'!$E$12*12+'Key_Assumptions_&_Inputs'!$E$58*'Key_Assumptions_&_Inputs'!$E$34*'Key_Assumptions_&_Inputs'!$E$12*12),0)*(1+'Key_Assumptions_&_Inputs'!$E$60)^(L19-1))) -> 144468.9551 | M47: =IF('Key_Assumptions_&_Inputs'!$E$11="Power Purchasing",0,IF(M19=0,0,IF('Key_Assumptions_&_Inputs'!$E$11="Panel Leasing",(Community_Solar_Business_Case!L15*'Key_Assumptions_&_Inputs'!$E$21*'Key_Assumptions_&_Inputs'!$E$12*12+'Key_Assumptions_&_Inputs'!$E$58*'Key_Assumptions_&_Inputs'!$E$34*'Key_Assumptions_&_Inputs'!$E$12*12),0)*(1+'Key_Assumptions_&_Inputs'!$E$60)^(M19-1))) -> 144468.9551 | N47: =IF('Key_Assumptions_&_Inputs'!$E$11="Power Purchasing",0,IF(N19=0,0,IF('Key_Assumptions_&_Inputs'!$E$11="Panel Leasing",(Community_Solar_Business_Case!M15*'Key_Assumptions_&_Inputs'!$E$21*'Key_Assumptions_&_Inputs'!$E$12*12+'Key_Assumptions_&_Inputs'!$E$58*'Key_Assumptions_&_Inputs'!$E$34*'Key_Assumptions_&_Inputs'!$E$12*12),0)*(1+'Key_Assumptions_&_Inputs'!$E$60)^(N19-1))) -> 144468.9551 | O47: =IF('Key_Assumptions_&_Inputs'!$E$11="Power Purchasing",0,IF(O19=0,0,IF('Key_Assumptions_&_Inputs'!$E$11="Panel Leasing",(Community_Solar_Business_Case!N15*'Key_Assumptions_&_Inputs'!$E$21*'Key_Assumptions_&_Inputs'!$E$12*12+'Key_Assumptions_&_Inputs'!$E$58*'Key_Assumptions_&_Inputs'!$E$34*'Key_Assumptions_&_Inputs'!$E$12*12),0)*(1+'Key_Assumptions_&_Inputs'!$E$60)^(O19-1))) -> 144468.9551 | P47: =IF('Key_Assumptions_&_Inputs'!$E$11="Power Purchasing",0,IF(P19=0,0,IF('Key_Assumptions_&_Inputs'!$E$11="Panel Leasing",(Community_Solar_Business_Case!O15*'Key_Assumptions_&_Inputs'!$E$21*'Key_Assumptions_&_Inputs'!$E$12*12+'Key_Assumptions_&_Inputs'!$E$58*'Key_Assumptions_&_Inputs'!$E$34*'Key_Assumptions_&_Inputs'!$E$12*12),0)*(1+'Key_Assumptions_&_Inputs'!$E$60)^(P19-1))) -> 144468.9551 | Q47: =IF('Key_Assumptions_&_Inputs'!$E$11="Power Purchasing",0,IF(Q19=0,0,IF('Key_Assumptions_&_Inputs'!$E$11="Panel Leasing",(Community_Solar_Business_Case!P15*'Key_Assumptions_&_Inputs'!$E$21*'Key_Assumptions_&_Inputs'!$E$12*12+'Key_Assumptions_&_Inputs'!$E$58*'Key_Assumptions_&_Inputs'!$E$34*'Key_Assumptions_&_Inputs'!$E$12*12),0)*(1+'Key_Assumptions_&_Inputs'!$E$60)^(Q19-1))) -> 144468.9551 | R47: =IF('Key_Assumptions_&_Inputs'!$E$11="Power Purchasing",0,IF(R19=0,0,IF('Key_Assumptions_&_Inputs'!$E$11="Panel Leasing",(Community_Solar_Business_Case!Q15*'Key_Assumptions_&_Inputs'!$E$21*'Key_Assumptions_&_Inputs'!$E$12*12+'Key_Assumptions_&_Inputs'!$E$58*'Key_Assumptions_&_Inputs'!$E$34*'Key_Assumptions_&_Inputs'!$E$12*12),0)*(1+'Key_Assumptions_&_Inputs'!$E$60)^(R19-1))) -> 144468.9551 | S47: =IF('Key_Assumptions_&_Inputs'!$E$11="Power Purchasing",0,IF(S19=0,0,IF('Key_Assumptions_&_Inputs'!$E$11="Panel Leasing",(Community_Solar_Business_Case!R15*'Key_Assumptions_&_Inputs'!$E$21*'Key_Assumptions_&_Inputs'!$E$12*12+'Key_Assumptions_&_Inputs'!$E$58*'Key_Assumptions_&_Inputs'!$E$34*'Key_Assumptions_&_Inputs'!$E$12*12),0)*(1+'Key_Assumptions_&_Inputs'!$E$60)^(S19-1))) -> 144468.9551 | T47: =IF('Key_Assumptions_&_Inputs'!$E$11="Power Purchasing",0,IF(T19=0,0,IF('Key_Assumptions_&_Inputs'!$E$11="Panel Leasing",(Community_Solar_Business_Case!S15*'Key_Assumptions_&_Inputs'!$E$21*'Key_Assumptions_&_Inputs'!$E$12*12+'Key_Assumptions_&_Inputs'!$E$58*'Key_Assumptions_&_Inputs'!$E$34*'Key_Assumptions_&_Inputs'!$E$12*12),0)*(1+'Key_Assumptions_&_Inputs'!$E$60)^(T19-1))) -> 144468.9551 | U47: =IF('Key_Assumptions_&_Inputs'!$E$11="Power Purchasing",0,IF(U19=0,0,IF('Key_Assumptions_&_Inputs'!$E$11="Panel Leasing",(Community_Solar_Business_Case!T15*'Key_Assumptions_&_Inputs'!$E$21*'Key_Assumptions_&_Inputs'!$E$12*12+'Key_Assumptions_&_Inputs'!$E$58*'Key_Assumptions_&_Inputs'!$E$34*'Key_Assumptions_&_Inputs'!$E$12*12),0)*(1+'Key_Assumptions_&_Inputs'!$E$60)^(U19-1))) -> 144468.9551 | V47: =IF('Key_Assumptions_&_Inputs'!$E$11="Power Purchasing",0,IF(V19=0,0,IF('Key_Assumptions_&_Inputs'!$E$11="Panel Leasing",(Community_Solar_Business_Case!U15*'Key_Assumptions_&_Inputs'!$E$21*'Key_Assumptions_&_Inputs'!$E$12*12+'Key_Assumptions_&_Inputs'!$E$58*'Key_Assumptions_&_Inputs'!$E$34*'Key_Assumptions_&_Inputs'!$E$12*12),0)*(1+'Key_Assumptions_&_Inputs'!$E$60)^(V19-1))) -> 144468.9551 | W47: =IF('Key_Assumptions_&_Inputs'!$E$11="Power Purchasing",0,IF(W19=0,0,IF('Key_Assumptions_&_Inputs'!$E$11="Panel Leasing",(Community_Solar_Business_Case!V15*'Key_Assumptions_&_Inputs'!$E$21*'Key_Assumptions_&_Inputs'!$E$12*12+'Key_Assumptions_&_Inputs'!$E$58*'Key_Assumptions_&_Inputs'!$E$34*'Key_Assumptions_&_Inputs'!$E$12*12),0)*(1+'Key_Assumptions_&_Inputs'!$E$60)^(W19-1))) -> 144468.9551 | X47: =IF('Key_Assumptions_&_Inputs'!$E$11="Power Purchasing",0,IF(X19=0,0,IF('Key_Assumptions_&_Inputs'!$E$11="Panel Leasing",(Community_Solar_Business_Case!W15*'Key_Assumptions_&_Inputs'!$E$21*'Key_Assumptions_&_Inputs'!$E$12*12+'Key_Assumptions_&_Inputs'!$E$58*'Key_Assumptions_&_Inputs'!$E$34*'Key_Assumptions_&_Inputs'!$E$12*12),0)*(1+'Key_Assumptions_&_Inputs'!$E$60)^(X19-1))) -> 144468.9551 | Y47: =IF('Key_Assumptions_&_Inputs'!$E$11="Power Purchasing",0,IF(Y19=0,0,IF('Key_Assumptions_&_Inputs'!$E$11="Panel Leasing",(Community_Solar_Business_Case!X15*'Key_Assumptions_&_Inputs'!$E$21*'Key_Assumptions_&_Inputs'!$E$12*12+'Key_Assumptions_&_Inputs'!$E$58*'Key_Assumptions_&_Inputs'!$E$34*'Key_Assumptions_&_Inputs'!$E$12*12),0)*(1+'Key_Assumptions_&_Inputs'!$E$60)^(Y19-1))) -> 144468.9551 | Z47: =IF('Key_Assumptions_&_Inputs'!$E$11="Power Purchasing",0,IF(Z19=0,0,IF('Key_Assumptions_&_Inputs'!$E$11="Panel Leasing",(Community_Solar_Business_Case!Y15*'Key_Assumptions_&_Inputs'!$E$21*'Key_Assumptions_&_Inputs'!$E$12*12+'Key_Assumptions_&_Inputs'!$E$58*'Key_Assumptions_&_Inputs'!$E$34*'Key_Assumptions_&_Inputs'!$E$12*12),0)*(1+'Key_Assumptions_&_Inputs'!$E$60)^(Z19-1))) -> 144468.9551 | AA47: =IF('Key_Assumptions_&_Inputs'!$E$11="Power Purchasing",0,IF(AA19=0,0,IF('Key_Assumptions_&_Inputs'!$E$11="Panel Leasing",(Community_Solar_Business_Case!Z15*'Key_Assumptions_&_Inputs'!$E$21*'Key_Assumptions_&_Inputs'!$E$12*12+'Key_Assumptions_&_Inputs'!$E$58*'Key_Assumptions_&_Inputs'!$E$34*'Key_Assumptions_&_Inputs'!$E$12*12),0)*(1+'Key_Assumptions_&_Inputs'!$E$60)^(AA19-1))) -> 144468.9551 | AB47: =IF('Key_Assumptions_&_Inputs'!$E$11="Power Purchasing",0,IF(AB19=0,0,IF('Key_Assumptions_&_Inputs'!$E$11="Panel Leasing",(Community_Solar_Business_Case!AA15*'Key_Assumptions_&_Inputs'!$E$21*'Key_Assumptions_&_Inputs'!$E$12*12+'Key_Assumptions_&_Inputs'!$E$58*'Key_Assumptions_&_Inputs'!$E$34*'Key_Assumptions_&_Inputs'!$E$12*12),0)*(1+'Key_Assumptions_&_Inputs'!$E$60)^(AB19-1))) -> 144468.9551 | AC47: =IF('Key_Assumptions_&_Inputs'!$E$11="Power Purchasing",0,IF(AC19=0,0,IF('Key_Assumptions_&_Inputs'!$E$11="Panel Leasing",(Community_Solar_Business_Case!AB15*'Key_Assumptions_&_Inputs'!$E$21*'Key_Assumptions_&_Inputs'!$E$12*12+'Key_Assumptions_&_Inputs'!$E$58*'Key_Assumptions_&_Inputs'!$E$34*'Key_Assumptions_&_Inputs'!$E$12*12),0)*(1+'Key_Assumptions_&_Inputs'!$E$60)^(AC19-1))) -> 144468.9551 | AD47: =IF('Key_Assumptions_&_Inputs'!$E$11="Power Purchasing",0,IF(AD19=0,0,IF('Key_Assumptions_&_Inputs'!$E$11="Panel Leasing",(Community_Solar_Business_Case!AC15*'Key_Assumptions_&_Inputs'!$E$21*'Key_Assumptions_&_Inputs'!$E$12*12+'Key_Assumptions_&_Inputs'!$E$58*'Key_Assumptions_&_Inputs'!$E$34*'Key_Assumptions_&_Inputs'!$E$12*12),0)*(1+'Key_Assumptions_&_Inputs'!$E$60)^(AD19-1))) -> 144468.9551 | AE47: =SUM(E47:AD47) -> 3611723.876
B48: Total Subscriber Payments | D48: $ | E48: =SUM(E46:E47) -> 0 | F48: 144468.9551 | G48: 144468.9551 | H48: 144468.9551 | I48: 144468.9551 | J48: 144468.9551 | K48: 144468.9551 | L48: 144468.9551 | M48: 144468.9551 | N48: 144468.9551 | O48: 144468.9551 | P48: 144468.9551 | Q48: 144468.9551 | R48: 144468.9551 | S48: 144468.9551 | T48: 144468.9551 | U48: 144468.9551 | V48: 144468.9551 | W48: 144468.9551 | X48: 144468.9551 | Y48: 144468.9551 | Z48: 144468.9551 | AA48: 144468.9551 | AB48: 144468.9551 | AC48: 144468.9551 | AD48: 144468.9551 | AE48: =SUM(E48:AD48) -> 3611723.876
B50: Production Benefits
B51: Unsubscribed Energy Payments | D51: $ | E51: =IF(E19=0,0,(1-'Admin_&_Transaction_Costs'!D83)*Generation_Rates!D38*'Key_Assumptions_&_Inputs'!$E$52*(1+'Key_Assumptions_&_Inputs'!$E$63)^(Community_Solar_Business_Case!E19-1)) -> 0 | F51: =IF(F19=0,0,(1-'Admin_&_Transaction_Costs'!E83)*Generation_Rates!E38*'Key_Assumptions_&_Inputs'!$E$52*(1+'Key_Assumptions_&_Inputs'!$E$63)^(Community_Solar_Business_Case!F19-1)) -> 0 | G51: =IF(G19=0,0,(1-'Admin_&_Transaction_Costs'!F83)*Generation_Rates!F38*'Key_Assumptions_&_Inputs'!$E$52*(1+'Key_Assumptions_&_Inputs'!$E$63)^(Community_Solar_Business_Case!G19-1)) -> 0 | H51: =IF(H19=0,0,(1-'Admin_&_Transaction_Costs'!G83)*Generation_Rates!G38*'Key_Assumptions_&_Inputs'!$E$52*(1+'Key_Assumptions_&_Inputs'!$E$63)^(Community_Solar_Business_Case!H19-1)) -> 0 | I51: =IF(I19=0,0,(1-'Admin_&_Transaction_Costs'!H83)*Generation_Rates!H38*'Key_Assumptions_&_Inputs'!$E$52*(1+'Key_Assumptions_&_Inputs'!$E$63)^(Community_Solar_Business_Case!I19-1)) -> 0 | J51: =IF(J19=0,0,(1-'Admin_&_Transaction_Costs'!I83)*Generation_Rates!I38*'Key_Assumptions_&_Inputs'!$E$52*(1+'Key_Assumptions_&_Inputs'!$E$63)^(Community_Solar_Business_Case!J19-1)) -> 0 | K51: =IF(K19=0,0,(1-'Admin_&_Transaction_Costs'!J83)*Generation_Rates!J38*'Key_Assumptions_&_Inputs'!$E$52*(1+'Key_Assumptions_&_Inputs'!$E$63)^(Community_Solar_Business_Case!K19-1)) -> 0 | L51: =IF(L19=0,0,(1-'Admin_&_Transaction_Costs'!K83)*Generation_Rates!K38*'Key_Assumptions_&_Inputs'!$E$52*(1+'Key_Assumptions_&_Inputs'!$E$63)^(Community_Solar_Business_Case!L19-1)) -> 0 | M51: =IF(M19=0,0,(1-'Admin_&_Transaction_Costs'!L83)*Generation_Rates!L38*'Key_Assumptions_&_Inputs'!$E$52*(1+'Key_Assumptions_&_Inputs'!$E$63)^(Community_Solar_Business_Case!M19-1)) -> 0 | N51: =IF(N19=0,0,(1-'Admin_&_Transaction_Costs'!M83)*Generation_Rates!M38*'Key_Assumptions_&_Inputs'!$E$52*(1+'Key_Assumptions_&_Inputs'!$E$63)^(Community_Solar_Business_Case!N19-1)) -> 0 | O51: =IF(O19=0,0,(1-'Admin_&_Transaction_Costs'!N83)*Generation_Rates!N38*'Key_Assumptions_&_Inputs'!$E$52*(1+'Key_Assumptions_&_Inputs'!$E$63)^(Community_Solar_Business_Case!O19-1)) -> 0 | P51: =IF(P19=0,0,(1-'Admin_&_Transaction_Costs'!O83)*Generation_Rates!O38*'Key_Assumptions_&_Inputs'!$E$52*(1+'Key_Assumptions_&_Inputs'!$E$63)^(Community_Solar_Business_Case!P19-1)) -> 0 | Q51: =IF(Q19=0,0,(1-'Admin_&_Transaction_Costs'!P83)*Generation_Rates!P38*'Key_Assumptions_&_Inputs'!$E$52*(1+'Key_Assumptions_&_Inputs'!$E$63)^(Community_Solar_Business_Case!Q19-1)) -> 0 | R51: =IF(R19=0,0,(1-'Admin_&_Transaction_Costs'!Q83)*Generation_Rates!Q38*'Key_Assumptions_&_Inputs'!$E$52*(1+'Key_Assumptions_&_Inputs'!$E$63)^(Community_Solar_Business_Case!R19-1)) -> 0 | S51: =IF(S19=0,0,(1-'Admin_&_Transaction_Costs'!R83)*Generation_Rates!R38*'Key_Assumptions_&_Inputs'!$E$52*(1+'Key_Assumptions_&_Inputs'!$E$63)^(Community_Solar_Business_Case!S19-1)) -> 0 | T51: =IF(T19=0,0,(1-'Admin_&_Transaction_Costs'!S83)*Generation_Rates!S38*'Key_Assumptions_&_Inputs'!$E$52*(1+'Key_Assumptions_&_Inputs'!$E$63)^(Community_Solar_Business_Case!T19-1)) -> 0 | U51: =IF(U19=0,0,(1-'Admin_&_Transaction_Costs'!T83)*Generation_Rates!T38*'Key_Assumptions_&_Inputs'!$E$52*(1+'Key_Assumptions_&_Inputs'!$E$63)^(Community_Solar_Business_Case!U19-1)) -> 0 | V51: =IF(V19=0,0,(1-'Admin_&_Transaction_Costs'!U83)*Generation_Rates!U38*'Key_Assumptions_&_Inputs'!$E$52*(1+'Key_Assumptions_&_Inputs'!$E$63)^(Community_Solar_Business_Case!V19-1)) -> 0 | W51: =IF(W19=0,0,(1-'Admin_&_Transaction_Costs'!V83)*Generation_Rates!V38*'Key_Assumptions_&_Inputs'!$E$52*(1+'Key_Assumptions_&_Inputs'!$E$63)^(Community_Solar_Business_Case!W19-1)) -> 0 | X51: =IF(X19=0,0,(1-'Admin_&_Transaction_Costs'!W83)*Generation_Rates!W38*'Key_Assumptions_&_Inputs'!$E$52*(1+'Key_Assumptions_&_Inputs'!$E$63)^(Community_Solar_Business_Case!X19-1)) -> 0 | Y51: =IF(Y19=0,0,(1-'Admin_&_Transaction_Costs'!X83)*Generation_Rates!X38*'Key_Assumptions_&_Inputs'!$E$52*(1+'Key_Assumptions_&_Inputs'!$E$63)^(Community_Solar_Business_Case!Y19-1)) -> 0 | Z51: =IF(Z19=0,0,(1-'Admin_&_Transaction_Costs'!Y83)*Generation_Rates!Y38*'Key_Assumptions_&_Inputs'!$E$52*(1+'Key_Assumptions_&_Inputs'!$E$63)^(Community_Solar_Business_Case!Z19-1)) -> 0 | AA51: =IF(AA19=0,0,(1-'Admin_&_Transaction_Costs'!Z83)*Generation_Rates!Z38*'Key_Assumptions_&_Inputs'!$E$52*(1+'Key_Assumptions_&_Inputs'!$E$63)^(Community_Solar_Business_Case!AA19-1)) -> 0 | AB51: =IF(AB19=0,0,(1-'Admin_&_Transaction_Costs'!AA83)*Generation_Rates!AA38*'Key_Assumptions_&_Inputs'!$E$52*(1+'Key_Assumptions_&_Inputs'!$E$63)^(Community_Solar_Business_Case!AB19-1)) -> 0 | AC51: =IF(AC19=0,0,(1-'Admin_&_Transaction_Costs'!AB83)*Generation_Rates!AB38*'Key_Assumptions_&_Inputs'!$E$52*(1+'Key_Assumptions_&_Inputs'!$E$63)^(Community_Solar_Business_Case!AC19-1)) -> 0 | AD51: =IF(AD19=0,0,(1-'Admin_&_Transaction_Costs'!AC83)*Generation_Rates!AC38*'Key_Assumptions_&_Inputs'!$E$52*(1+'Key_Assumptions_&_Inputs'!$E$63)^(Community_Solar_Business_Case!AD19-1)) -> 0
B52: SRECs | D52: $ | E52: 0 | F52: =IF(F19<='Key_Assumptions_&_Inputs'!$J$63,'Key_Assumptions_&_Inputs'!$J$61*Generation_Rates!E38*'Key_Assumptions_&_Inputs'!$J$62/'Key_Assumptions_&_Inputs'!$J$63/1000,0) -> 155306.8113 | G52: =IF(G19<='Key_Assumptions_&_Inputs'!$J$63,'Key_Assumptions_&_Inputs'!$J$61*Generation_Rates!F38*'Key_Assumptions_&_Inputs'!$J$62/'Key_Assumptions_&_Inputs'!$J$63/1000,0) -> 154530.2772 | H52: =IF(H19<='Key_Assumptions_&_Inputs'!$J$63,'Key_Assumptions_&_Inputs'!$J$61*Generation_Rates!G38*'Key_Assumptions_&_Inputs'!$J$62/'Key_Assumptions_&_Inputs'!$J$63/1000,0) -> 153753.7432 | I52: =IF(I19<='Key_Assumptions_&_Inputs'!$J$63,'Key_Assumptions_&_Inputs'!$J$61*Generation_Rates!H38*'Key_Assumptions_&_Inputs'!$J$62/'Key_Assumptions_&_Inputs'!$J$63/1000,0) -> 152977.2091 | J52: =IF(J19<='Key_Assumptions_&_Inputs'!$J$63,'Key_Assumptions_&_Inputs'!$J$61*Generation_Rates!I38*'Key_Assumptions_&_Inputs'!$J$62/'Key_Assumptions_&_Inputs'!$J$63/1000,0) -> 152200.675 | K52: =IF(K19<='Key_Assumptions_&_Inputs'!$J$63,'Key_Assumptions_&_Inputs'!$J$61*Generation_Rates!J38*'Key_Assumptions_&_Inputs'!$J$62/'Key_Assumptions_&_Inputs'!$J$63/1000,0) -> 0 | L52: =IF(L19<='Key_Assumptions_&_Inputs'!$J$63,'Key_Assumptions_&_Inputs'!$J$61*Generation_Rates!K38*'Key_Assumptions_&_Inputs'!$J$62/'Key_Assumptions_&_Inputs'!$J$63/1000,0) -> 0 | M52: =IF(M19<='Key_Assumptions_&_Inputs'!$J$63,'Key_Assumptions_&_Inputs'!$J$61*Generation_Rates!L38*'Key_Assumptions_&_Inputs'!$J$62/'Key_Assumptions_&_Inputs'!$J$63/1000,0) -> 0 | N52: =IF(N19<='Key_Assumptions_&_Inputs'!$J$63,'Key_Assumptions_&_Inputs'!$J$61*Generation_Rates!M38*'Key_Assumptions_&_Inputs'!$J$62/'Key_Assumptions_&_Inputs'!$J$63/1000,0) -> 0 | O52: =IF(O19<='Key_Assumptions_&_Inputs'!$J$63,'Key_Assumptions_&_Inputs'!$J$61*Generation_Rates!N38*'Key_Assumptions_&_Inputs'!$J$62/'Key_Assumptions_&_Inputs'!$J$63/1000,0) -> 0 | P52: =IF(P19<='Key_Assumptions_&_Inputs'!$J$63,'Key_Assumptions_&_Inputs'!$J$61*Generation_Rates!O38*'Key_Assumptions_&_Inputs'!$J$62/'Key_Assumptions_&_Inputs'!$J$63/1000,0) -> 0 | Q52: =IF(Q19<='Key_Assumptions_&_Inputs'!$J$63,'Key_Assumptions_&_Inputs'!$J$61*Generation_Rates!P38*'Key_Assumptions_&_Inputs'!$J$62/'Key_Assumptions_&_Inputs'!$J$63/1000,0) -> 0 | R52: =IF(R19<='Key_Assumptions_&_Inputs'!$J$63,'Key_Assumptions_&_Inputs'!$J$61*Generation_Rates!Q38*'Key_Assumptions_&_Inputs'!$J$62/'Key_Assumptions_&_Inputs'!$J$63/1000,0) -> 0 | S52: =IF(S19<='Key_Assumptions_&_Inputs'!$J$63,'Key_Assumptions_&_Inputs'!$J$61*Generation_Rates!R38*'Key_Assumptions_&_Inputs'!$J$62/'Key_Assumptions_&_Inputs'!$J$63/1000,0) -> 0 | T52: =IF(T19<='Key_Assumptions_&_Inputs'!$J$63,'Key_Assumptions_&_Inputs'!$J$61*Generation_Rates!S38*'Key_Assumptions_&_Inputs'!$J$62/'Key_Assumptions_&_Inputs'!$J$63/1000,0) -> 0 | U52: =IF(U19<='Key_Assumptions_&_Inputs'!$J$63,'Key_Assumptions_&_Inputs'!$J$61*Generation_Rates!T38*'Key_Assumptions_&_Inputs'!$J$62/'Key_Assumptions_&_Inputs'!$J$63/1000,0) -> 0 | V52: =IF(V19<='Key_Assumptions_&_Inputs'!$J$63,'Key_Assumptions_&_Inputs'!$J$61*Generation_Rates!U38*'Key_Assumptions_&_Inputs'!$J$62/'Key_Assumptions_&_Inputs'!$J$63/1000,0) -> 0 | W52: =IF(W19<='Key_Assumptions_&_Inputs'!$J$63,'Key_Assumptions_&_Inputs'!$J$61*Generation_Rates!V38*'Key_Assumptions_&_Inputs'!$J$62/'Key_Assumptions_&_Inputs'!$J$63/1000,0) -> 0 | X52: =IF(X19<='Key_Assumptions_&_Inputs'!$J$63,'Key_Assumptions_&_Inputs'!$J$61*Generation_Rates!W38*'Key_Assumptions_&_Inputs'!$J$62/'Key_Assumptions_&_Inputs'!$J$63/1000,0) -> 0 | Y52: =IF(Y19<='Key_Assumptions_&_Inputs'!$J$63,'Key_Assumptions_&_Inputs'!$J$61*Generation_Rates!X38*'Key_Assumptions_&_Inputs'!$J$62/'Key_Assumptions_&_Inputs'!$J$63/1000,0) -> 0 | Z52: =IF(Z19<='Key_Assumptions_&_Inputs'!$J$63,'Key_Assumptions_&_Inputs'!$J$61*Generation_Rates!Y38*'Key_Assumptions_&_Inputs'!$J$62/'Key_Assumptions_&_Inputs'!$J$63/1000,0) -> 0 | AA52: =IF(AA19<='Key_Assumptions_&_Inputs'!$J$63,'Key_Assumptions_&_Inputs'!$J$61*Generation_Rates!Z38*'Key_Assumptions_&_Inputs'!$J$62/'Key_Assumptions_&_Inputs'!$J$63/1000,0) -> 0 | AB52: =IF(AB19<='Key_Assumptions_&_Inputs'!$J$63,'Key_Assumptions_&_Inputs'!$J$61*Generation_Rates!AA38*'Key_Assumptions_&_Inputs'!$J$62/'Key_Assumptions_&_Inputs'!$J$63/1000,0) -> 0 | AC52: =IF(AC19<='Key_Assumptions_&_Inputs'!$J$63,'Key_Assumptions_&_Inputs'!$J$61*Generation_Rates!AB38*'Key_Assumptions_&_Inputs'!$J$62/'Key_Assumptions_&_Inputs'!$J$63/1000,0) -> 0 | AD52: =IF(AD19<='Key_Assumptions_&_Inputs'!$J$63,'Key_Assumptions_&_Inputs'!$J$61*Generation_Rates!AC38*'Key_Assumptions_&_Inputs'!$J$62/'Key_Assumptions_&_Inputs'!$J$63/1000,0) -> 0 | AE52: =SUM(E52:AD52) -> 768768.7158
B53: Salvage value | D53: $ | E53: =IF(E19<>25,0,-'Key_Assumptions_&_Inputs'!$J$65*Community_Solar_Business_Case!$E$23) -> 0 | F53: =IF(F19<>25,0,-'Key_Assumptions_&_Inputs'!$J$65*Community_Solar_Business_Case!$E$23) -> 0 | G53: =IF(G19<>25,0,-'Key_Assumptions_&_Inputs'!$J$65*Community_Solar_Business_Case!$E$23) -> 0 | H53: =IF(H19<>25,0,-'Key_Assumptions_&_Inputs'!$J$65*Community_Solar_Business_Case!$E$23) -> 0 | I53: =IF(I19<>25,0,-'Key_Assumptions_&_Inputs'!$J$65*Community_Solar_Business_Case!$E$23) -> 0 | J53: =IF(J19<>25,0,-'Key_Assumptions_&_Inputs'!$J$65*Community_Solar_Business_Case!$E$23) -> 0 | K53: =IF(K19<>25,0,-'Key_Assumptions_&_Inputs'!$J$65*Community_Solar_Business_Case!$E$23) -> 0 | L53: =IF(L19<>25,0,-'Key_Assumptions_&_Inputs'!$J$65*Community_Solar_Business_Case!$E$23) -> 0 | M53: =IF(M19<>25,0,-'Key_Assumptions_&_Inputs'!$J$65*Community_Solar_Business_Case!$E$23) -> 0 | N53: =IF(N19<>25,0,-'Key_Assumptions_&_Inputs'!$J$65*Community_Solar_Business_Case!$E$23) -> 0 | O53: =IF(O19<>25,0,-'Key_Assumptions_&_Inputs'!$J$65*Community_Solar_Business_Case!$E$23) -> 0 | P53: =IF(P19<>25,0,-'Key_Assumptions_&_Inputs'!$J$65*Community_Solar_Business_Case!$E$23) -> 0 | Q53: =IF(Q19<>25,0,-'Key_Assumptions_&_Inputs'!$J$65*Community_Solar_Business_Case!$E$23) -> 0 | R53: =IF(R19<>25,0,-'Key_Assumptions_&_Inputs'!$J$65*Community_Solar_Business_Case!$E$23) -> 0 | S53: =IF(S19<>25,0,-'Key_Assumptions_&_Inputs'!$J$65*Community_Solar_Business_Case!$E$23) -> 0 | T53: =IF(T19<>25,0,-'Key_Assumptions_&_Inputs'!$J$65*Community_Solar_Business_Case!$E$23) -> 0 | U53: =IF(U19<>25,0,-'Key_Assumptions_&_Inputs'!$J$65*Community_Solar_Business_Case!$E$23) -> 0 | V53: =IF(V19<>25,0,-'Key_Assumptions_&_Inputs'!$J$65*Community_Solar_Business_Case!$E$23) -> 0 | W53: =IF(W19<>25,0,-'Key_Assumptions_&_Inputs'!$J$65*Community_Solar_Business_Case!$E$23) -> 0 | X53: =IF(X19<>25,0,-'Key_Assumptions_&_Inputs'!$J$65*Community_Solar_Business_Case!$E$23) -> 0 | Y53: =IF(Y19<>25,0,-'Key_Assumptions_&_Inputs'!$J$65*Community_Solar_Business_Case!$E$23) -> 0 | Z53: =IF(Z19<>25,0,-'Key_Assumptions_&_Inputs'!$J$65*Community_Solar_Business_Case!$E$23) -> 0 | AA53: =IF(AA19<>25,0,-'Key_Assumptions_&_Inputs'!$J$65*Community_Solar_Business_Case!$E$23) -> 0 | AB53: =IF(AB19<>25,0,-'Key_Assumptions_&_Inputs'!$J$65*Community_Solar_Business_Case!$E$23) -> 0 | AC53: =IF(AC19<>25,0,-'Key_Assumptions_&_Inputs'!$J$65*Community_Solar_Business_Case!$E$23) -> 0 | AD53: =IF(AD19<>25,0,-'Key_Assumptions_&_Inputs'!$J$65*Community_Solar_Business_Case!$E$23) -> 0 | AE53: =SUM(E53:AD53) -> 0
B54: Total System Production Benefits | D54: $ | E54: =SUM(E51:E53) -> 0 | F54: =SUM(F51:F53) -> 155306.8113 | G54: =SUM(G51:G53) -> 154530.2772 | H54: 153753.7432 | I54: 152977.2091 | J54: 152200.675 | K54: 0 | L54: 0 | M54: 0 | N54: 0 | O54: 0 | P54: 0 | Q54: 0 | R54: 0 | S54: 0 | T54: 0 | U54: 0 | V54: 0 | W54: 0 | X54: 0 | Y54: 0 | Z54: 0 | AA54: 0 | AB54: 0 | AC54: 0 | AD54: 0 | AE54: =SUM(E54:AD54) -> 768768.7158
B56: Net Benefits (Costs) | D56: $ | E56: =E24+E29+E36+E43+E54+E48 -> -1214766.667 | F56: =F24+F29+F36+F43+F54+F48 -> 265602.7242 | G56: =G24+G29+G36+G43+G54+G48 -> 372992.078 | H56: 287860.1684 | I56: 235636.6862 | J56: 234712.2897 | K56: 151217.9478 | L56: 112387.2376 | M56: 112104.2861 | N56: 111812.846 | O56: 111512.6628 | P56: 111203.474 | Q56: 110885.0096 | R56: 110556.9912 | S56: 110219.1323 | T56: 109871.1376 | U56: 109512.7031 | V56: 109143.5155 | W56: 108763.2523 | X56: 108371.5812 | Y56: 107968.16 | Z56: 107552.6362 | AA56: 107124.6466 | AB56: 106683.8174 | AC56: 106229.7632 | AD56: 105762.0875 | AE56: =SUM(E56:AD56) -> 2410920.168
B57: Cumulative Cashflow | D57: $ | E57: =E56 -> -1214766.667 | F57: =E57+F56 -> -949163.9424 | G57: =F57+G56 -> -576171.8645 | H57: =G57+H56 -> -288311.6961 | I57: =H57+I56 -> -52675.00989 | J57: =I57+J56 -> 182037.2798 | K57: =J57+K56 -> 333255.2277 | L57: 445642.4653 | M57: 557746.7514 | N57: 669559.5974 | O57: 781072.2602 | P57: 892275.7342 | Q57: 1003160.744 | R57: 1113717.735 | S57: 1223936.867 | T57: 1333808.005 | U57: 1443320.708 | V57: 1552464.223 | W57: 1661227.476 | X57: 1769599.057 | Y57: 1877567.217 | Z57: =Y57+Z56 -> 1985119.853 | AA57: =Z57+AA56 -> 2092244.5 | AB57: =AA57+AB56 -> 2198928.317 | AC57: =AB57+AC56 -> 2305158.08 | AD57: =AC57+AD56 -> 2410920.168
B58: Payback Calculation | E58: =SUM(F58:Y58) -> 4.22442374 | F58: =IF(F57<0,1,IF(AND(F57>0,E57<0),(-E57/(F57-E57)),0)) -> 1 | G58: =IF(F58=0,0,IF(G57<0,1,IF(AND(G57>0,F57<0),(-F57/(G57-F57)),0))) -> 1 | H58: 1 | I58: 1 | J58: 0.22442374 | K58: 0 | L58: 0 | M58: 0 | N58: 0 | O58: 0 | P58: 0 | Q58: 0 | R58: 0 | S58: 0 | T58: 0 | U58: 0 | V58: 0 | W58: 0 | X58: 0 | Y58: 0 | Z58: =IF(Y58=0,0,IF(Z57<0,1,IF(AND(Z57>0,Y57<0),(-Y57/(Z57-Y57)),0))) -> 0 | AA58: =IF(Z58=0,0,IF(AA57<0,1,IF(AND(AA57>0,Z57<0),(-Z57/(AA57-Z57)),0))) -> 0 | AB58: =IF(AA58=0,0,IF(AB57<0,1,IF(AND(AB57>0,AA57<0),(-AA57/(AB57-AA57)),0))) -> 0 | AC58: =IF(AB58=0,0,IF(AC57<0,1,IF(AND(AC57>0,AB57<0),(-AB57/(AC57-AB57)),0))) -> 0 | AD58: =IF(AC58=0,0,IF(AD57<0,1,IF(AND(AD57>0,AC57<0),(-AC57/(AD57-AC57)),0))) -> 0
C60: Up-front Net Costs | D60: $ | E60: =E56 -> -1214766.667
C61: Year 1 Net Benefits | D61: $ | E61: =F56 -> 265602.7242
E63: TOTAL | F63: $/Watt
C64: 25 year costs | D64: $ | E64: =SUM(E24:AD24)+SUM(E36:AD36)+SUM(E28:AD28) -> -3777447.424 | F64: =E64/'Key_Assumptions_&_Inputs'!$E$17/1000 -> -3.777447424
C65: 25 year revenues | D65: $ | E65: =SUM(E43:AD43)+SUM(E54:AD54)+SUM(E48:AD48)+SUM(E27:AD27) -> 6188367.592 | F65: =E65/'Key_Assumptions_&_Inputs'!$E$17/1000 -> 6.188367592
C66: 25 year net benefits | D66: $ | E66: =E65+E64 -> 2410920.168 | F66: =E66/'Key_Assumptions_&_Inputs'!$E$17/1000 -> 2.410920168
C67: 25 year NPV | D67: $ | E67: =E56+NPV('Key_Assumptions_&_Inputs'!E65,F56:AD56) -> 674351.8804 | F67: =E67/'Key_Assumptions_&_Inputs'!$E$17/1000 -> 0.6743518804
C68: Internal Rate of Return (IRR) | D68: % | E68: =IRR(E56:AD56) -> 0.1694698592 | F68: N/A
C69: Modified Internal Rate of Return (MIRR) | D69: % | E69: =MIRR(E56:AD56,0,'Key_Assumptions_&_Inputs'!E65) -> 0.0992447733 | F69: N/A
C70: Return on Investment (ROI) | D70: % | E70: =E66/(-E64) -> 0.6382405622 | F70: N/A
C71: Payback Period | D71: years | E71: =E58 -> 4.22442374 | F71: N/A
B74: Community Solar System Financials - System Owner Power Purchase Agreement Sensitivity
D75: Project Year: | E75: 0 | F75: 1 | G75: 2 | H75: 3 | I75: 4 | J75: 5 | K75: 6 | L75: 7 | M75: 8 | N75: 9 | O75: 10 | P75: 11 | Q75: 12 | R75: 13 | S75: 14 | T75: 15 | U75: 16 | V75: 17 | W75: 18 | X75: 19 | Y75: 20 | Z75: 21 | AA75: 22 | AB75: 23 | AC75: 24 | AD75: 25 | AE75: Totals
D76: Calendar Year: | E76: 2015 | F76: 2016 | G76: 2017 | H76: 2018 | I76: 2019 | J76: 2020 | K76: 2021 | L76: 2022 | M76: 2023 | N76: 2024 | O76: 2025 | P76: 2026 | Q76: 2027 | R76: 2028 | S76: 2029 | T76: 2030 | U76: 2031 | V76: 2032 | W76: 2033 | X76: 2034 | Y76: 2035 | Z76: 2035 | AA76: 2035 | AB76: 2035 | AC76: 2035 | AD76: 2035
B77: Costs
B78: System Capital Costs | D78: $ | E78: =E24 -> -2317500 | F78: =F24 -> -7500 | G78: -7500 | H78: -7500 | I78: -7500 | J78: -7500 | K78: -7500 | L78: -7500 | M78: -7500 | N78: -7500 | O78: -7500 | P78: -7500 | Q78: -7500 | R78: -7500 | S78: -7500 | T78: -7500 | U78: -7500 | V78: -7500 | W78: -7500 | X78: -7500 | Y78: -7500 | Z78: -7500 | AA78: -7500 | AB78: -7500 | AC78: -7500 | AD78: -7500 | AE78: =SUM(E78:AD78) -> -2505000
B79: Project Financing | D79: $ | E79: =E29 -> 463500 | F79: =F29 -> -107529.0421 | G79: -107529.0421 | H79: -107529.0421 | I79: -107529.0421 | J79: -107529.0421 | K79: 0 | L79: 0 | M79: 0 | N79: 0 | O79: 0 | P79: 0 | Q79: 0 | R79: 0 | S79: 0 | T79: 0 | U79: 0 | V79: 0 | W79: 0 | X79: 0 | Y79: 0 | Z79: 0 | AA79: 0 | AB79: 0 | AC79: 0 | AD79: 0 | AE79: =SUM(E79:AD79) -> -74145.21053
B80: Operating Costs | D80: $ | E80: =E36 -> -35766.66667 | F80: -53019 | G80: -25178.11219 | H80: -23853.48776 | I80: -23892.43582 | J80: -24040.29827 | K80: -24307.00722 | L80: -24581.71743 | M80: -24864.66896 | N80: -25156.10902 | O80: -25456.29229 | P80: -25765.48106 | Q80: -26083.9455 | R80: -26411.96386 | S80: -26749.82278 | T80: -27097.81746 | U80: -27456.25198 | V80: -27825.43954 | W80: -28205.70273 | X80: -28597.37381 | Y80: -29000.79503 | Z80: -29416.31888 | AA80: -29844.30844 | AB80: -30285.1377 | AC80: -30739.19183 | AD80: -31206.86758 | AE80: -734802.2138
B81: Total Costs | D81: $ | E81: =SUM(E78:E80) -> -1889766.667 | F81: =SUM(F78:F80) -> -168048.0421 | G81: -140207.1543 | H81: -138882.5299 | I81: -138921.4779 | J81: -139069.3404 | K81: -31807.00722 | L81: -32081.71743 | M81: -32364.66896 | N81: -32656.10902 | O81: -32956.29229 | P81: -33265.48106 | Q81: -33583.9455 | R81: -33911.96386 | S81: -34249.82278 | T81: -34597.81746 | U81: -34956.25198 | V81: -35325.43954 | W81: -35705.70273 | X81: -36097.37381 | Y81: -36500.79503 | Z81: -36916.31888 | AA81: -37344.30844 | AB81: -37785.1377 | AC81: -38239.19183 | AD81: -38706.86758 | AE81: -3313947.424
B83: Benefits
B84: Incentive Payments | D84: $ | E84: =E43 -> 675000 | F84: 133875 | G84: 214200 | H84: 128520 | I84: 77112 | J84: 77112 | K84: 38556 | L84: 0 | M84: 0 | N84: 0 | O84: 0 | P84: 0 | Q84: 0 | R84: 0 | S84: 0 | T84: 0 | U84: 0 | V84: 0 | W84: 0 | X84: 0 | Y84: 0 | Z84: 0 | AA84: 0 | AB84: 0 | AC84: 0 | AD84: 0 | AE84: 1344375
B85: Production Benefits | D85: $ | E85: 0 | F85: 0 | G85: 0 | H85: 0 | I85: 0 | J85: 0 | K85: 0 | L85: 0 | M85: 0 | N85: 0 | O85: 0 | P85: 0 | Q85: 0 | R85: 0 | S85: 0 | T85: 0 | U85: 0 | V85: 0 | W85: 0 | X85: 0 | Y85: 0 | Z85: 0 | AA85: 0 | AB85: 0 | AC85: 0 | AD85: 0 | AE85: 0
B86: Power Purchase Agreement Payments | D86: $ | E86: 0 | F86: =Generation_Rates!E38*Dashboard!$K$42*(1+'Key_Assumptions_&_Inputs'!$E$63)^(F75-1) -> 167352.9383 | G86: =Generation_Rates!F38*Dashboard!$K$42*(1+'Key_Assumptions_&_Inputs'!$E$63)^(G75-1) -> 171145.3233 | H86: =Generation_Rates!G38*Dashboard!$K$42*(1+'Key_Assumptions_&_Inputs'!$E$63)^(H75-1) -> 175019.2277 | I86: =Generation_Rates!H38*Dashboard!$K$42*(1+'Key_Assumptions_&_Inputs'!$E$63)^(I75-1) -> 178976.2534 | J86: =Generation_Rates!I38*Dashboard!$K$42*(1+'Key_Assumptions_&_Inputs'!$E$63)^(J75-1) -> 183018.0278 | K86: =Generation_Rates!J38*Dashboard!$K$42*(1+'Key_Assumptions_&_Inputs'!$E$63)^(K75-1) -> 187146.2048 | L86: =Generation_Rates!K38*Dashboard!$K$42*(1+'Key_Assumptions_&_Inputs'!$E$63)^(L75-1) -> 191362.4649 | M86: =Generation_Rates!L38*Dashboard!$K$42*(1+'Key_Assumptions_&_Inputs'!$E$63)^(M75-1) -> 195668.5149 | N86: =Generation_Rates!M38*Dashboard!$K$42*(1+'Key_Assumptions_&_Inputs'!$E$63)^(N75-1) -> 200066.0887 | O86: =Generation_Rates!N38*Dashboard!$K$42*(1+'Key_Assumptions_&_Inputs'!$E$63)^(O75-1) -> 204556.9472 | P86: =Generation_Rates!O38*Dashboard!$K$42*(1+'Key_Assumptions_&_Inputs'!$E$63)^(P75-1) -> 209142.8783 | Q86: =Generation_Rates!P38*Dashboard!$K$42*(1+'Key_Assumptions_&_Inputs'!$E$63)^(Q75-1) -> 213825.6975 | R86: =Generation_Rates!Q38*Dashboard!$K$42*(1+'Key_Assumptions_&_Inputs'!$E$63)^(R75-1) -> 218607.2473 | S86: =Generation_Rates!R38*Dashboard!$K$42*(1+'Key_Assumptions_&_Inputs'!$E$63)^(S75-1) -> 223489.3983 | T86: =Generation_Rates!S38*Dashboard!$K$42*(1+'Key_Assumptions_&_Inputs'!$E$63)^(T75-1) -> 228474.0485 | U86: =Generation_Rates!T38*Dashboard!$K$42*(1+'Key_Assumptions_&_Inputs'!$E$63)^(U75-1) -> 233563.1237 | V86: =Generation_Rates!U38*Dashboard!$K$42*(1+'Key_Assumptions_&_Inputs'!$E$63)^(V75-1) -> 238758.5776 | W86: =Generation_Rates!V38*Dashboard!$K$42*(1+'Key_Assumptions_&_Inputs'!$E$63)^(W75-1) -> 244062.3918 | X86: =Generation_Rates!W38*Dashboard!$K$42*(1+'Key_Assumptions_&_Inputs'!$E$63)^(X75-1) -> 249476.5758 | Y86: =Generation_Rates!X38*Dashboard!$K$42*(1+'Key_Assumptions_&_Inputs'!$E$63)^(Y75-1) -> 255003.1674 | Z86: =Generation_Rates!Y38*Dashboard!$K$42*(1+'Key_Assumptions_&_Inputs'!$E$63)^(Z75-1) -> 260644.2319 | AA86: =Generation_Rates!Z38*Dashboard!$K$42*(1+'Key_Assumptions_&_Inputs'!$E$63)^(AA75-1) -> 266401.863 | AB86: =Generation_Rates!AA38*Dashboard!$K$42*(1+'Key_Assumptions_&_Inputs'!$E$63)^(AB75-1) -> 272278.1821 | AC86: =Generation_Rates!AB38*Dashboard!$K$42*(1+'Key_Assumptions_&_Inputs'!$E$63)^(AC75-1) -> 278275.3385 | AD86: =Generation_Rates!AC38*Dashboard!$K$42*(1+'Key_Assumptions_&_Inputs'!$E$63)^(AD75-1) -> 284395.5093 | AE86: 5530710.222
B87: Total Benefits | D87: $ | E87: =SUM(E84:E86) -> 675000 | F87: =SUM(F84:F86) -> 301227.9383 | G87: 385345.3233 | H87: 303539.2277 | I87: 256088.2534 | J87: 260130.0278 | K87: 225702.2048 | L87: 191362.4649 | M87: 195668.5149 | N87: 200066.0887 | O87: 204556.9472 | P87: 209142.8783 | Q87: 213825.6975 | R87: 218607.2473 | S87: 223489.3983 | T87: 228474.0485 | U87: 233563.1237 | V87: 238758.5776 | W87: 244062.3918 | X87: 249476.5758 | Y87: 255003.1674 | Z87: 260644.2319 | AA87: 266401.863 | AB87: 272278.1821 | AC87: 278275.3385 | AD87: 284395.5093 | AE87: 6875085.222
B89: Net Benefits (Costs) | D89: $ | E89: =E81+E87 -> -1214766.667 | F89: =F81+F87 -> 133179.8962 | G89: 245138.169 | H89: 164656.6979 | I89: 117166.7754 | J89: 121060.6874 | K89: 193895.1976 | L89: 159280.7474 | M89: 163303.8459 | N89: 167409.9797 | O89: 171600.6549 | P89: 175877.3973 | Q89: 180241.752 | R89: 184695.2835 | S89: 189239.5756 | T89: 193876.2311 | U89: 198606.8717 | V89: 203433.138 | W89: 208356.689 | X89: 213379.202 | Y89: 218502.3723 | Z89: 223727.913 | AA89: 229057.5545 | AB89: 234493.0444 | AC89: 240036.1466 | AD89: 245688.6417 | AE89: 3561137.797
B90: Cumulative Cashflow | D90: $ | E90: =E89 -> -1214766.667 | F90: =E90+F89 -> -1081586.77 | G90: =F90+G89 -> -836448.6015 | H90: -671791.9036 | I90: -554625.1282 | J90: -433564.4408 | K90: -239669.2432 | L90: -80388.49575 | M90: 82915.35017 | N90: 250325.3299 | O90: 421925.9848 | P90: 597803.382 | Q90: 778045.134 | R90: 962740.4175 | S90: 1151979.993 | T90: 1345856.224 | U90: 1544463.096 | V90: 1747896.234 | W90: 1956252.923 | X90: 2169632.125 | Y90: 2388134.497 | Z90: 2611862.41 | AA90: 2840919.965 | AB90: 3075413.009 | AC90: 3315449.156 | AD90: 3561137.797
B91: Payback Calculation | E91: =SUM(F91:AD91) -> 7.492263335 | F91: =IF(F90<0,1,IF(AND(F90>0,E90<0),(-E90/(F90-E90)),0)) -> 1 | G91: =IF(G90<0,1,IF(AND(G90>0,F90<0),(-F90/(G90-F90)),0)) -> 1 | H91: 1 | I91: 1 | J91: 1 | K91: 1 | L91: 1 | M91: 0.4922633346 | N91: 0 | O91: 0 | P91: 0 | Q91: 0 | R91: 0 | S91: 0 | T91: 0 | U91: 0 | V91: 0 | W91: 0 | X91: 0 | Y91: 0 | Z91: 0 | AA91: 0 | AB91: 0 | AC91: 0 | AD91: 0
C93: Up-front Net Costs | D93: $ | E93: =E81 -> -1889766.667
C94: Year 1 Net Benefits | D94: $ | E94: =F89 -> 133179.8962
E96: TOTAL | F96: $/Watt
C97: 25 year costs | D97: $ | E97: =AE81-E79 -> -3777447.424 | F97: =E97/'Key_Assumptions_&_Inputs'!$E$17/1000 -> -3.777447424
C98: 25 year revenues | D98: $ | E98: =AE87+E79 -> 7338585.222 | F98: =E98/'Key_Assumptions_&_Inputs'!$E$17/1000 -> 7.338585222
C99: 25 year net benefits | D99: $ | E99: =AE89 -> 3561137.797 | F99: =E99/'Key_Assumptions_&_Inputs'!$E$17/1000 -> 3.561137797
C100: 25 year NPV | D100: $ | E100: =E89+NPV('Key_Assumptions_&_Inputs'!E65,F89:AD89) -> 686647.8361 | F100: =E100/'Key_Assumptions_&_Inputs'!$E$17/1000 -> 0.6866478361
C101: Internal Rate of Return (IRR) | D101: % | E101: =IRR(E89:AD89) -> 0.136184288 | F101: N/A
C102: Modified Internal Rate of Return (MIRR) | D102: % | E102: =MIRR(E89:AD89,0,'Key_Assumptions_&_Inputs'!E65) -> 0.09953007494 | F102: N/A
C103: Return on Investment (ROI) | D103: % | E103: =E99/(-E97) -> 0.9427365619 | F103: N/A
C104: Payback Period | D104: years | E104: =E91 -> 7.492263335 | F104: N/A
B107: Subscriber Community Solar System Financials
D108: Project Year: | E108: 0 | F108: 1 | G108: 2 | H108: 3 | I108: 4 | J108: 5 | K108: 6 | L108: 7 | M108: 8 | N108: 9 | O108: 10 | P108: 11 | Q108: 12 | R108: 13 | S108: 14 | T108: 15 | U108: 16 | V108: 17 | W108: 18 | X108: 19 | Y108: 20 | Z108: 21 | AA108: 22 | AB108: 23 | AC108: 24 | AD108: 25 | AE108: Totals
D109: Calendar Year: | E109: 2015 | F109: 2016 | G109: 2017 | H109: 2018 | I109: 2019 | J109: 2020 | K109: 2021 | L109: 2022 | M109: 2023 | N109: 2024 | O109: 2025 | P109: 2026 | Q109: 2027 | R109: 2028 | S109: 2029 | T109: 2030 | U109: 2031 | V109: 2032 | W109: 2033 | X109: 2034 | Y109: 2035 | Z109: 2035 | AA109: 2035 | AB109: 2035 | AC109: 2035 | AD109: 2035
B110: Participant Expenditures
B111: Participant Payment (Buy/Lease) | D111: $ | E111: =IF(E108=0,0,-IF('Key_Assumptions_&_Inputs'!$E$11="Panel Leasing",'Key_Assumptions_&_Inputs'!$E$12*12*'Key_Assumptions_&_Inputs'!$E$21*(1+'Key_Assumptions_&_Inputs'!$E$60)^(E108-1),0))-IF(AND('Key_Assumptions_&_Inputs'!$E$11="Panel Purchasing",Community_Solar_Business_Case!E108=1),'Key_Assumptions_&_Inputs'!$E$12*'Key_Assumptions_&_Inputs'!$E$21,0) -> 0 | F111: =IF(F108=0,0,-IF('Key_Assumptions_&_Inputs'!$E$11="Panel Leasing",'Key_Assumptions_&_Inputs'!$E$12*12*'Key_Assumptions_&_Inputs'!$E$21*(1+'Key_Assumptions_&_Inputs'!$E$60)^(F108-1),0))-IF(AND('Key_Assumptions_&_Inputs'!$E$11="Panel Purchasing",Community_Solar_Business_Case!F108=1),'Key_Assumptions_&_Inputs'!$E$12*'Key_Assumptions_&_Inputs'!$E$21,0) -> -650.1102978 | G111: =IF(G108=0,0,-IF('Key_Assumptions_&_Inputs'!$E$11="Panel Leasing",'Key_Assumptions_&_Inputs'!$E$12*12*'Key_Assumptions_&_Inputs'!$E$21*(1+'Key_Assumptions_&_Inputs'!$E$60)^(G108-1),0))-IF(AND('Key_Assumptions_&_Inputs'!$E$11="Panel Purchasing",Community_Solar_Business_Case!G108=1),'Key_Assumptions_&_Inputs'!$E$12*'Key_Assumptions_&_Inputs'!$E$21,0) -> -650.1102978 | H111: =IF(H108=0,0,-IF('Key_Assumptions_&_Inputs'!$E$11="Panel Leasing",'Key_Assumptions_&_Inputs'!$E$12*12*'Key_Assumptions_&_Inputs'!$E$21*(1+'Key_Assumptions_&_Inputs'!$E$60)^(H108-1),0))-IF(AND('Key_Assumptions_&_Inputs'!$E$11="Panel Purchasing",Community_Solar_Business_Case!H108=1),'Key_Assumptions_&_Inputs'!$E$12*'Key_Assumptions_&_Inputs'!$E$21,0) -> -650.1102978 | I111: =IF(I108=0,0,-IF('Key_Assumptions_&_Inputs'!$E$11="Panel Leasing",'Key_Assumptions_&_Inputs'!$E$12*12*'Key_Assumptions_&_Inputs'!$E$21*(1+'Key_Assumptions_&_Inputs'!$E$60)^(I108-1),0))-IF(AND('Key_Assumptions_&_Inputs'!$E$11="Panel Purchasing",Community_Solar_Business_Case!I108=1),'Key_Assumptions_&_Inputs'!$E$12*'Key_Assumptions_&_Inputs'!$E$21,0) -> -650.1102978 | J111: =IF(J108=0,0,-IF('Key_Assumptions_&_Inputs'!$E$11="Panel Leasing",'Key_Assumptions_&_Inputs'!$E$12*12*'Key_Assumptions_&_Inputs'!$E$21*(1+'Key_Assumptions_&_Inputs'!$E$60)^(J108-1),0))-IF(AND('Key_Assumptions_&_Inputs'!$E$11="Panel Purchasing",Community_Solar_Business_Case!J108=1),'Key_Assumptions_&_Inputs'!$E$12*'Key_Assumptions_&_Inputs'!$E$21,0) -> -650.1102978 | K111: =IF(K108=0,0,-IF('Key_Assumptions_&_Inputs'!$E$11="Panel Leasing",'Key_Assumptions_&_Inputs'!$E$12*12*'Key_Assumptions_&_Inputs'!$E$21*(1+'Key_Assumptions_&_Inputs'!$E$60)^(K108-1),0))-IF(AND('Key_Assumptions_&_Inputs'!$E$11="Panel Purchasing",Community_Solar_Business_Case!K108=1),'Key_Assumptions_&_Inputs'!$E$12*'Key_Assumptions_&_Inputs'!$E$21,0) -> -650.1102978 | L111: =IF(L108=0,0,-IF('Key_Assumptions_&_Inputs'!$E$11="Panel Leasing",'Key_Assumptions_&_Inputs'!$E$12*12*'Key_Assumptions_&_Inputs'!$E$21*(1+'Key_Assumptions_&_Inputs'!$E$60)^(L108-1),0))-IF(AND('Key_Assumptions_&_Inputs'!$E$11="Panel Purchasing",Community_Solar_Business_Case!L108=1),'Key_Assumptions_&_Inputs'!$E$12*'Key_Assumptions_&_Inputs'!$E$21,0) -> -650.1102978 | M111: =IF(M108=0,0,-IF('Key_Assumptions_&_Inputs'!$E$11="Panel Leasing",'Key_Assumptions_&_Inputs'!$E$12*12*'Key_Assumptions_&_Inputs'!$E$21*(1+'Key_Assumptions_&_Inputs'!$E$60)^(M108-1),0))-IF(AND('Key_Assumptions_&_Inputs'!$E$11="Panel Purchasing",Community_Solar_Business_Case!M108=1),'Key_Assumptions_&_Inputs'!$E$12*'Key_Assumptions_&_Inputs'!$E$21,0) -> -650.1102978 | N111: =IF(N108=0,0,-IF('Key_Assumptions_&_Inputs'!$E$11="Panel Leasing",'Key_Assumptions_&_Inputs'!$E$12*12*'Key_Assumptions_&_Inputs'!$E$21*(1+'Key_Assumptions_&_Inputs'!$E$60)^(N108-1),0))-IF(AND('Key_Assumptions_&_Inputs'!$E$11="Panel Purchasing",Community_Solar_Business_Case!N108=1),'Key_Assumptions_&_Inputs'!$E$12*'Key_Assumptions_&_Inputs'!$E$21,0) -> -650.1102978 | O111: =IF(O108=0,0,-IF('Key_Assumptions_&_Inputs'!$E$11="Panel Leasing",'Key_Assumptions_&_Inputs'!$E$12*12*'Key_Assumptions_&_Inputs'!$E$21*(1+'Key_Assumptions_&_Inputs'!$E$60)^(O108-1),0))-IF(AND('Key_Assumptions_&_Inputs'!$E$11="Panel Purchasing",Community_Solar_Business_Case!O108=1),'Key_Assumptions_&_Inputs'!$E$12*'Key_Assumptions_&_Inputs'!$E$21,0) -> -650.1102978 | P111: =IF(P108=0,0,-IF('Key_Assumptions_&_Inputs'!$E$11="Panel Leasing",'Key_Assumptions_&_Inputs'!$E$12*12*'Key_Assumptions_&_Inputs'!$E$21*(1+'Key_Assumptions_&_Inputs'!$E$60)^(P108-1),0))-IF(AND('Key_Assumptions_&_Inputs'!$E$11="Panel Purchasing",Community_Solar_Business_Case!P108=1),'Key_Assumptions_&_Inputs'!$E$12*'Key_Assumptions_&_Inputs'!$E$21,0) -> -650.1102978 | Q111: =IF(Q108=0,0,-IF('Key_Assumptions_&_Inputs'!$E$11="Panel Leasing",'Key_Assumptions_&_Inputs'!$E$12*12*'Key_Assumptions_&_Inputs'!$E$21*(1+'Key_Assumptions_&_Inputs'!$E$60)^(Q108-1),0))-IF(AND('Key_Assumptions_&_Inputs'!$E$11="Panel Purchasing",Community_Solar_Business_Case!Q108=1),'Key_Assumptions_&_Inputs'!$E$12*'Key_Assumptions_&_Inputs'!$E$21,0) -> -650.1102978 | R111: =IF(R108=0,0,-IF('Key_Assumptions_&_Inputs'!$E$11="Panel Leasing",'Key_Assumptions_&_Inputs'!$E$12*12*'Key_Assumptions_&_Inputs'!$E$21*(1+'Key_Assumptions_&_Inputs'!$E$60)^(R108-1),0))-IF(AND('Key_Assumptions_&_Inputs'!$E$11="Panel Purchasing",Community_Solar_Business_Case!R108=1),'Key_Assumptions_&_Inputs'!$E$12*'Key_Assumptions_&_Inputs'!$E$21,0) -> -650.1102978 | S111: =IF(S108=0,0,-IF('Key_Assumptions_&_Inputs'!$E$11="Panel Leasing",'Key_Assumptions_&_Inputs'!$E$12*12*'Key_Assumptions_&_Inputs'!$E$21*(1+'Key_Assumptions_&_Inputs'!$E$60)^(S108-1),0))-IF(AND('Key_Assumptions_&_Inputs'!$E$11="Panel Purchasing",Community_Solar_Business_Case!S108=1),'Key_Assumptions_&_Inputs'!$E$12*'Key_Assumptions_&_Inputs'!$E$21,0) -> -650.1102978 | T111: =IF(T108=0,0,-IF('Key_Assumptions_&_Inputs'!$E$11="Panel Leasing",'Key_Assumptions_&_Inputs'!$E$12*12*'Key_Assumptions_&_Inputs'!$E$21*(1+'Key_Assumptions_&_Inputs'!$E$60)^(T108-1),0))-IF(AND('Key_Assumptions_&_Inputs'!$E$11="Panel Purchasing",Community_Solar_Business_Case!T108=1),'Key_Assumptions_&_Inputs'!$E$12*'Key_Assumptions_&_Inputs'!$E$21,0) -> -650.1102978 | U111: =IF(U108=0,0,-IF('Key_Assumptions_&_Inputs'!$E$11="Panel Leasing",'Key_Assumptions_&_Inputs'!$E$12*12*'Key_Assumptions_&_Inputs'!$E$21*(1+'Key_Assumptions_&_Inputs'!$E$60)^(U108-1),0))-IF(AND('Key_Assumptions_&_Inputs'!$E$11="Panel Purchasing",Community_Solar_Business_Case!U108=1),'Key_Assumptions_&_Inputs'!$E$12*'Key_Assumptions_&_Inputs'!$E$21,0) -> -650.1102978 | V111: =IF(V108=0,0,-IF('Key_Assumptions_&_Inputs'!$E$11="Panel Leasing",'Key_Assumptions_&_Inputs'!$E$12*12*'Key_Assumptions_&_Inputs'!$E$21*(1+'Key_Assumptions_&_Inputs'!$E$60)^(V108-1),0))-IF(AND('Key_Assumptions_&_Inputs'!$E$11="Panel Purchasing",Community_Solar_Business_Case!V108=1),'Key_Assumptions_&_Inputs'!$E$12*'Key_Assumptions_&_Inputs'!$E$21,0) -> -650.1102978 | W111: =IF(W108=0,0,-IF('Key_Assumptions_&_Inputs'!$E$11="Panel Leasing",'Key_Assumptions_&_Inputs'!$E$12*12*'Key_Assumptions_&_Inputs'!$E$21*(1+'Key_Assumptions_&_Inputs'!$E$60)^(W108-1),0))-IF(AND('Key_Assumptions_&_Inputs'!$E$11="Panel Purchasing",Community_Solar_Business_Case!W108=1),'Key_Assumptions_&_Inputs'!$E$12*'Key_Assumptions_&_Inputs'!$E$21,0) -> -650.1102978 | X111: =IF(X108=0,0,-IF('Key_Assumptions_&_Inputs'!$E$11="Panel Leasing",'Key_Assumptions_&_Inputs'!$E$12*12*'Key_Assumptions_&_Inputs'!$E$21*(1+'Key_Assumptions_&_Inputs'!$E$60)^(X108-1),0))-IF(AND('Key_Assumptions_&_Inputs'!$E$11="Panel Purchasing",Community_Solar_Business_Case!X108=1),'Key_Assumptions_&_Inputs'!$E$12*'Key_Assumptions_&_Inputs'!$E$21,0) -> -650.1102978 | Y111: =IF(Y108=0,0,-IF('Key_Assumptions_&_Inputs'!$E$11="Panel Leasing",'Key_Assumptions_&_Inputs'!$E$12*12*'Key_Assumptions_&_Inputs'!$E$21*(1+'Key_Assumptions_&_Inputs'!$E$60)^(Y108-1),0))-IF(AND('Key_Assumptions_&_Inputs'!$E$11="Panel Purchasing",Community_Solar_Business_Case!Y108=1),'Key_Assumptions_&_Inputs'!$E$12*'Key_Assumptions_&_Inputs'!$E$21,0) -> -650.1102978 | Z111: =IF(Z108=0,0,-IF('Key_Assumptions_&_Inputs'!$E$11="Panel Leasing",'Key_Assumptions_&_Inputs'!$E$12*12*'Key_Assumptions_&_Inputs'!$E$21*(1+'Key_Assumptions_&_Inputs'!$E$60)^(Z108-1),0))-IF(AND('Key_Assumptions_&_Inputs'!$E$11="Panel Purchasing",Community_Solar_Business_Case!Z108=1),'Key_Assumptions_&_Inputs'!$E$12*'Key_Assumptions_&_Inputs'!$E$21,0) -> -650.1102978 | AA111: =IF(AA108=0,0,-IF('Key_Assumptions_&_Inputs'!$E$11="Panel Leasing",'Key_Assumptions_&_Inputs'!$E$12*12*'Key_Assumptions_&_Inputs'!$E$21*(1+'Key_Assumptions_&_Inputs'!$E$60)^(AA108-1),0))-IF(AND('Key_Assumptions_&_Inputs'!$E$11="Panel Purchasing",Community_Solar_Business_Case!AA108=1),'Key_Assumptions_&_Inputs'!$E$12*'Key_Assumptions_&_Inputs'!$E$21,0) -> -650.1102978 | AB111: =IF(AB108=0,0,-IF('Key_Assumptions_&_Inputs'!$E$11="Panel Leasing",'Key_Assumptions_&_Inputs'!$E$12*12*'Key_Assumptions_&_Inputs'!$E$21*(1+'Key_Assumptions_&_Inputs'!$E$60)^(AB108-1),0))-IF(AND('Key_Assumptions_&_Inputs'!$E$11="Panel Purchasing",Community_Solar_Business_Case!AB108=1),'Key_Assumptions_&_Inputs'!$E$12*'Key_Assumptions_&_Inputs'!$E$21,0) -> -650.1102978 | AC111: =IF(AC108=0,0,-IF('Key_Assumptions_&_Inputs'!$E$11="Panel Leasing",'Key_Assumptions_&_Inputs'!$E$12*12*'Key_Assumptions_&_Inputs'!$E$21*(1+'Key_Assumptions_&_Inputs'!$E$60)^(AC108-1),0))-IF(AND('Key_Assumptions_&_Inputs'!$E$11="Panel Purchasing",Community_Solar_Business_Case!AC108=1),'Key_Assumptions_&_Inputs'!$E$12*'Key_Assumptions_&_Inputs'!$E$21,0) -> -650.1102978 | AD111: =IF(AD108=0,0,-IF('Key_Assumptions_&_Inputs'!$E$11="Panel Leasing",'Key_Assumptions_&_Inputs'!$E$12*12*'Key_Assumptions_&_Inputs'!$E$21*(1+'Key_Assumptions_&_Inputs'!$E$60)^(AD108-1),0))-IF(AND('Key_Assumptions_&_Inputs'!$E$11="Panel Purchasing",Community_Solar_Business_Case!AD108=1),'Key_Assumptions_&_Inputs'!$E$12*'Key_Assumptions_&_Inputs'!$E$21,0) -> -650.1102978 | AE111: =SUM(E111:AD111) -> -16252.75744
B112: Total Costs | D112: $ | E112: =SUM(E111:E111) -> 0 | F112: =SUM(F111:F111) -> -650.1102978 | G112: -650.1102978 | H112: -650.1102978 | I112: =SUM(I111:I111) -> -650.1102978 | J112: =SUM(J111:J111) -> -650.1102978 | K112: =SUM(K111:K111) -> -650.1102978 | L112: =SUM(L111:L111) -> -650.1102978 | M112: =SUM(M111:M111) -> -650.1102978 | N112: =SUM(N111:N111) -> -650.1102978 | O112: =SUM(O111:O111) -> -650.1102978 | P112: =SUM(P111:P111) -> -650.1102978 | Q112: =SUM(Q111:Q111) -> -650.1102978 | R112: =SUM(R111:R111) -> -650.1102978 | S112: =SUM(S111:S111) -> -650.1102978 | T112: =SUM(T111:T111) -> -650.1102978 | U112: =SUM(U111:U111) -> -650.1102978 | V112: =SUM(V111:V111) -> -650.1102978 | W112: =SUM(W111:W111) -> -650.1102978 | X112: =SUM(X111:X111) -> -650.1102978 | Y112: =SUM(Y111:Y111) -> -650.1102978 | Z112: =SUM(Z111:Z111) -> -650.1102978 | AA112: =SUM(AA111:AA111) -> -650.1102978 | AB112: =SUM(AB111:AB111) -> -650.1102978 | AC112: =SUM(AC111:AC111) -> -650.1102978 | AD112: =SUM(AD111:AD111) -> -650.1102978 | AE112: =SUM(E112:AD112) -> -16252.75744
B114: Project Financing
B115: Loan Amount | D115: $ | E115: =IF(AND('Key_Assumptions_&_Inputs'!$E$11="Panel Purchasing",Community_Solar_Business_Case!E108=1),-Community_Solar_Business_Case!$F$112*'Key_Assumptions_&_Inputs'!$E$71,0) -> 0 | F115: =IF(AND('Key_Assumptions_&_Inputs'!$E$11="Panel Purchasing",Community_Solar_Business_Case!F108=1),-Community_Solar_Business_Case!$F$112*'Key_Assumptions_&_Inputs'!$E$71,0) -> 0 | G115: =IF(AND('Key_Assumptions_&_Inputs'!$E$11="Panel Purchasing",Community_Solar_Business_Case!G108=1),-Community_Solar_Business_Case!$F$112*'Key_Assumptions_&_Inputs'!$E$71,0) -> 0 | H115: =IF(AND('Key_Assumptions_&_Inputs'!$E$11="Panel Purchasing",Community_Solar_Business_Case!H108=1),-Community_Solar_Business_Case!$F$112*'Key_Assumptions_&_Inputs'!$E$71,0) -> 0 | I115: =IF(AND('Key_Assumptions_&_Inputs'!$E$11="Panel Purchasing",Community_Solar_Business_Case!I108=1),-Community_Solar_Business_Case!$F$112*'Key_Assumptions_&_Inputs'!$E$71,0) -> 0 | J115: =IF(AND('Key_Assumptions_&_Inputs'!$E$11="Panel Purchasing",Community_Solar_Business_Case!J108=1),-Community_Solar_Business_Case!$F$112*'Key_Assumptions_&_Inputs'!$E$71,0) -> 0 | K115: =IF(AND('Key_Assumptions_&_Inputs'!$E$11="Panel Purchasing",Community_Solar_Business_Case!K108=1),-Community_Solar_Business_Case!$F$112*'Key_Assumptions_&_Inputs'!$E$71,0) -> 0 | L115: =IF(AND('Key_Assumptions_&_Inputs'!$E$11="Panel Purchasing",Community_Solar_Business_Case!L108=1),-Community_Solar_Business_Case!$F$112*'Key_Assumptions_&_Inputs'!$E$71,0) -> 0 | M115: =IF(AND('Key_Assumptions_&_Inputs'!$E$11="Panel Purchasing",Community_Solar_Business_Case!M108=1),-Community_Solar_Business_Case!$F$112*'Key_Assumptions_&_Inputs'!$E$71,0) -> 0 | N115: =IF(AND('Key_Assumptions_&_Inputs'!$E$11="Panel Purchasing",Community_Solar_Business_Case!N108=1),-Community_Solar_Business_Case!$F$112*'Key_Assumptions_&_Inputs'!$E$71,0) -> 0 | O115: =IF(AND('Key_Assumptions_&_Inputs'!$E$11="Panel Purchasing",Community_Solar_Business_Case!O108=1),-Community_Solar_Business_Case!$F$112*'Key_Assumptions_&_Inputs'!$E$71,0) -> 0 | P115: =IF(AND('Key_Assumptions_&_Inputs'!$E$11="Panel Purchasing",Community_Solar_Business_Case!P108=1),-Community_Solar_Business_Case!$F$112*'Key_Assumptions_&_Inputs'!$E$71,0) -> 0 | Q115: =IF(AND('Key_Assumptions_&_Inputs'!$E$11="Panel Purchasing",Community_Solar_Business_Case!Q108=1),-Community_Solar_Business_Case!$F$112*'Key_Assumptions_&_Inputs'!$E$71,0) -> 0 | R115: =IF(AND('Key_Assumptions_&_Inputs'!$E$11="Panel Purchasing",Community_Solar_Business_Case!R108=1),-Community_Solar_Business_Case!$F$112*'Key_Assumptions_&_Inputs'!$E$71,0) -> 0 | S115: =IF(AND('Key_Assumptions_&_Inputs'!$E$11="Panel Purchasing",Community_Solar_Business_Case!S108=1),-Community_Solar_Business_Case!$F$112*'Key_Assumptions_&_Inputs'!$E$71,0) -> 0 | T115: =IF(AND('Key_Assumptions_&_Inputs'!$E$11="Panel Purchasing",Community_Solar_Business_Case!T108=1),-Community_Solar_Business_Case!$F$112*'Key_Assumptions_&_Inputs'!$E$71,0) -> 0 | U115: =IF(AND('Key_Assumptions_&_Inputs'!$E$11="Panel Purchasing",Community_Solar_Business_Case!U108=1),-Community_Solar_Business_Case!$F$112*'Key_Assumptions_&_Inputs'!$E$71,0) -> 0 | V115: =IF(AND('Key_Assumptions_&_Inputs'!$E$11="Panel Purchasing",Community_Solar_Business_Case!V108=1),-Community_Solar_Business_Case!$F$112*'Key_Assumptions_&_Inputs'!$E$71,0) -> 0 | W115: =IF(AND('Key_Assumptions_&_Inputs'!$E$11="Panel Purchasing",Community_Solar_Business_Case!W108=1),-Community_Solar_Business_Case!$F$112*'Key_Assumptions_&_Inputs'!$E$71,0) -> 0 | X115: =IF(AND('Key_Assumptions_&_Inputs'!$E$11="Panel Purchasing",Community_Solar_Business_Case!X108=1),-Community_Solar_Business_Case!$F$112*'Key_Assumptions_&_Inputs'!$E$71,0) -> 0 | Y115: =IF(AND('Key_Assumptions_&_Inputs'!$E$11="Panel Purchasing",Community_Solar_Business_Case!Y108=1),-Community_Solar_Business_Case!$F$112*'Key_Assumptions_&_Inputs'!$E$71,0) -> 0 | Z115: =IF(AND('Key_Assumptions_&_Inputs'!$E$11="Panel Purchasing",Community_Solar_Business_Case!Z108=1),-Community_Solar_Business_Case!$F$112*'Key_Assumptions_&_Inputs'!$E$71,0) -> 0 | AA115: =IF(AND('Key_Assumptions_&_Inputs'!$E$11="Panel Purchasing",Community_Solar_Business_Case!AA108=1),-Community_Solar_Business_Case!$F$112*'Key_Assumptions_&_Inputs'!$E$71,0) -> 0 | AB115: =IF(AND('Key_Assumptions_&_Inputs'!$E$11="Panel Purchasing",Community_Solar_Business_Case!AB108=1),-Community_Solar_Business_Case!$F$112*'Key_Assumptions_&_Inputs'!$E$71,0) -> 0 | AC115: =IF(AND('Key_Assumptions_&_Inputs'!$E$11="Panel Purchasing",Community_Solar_Business_Case!AC108=1),-Community_Solar_Business_Case!$F$112*'Key_Assumptions_&_Inputs'!$E$71,0) -> 0 | AD115: =IF(AND('Key_Assumptions_&_Inputs'!$E$11="Panel Purchasing",Community_Solar_Business_Case!AD108=1),-Community_Solar_Business_Case!$F$112*'Key_Assumptions_&_Inputs'!$E$71,0) -> 0 | AE115: 0
B116: Monthly Payments | D116: $ | E116: 0 | F116: =-IF('Key_Assumptions_&_Inputs'!$E$11="Panel Leasing",0,IF(F108=0,0,IF(F108=1,0,IF(F108<=('Key_Assumptions_&_Inputs'!$E$73+1),-PMT('Key_Assumptions_&_Inputs'!$E$72/12,'Key_Assumptions_&_Inputs'!$E$73*12,$F$115),0))*12)) -> 0 | G116: =-IF('Key_Assumptions_&_Inputs'!$E$11="Panel Leasing",0,IF(G108=0,0,IF(G108=1,0,IF(G108<=('Key_Assumptions_&_Inputs'!$E$73+1),-PMT('Key_Assumptions_&_Inputs'!$E$72/12,'Key_Assumptions_&_Inputs'!$E$73*12,$F$115),0))*12)) -> 0 | H116: =-IF('Key_Assumptions_&_Inputs'!$E$11="Panel Leasing",0,IF(H108=0,0,IF(H108=1,0,IF(H108<=('Key_Assumptions_&_Inputs'!$E$73+1),-PMT('Key_Assumptions_&_Inputs'!$E$72/12,'Key_Assumptions_&_Inputs'!$E$73*12,$F$115),0))*12)) -> 0 | I116: =-IF('Key_Assumptions_&_Inputs'!$E$11="Panel Leasing",0,IF(I108=0,0,IF(I108=1,0,IF(I108<=('Key_Assumptions_&_Inputs'!$E$73+1),-PMT('Key_Assumptions_&_Inputs'!$E$72/12,'Key_Assumptions_&_Inputs'!$E$73*12,$F$115),0))*12)) -> 0 | J116: =-IF('Key_Assumptions_&_Inputs'!$E$11="Panel Leasing",0,IF(J108=0,0,IF(J108=1,0,IF(J108<=('Key_Assumptions_&_Inputs'!$E$73+1),-PMT('Key_Assumptions_&_Inputs'!$E$72/12,'Key_Assumptions_&_Inputs'!$E$73*12,$F$115),0))*12)) -> 0 | K116: =-IF('Key_Assumptions_&_Inputs'!$E$11="Panel Leasing",0,IF(K108=0,0,IF(K108=1,0,IF(K108<=('Key_Assumptions_&_Inputs'!$E$73+1),-PMT('Key_Assumptions_&_Inputs'!$E$72/12,'Key_Assumptions_&_Inputs'!$E$73*12,$F$115),0))*12)) -> 0 | L116: =-IF('Key_Assumptions_&_Inputs'!$E$11="Panel Leasing",0,IF(L108=0,0,IF(L108=1,0,IF(L108<=('Key_Assumptions_&_Inputs'!$E$73+1),-PMT('Key_Assumptions_&_Inputs'!$E$72/12,'Key_Assumptions_&_Inputs'!$E$73*12,$F$115),0))*12)) -> 0 | M116: =-IF('Key_Assumptions_&_Inputs'!$E$11="Panel Leasing",0,IF(M108=0,0,IF(M108=1,0,IF(M108<=('Key_Assumptions_&_Inputs'!$E$73+1),-PMT('Key_Assumptions_&_Inputs'!$E$72/12,'Key_Assumptions_&_Inputs'!$E$73*12,$F$115),0))*12)) -> 0 | N116: =-IF('Key_Assumptions_&_Inputs'!$E$11="Panel Leasing",0,IF(N108=0,0,IF(N108=1,0,IF(N108<=('Key_Assumptions_&_Inputs'!$E$73+1),-PMT('Key_Assumptions_&_Inputs'!$E$72/12,'Key_Assumptions_&_Inputs'!$E$73*12,$F$115),0))*12)) -> 0 | O116: =-IF('Key_Assumptions_&_Inputs'!$E$11="Panel Leasing",0,IF(O108=0,0,IF(O108=1,0,IF(O108<=('Key_Assumptions_&_Inputs'!$E$73+1),-PMT('Key_Assumptions_&_Inputs'!$E$72/12,'Key_Assumptions_&_Inputs'!$E$73*12,$F$115),0))*12)) -> 0 | P116: =-IF('Key_Assumptions_&_Inputs'!$E$11="Panel Leasing",0,IF(P108=0,0,IF(P108=1,0,IF(P108<=('Key_Assumptions_&_Inputs'!$E$73+1),-PMT('Key_Assumptions_&_Inputs'!$E$72/12,'Key_Assumptions_&_Inputs'!$E$73*12,$F$115),0))*12)) -> 0 | Q116: =-IF('Key_Assumptions_&_Inputs'!$E$11="Panel Leasing",0,IF(Q108=0,0,IF(Q108=1,0,IF(Q108<=('Key_Assumptions_&_Inputs'!$E$73+1),-PMT('Key_Assumptions_&_Inputs'!$E$72/12,'Key_Assumptions_&_Inputs'!$E$73*12,$F$115),0))*12)) -> 0 | R116: =-IF('Key_Assumptions_&_Inputs'!$E$11="Panel Leasing",0,IF(R108=0,0,IF(R108=1,0,IF(R108<=('Key_Assumptions_&_Inputs'!$E$73+1),-PMT('Key_Assumptions_&_Inputs'!$E$72/12,'Key_Assumptions_&_Inputs'!$E$73*12,$F$115),0))*12)) -> 0 | S116: =-IF('Key_Assumptions_&_Inputs'!$E$11="Panel Leasing",0,IF(S108=0,0,IF(S108=1,0,IF(S108<=('Key_Assumptions_&_Inputs'!$E$73+1),-PMT('Key_Assumptions_&_Inputs'!$E$72/12,'Key_Assumptions_&_Inputs'!$E$73*12,$F$115),0))*12)) -> 0 | T116: =-IF('Key_Assumptions_&_Inputs'!$E$11="Panel Leasing",0,IF(T108=0,0,IF(T108=1,0,IF(T108<=('Key_Assumptions_&_Inputs'!$E$73+1),-PMT('Key_Assumptions_&_Inputs'!$E$72/12,'Key_Assumptions_&_Inputs'!$E$73*12,$F$115),0))*12)) -> 0 | U116: =-IF('Key_Assumptions_&_Inputs'!$E$11="Panel Leasing",0,IF(U108=0,0,IF(U108=1,0,IF(U108<=('Key_Assumptions_&_Inputs'!$E$73+1),-PMT('Key_Assumptions_&_Inputs'!$E$72/12,'Key_Assumptions_&_Inputs'!$E$73*12,$F$115),0))*12)) -> 0 | V116: =-IF('Key_Assumptions_&_Inputs'!$E$11="Panel Leasing",0,IF(V108=0,0,IF(V108=1,0,IF(V108<=('Key_Assumptions_&_Inputs'!$E$73+1),-PMT('Key_Assumptions_&_Inputs'!$E$72/12,'Key_Assumptions_&_Inputs'!$E$73*12,$F$115),0))*12)) -> 0 | W116: =-IF('Key_Assumptions_&_Inputs'!$E$11="Panel Leasing",0,IF(W108=0,0,IF(W108=1,0,IF(W108<=('Key_Assumptions_&_Inputs'!$E$73+1),-PMT('Key_Assumptions_&_Inputs'!$E$72/12,'Key_Assumptions_&_Inputs'!$E$73*12,$F$115),0))*12)) -> 0 | X116: =-IF('Key_Assumptions_&_Inputs'!$E$11="Panel Leasing",0,IF(X108=0,0,IF(X108=1,0,IF(X108<=('Key_Assumptions_&_Inputs'!$E$73+1),-PMT('Key_Assumptions_&_Inputs'!$E$72/12,'Key_Assumptions_&_Inputs'!$E$73*12,$F$115),0))*12)) -> 0 | Y116: =-IF('Key_Assumptions_&_Inputs'!$E$11="Panel Leasing",0,IF(Y108=0,0,IF(Y108=1,0,IF(Y108<=('Key_Assumptions_&_Inputs'!$E$73+1),-PMT('Key_Assumptions_&_Inputs'!$E$72/12,'Key_Assumptions_&_Inputs'!$E$73*12,$F$115),0))*12)) -> 0 | Z116: =-IF('Key_Assumptions_&_Inputs'!$E$11="Panel Leasing",0,IF(Z108=0,0,IF(Z108=1,0,IF(Z108<=('Key_Assumptions_&_Inputs'!$E$73+1),-PMT('Key_Assumptions_&_Inputs'!$E$72/12,'Key_Assumptions_&_Inputs'!$E$73*12,$F$115),0))*12)) -> 0 | AA116: =-IF('Key_Assumptions_&_Inputs'!$E$11="Panel Leasing",0,IF(AA108=0,0,IF(AA108=1,0,IF(AA108<=('Key_Assumptions_&_Inputs'!$E$73+1),-PMT('Key_Assumptions_&_Inputs'!$E$72/12,'Key_Assumptions_&_Inputs'!$E$73*12,$F$115),0))*12)) -> 0 | AB116: =-IF('Key_Assumptions_&_Inputs'!$E$11="Panel Leasing",0,IF(AB108=0,0,IF(AB108=1,0,IF(AB108<=('Key_Assumptions_&_Inputs'!$E$73+1),-PMT('Key_Assumptions_&_Inputs'!$E$72/12,'Key_Assumptions_&_Inputs'!$E$73*12,$F$115),0))*12)) -> 0 | AC116: =-IF('Key_Assumptions_&_Inputs'!$E$11="Panel Leasing",0,IF(AC108=0,0,IF(AC108=1,0,IF(AC108<=('Key_Assumptions_&_Inputs'!$E$73+1),-PMT('Key_Assumptions_&_Inputs'!$E$72/12,'Key_Assumptions_&_Inputs'!$E$73*12,$F$115),0))*12)) -> 0 | AD116: =-IF('Key_Assumptions_&_Inputs'!$E$11="Panel Leasing",0,IF(AD108=0,0,IF(AD108=1,0,IF(AD108<=('Key_Assumptions_&_Inputs'!$E$73+1),-PMT('Key_Assumptions_&_Inputs'!$E$72/12,'Key_Assumptions_&_Inputs'!$E$73*12,$F$115),0))*12)) -> 0 | AE116: 0
B117: Total Financing Costs | D117: $ | E117: =SUM(E115:E116) -> 0 | F117: =SUM(F115:F116) -> 0 | G117: 0 | H117: 0 | I117: =SUM(I115:I116) -> 0 | J117: =SUM(J115:J116) -> 0 | K117: =SUM(K115:K116) -> 0 | L117: =SUM(L115:L116) -> 0 | M117: =SUM(M115:M116) -> 0 | N117: =SUM(N115:N116) -> 0 | O117: =SUM(O115:O116) -> 0 | P117: =SUM(P115:P116) -> 0 | Q117: =SUM(Q115:Q116) -> 0 | R117: =SUM(R115:R116) -> 0 | S117: =SUM(S115:S116) -> 0 | T117: =SUM(T115:T116) -> 0 | U117: =SUM(U115:U116) -> 0 | V117: =SUM(V115:V116) -> 0 | W117: =SUM(W115:W116) -> 0 | X117: =SUM(X115:X116) -> 0 | Y117: =SUM(Y115:Y116) -> 0 | Z117: =SUM(Z115:Z116) -> 0 | AA117: =SUM(AA115:AA116) -> 0 | AB117: =SUM(AB115:AB116) -> 0 | AC117: =SUM(AC115:AC116) -> 0 | AD117: =SUM(AD115:AD116) -> 0 | AE117: 0
B119: Incentive Payments
B120: Participant Bill Credits | D120: $ | E120: 0 | F120: =Generation_Rates!E54/'Key_Assumptions_&_Inputs'!$E$34*'Key_Assumptions_&_Inputs'!$E$21 -> 674.3513525 | G120: =Generation_Rates!F54/'Key_Assumptions_&_Inputs'!$E$34*'Key_Assumptions_&_Inputs'!$E$21 -> 689.6328285 | H120: =Generation_Rates!G54/'Key_Assumptions_&_Inputs'!$E$34*'Key_Assumptions_&_Inputs'!$E$21 -> 705.2427889 | I120: =Generation_Rates!H54/'Key_Assumptions_&_Inputs'!$E$34*'Key_Assumptions_&_Inputs'!$E$21 -> 721.1876872 | J120: =Generation_Rates!I54/'Key_Assumptions_&_Inputs'!$E$34*'Key_Assumptions_&_Inputs'!$E$21 -> 737.474082 | K120: =Generation_Rates!J54/'Key_Assumptions_&_Inputs'!$E$34*'Key_Assumptions_&_Inputs'!$E$21 -> 754.1086377 | L120: =Generation_Rates!K54/'Key_Assumptions_&_Inputs'!$E$34*'Key_Assumptions_&_Inputs'!$E$21 -> 771.0981252 | M120: =Generation_Rates!L54/'Key_Assumptions_&_Inputs'!$E$34*'Key_Assumptions_&_Inputs'!$E$21 -> 788.449423 | N120: =Generation_Rates!M54/'Key_Assumptions_&_Inputs'!$E$34*'Key_Assumptions_&_Inputs'!$E$21 -> 806.1695173 | O120: =Generation_Rates!N54/'Key_Assumptions_&_Inputs'!$E$34*'Key_Assumptions_&_Inputs'!$E$21 -> 824.2655037 | P120: =Generation_Rates!O54/'Key_Assumptions_&_Inputs'!$E$34*'Key_Assumptions_&_Inputs'!$E$21 -> 842.7445869 | Q120: =Generation_Rates!P54/'Key_Assumptions_&_Inputs'!$E$34*'Key_Assumptions_&_Inputs'!$E$21 -> 861.6140818 | R120: =Generation_Rates!Q54/'Key_Assumptions_&_Inputs'!$E$34*'Key_Assumptions_&_Inputs'!$E$21 -> 880.8814138 | S120: =Generation_Rates!R54/'Key_Assumptions_&_Inputs'!$E$34*'Key_Assumptions_&_Inputs'!$E$21 -> 900.5541197 | T120: =Generation_Rates!S54/'Key_Assumptions_&_Inputs'!$E$34*'Key_Assumptions_&_Inputs'!$E$21 -> 920.6398476 | U120: =Generation_Rates!T54/'Key_Assumptions_&_Inputs'!$E$34*'Key_Assumptions_&_Inputs'!$E$21 -> 941.1463577 | V120: =Generation_Rates!U54/'Key_Assumptions_&_Inputs'!$E$34*'Key_Assumptions_&_Inputs'!$E$21 -> 962.0815226 | W120: =Generation_Rates!V54/'Key_Assumptions_&_Inputs'!$E$34*'Key_Assumptions_&_Inputs'!$E$21 -> 983.453327 | X120: =Generation_Rates!W54/'Key_Assumptions_&_Inputs'!$E$34*'Key_Assumptions_&_Inputs'!$E$21 -> 1005.269869 | Y120: =Generation_Rates!X54/'Key_Assumptions_&_Inputs'!$E$34*'Key_Assumptions_&_Inputs'!$E$21 -> 1027.539358 | Z120: =Generation_Rates!Y54/'Key_Assumptions_&_Inputs'!$E$34*'Key_Assumptions_&_Inputs'!$E$21 -> 1050.270118 | AA120: =Generation_Rates!Z54/'Key_Assumptions_&_Inputs'!$E$34*'Key_Assumptions_&_Inputs'!$E$21 -> 1073.470585 | AB120: =Generation_Rates!AA54/'Key_Assumptions_&_Inputs'!$E$34*'Key_Assumptions_&_Inputs'!$E$21 -> 1097.149307 | AC120: =Generation_Rates!AB54/'Key_Assumptions_&_Inputs'!$E$34*'Key_Assumptions_&_Inputs'!$E$21 -> 1121.314945 | AD120: =Generation_Rates!AC54/'Key_Assumptions_&_Inputs'!$E$34*'Key_Assumptions_&_Inputs'!$E$21 -> 1145.976272 | AE120: 22286.08566
B121: Total Incentive Payments | D121: $ | E121: =E120 -> 0 | F121: =F120 -> 674.3513525 | G121: 689.6328285 | H121: 705.2427889 | I121: =I120 -> 721.1876872 | J121: =J120 -> 737.474082 | K121: =K120 -> 754.1086377 | L121: =L120 -> 771.0981252 | M121: =M120 -> 788.449423 | N121: =N120 -> 806.1695173 | O121: =O120 -> 824.2655037 | P121: =P120 -> 842.7445869 | Q121: =Q120 -> 861.6140818 | R121: =R120 -> 880.8814138 | S121: =S120 -> 900.5541197 | T121: =T120 -> 920.6398476 | U121: =U120 -> 941.1463577 | V121: =V120 -> 962.0815226 | W121: =W120 -> 983.453327 | X121: =X120 -> 1005.269869 | Y121: =Y120 -> 1027.539358 | Z121: =Z120 -> 1050.270118 | AA121: =AA120 -> 1073.470585 | AB121: =AB120 -> 1097.149307 | AC121: =AC120 -> 1121.314945 | AD121: =AD120 -> 1145.976272 | AE121: 22286.08566
B123: Net Benefits (Costs) | D123: $ | E123: =E112+E117+E121 -> 0 | F123: =F112+F117+F121 -> 24.24105474 | G123: 39.52253074 | H123: 55.13249111 | I123: =I112+I117+I121 -> 71.07738943 | J123: 87.36378427 | K123: 103.99834 | L123: 120.9878275 | M123: 138.3391252 | N123: 156.0592196 | O123: 174.155206 | P123: 192.6342892 | Q123: 211.503784 | R123: 230.771116 | S123: 250.4438219 | T123: 270.5295498 | U123: 291.03606 | V123: 311.9712248 | W123: 333.3430292 | X123: 355.1595709 | Y123: 377.4290602 | Z123: 400.1598204 | AA123: 423.3602873 | AB123: 447.0390094 | AC123: 471.2046475 | AD123: 495.8659741 | AE123: 6033.328213
B124: Cumulative Cashflow | D124: $ | E124: =E123 -> 0 | F124: =E124+F123 -> 24.24105474 | G124: =F124+G123 -> 63.76358548 | H124: 118.8960766 | I124: =H124+I123 -> 189.973466 | J124: =I124+J123 -> 277.3372503 | K124: =J124+K123 -> 381.3355903 | L124: =K124+L123 -> 502.3234177 | M124: =L124+M123 -> 640.6625429 | N124: =M124+N123 -> 796.7217625 | O124: =N124+O123 -> 970.8769685 | P124: =O124+P123 -> 1163.511258 | Q124: =P124+Q123 -> 1375.015042 | R124: =Q124+R123 -> 1605.786158 | S124: =R124+S123 -> 1856.22998 | T124: =S124+T123 -> 2126.759529 | U124: =T124+U123 -> 2417.795589 | V124: =U124+V123 -> 2729.766814 | W124: =V124+W123 -> 3063.109844 | X124: =W124+X123 -> 3418.269414 | Y124: =X124+Y123 -> 3795.698475 | Z124: =Y124+Z123 -> 4195.858295 | AA124: =Z124+AA123 -> 4619.218582 | AB124: =AA124+AB123 -> 5066.257592 | AC124: =AB124+AC123 -> 5537.462239 | AD124: =AC124+AD123 -> 6033.328213
B125: Payback Calculation | E125: =SUM(F125:Y125) -> 0 | F125: =IF(F124<0,1,IF(AND(F124>0,E124<0),(-E124/(F124-E124)),0)) -> 0 | G125: =IF(F125=0,0,IF(G124<0,1,IF(AND(G124>0,F124<0),(-F124/(G124-F124)),0))) -> 0 | H125: =IF(G125=0,0,IF(H124<0,1,IF(AND(H124>0,G124<0),(-G124/(H124-G124)),0))) -> 0 | I125: 0 | J125: 0 | K125: 0 | L125: 0 | M125: 0 | N125: 0 | O125: 0 | P125: 0 | Q125: 0 | R125: 0 | S125: 0 | T125: 0 | U125: 0 | V125: 0 | W125: 0 | X125: 0 | Y125: 0 | Z125: =IF(Y125=0,0,IF(Z124<0,1,IF(AND(Z124>0,Y124<0),(-Y124/(Z124-Y124)),0))) -> 0 | AA125: =IF(Z125=0,0,IF(AA124<0,1,IF(AND(AA124>0,Z124<0),(-Z124/(AA124-Z124)),0))) -> 0 | AB125: =IF(AA125=0,0,IF(AB124<0,1,IF(AND(AB124>0,AA124<0),(-AA124/(AB124-AA124)),0))) -> 0 | AC125: =IF(AB125=0,0,IF(AC124<0,1,IF(AND(AC124>0,AB124<0),(-AB124/(AC124-AB124)),0))) -> 0 | AD125: =IF(AC125=0,0,IF(AD124<0,1,IF(AND(AD124>0,AC124<0),(-AC124/(AD124-AC124)),0))) -> 0
C127: Up-front Net Costs | D127: $ | E127: =F123 -> 24.24105474
C128: Year 1 Net Benefits | D128: $ | E128: =G124 -> 63.76358548
E130: TOTAL | F130: $/Watt
C131: 25 year costs | D131: $ | E131: =SUM(E112:AD112)+SUM(E117:AD117) -> -16252.75744 | F131: =E131/'Key_Assumptions_&_Inputs'!$E$17/1000 -> -0.01625275744
C132: 25 year benefits | D132: $ | E132: =SUM(E121:AD121) -> 22286.08566 | F132: =E132/'Key_Assumptions_&_Inputs'!$E$17/1000 -> 0.02228608566
C133: 25 year net benefits | D133: $ | E133: =E132+E131 -> 6033.328213 | F133: =E133/'Key_Assumptions_&_Inputs'!$E$17/1000 -> 0.006033328213
C134: 25 year NPV | D134: $ | E134: =E123+NPV('Key_Assumptions_&_Inputs'!E64,F123:AD123) -> 1398.8382 | F134: =E134/'Key_Assumptions_&_Inputs'!$E$17/1000 -> 0.0013988382
C135: Internal Rate of Return (IRR) | D135: % | E135: =IRR(F123:AD123) ->  | F135: N/A
C136: Modified Internal Rate of Return (MIRR) | D136: % | E136: =MIRR(E123:AD123,0,'Key_Assumptions_&_Inputs'!E64) ->  | F136: N/A
C137: Return on Investment (ROI) | D137: % | E137: =E133/(-E131) -> 0.3712187445 | F137: N/A
C138: Payback Period | D138: years | E138: =E125 -> 0 | F138: N/A

Sheet Dashboard
A1: Dashboard - Developer and Subscriber Metrics: The purpose of this tab is to highlight the key financial ouputs for the subscribers and system owner.
A6: Summary Output
B8: Input/Output Summary
B9: System Owner IRR: | C9: =Community_Solar_Business_Case!E68 -> 0.1694698592
B10: Panel Purchase Price: | C10: =IF('Key_Assumptions_&_Inputs'!E11="Panel Leasing","N/A",'Key_Assumptions_&_Inputs'!E12) -> N/A
B11: Monthly Panel Lease Price: | C11: =IF('Key_Assumptions_&_Inputs'!E11="Panel Purchasing","N/A",'Key_Assumptions_&_Inputs'!E12) -> 3.611723876
B13: Key Performace Indicator | D13: System Owner | E13: Subscriber
B14: 25-Year Costs: | C14: $ | D14: =Community_Solar_Business_Case!E64 -> -3777447.424 | E14: =Community_Solar_Business_Case!E131 -> -16252.75744
B15: 25-Year Revenues: | C15: $ | D15: =Community_Solar_Business_Case!E65 -> 6188367.592 | E15: =Community_Solar_Business_Case!E132 -> 22286.08566
B16: 25-Year Net Benefits: | C16: $ | D16: =Community_Solar_Business_Case!E66 -> 2410920.168 | E16: =Community_Solar_Business_Case!E133 -> 6033.328213
B17: 25-Year Net Present Value (NPV): | C17: $ | D17: =Community_Solar_Business_Case!E67 -> 674351.8804 | E17: =Community_Solar_Business_Case!E134 -> 1398.8382
B18: Return on Investment (ROI): | C18: % | D18: =Community_Solar_Business_Case!E70 -> 0.6382405622 | E18: =Community_Solar_Business_Case!E137 -> 0.3712187445
B19: Year 1 Bill Savings: | C19: $ | D19: N/A | E19: =Community_Solar_Business_Case!F120 -> 674.3513525
B20: Payback Period: | C20: years | D20: =Community_Solar_Business_Case!E71 -> 4.22442374 | E20: =Community_Solar_Business_Case!E138 -> 0
J33: 0.06
H40: For referece: to meet the specified IRR, a system owner would need to achieve the following price per kilowatt-hour if they were to enter into a power purchase agreement with their local
K41: -9.754940909e+104
H42: utility (instead of engaging in subscriber transactions): | K42: 0.1454710614 | L42: /kWh
